Workbook

Sheet Info

Sheet Trial (hidden)

Sheet Instructions (hidden)
A1: Excel Skills | Basic Accounting Template
A2: Instructions
A3: www.excel-skills.com
A5: This innovative accounting template enables users to record income & expenses and automatically produces a trial balance, income statement, cash flow statement and balance sheet. The template is easy to use and can be customized by editing the default accounts and adding an unlimited number of additional accounts. It also accommodates sales tax calculations and multiple bank accounts. After completing the initial template setup, the template can be rolled forward or back by simply changing the reporting year in a single input cell.
A7: Note: The main difference between our Basic Accounting and Service Based Accounting templates is that the Service Based Accounting template also includes customer details and invoicing. If you do not need to produce invoices for customers, the Basic Accounting template should be used.
A9: The template includes the following sheets:
A10: Setup - enter your business name to change the headings on all the sheets and customize the sales tax codes and bank codes. The sales tax codes & percentages are used to calculate sales tax on all income & expense transactions and bank codes can be used to allocate transactions to multiple bank accounts. The first financial year, reporting year and year-end input cells determine the monthly periods that are included on the trial balance, income statement, cash flow statement and balance sheet.
A11: Groups - this sheet contains the default list of account groups that are used in this template. You can customize the descriptions of the account groups but we do not recommend changing the account group keys. Additional account groups can be added and inserted in the appropriate location on the income statement, cash flow statement and balance sheet.
A12: TB - this sheet contains a full list of the accounts that are included in the template and a trial balance which is automatically calculated based on the transactions that are entered on the Income and Expenses sheets. The default accounts list can be customized by editing the existing accounts or by inserting new rows for additional accounts. The period for which the trial balance is calculated is determined by the month-end period that is selected at the top of the sheet in column G.
A13: Income - all income and other receipt transactions should be entered on this sheet. The columns with yellow column headings require user input and the columns with light blue column headings contain formulas and are therefore automatically calculated.
A14: Expenses - all expense and other payment transactions should be entered on this sheet. The columns with yellow column headings require user input and the columns with light blue column headings contain formulas and are therefore automatically calculated. We also recommend entering all journals on this sheet.
A15: IS - the monthly income statement on this sheet is automatically compiled based on the transactions that are recorded on the Income and Expenses sheets. The 12 monthly periods that are included in the report are determined based on the reporting year that is specified on the Setup sheet.
A16: CFS - the monthly cash flow statement on this sheet is automatically compiled based on the income statement and balance sheet calculations.
A17: BS - the monthly balance sheet on this sheet is automatically compiled based on the transactions that are recorded on the Income and Expenses sheets. All the line items are set to report account group totals but you can include individual accounts by changing the keys in column A.
A18: Bank - this sheet contains an analysis of bank account movements on a daily basis (for the selected month) and on a monthly basis for the current financial year. Aside from selecting the bank code and month, no user input is required on this sheet.
A19: SalesTax - this sheet contains a monthly sales tax analysis which can be used for sales tax returns. All the calculations are automated. You can select the tax type and any of the individual sales tax codes at the top of the sheet to view the output and input values for any tax type or tax code. There are two tax types for national or federal sales tax and state sales tax.
A21: Setup
A23: The first step in setting up the template for your business is to enter your business name at the top of the Setup sheet. Your business name is included as a heading on all the other sheets. You also need to enter the first financial year & the reporting year, select a year-end month and maintain your sales tax & bank codes on the Setup sheet.
A25: The first financial year that is entered on the Setup sheet is very important because it determines the first period that will be included in the template calculations. The year that is specified in this input cell also determines the effective date for which opening balance sheet balances should be entered in column C on the TB sheet.
A27: Note: Once you have set the first financial year that needs to be included in the template, you need to use a trial balance as at the end of the previous financial year (as generated in your previous accounting solution) to enter the balance sheet opening balances in column C on the TB sheet. The total of all the balance sheet opening balances needs to be nil in order for the balance sheet to balance.
A29: This template can only be used for full financial years. The template does not make provision for entering opening balances for income statement items and you therefore need to start with data for a full financial year. If you therefore switch from another accounting solution to our template, you need to recapture all your income & expenses as from the first day of the first financial year that is included in the template.
A31: The reporting year that is entered on the Setup sheet determines the 12 monthly periods that are included on the income statement, cash flow statement and balance sheet. The IS, CFS and BS sheets include 12 monthly periods - these periods and the calculations that are automatically performed on these sheets can therefore be amended by simply changing the reporting year on the Setup sheet to include a new 12-month financial period in these reports.
A33: Note: The first financial year basically needs to be set once when you start using the template but the reporting year can be used to roll the 12-month financial period that is included in the template forward or back by simply changing the year in this cell. The template can be used for multiple financial years and all template calculations are updated automatically when you change the reporting year.
A35: You also need to select the appropriate year-end month from an input cell on the Setup sheet. This selection is used to determine the start date and the end date of each financial year and also determines the date on which opening balance sheet balances need to be included on the TB sheet.
A37: Sales Tax Codes
A39: The template accommodates an unlimited number of sales tax codes. You can include as many sales tax codes as you want by editing the default list of sales tax codes on the Setup sheet and adding additional sales tax codes by inserting the required number of additional rows, entering a sales tax code (use letters between A and Z) and entering the appropriate sales tax percentage.
A41: The sales tax codes included in the list on the Setup sheet are automatically included in the drop-down lists in the Sales Tax Code columns on the Income and Expenses sheets and the relevant percentages are automatically used to calculate the sales tax amounts on the same sheets. The template provides for two default sales tax types - national or federal sales tax and state sales tax and each sales tax type therefore has its own code selection and amount columns.
A43: All the sales tax codes are available in both sales tax columns but you can use different sales tax codes and therefore different percentages for national or federal sales tax and state sales tax by simply selecting the relevant codes in the appropriate column which automatically results in the appropriate sales tax percentage being applied to the sales tax calculations. If the sales tax percentages change, you can simply create a new sales tax code for the new percentage and use it from the effective date for the new sales tax percentage.
A45: If you do not need sales tax to be calculated, you can simply leave the sales tax code columns blank or select any code with a zero percentage on the Setup sheet which will result in no sales tax being calculated.
A47: If you do not need both sales tax columns, we recommend selecting the appropriate sales tax codes in the first column and simply leaving the second sales tax code column blank or using a sales tax code with a zero percentage which would result in no sales tax being calculated in the second sales tax amount column. You can delete the second sales tax code and amount columns without affecting the sales tax calculations in the first sales tax code and amount columns but it may result in a data validation warning being displayed in the first sales tax amount column. These warnings just refer to the missing parts for the second sales tax calculations in the formulas and can safely be ignored.
A49: We have also included a SalesTax sheet which is automatically calculated and requires no user input. This sheet contains a monthly analysis of sales tax amounts and can be used to populate sales tax returns. The calculations can also be displayed for a specific sales tax code by simply selecting the appropriate code from the list box at the top of the sheet. When you then clear the contents of the list box, totals for all sales tax codes are displayed.
A51: Bank Accounts
A53: The template also accommodates an unlimited number of bank accounts. You can include as many bank accounts as you want by editing the default list of bank account codes on the Setup sheet and adding additional bank account codes by inserting the required number of additional rows, entering a bank code and entering a description of the bank account. You also then need to copy the formulas in columns D and E (indicated with light blue cell background) from one of the existing bank account codes.
A55: Note: When adding bank account codes, we recommend inserting new rows anywhere above the JC bank account code and using a two character bank code for all new bank accounts. The JC bank account code is reserved for journal entries and the default code for this bank code should not be changed. Journals do not really have a cash effect but we are using the JC code to facilitate including general ledger journal type entries in the template.
A57: All the bank codes that are added to the Setup sheet are automatically included in the drop-down list boxes on the Income and Expenses sheets and are available for selection immediately after being added to the Setup sheet. If the default number of bank account codes (four including petty cash) is not sufficient for your requirements and you have added additional bank account codes to the Setup sheet, you also need to add these bank account codes to the TB and BS sheets.
A59: Note: It is very important that you add the additional bank account codes to the TB and BS sheets otherwise your trial balance and balance sheet will not balance!
A61: The bank accounts on the TB sheet are part of the control accounts section at the bottom of the sheet. If you need to add additional bank codes, we recommend doing so above the JC bank account (BS-BJC bank code in column A). Adding the additional bank account codes is a simple exercise - insert the required number of additional rows and copy the formulas from one of the existing bank account rows. The template will automatically display your bank account codes in the same sequence as they are included on the Setup sheet.
A63: After adding the additional bank account codes to the TB sheet, you also need to add the new codes to the BS sheet. The procedure to follow is again really simple - insert the required number of additional rows above the JC bank account code (BS-BJC key in column A) and copy the formulas from one of the existing rows. You can copy the entire row to ensure that you have included the formulas in all columns. The formulas will automatically pick up the correct bank account codes.
A65: Note: If an additional bank account has been added to the Setup sheet and not included on the TB or BS sheets, the appropriate row will contain an "add!" status in column D or E. This indicates that the bank account still needs to be added to the appropriate sheet.
A67: Note: We have also included a Bank sheet in the template which enables users to analyse bank account movements in a lot more detail especially when preparing bank reconciliations. This sheet enables users to select a bank account code and month at the top of the sheet in order to display daily and monthly bank account movements. Aside from selecting the bank code and month, the sheet requires no user input.
A69: Input Error Codes
A71: The input error codes at the bottom of the sheet are included for information purposes only and provide users with a reason for the error codes that may be encountered when entering transactions on the Income and Expenses sheets. These error codes are covered in more detail in the Error Codes section of these instructions.
A73: Account Groups
A75: The accounts that are included on the income statement, cash flow statement and balance sheet are based on a pre-defined account structure which consists of pre-defined account groups that are used to populate the appropriate line items. A detailed list of these account groups is included on the Groups sheet.
A77: Note: Changes to the Groups sheet do not influence any of the calculations on the other sheets and only have an effect on the account group descriptions that are included on the IS, CFS and BS sheets. If you want to make changes to our default account groups, we only recommend doing so if absolutely necessary and that you customize existing account groups before considering adding new account groups. Customizing similar, existing account groups which are not required is a lot easier than adding new account groups.
A79: Note: If you do not change any of the default account groups, it is not necessary to review the rest of the instructions in the Account Groups section.
A81: The description of line items on the balance sheet can be changed quite easily by changing the description of the appropriate account group on the Groups sheet and then changing the account descriptions of the appropriate accounts which are included in the account group on the TB sheet. Account groups can accommodate up to 100 individual accounts which are linked to the account group by the same first 5 account number characters.
A83: Example: The account group key for property, plant & equipment (cost) is BS-00 and the account group is included as a group total on the balance sheet (key of BS-00G) which means that all accounts that start with BS-00 will be included in this account group total on the balance sheet. The default account number for Land & Buildings (cost) is BS-0005 which starts with BS-00 and therefore forms part of this account group.
A85: The same account integration principle is applied to most balance sheet account groups where the default integration is to report account group totals (as indicated by the "G" at the end of the account group keys). Although it is not difficult to add new account group keys to the Groups sheet and to then include the new keys in the balance sheet or income statement, there is a risk of balance sheet imbalances occurring if the cash flow statement movements are not included correctly. We therefore recommend completing the following steps if you want to add new account groups to the income statement or balance sheet:
A86: ■ Scan the Groups sheet for similar items which you are not going to use. For an item to be similar, it needs to be of the same nature as the item that you want to add. For example, current assets can only be replaced by other current assets and liabilities can only be replaced by other liabilities. If the items differ in nature, you should add a new account group instead of using an existing one.
A87: ■ If no suitable existing item can be found, insert a new row and add a new account group by entering the appropriate account group key and a description for the account group. When adding keys, you need to stick to the principle of a five character key which is unique and account numbers that need to be linked to this key, need to also start with the same five characters followed by a number between 00 and 99.
A88: ■ When adding new account groups, we suggest using the next available account group number after the "BS-". The default balance sheet account groups end after "BS-20" which means that the first available account group is "BS-21". The default income statement account groups end after "IS-10" which means that the first available account group is "IS-11".
A89: ■ After adding the appropriate account group to the Groups sheet, go to the TB sheet and add the required individual accounts which need to be included in the account group total on the balance sheet. Remember that the appropriate account numbers all need to start with the same first five characters as the account group and refer to the New Accounts section of these instructions for guidance on adding new accounts to the TB sheet.
A90: ■ Next, you need to add the new account group to the income statement or balance sheet. This is relatively simple - find a similar income statement or balance sheet item, insert a row above or below it, copy the entire row from the existing item into the new empty row and then change the account key in column A so that the new account group that you just created on the Groups sheet will be included in the calculations in the new line. For example, if your new account group has been created as BS-21, the key in column A on the balance sheet should be "BS-21G". Only similar items with a green key in column A should be used - the items with orange keys are custom formulas which cannot be copied for similar line items!
A91: ■ After adding the new account group to either the income statement or balance sheet, make sure that the total that this item is included in is correct. For most income statement or balance sheet items, this should automatically be the case but in some instances especially with regards to the income statement, you may need to edit some of the default formulas to ensure that the new account group is taken into account in the relevant totals.
A92: ■ Next, if you have added a new balance sheet account group, you will also need to make changes to the cash flow statement. Income statement items are included in a cash flow statement by including a profit or loss from the income statement and it therefore probably won't be necessary to make changes to the cash flow statement if you have added a new income statement account group.
A93: ■ If necessary, find a similar balance sheet item on the cash flow statement (CFS sheet), insert a new row above or below it, copy the entire row from the existing, similar line item and enter the new key in column A. Only similar items with a green key in column A should be used - the items with orange keys are custom formulas which cannot be copied for similar line items!
A94: ■ You also need to ensure that the appropriate total on the cash flow statement includes the new account group which has been added otherwise your balance sheet may not balance.
A96: As you can see, it becomes relatively complex when needing to add new account groups to the template and it is therefore much easier to change the descriptions of one of the existing line items in order to accommodate new or renamed account groups.
A98: Note: Refer to the Account Integration section of the instructions for guidance on how to include individual accounts on the income statement or balance sheet. This section is part of the main Trial Balance section below.
A100: Chart Of Accounts & Trial Balance
A102: The TB sheet has a dual purpose - it contains the chart of accounts which represents a detailed list of the account numbers which are available for the allocation of transactions & the reporting of transaction totals and it contains a detailed trial balance which is automatically calculated based on the transactions that are recorded on the Income and Expenses sheets and allocated to accounts in the Account Number columns.
A104: Chart of Accounts
A106: The default chart of accounts on the TB sheet includes all the individual accounts that have been created in each of the default account groups. Account groups constitute the first 5 characters of the account number and the individual account numbers are represented by the next two characters in the account numbers. Each account group can therefore accommodate up to 100 account numbers (00 to 99).
A108: Note: The template has been designed based on a fixed account number format. All account numbers start with a two character code which identifies whether an account is an income statement account (IS) or a balance sheet account (BS) followed by a hyphen, the two-digit account group (as listed on the Groups sheet) and a two-digit account number. This default account number format should not be deviated from otherwise the template calculations may not be accurate.
A110: The template can be customized for your business by reviewing the accounts that are included for each account group (as per the Groups sheet), changing the account descriptions in column B (where required) and inserting additional accounts if the number of accounts that are provided for in the default chart of accounts are not sufficient.
A112: Additional accounts can be created on the TB sheet by inserting a new row, entering the appropriate account number, entering an account description and copying the formulas in columns E to H from one of the existing rows. We also recommend inserting the new row in the appropriate location based on the account number sequence (in an ascending order). The list boxes in the Account Number columns on the Income and Expenses sheets include the accounts in the same sequence as on the TB sheet - if account numbers are therefore not added in the correct order, it may be confusing when selecting accounts.
A114: Note: All new accounts need to be created within the existing account group structure (as per the Groups sheet) otherwise the template calculations may not be accurate and your balance sheet may not balance. New account groups can be created as per the Account Groups section of the instructions.
A116: Note: You can also delete any of the default accounts that are included in the chart of accounts on the TB sheet if they are not required for your business. Just be careful when doing so - if you have allocated transactions to an account and you subsequently delete it, it may cause errors and template imbalances!
A118: Account Integration
A120: The template provides for including accounts as a group total or as individual accounts on the income statement, cash flow statement and balance sheet. If an account is integrated on an account group basis on the IS, CFS or BS sheets, the key in column A should contain the account group number followed by a "G". If an account is integrated on an individual account basis, the key in column A on the IS, CFS or BS sheets should be the full account number with no additional characters at the end.
A122: Note: If the accounts in an account group are integrated on an individual account number basis, you need to manually add all the individual accounts to the appropriate sheet in order to ensure that all accounts that are included in the appropriate account group are included on the appropriate sheet. If an individual account in the appropriate account group is omitted and transactions are allocated to it, the balance sheet may not balance.
A124: If you stick to the default account numbers and do not add any new accounts, you do not need to be concerned about the integration because all accounts will be included correctly. If you make changes to the account groups or account numbers, it is important to ensure that you have added account groups or accounts where necessary otherwise the template calculations may become inaccurate.
A126: We have therefore added an account status in column H on the TB sheet where it is necessary to check the integration of an account (not necessary for control accounts). This column can have any of the following statuses:
A127: ■ Group - individual account balances will be included as a group total on the income statement or balance sheet.
A128: ■ Account - individual account balances will be included on the income statement or balance sheet.
A129: ■ Error! - this status means that an account number has been created but no integration could be found for the new account number. You should check the account number format that you have entered and correct it if necessary. If the account number is correct, the error is probably the result of the account number not being included on the income statement or balance sheet.
A130: ■ Double! - this status means that an account number integration has been added for the account number on both the individual account number and account group basis. If the integration for an account group is set up in such a way that accounts are integrated individually, you cannot also integrate the accounts on a group basis because the affected account balances will be included twice. The template calculations will be inaccurate if there is double integration. If individual account integration is applied, all the individual accounts that form part of an account group need to be included individually on the income statement or balance sheet.
A132: Note: If any row on the TB sheet contains an error or double status, the appropriate cell will be highlighted in red until the error is fixed. These errors usually result in imbalances on the balance sheet and therefore need to be fixed before the template calculations will be accurate.
A134: Note: Only the Income and Expenses account groups (excluding interest, taxation, dividends & other income and expenses) are integrated on an individual account basis by default. If you therefore add additional accounts to these account groups or change any of the default account numbers in these sections, you will need to manually make the same changes to the appropriate items on the IS sheet.
A136: Note: If you need to add a line to any section of the income statement or balance sheet, insert a new row in the appropriate location, copy the formulas in all columns from one of the existing rows and change the key in column A to the appropriate full account number. The calculations will be updated automatically and the error on the TB sheet in the Status column should be resolved.
A138: Control Accounts
A140: Control accounts are accounts that have a specific purpose in the context of the template design and can therefore not be edited or selected for the allocation of transactions. These accounts are automatically calculated based on the transactions that are recorded on the Income & Expenses sheets and are included individually on the balance sheet and cash flow statement. This is also why all the control accounts are included in a separate section below the other accounts on the TB sheet.
A142: Note: Control accounts include all the individual bank accounts, a trade debtors account, trade creditors account and a retained earnings account. These accounts are integral to the proper functioning of the template and should not be amended in any way (aside from adding additional bank accounts if required).
A144: Opening Balances
A146: If you are using the template for an existing business, you will need to enter the appropriate balance sheet opening balances as at the end of the year before the first financial year that is included in the template (as specified on the Setup sheet) in column C on the TB sheet. The template can only be used for full financial years and opening balances can therefore only be entered for balance sheet accounts.
A148: If you switch to our accounting template during the financial year, you need to enter the balance sheet accounts opening balances for the previous financial year as the template opening balances in column C on the TB sheet and record all transactions from the first day of the financial year on the Income and Expenses sheets.
A150: Note: The balance sheet opening balances should be based on a trial balance produced in your previous accounting solution as at the end of the financial year immediately before the first financial year that is included in the template. After entering all the opening balances, you also need to make sure that the total at the bottom of the TB sheet is nil otherwise your balance sheet will not balance.
A152: Note: The opening balances of all asset accounts should be entered as positive values and the opening balances of all liability & equity accounts should be entered as negative values. This should be exactly as they are reflected on the trial balance in your previous accounting software.
A154: All the opening balances that need to be entered on the TB sheet contain yellow cell backgrounds. The opening balances for the individual bank balances, the trade debtors line and the trade creditors line in the Control Accounts section however contain light blue cell backgrounds. This is because the subsequent movement in these opening balances will have an effect on the cash flow during the first financial period included in the template. These opening balances should therefore be entered on the Income or Expenses sheets and will be calculated automatically on the TB sheet based on the formulas which have been included in column C.
A156: Note: The total of all opening balances in column C on the TB sheet should still be nil and the formulas in the cells with light blue column headings in the control accounts section should not be amended in any way or replaced by values otherwise the template calculations will be inaccurate. If the total in column C is not nil, it is not as a result of any formula but as a result of opening balances not being entered correctly. DO NOT change any of the formulas in the cells with light blue cell backgrounds!
A158: The opening balance for each of the bank codes that are included on the Setup sheet should be entered on the Income sheet as positive values. The month-end date of the month that precedes the first financial year which is specified on the Setup sheet should be entered in the invoice/document date and payment date columns. This approach will ensure that the opening bank balances are calculated correctly on the TB sheet.
A160: Example: If the opening B1 bank balance is $5,000 and the first day of the financial year is 1 March, an opening bank balance transaction needs to be recorded on the Income sheet with an inclusive invoice amount of $5,000, a document date & payment date of 28 February, an exempt sales tax code (with a zero sales tax percentage), a bank code of B1 and a payment amount of $5,000. This balance will then be included automatically as the opening B1 bank balance in column C on the TB sheet.
A162: The opening trade debtors balance should also be entered on the Income sheet. You can enter the total in one row or enter the outstanding invoices individually (we recommend the latter because all outstanding invoices may not be paid on the same date). The invoice date that is entered in column B should be before the first day of the first financial year that is specified on the Setup sheet and the payment date should be the actual payment date (which will obviously be after the first day of the first financial year that is included in the template because the invoice is outstanding at the beginning of the first financial year).
A164: Example: If a company's year-end is February and the opening trade debtor balance at 28 February of the year before the first financial year which is included in the template consists of two invoices, enter the actual invoice dates in the Invoice Date column (the invoices should be dated on or before 28 February). The payment date can be left blank until the invoices are paid and the actual date when the payment is received should be entered in this column with the payment amount in the Payment Amount column. The opening trade debtor balance will then automatically be calculated and included on the TB sheet.
A166: The opening trade creditors balance should be entered on the Expenses sheet (as a positive amount). You can enter the total in one row or enter the outstanding invoices individually (we recommend the latter because all outstanding invoices may not be paid on the same date and will also probably be paid to different suppliers). The document date should be before the first day of the first financial year that is included in the template (as per the Setup sheet) and the payment date should be left blank until the appropriate supplier has been paid.
A168: Example: If the opening trade creditor balance at 1 March consists of two invoices, enter the actual invoice dates in the Document Date column (the invoices should be dated on or before 28 February). The payment date column can be left blank until the invoices are paid and the actual date when the invoices are paid then needs to be entered in the Payment Date column. The opening trade creditors balance will then be calculated automatically and included on the TB sheet as a negative amount because trade creditors are liabilities.
A170: Note: When recording opening balances for bank accounts, trade debtors and trade creditors on the Income and Expenses sheets, we recommend assigning these entries to a balance sheet account and using a sales tax code which does not result in the calculation of sales tax (code E in the standard template). Any balance sheet account can be used but we recommend using account BS-0799 which is the Cash Transfer Control account.
A172: Trial Balance
A174: The TB sheet effectively combines the chart of accounts and trial balance features. The trial balance consists of the opening balances at the start of the reporting period (which is specified on the Setup sheet), the account movement for the appropriate financial year and the closing balance at the end of the selected monthly period during the current financial year. All of these trial balance calculations are automatically calculated and included in columns E to G on the TB sheet.
A176: Note: The closing balances in column G are calculated based on the monthly period which is selected at the top of the sheet in the cell with the yellow cell background. If the reporting year on the Setup sheet is amended in such a way that the selected monthly period does not fall within the current financial year, this cell will be highlighted in red. You then need to select a valid month in order for the red highlighting to be removed.
A178: The monthly periods that are available for selection are the same as the monthly periods that are included on the monthly income statement, cash flow statement and balance sheet. You are therefore able to view a trial balance for any of the monthly periods in the current financial year by simply selecting the appropriate monthly period from the list box at the top of column G.
A180: A trail balance for any previous financial period which has been included in the template can also be viewed by simply changing the reporting year on the Setup sheet and then selecting the appropriate monthly period from the list box at the top of column G on the TB sheet.
A182: Adding new bank accounts
A184: The template includes five default bank codes but you can add an unlimited number of additional bank codes (or accounts) by adding the appropriate bank account codes & descriptions to the Setup sheet. The new bank codes then also need to be added manually to the control accounts section on the TB sheet.
A186: This is actually a very simple exercise - simply insert the required number of new rows anywhere between the existing bank accounts in the control account section and copy the entire row from one of the existing bank account rows. All the formulas are automatically calculated & updated with the correct bank codes.
A188: Note: Also remember that opening balances for all bank accounts need to be recorded on the Income sheet. If you add additional bank accounts to the TB sheet, the opening balances also need to be added to the Income sheet.
A190: Recording Transactions - Income
A192: All income and other receipt transactions should be recorded on the Income sheet. User input is only required in the columns with yellow column headings. All the columns with light blue column headings contain formulas which are automatically copied when adding new transactions to the sheet.
A194: Note: All the columns on the Income sheet have been included in an Excel table. This feature is extremely useful when entering data in a table format because the formulas that are included in calculated columns (the columns with light blue column headings) are automatically copied when new rows are inserted into the table or when data is entered into the first blank row below the table. You can therefore enter a new transaction by simply entering an invoice number in column A - the table will then automatically extend to include the new transaction.
A196: The Income sheet contains the following user input columns:
A197: Invoice Number - enter your invoice number or the appropriate transaction reference for cash receipt transactions. This column should always contain a value - if you do not issue document numbers for all your invoices & receipts, any unique transaction reference can be used.
A198: Invoice Date - enter the date of the tax invoice or the bank statement date for cash receipt transactions. We've added data validation to this column to ensure that only valid dates are entered - you therefore need to ensure that you enter dates in accordance with the regional date settings that are specified in the System Control Panel.
A199: Customer - enter the name of the customer. If the Auto Complete feature is enabled, you should be able to accept its suggestion of the customer name after entering only a few characters. Note that it is important to enter customer names accurately if you want to use the Filter feature to display only the transactions for a specific customer.
A200: Description - enter a transaction description in this column.
A201: Tax Inclusive Amount - enter the transaction amount inclusive of sales tax. Income and receipts should be entered as positive amounts but if you have an expense or payment type transaction that is of an income or receipt nature, the transaction can be entered as a negative value. For example, entering a credit note that relates to an invoice that has been recorded previously. In most instances, expenses should however be recorded on the Expenses sheet.
A202: Tax 1 Code - this column contains a drop-down list which enables you to select one of the tax codes on to the Setup sheet and should be used for national or federal sales tax. The sales tax percentage applied to the transaction is determined based on the selected sales tax code. If your business is not registered for sales tax purposes, all transactions should be recorded by using a sales tax code with a zero percentage. If no sales tax code is selected, no sales tax will be calculated.
A203: Tax 2 Code - this column contains a drop-down list which enables you to select one of the tax codes on to the Setup sheet and should be used for state sales tax. The sales tax percentage applied to the transaction is determined based on the selected sales tax code. If your business is not registered for sales tax purposes, all transactions should be recorded by using a sales tax code with a zero percentage. If no sales tax code is selected, no sales tax will be calculated.
A204: Bank Code - this column contains a drop-down list which includes all the bank codes that have been added to the Setup sheet. Select the bank code of the bank account that will be affected by the particular transaction. Note that it is imperative that a bank code is assigned to each transaction.
A205: Account Number - the drop-down list in this column contains all the account codes (and descriptions) that have been created on the TB sheet. You therefore need to create the appropriate account on the TB sheet before transactions can be allocated to the account. An account number should be selected for every transaction otherwise template imbalances may be encountered.
A206: Payment Amount - when a customer pays an invoice, the payment amount should be entered into this column.
A207: Payment Date - enter the actual payment date in this column. The date that should be entered in this column should be the date on which the payment was received from the customer. The payment date and payment amount should be left blank if payment has not been received from the customer - the outstanding amount will then be included in trade debtors. Note that the payment date should always be greater than or equal to the invoice date.
A209: The Income sheet contains the following calculated columns:
A210: Outstanding Balance - if an invoice has not been paid in full, the outstanding balance will be reflected in this column. The outstanding balance is determined based on the balance date that is entered in cell L2 at the top of the sheet. If the balance date contains no value, the current system date will be used to determine which invoices are currently outstanding. You can therefore use the balance date input cell to calculate the trade debtors balance as at any user defined date.
A211: Exclusive Amount - the formula in this column deducts the sales tax amounts from the inclusive invoice amount in order to calculate an amount excluding sales tax. For accounting purposes, the exclusive amounts are allocated to the income statement, the sales tax amounts are allocated to the appropriate sales tax control accounts and the inclusive amounts are allocated to trade debtors or bank (depending on whether the amounts have been paid or not).
A212: Sales Tax 1 Amount - this column contains a formula which calculates the national or federal sales tax amount based on the tax 1 code selected in column F. Sales tax will only be calculated if a sales tax code has been selected in column F. The calculation is based on the sales tax percentages specified on the Setup sheet.
A213: Sales Tax 2 Amount - this column contains a formula which calculates the state sales tax amount based on the tax 2 code selected in column G. Sales tax will only be calculated if a sales tax code has been selected in column G. The calculation is based on the sales tax percentages specified on the Setup sheet.
A214: Inclusive Amount - this column is based on the inclusive invoice amount which the user enters in column E.
A215: Unique INV - the formula in this column is used to determine whether the invoice number is unique. Invoices can be entered in multiple lines and this formula is used to prevent the duplication of the calculation of outstanding invoice balances.
A216: Error Code - this column will contain an error code if there is a problem with the input in any of the previous columns. All the error codes that are displayed in this column should therefore be corrected in order to ensure that all the template calculations remain accurate. Refer to the Error Codes section of these instructions for more information about the reasons for an error code and how to resolve it.
A218: Note: The drop-down lists in the Account Number column contains both the account number and description but only the account number should be selected when allocating transactions. Excel doesn't actually allow the inclusion of two columns in a drop-down list but we have implemented a work around to provide the account description together with the account number in the drop-down list. The disadvantage of this work around is that you will not be able to enter account numbers - you either need to select the account number from the list or copy a similar transaction that you have entered before. The column will also contain an error indicator which refers to a data validation error - this is to be expected because of the work around that we implemented and can safely be ignored.
A220: All the transactions entered on the Income sheet are automatically updated to the other sheets in this template. It is therefore imperative that all transactions are entered according to the guidance outlined in this section of the instructions otherwise it could result in imbalances in the template.
A222: Filtering Transactions
A224: All the column headings on this sheet contain a filter selection arrow - this feature indicates that the Filter feature has been activated for the data on this sheet. This Excel feature is very useful when you need to filter the data that forms part of a table based on the filter criteria which are available after clicking the selection arrow.
A226: Example: If you only want to display the income transactions for a particular invoice or payment month, you can filter the data based on the Invoice Date or Payment Date column by selecting the appropriate date filter from the filter menu which is displayed after clicking the selection arrow. After reviewing the filtered data, simply select the "Clear filter" option in the filtered column in order to remove the filter and to display all the transactions on the worksheet.
A228: Note that the visible row numbers are typically displayed in blue when a filter has been applied to the sheet. New transactions should not be entered while a filter is active on the sheet - if you see blue row numbers, all filters need to be removed before data is entered in the next blank row otherwise the Excel table may not extend automatically to include the new transaction.
A230: The sheet also contains totals above the column headings for all columns which contain values and which are suitable for the calculation of transaction totals. The formulas in these cells result in only the transactions which are visible on the worksheet being included in the calculation of the appropriate totals. If you therefore print the sheet while a filter is in effect, the totals above the column headings will be calculated accurately and only include the transactions which have been printed.
A232: Invoices with Multiple Lines
A234: If an invoice consists of multiple lines, the invoice needs to be entered by repeating the invoice number, invoice date and customer name in all the rows relating to the invoice. When the invoice is paid in full, the payment dates need to be repeated in all the lines relating to the particular invoice and the payment amounts can be copied from the inclusive invoice values for each line.
A236: If a multiple line invoice is partially paid, the payment date and payment amount of the first payment can be entered in the first line relating to the particular invoice and the other lines need to be left blank. This will ensure that the outstanding invoice balance contains only the part of the invoice which has not been paid. When the next payment is made, the next payment amount and date needs to be entered and if there is still an unpaid part, it will be included in the outstanding balance calculation.
A238: Partial Payments
A240: If a partial payment of an invoice occurs, you should only enter the amount that has actually been paid in the Payment Amount column and the appropriate payment date in the Payment Date column. The unpaid balance will automatically be reflected as the outstanding balance for the appropriate invoice.
A242: When the remaining outstanding part of the invoice is subsequently paid, there may not be space to enter the next payment date and amount if the invoice was included in a single line. You therefore need to insert a new row below the original invoice row, copy all the data from column A to I from the original invoice line, replace the value in the Tax Inclusive Amount column with a zero value and enter the new payment amount & date into the row which has been added. These steps need to be repeated if more than two payments are made for any invoice and there aren't sufficient lines to record payment dates & amounts.
A244: Trade Debtors Balances
A246: If you want to view the list of invoices which make up any of the monthly trade debtor balances on the balance sheet, enter the month-end date as the balance date in cell L2 and then use the filter arrow next to the column heading in the outstanding balance column to deselect all zero values. All the invoices with balances at the appropriate month-end date will then be displayed.
A248: Note: If the total of all the outstanding invoices does not agree to the balance sheet total, make sure that you have entered a unique invoice number for all invoices in column A and that there are no blank values in column A. If you leave invoice numbers blank, it may result in inaccurate outstanding balance calculations if any of the blank entries have not been paid in full.
A250: Sales Tax
A252: The template provides for two sales tax types namely national or federal sales tax and state sales tax. If you only require one sales tax type and you would like to delete the second sales tax type, you will be able to do so without affecting the template formulas by simply deleting the columns for Tax 2 Code (column G) and Sales Tax 2 Amount (column O). All the appropriate sales tax calculations will then only be based on the one sales tax type.
A254: Note: You cannot delete both sales tax types. If you do not require any sales tax calculations, you can leave the sales tax 1 codes in column F blank and delete the sales tax 2 columns indicated above. No sales tax amounts will then be calculated.
A256: Note: No new columns should be added between the Inclusive Amount and Exclusive Amount columns otherwise it will influence some of the sales tax calculations in this template. Also, if you delete the columns for the second sales tax type, the Sales Tax 1 Amount column may display a validation warning but this can safely be ignored as it has no effect on the template calculations. If you do not want to see these validation warnings, just keep both sales tax types and just don't select any tax codes in the second sales tax column.
A258: Recording Transactions - Expenses
A260: All expenses and other payment transactions should be recorded on the Expenses sheet. We also recommend entering all journal entries on this sheet. User input is only required in the columns with yellow column headings. All the columns with light blue column headings contain formulas which are automatically copied when adding new transactions to the sheet.
A262: Note: All the columns on the Expenses sheet have been included in an Excel table. This feature is extremely useful when entering data in a table format because the formulas in the calculated columns (the columns with light blue column headings) are automatically copied when new rows are inserted into the table or when data is entered into the first blank row below the table. You can therefore enter a new transaction by simply entering a document date in column A - the table will then automatically extend to include the new transaction.
A264: The Expenses sheet contains the following user input columns:
A265: Document Date - enter the supplier invoice date, date of other supporting document or the bank statement date. We've added data validation to this column to ensure that only valid dates are entered - you therefore need to ensure that you enter dates in accordance with the regional date settings that are specified in the System Control Panel.
A266: Supplier - enter the name of the supplier. If the Auto Complete feature is enabled, you should be able to accept its suggestion of the supplier name after entering only a few characters. Note that it is important to enter supplier names accurately if you want to use the Filter feature to display only the transactions for a specific supplier.
A267: Reference - enter a reference for the transaction in this column. For example, this could be the supplier invoice number or a more general reference like "Debit Order" or "Bank Statement".
A268: Description - enter a transaction description in this column.
A269: Tax Inclusive Amount - enter the transaction amount inclusive of sales tax. Expenses and payments should be entered as positive amounts but if you have an income or receipt type transaction which is of an expense or payment nature, the transaction can be entered as a negative value. For example, entering a supplier claim which relates to a supplier invoice that has been recorded previously. In most instances, income and receipt transactions should however be recorded on the Income sheet.
A270: Tax 1 Code - this column contains a drop-down list which enables you to select one of the tax codes added to the Setup sheet and relates to national or federal sales tax. The sales tax percentage which is applied to the transaction is determined based on the sales tax code selected. If your business is not registered for sales tax purposes, all transactions should be recorded by using a sales tax code which has a zero percentage on the Setup sheet. If no sales tax code is selected, no sales tax will be calculated.
A271: Tax 2 Code - this column contains a drop-down list which enables you to select one of the tax codes added to the Setup sheet and relates to state sales tax. The sales tax percentage which is applied to the transaction is determined based on the sales tax code selected. If your business is not registered for sales tax purposes, all transactions should be recorded by using a sales tax code which has a zero percentage on the Setup sheet. If no sales tax code is selected, no sales tax will be calculated.
A272: Bank Code - this column contains a drop-down list which includes all the bank codes that have been added to the Setup sheet. Select the bank code of the bank account that will be affected by the particular transaction. Note that it is imperative that a bank code is assigned to each transaction.
A273: Account Number - the drop-down list in this column contains all the account codes (and descriptions) that have been created on the TB sheet. You therefore need to create the appropriate account on the TB sheet before transactions can be allocated to the account. An account number should be selected for every transaction otherwise template imbalances may be encountered.
A274: Payment Date - enter the actual payment date in this column. The date that should be entered in this column should be the date on which the payment is made to the supplier. The payment date should be left blank if payment has not been made to the supplier - the outstanding balance will then be included in trade creditors. Note that the payment date should always be greater than or equal to the document date.
A276: The Expenses sheet contains the following calculated columns:
A277: Outstanding Balance - if an expense has not been paid in full, the outstanding balance will be reflected in this column. The outstanding balance is determined based on the balance date that is entered in cell K2 at the top of the sheet. If the balance date contains no value, the current system date will be used to determine which invoices are currently outstanding. You can therefore use the balance date input cell to calculate the trade creditors balance as at any user defined date.
A278: Exclusive Amount - the formula in this column deducts the sales tax amounts from the tax inclusive amount in order to calculate an amount excluding sales tax. For accounting purposes, the exclusive amounts are allocated to the income statement, the sales tax amounts are allocated to the sales tax control accounts and the inclusive amounts are allocated to trade creditors or bank (depending on whether the amounts have been paid or not).
A279: Sales Tax 1 Amount - this column contains a formula which calculates the national or federal sales tax amounts based on the tax codes selected in column F. Sales tax will only be calculated if a sales tax code has been selected in column F. The calculation is based on the sales tax percentages specified on the Setup sheet.
A280: Sales Tax 2 Amount - this column contains a formula which calculates the state sales tax amounts based on the tax codes selected in column G. Sales tax will only be calculated if a sales tax code has been selected in column G. The calculation is based on the sales tax percentages specified on the Setup sheet.
A281: Inclusive Amount - this column is based on the tax inclusive amount which the user enters in column E.
A282: Error Code - this column will contain an error code if there is a problem with the input in any of the previous columns. All the error codes that are displayed in this column should therefore be corrected in order to ensure that all the template calculations remain accurate. Refer to the Error Codes section of these instructions for more information about the reasons for an error code and how to resolve it.
A284: Note: The drop-down lists in the Account Number column contains both the account number and description but only the account number should be selected when allocating transactions. Excel doesn't actually allow the inclusion of two columns in a drop-down list but we have implemented a work around to provide the account description together with the account number in the drop-down list. The disadvantage of this work around is that you will not be able to enter account numbers - you either need to select the account number from the list or copy a similar transaction that you have entered before. The column will also contain an error indicator which refers to a data validation error - this is to be expected because of the work around that we implemented and can safely be ignored.
A286: All the transactions that are entered on the Expenses sheet are automatically updated to the other sheets in this template. It is therefore imperative that all transactions are entered according to the guidance outlined in this section of the instructions otherwise it could result in imbalances in the template.
A288: Filtering Transactions
A290: All the column headings on this sheet contain a filter selection arrow - this feature indicates that the Filter feature has been activated for the data on this sheet. This Excel feature is very useful when you need to filter the data that forms part of a table based on the filter criteria which are available after clicking the selection arrow.
A292: Example: If you only want to display the transactions for a particular invoice or payment month, you can filter the data based on the Document Date or Payment Date column by selecting the appropriate date filter from the filter menu which is displayed after clicking the selection arrow. After reviewing the filtered data, simply select the "Clear filter" option in the filtered column in order to remove the filter and to display all the transactions on the worksheet.
A294: Note that the visible row numbers are typically displayed in blue when a filter has been applied to the sheet. New transactions should not be entered while a filter is active on the sheet - if you see blue row numbers, all filters need to be removed before data is entered in the next blank row otherwise the Excel table may not extend automatically to include the new transaction.
A296: The sheet also contains totals above the column headings for all columns which contain values and which are suitable for the calculation of transaction totals. The formulas in these cells result in only the transactions which are visible on the worksheet being included in the calculation of the appropriate totals. If you therefore print the sheet while a filter is in effect, the totals above the column headings will be calculated accurately and only include the transactions which have been printed.
A298: Trade Creditors Balances
A300: If you want to view the list of expenses which make up any of the monthly trade creditor balances on the balance sheet, simply enter the appropriate month-end date as the balance date in cell K2 and then use the filter arrow next to the column heading in the outstanding balance column to deselect all zero values. All the expenses with balances at the appropriate month-end date will then be displayed.
A302: Sales Tax
A304: The template provides for two sales tax types namely national or federal sales tax and state sales tax. If you only require one sales tax type and you would like to delete the second sales tax type, you will be able to do so without affecting the template formulas by simply deleting the columns for Tax 2 Code (column G) and Sales Tax 2 Amount (column N). All the appropriate sales tax calculations will then only be based on the one sales tax type.
A306: Note: You cannot delete both sales tax types. If you do not require any sales tax calculations, you can leave the sales tax 1 codes in column F blank and delete the sales tax 2 columns indicated above. No sales tax amounts will then be calculated.
A308: Note: No new columns should be added between the Inclusive Amount and Exclusive Amount columns otherwise it will influence some of the sales tax calculations in this template. Also, if you delete the columns for the second sales tax type, the Sales Tax 1 Amount column may display a validation warning but this can safely be ignored as it has no effect on the template calculations. If you do not want to see these validation warnings, just keep both sales tax types and just don't select any tax codes in the second sales tax column.
A310: Recording Transactions - Transfers between Bank Accounts
A312: When funds are transferred between two bank accounts, both the deposit and withdrawal entries need to be recorded. We recommend recording both entries on the Expenses sheet. The deposit entry should be recorded by selecting the bank account into which the funds are transferred and entering the transfer amount as a negative value. The withdrawal entry should be recorded by selecting the bank account from which the funds are transferred and entering a positive amount.
A314: All transfers between bank accounts should be allocated to the Cash Transfer Control account (BS-0799). By using this default account for all bank transfers, you can easily determine when only one of the entries (deposit or withdrawal) has been recorded.
A316: Note: You can check whether the balance of the Cash Transfer Control account is nil by selecting the appropriate month end from the list box in cell G3 on the TB sheet and checking whether the balance for account BS-0799 is nil. If the balance is not nil, the transactions for the appropriate period should be reviewed in order to determine why the allocations to the Cash Transfer Control account do not result in a nil balance.
A318: Note: Petty cash transactions should be treated in the same way as transactions that are processed through a bank account. This means that petty cash reimbursements should also be treated as transfers between bank accounts and allocated to the Cash Transfer Control account. Both the withdrawal out of the appropriate bank account and the "deposit" of cash into the petty cash account should therefore be recorded.
A320: Recording Transactions - General Ledger Journal Entries
A322: We recommend that all general ledger journal type entries are also recorded on the Expenses sheet. We have basically created a specific bank code for the recording of journal entries so that these transactions will not have any cash effect when recorded incorrectly.
A324: The debit part of the journal entry should be recorded as a positive value and the credit part should be recorded as a negative value on the Expenses sheet. Both entries should be allocated to the JC bank code.
A326: Note: If the debit and credit parts of all journal entries balance to a total of nil, the JC bank account should always have a nil balance. If you therefore notice that the JC bank account has a balance, it means that you have made an error in recording some of your journal entries. You can then filter the Expenses sheet for all transactions with a bank code of JC and filter the document dates for the appropriate month in order to review all the journal entries for the particular month.
A328: Error Codes
A330: The following error codes may result from inaccurate input on the Income and Expenses sheets and will be displayed in the Error Code columns. The heading of the affected input column will be highlighted in orange:
A332: ■ E1 - this error code means that the payment date on the Income or Expenses sheet is before the invoice or document date. These errors can be rectified by either amending the appropriate invoice or document date or amending the appropriate payment date.
A333: ■ E2 - this error code means that the selected account number on the Income or Expenses sheet is invalid. All the accounts which have been entered on the TB sheet will be included in the account number list boxes and the error can therefore be rectified by simply selecting a valid account number from the list box. New accounts must be created on the TB sheet before being available for selection.
A334: ■ E3 - this error code means that the selected bank account code is invalid. All the bank account codes which have been created on the Setup sheet will be included in the bank code list boxes and the error can therefore be rectified by simply selecting a valid bank account code from the list box. New bank account codes must be created on the Setup sheet before being available for selection.
A336: Note: Input errors may result in inaccurate template calculations and it is therefore imperative that all errors are resolved before reviewing the income statement, cash flow statement and balance sheet. These errors may in fact also cause the balance sheet not to balance.
A338: Income Statement
... 53 more rows

Sheet Setup (hidden)
A1: =IF(ISBLANK($C$4),"Example Limited",$C$4) -> Example (Pty) Limited
A2: Setup
A3: © www.excel-skills.com
A4: Business Name | C4: Example (Pty) Limited
A6: Report Setup
D7: First Day:
A8: First Financial Year * | C8: 2021 | D8: =IF(ISBLANK(C8),IF(MONTH(TODAY())>MONTH($C$12),DATE(YEAR(TODAY()),MONTH($C$12)+1,1),DATE(YEAR(TODAY())-1,MONTH($C$12)+1,1)),DATE(C8-1,MONTH($C$12)+1,1)) -> 2020-03-01 | E8: * Should be set once when you start using the template
D9: First Day:
A10: Reporting Year ** | C10: 2021 | D10: =IF(ISBLANK(C10),IF(MONTH(TODAY())>MONTH($C$12),DATE(YEAR(TODAY()),MONTH($C$12)+1,1),DATE(YEAR(TODAY())-1,MONTH($C$12)+1,1)),DATE(C10-1,MONTH($C$12)+1,1)) -> 2020-03-01 | E10: ** Change annually to roll reporting periods forward or back
A12: Year End Month | C12: 2018-02-01
A14: Sales Tax
A15: Code | B15: Description | D15: Percentage
A16: A | B16: Standard Sales Tax 1 | D16: 0.15
A17: B | B17: Standard Sales Tax 2 | D17: 0
A18: C | B18: Standard Sales Tax 3 | D18: 0
A19: E | B19: Exempt | D19: 0
A20: Z | B20: Zero Rated | D20: 0
A21: End of list
A23: Bank Accounts
A24: Code | B24: Description | D24: TB Status | E24: BS Status
A25: B1 | B25: B1 Bank Account | D25: =IF(ISNA(MATCH($A25,TB!$H$74:$H$84,0)),"add!","ok") -> ok | E25: =IF(ISNA(MATCH("BS-B"&$A25,BS!$A$4:$A$24,0)),"add!","ok") -> ok
A26: B2 | B26: B2 Bank Account | D26: =IF(ISNA(MATCH($A26,TB!$H$74:$H$84,0)),"add!","ok") -> ok | E26: =IF(ISNA(MATCH("BS-B"&$A26,BS!$A$4:$A$24,0)),"add!","ok") -> ok
A27: B3 | B27: B3 Bank Account | D27: =IF(ISNA(MATCH($A27,TB!$H$74:$H$84,0)),"add!","ok") -> ok | E27: =IF(ISNA(MATCH("BS-B"&$A27,BS!$A$4:$A$24,0)),"add!","ok") -> ok
A28: PC | B28: PC Petty Cash | D28: =IF(ISNA(MATCH($A28,TB!$H$74:$H$84,0)),"add!","ok") -> ok | E28: =IF(ISNA(MATCH("BS-B"&$A28,BS!$A$4:$A$24,0)),"add!","ok") -> ok
A29: JC | B29: GL Journal Control | D29: =IF(ISNA(MATCH($A29,TB!$H$74:$H$84,0)),"add!","ok") -> ok | E29: =IF(ISNA(MATCH("BS-B"&$A29,BS!$A$4:$A$24,0)),"add!","ok") -> ok
A30: End of list
A32: Input Error Codes
A33: Code | B33: Reason
A34: E1 | B34: Payment date is before the invoice / document date
A35: E2 | B35: Account number is invalid
A36: E3 | B36: Bank code is invalid
B38: =DATE(YEAR(TODAY()),1,1) -> 2021-01-01
B39: =DATE(YEAR(TODAY()),2,1) -> 2021-02-01
B40: =DATE(YEAR(TODAY()),3,1) -> 2021-03-01
B41: =DATE(YEAR(TODAY()),4,1) -> 2021-04-01
B42: =DATE(YEAR(TODAY()),5,1) -> 2021-05-01
B43: =DATE(YEAR(TODAY()),6,1) -> 2021-06-01
B44: =DATE(YEAR(TODAY()),7,1) -> 2021-07-01
B45: =DATE(YEAR(TODAY()),8,1) -> 2021-08-01
B46: =DATE(YEAR(TODAY()),9,1) -> 2021-09-01
B47: =DATE(YEAR(TODAY()),10,1) -> 2021-10-01
B48: =DATE(YEAR(TODAY()),11,1) -> 2021-11-01
B49: =DATE(YEAR(TODAY()),12,1) -> 2021-12-01

Sheet Groups (hidden)
A1: =IF(ISBLANK(Setup!$C$4),"Example Limited",Setup!$C$4) -> Example (Pty) Limited
A2: Account Group Setup
A3: © www.excel-skills.com
A4: Group Key | B4: Group Description
A5: BS-00 | B5: Property, Plant & Equipment - Cost
A6: BS-01 | B6: Property, Plant & Equipment - Accum Dep
A7: BS-02 | B7: Intangible Assets - Cost
A8: BS-03 | B8: Intangible Assets - Amortization
A9: BS-04 | B9: Investments
A10: BS-05 | B10: Loans & Advances
A11: BS-07 | B11: Cash On Hand
A12: BS-09 | B12: Other Debtors
A13: BS-13 | B13: Accruals
A14: BS-14 | B14: Dividends Payable
A15: BS-15 | B15: Provision for Taxation
A16: BS-16 | B16: Other Provisions
A17: BS-17 | B17: Sales Tax
A18: BS-18 | B18: Long Term Liabilities
A19: BS-19 | B19: Reserves
A20: BS-20 | B20: Shareholders' Contributions
A21: IS-01 | B21: Income From Services
A22: IS-03 | B22: Operating Expenses
A23: IS-04 | B23: Staff Costs
A24: IS-05 | B24: Depreciation & Amortization
A25: IS-06 | B25: Interest Paid
A26: IS-07 | B26: Taxation Paid
A27: IS-08 | B27: Other Expenses
A28: IS-09 | B28: Other Income
A29: IS-10 | B29: Dividends Paid
A31: Control Accounts
A32: BS-B | B32: Bank Accounts
A33: BS-RC | B33: Trade Debtors
A34: BS-PA | B34: Trade Creditors
A35: BS-RT | B35: Retained Earnings - Opening
A36: BS-IN | B36: Retained Earnings - Current

Sheet TB (hidden)
A1: =IF(ISBLANK(Setup!$C$4),"Example Limited",Setup!$C$4) -> Example (Pty) Limited
A2: Trial Balance & Chart of Accounts | E2: =IF(MONTH(Setup!$D$10)>MONTH(Setup!$C$12),DATE(YEAR(Setup!$D$10),MONTH(Setup!$C$12)+1,0),DATE(YEAR(Setup!$D$10)-1,MONTH(Setup!$C$12)+1,0)) -> 2020-02-29 | G2: =IF(MONTH($G$3)>MONTH(Setup!$C$12),DATE(YEAR($G$3),MONTH(Setup!$C$12)+1,0),DATE(YEAR($G$3)-1,MONTH(Setup!$C$12)+1,0)) -> 2020-02-29
A3: © www.excel-skills.com | C3: =DATE(YEAR(Setup!$D$8),MONTH(Setup!$D$8),0) -> 2020-02-29 | E3: =DATE(YEAR(Setup!$D$10),MONTH(Setup!$D$10),0) -> 2020-02-29 | G3: 2021-02-28
A4: Account Number | B4: Account Description | C4: Template: Opening Balance | E4: Trial Balance: Opening Balance | F4: Account Movement | G4: Trial Balance: Closing Balance | H4: Status
A5: BS-0005 | B5: Land & Buildings - Cost | C5: 0 | E5: =IF(LEFT($A5,2)="IS",-SUMIFS(IncExcl,IncDocDate,"<="&$E$3,IncDocDate,">"&$E$2,IncAccount,$A5)+SUMIFS(ExpExcl,ExpDocDate,"<="&$E$3,ExpDocDate,">"&$E$2,ExpAccount,$A5),$C5-SUMIFS(IncExcl,IncDocDate,"<="&$E$3,IncDocDate,">"&$C$3,IncAccount,$A5)+SUMIFS(ExpExcl,ExpDocDate,"<="&$E$3,ExpDocDate,">"&$C$3,ExpAccount,$A5)+IF($A5="BS-1700",-SUMIFS(IncTax1,IncDocDate,"<="&$E$3,IncDocDate,">"&$C$3)+SUMIFS(ExpTax1,ExpDocDate,"<="&$E$3,ExpDocDate,">"&$C$3),0)+IF($A5="BS-1710",-IF(IncTaxCount=2,SUMIFS(IncTax2,IncDocDate,"<="&$E$3,IncDocDate,">"&$C$3),0)+IF(ExpTaxCount=2,SUMIFS(ExpTax2,ExpDocDate,"<="&$E$3,ExpDocDate,">"&$C$3),0),0)) -> 0 | F5: =G5-E5 -> 0 | G5: =IF(LEFT($A5,2)="IS",-SUMIFS(IncExcl,IncDocDate,"<="&$G$3,IncDocDate,">"&$G$2,IncAccount,$A5)+SUMIFS(ExpExcl,ExpDocDate,"<="&$G$3,ExpDocDate,">"&$G$2,ExpAccount,$A5),$C5-SUMIFS(IncExcl,IncDocDate,"<="&$G$3,IncDocDate,">"&$C$3,IncAccount,$A5)+SUMIFS(ExpExcl,ExpDocDate,"<="&$G$3,ExpDocDate,">"&$C$3,ExpAccount,$A5)+IF($A5="BS-1700",-SUMIFS(IncTax1,IncDocDate,"<="&$G$3,IncDocDate,">"&$C$3)+SUMIFS(ExpTax1,ExpDocDate,"<="&$G$3,ExpDocDate,">"&$C$3),0)+IF($A5="BS-1710",-IF(IncTaxCount=2,SUMIFS(IncTax2,IncDocDate,"<="&$G$3,IncDocDate,">"&$C$3),0)+IF(ExpTaxCount=2,SUMIFS(ExpTax2,ExpDocDate,"<="&$G$3,ExpDocDate,">"&$C$3),0),0)) -> 0 | H5: =IF(LEFT($A5,2)="BS",IF(ISNA(MATCH(LEFT($A5,5)&"G",KeyBS,0)),IF(ISNA(MATCH($A5,KeyBS,0)),"Error!","Account"),IF(ISNA(MATCH($A5,KeyBS,0)),"Group","Double!")),IF(ISNA(MATCH(LEFT($A5,5)&"G",KeyIS,0)),IF(ISNA(MATCH($A5,KeyIS,0)),"Error!","Account"),IF(ISNA(MATCH($A5,KeyIS,0)),"Group","Double!"))) -> Group
A6: BS-0010 | B6: Plant & Equipment - Cost | C6: 0 | E6: =IF(LEFT($A6,2)="IS",-SUMIFS(IncExcl,IncDocDate,"<="&$E$3,IncDocDate,">"&$E$2,IncAccount,$A6)+SUMIFS(ExpExcl,ExpDocDate,"<="&$E$3,ExpDocDate,">"&$E$2,ExpAccount,$A6),$C6-SUMIFS(IncExcl,IncDocDate,"<="&$E$3,IncDocDate,">"&$C$3,IncAccount,$A6)+SUMIFS(ExpExcl,ExpDocDate,"<="&$E$3,ExpDocDate,">"&$C$3,ExpAccount,$A6)+IF($A6="BS-1700",-SUMIFS(IncTax1,IncDocDate,"<="&$E$3,IncDocDate,">"&$C$3)+SUMIFS(ExpTax1,ExpDocDate,"<="&$E$3,ExpDocDate,">"&$C$3),0)+IF($A6="BS-1710",-IF(IncTaxCount=2,SUMIFS(IncTax2,IncDocDate,"<="&$E$3,IncDocDate,">"&$C$3),0)+IF(ExpTaxCount=2,SUMIFS(ExpTax2,ExpDocDate,"<="&$E$3,ExpDocDate,">"&$C$3),0),0)) -> 0 | F6: =G6-E6 -> 0 | G6: =IF(LEFT($A6,2)="IS",-SUMIFS(IncExcl,IncDocDate,"<="&$G$3,IncDocDate,">"&$G$2,IncAccount,$A6)+SUMIFS(ExpExcl,ExpDocDate,"<="&$G$3,ExpDocDate,">"&$G$2,ExpAccount,$A6),$C6-SUMIFS(IncExcl,IncDocDate,"<="&$G$3,IncDocDate,">"&$C$3,IncAccount,$A6)+SUMIFS(ExpExcl,ExpDocDate,"<="&$G$3,ExpDocDate,">"&$C$3,ExpAccount,$A6)+IF($A6="BS-1700",-SUMIFS(IncTax1,IncDocDate,"<="&$G$3,IncDocDate,">"&$C$3)+SUMIFS(ExpTax1,ExpDocDate,"<="&$G$3,ExpDocDate,">"&$C$3),0)+IF($A6="BS-1710",-IF(IncTaxCount=2,SUMIFS(IncTax2,IncDocDate,"<="&$G$3,IncDocDate,">"&$C$3),0)+IF(ExpTaxCount=2,SUMIFS(ExpTax2,ExpDocDate,"<="&$G$3,ExpDocDate,">"&$C$3),0),0)) -> 0 | H6: Group
A7: BS-0015 | B7: Furniture & Fittings - Cost | C7: 120500 | E7: =IF(LEFT($A7,2)="IS",-SUMIFS(IncExcl,IncDocDate,"<="&$E$3,IncDocDate,">"&$E$2,IncAccount,$A7)+SUMIFS(ExpExcl,ExpDocDate,"<="&$E$3,ExpDocDate,">"&$E$2,ExpAccount,$A7),$C7-SUMIFS(IncExcl,IncDocDate,"<="&$E$3,IncDocDate,">"&$C$3,IncAccount,$A7)+SUMIFS(ExpExcl,ExpDocDate,"<="&$E$3,ExpDocDate,">"&$C$3,ExpAccount,$A7)+IF($A7="BS-1700",-SUMIFS(IncTax1,IncDocDate,"<="&$E$3,IncDocDate,">"&$C$3)+SUMIFS(ExpTax1,ExpDocDate,"<="&$E$3,ExpDocDate,">"&$C$3),0)+IF($A7="BS-1710",-IF(IncTaxCount=2,SUMIFS(IncTax2,IncDocDate,"<="&$E$3,IncDocDate,">"&$C$3),0)+IF(ExpTaxCount=2,SUMIFS(ExpTax2,ExpDocDate,"<="&$E$3,ExpDocDate,">"&$C$3),0),0)) -> 120500 | F7: 15450 | G7: =IF(LEFT($A7,2)="IS",-SUMIFS(IncExcl,IncDocDate,"<="&$G$3,IncDocDate,">"&$G$2,IncAccount,$A7)+SUMIFS(ExpExcl,ExpDocDate,"<="&$G$3,ExpDocDate,">"&$G$2,ExpAccount,$A7),$C7-SUMIFS(IncExcl,IncDocDate,"<="&$G$3,IncDocDate,">"&$C$3,IncAccount,$A7)+SUMIFS(ExpExcl,ExpDocDate,"<="&$G$3,ExpDocDate,">"&$C$3,ExpAccount,$A7)+IF($A7="BS-1700",-SUMIFS(IncTax1,IncDocDate,"<="&$G$3,IncDocDate,">"&$C$3)+SUMIFS(ExpTax1,ExpDocDate,"<="&$G$3,ExpDocDate,">"&$C$3),0)+IF($A7="BS-1710",-IF(IncTaxCount=2,SUMIFS(IncTax2,IncDocDate,"<="&$G$3,IncDocDate,">"&$C$3),0)+IF(ExpTaxCount=2,SUMIFS(ExpTax2,ExpDocDate,"<="&$G$3,ExpDocDate,">"&$C$3),0),0)) -> 135950 | H7: Group
A8: BS-0020 | B8: Office Equipment - Cost | C8: 63250 | E8: =IF(LEFT($A8,2)="IS",-SUMIFS(IncExcl,IncDocDate,"<="&$E$3,IncDocDate,">"&$E$2,IncAccount,$A8)+SUMIFS(ExpExcl,ExpDocDate,"<="&$E$3,ExpDocDate,">"&$E$2,ExpAccount,$A8),$C8-SUMIFS(IncExcl,IncDocDate,"<="&$E$3,IncDocDate,">"&$C$3,IncAccount,$A8)+SUMIFS(ExpExcl,ExpDocDate,"<="&$E$3,ExpDocDate,">"&$C$3,ExpAccount,$A8)+IF($A8="BS-1700",-SUMIFS(IncTax1,IncDocDate,"<="&$E$3,IncDocDate,">"&$C$3)+SUMIFS(ExpTax1,ExpDocDate,"<="&$E$3,ExpDocDate,">"&$C$3),0)+IF($A8="BS-1710",-IF(IncTaxCount=2,SUMIFS(IncTax2,IncDocDate,"<="&$E$3,IncDocDate,">"&$C$3),0)+IF(ExpTaxCount=2,SUMIFS(ExpTax2,ExpDocDate,"<="&$E$3,ExpDocDate,">"&$C$3),0),0)) -> 63250 | F8: 10200 | G8: =IF(LEFT($A8,2)="IS",-SUMIFS(IncExcl,IncDocDate,"<="&$G$3,IncDocDate,">"&$G$2,IncAccount,$A8)+SUMIFS(ExpExcl,ExpDocDate,"<="&$G$3,ExpDocDate,">"&$G$2,ExpAccount,$A8),$C8-SUMIFS(IncExcl,IncDocDate,"<="&$G$3,IncDocDate,">"&$C$3,IncAccount,$A8)+SUMIFS(ExpExcl,ExpDocDate,"<="&$G$3,ExpDocDate,">"&$C$3,ExpAccount,$A8)+IF($A8="BS-1700",-SUMIFS(IncTax1,IncDocDate,"<="&$G$3,IncDocDate,">"&$C$3)+SUMIFS(ExpTax1,ExpDocDate,"<="&$G$3,ExpDocDate,">"&$C$3),0)+IF($A8="BS-1710",-IF(IncTaxCount=2,SUMIFS(IncTax2,IncDocDate,"<="&$G$3,IncDocDate,">"&$C$3),0)+IF(ExpTaxCount=2,SUMIFS(ExpTax2,ExpDocDate,"<="&$G$3,ExpDocDate,">"&$C$3),0),0)) -> 73450 | H8: Group
A9: BS-0025 | B9: Computer Equipment - Cost | C9: 0 | E9: =IF(LEFT($A9,2)="IS",-SUMIFS(IncExcl,IncDocDate,"<="&$E$3,IncDocDate,">"&$E$2,IncAccount,$A9)+SUMIFS(ExpExcl,ExpDocDate,"<="&$E$3,ExpDocDate,">"&$E$2,ExpAccount,$A9),$C9-SUMIFS(IncExcl,IncDocDate,"<="&$E$3,IncDocDate,">"&$C$3,IncAccount,$A9)+SUMIFS(ExpExcl,ExpDocDate,"<="&$E$3,ExpDocDate,">"&$C$3,ExpAccount,$A9)+IF($A9="BS-1700",-SUMIFS(IncTax1,IncDocDate,"<="&$E$3,IncDocDate,">"&$C$3)+SUMIFS(ExpTax1,ExpDocDate,"<="&$E$3,ExpDocDate,">"&$C$3),0)+IF($A9="BS-1710",-IF(IncTaxCount=2,SUMIFS(IncTax2,IncDocDate,"<="&$E$3,IncDocDate,">"&$C$3),0)+IF(ExpTaxCount=2,SUMIFS(ExpTax2,ExpDocDate,"<="&$E$3,ExpDocDate,">"&$C$3),0),0)) -> 0 | F9: 0 | G9: =IF(LEFT($A9,2)="IS",-SUMIFS(IncExcl,IncDocDate,"<="&$G$3,IncDocDate,">"&$G$2,IncAccount,$A9)+SUMIFS(ExpExcl,ExpDocDate,"<="&$G$3,ExpDocDate,">"&$G$2,ExpAccount,$A9),$C9-SUMIFS(IncExcl,IncDocDate,"<="&$G$3,IncDocDate,">"&$C$3,IncAccount,$A9)+SUMIFS(ExpExcl,ExpDocDate,"<="&$G$3,ExpDocDate,">"&$C$3,ExpAccount,$A9)+IF($A9="BS-1700",-SUMIFS(IncTax1,IncDocDate,"<="&$G$3,IncDocDate,">"&$C$3)+SUMIFS(ExpTax1,ExpDocDate,"<="&$G$3,ExpDocDate,">"&$C$3),0)+IF($A9="BS-1710",-IF(IncTaxCount=2,SUMIFS(IncTax2,IncDocDate,"<="&$G$3,IncDocDate,">"&$C$3),0)+IF(ExpTaxCount=2,SUMIFS(ExpTax2,ExpDocDate,"<="&$G$3,ExpDocDate,">"&$C$3),0),0)) -> 0 | H9: Group
A10: BS-0030 | B10: Other Assets - Cost | C10: 0 | E10: =IF(LEFT($A10,2)="IS",-SUMIFS(IncExcl,IncDocDate,"<="&$E$3,IncDocDate,">"&$E$2,IncAccount,$A10)+SUMIFS(ExpExcl,ExpDocDate,"<="&$E$3,ExpDocDate,">"&$E$2,ExpAccount,$A10),$C10-SUMIFS(IncExcl,IncDocDate,"<="&$E$3,IncDocDate,">"&$C$3,IncAccount,$A10)+SUMIFS(ExpExcl,ExpDocDate,"<="&$E$3,ExpDocDate,">"&$C$3,ExpAccount,$A10)+IF($A10="BS-1700",-SUMIFS(IncTax1,IncDocDate,"<="&$E$3,IncDocDate,">"&$C$3)+SUMIFS(ExpTax1,ExpDocDate,"<="&$E$3,ExpDocDate,">"&$C$3),0)+IF($A10="BS-1710",-IF(IncTaxCount=2,SUMIFS(IncTax2,IncDocDate,"<="&$E$3,IncDocDate,">"&$C$3),0)+IF(ExpTaxCount=2,SUMIFS(ExpTax2,ExpDocDate,"<="&$E$3,ExpDocDate,">"&$C$3),0),0)) -> 0 | F10: 0 | G10: =IF(LEFT($A10,2)="IS",-SUMIFS(IncExcl,IncDocDate,"<="&$G$3,IncDocDate,">"&$G$2,IncAccount,$A10)+SUMIFS(ExpExcl,ExpDocDate,"<="&$G$3,ExpDocDate,">"&$G$2,ExpAccount,$A10),$C10-SUMIFS(IncExcl,IncDocDate,"<="&$G$3,IncDocDate,">"&$C$3,IncAccount,$A10)+SUMIFS(ExpExcl,ExpDocDate,"<="&$G$3,ExpDocDate,">"&$C$3,ExpAccount,$A10)+IF($A10="BS-1700",-SUMIFS(IncTax1,IncDocDate,"<="&$G$3,IncDocDate,">"&$C$3)+SUMIFS(ExpTax1,ExpDocDate,"<="&$G$3,ExpDocDate,">"&$C$3),0)+IF($A10="BS-1710",-IF(IncTaxCount=2,SUMIFS(IncTax2,IncDocDate,"<="&$G$3,IncDocDate,">"&$C$3),0)+IF(ExpTaxCount=2,SUMIFS(ExpTax2,ExpDocDate,"<="&$G$3,ExpDocDate,">"&$C$3),0),0)) -> 0 | H10: Group
A11: BS-0105 | B11: Land & Buildings - Accum Depreciation | C11: 0 | E11: =IF(LEFT($A11,2)="IS",-SUMIFS(IncExcl,IncDocDate,"<="&$E$3,IncDocDate,">"&$E$2,IncAccount,$A11)+SUMIFS(ExpExcl,ExpDocDate,"<="&$E$3,ExpDocDate,">"&$E$2,ExpAccount,$A11),$C11-SUMIFS(IncExcl,IncDocDate,"<="&$E$3,IncDocDate,">"&$C$3,IncAccount,$A11)+SUMIFS(ExpExcl,ExpDocDate,"<="&$E$3,ExpDocDate,">"&$C$3,ExpAccount,$A11)+IF($A11="BS-1700",-SUMIFS(IncTax1,IncDocDate,"<="&$E$3,IncDocDate,">"&$C$3)+SUMIFS(ExpTax1,ExpDocDate,"<="&$E$3,ExpDocDate,">"&$C$3),0)+IF($A11="BS-1710",-IF(IncTaxCount=2,SUMIFS(IncTax2,IncDocDate,"<="&$E$3,IncDocDate,">"&$C$3),0)+IF(ExpTaxCount=2,SUMIFS(ExpTax2,ExpDocDate,"<="&$E$3,ExpDocDate,">"&$C$3),0),0)) -> 0 | F11: 0 | G11: =IF(LEFT($A11,2)="IS",-SUMIFS(IncExcl,IncDocDate,"<="&$G$3,IncDocDate,">"&$G$2,IncAccount,$A11)+SUMIFS(ExpExcl,ExpDocDate,"<="&$G$3,ExpDocDate,">"&$G$2,ExpAccount,$A11),$C11-SUMIFS(IncExcl,IncDocDate,"<="&$G$3,IncDocDate,">"&$C$3,IncAccount,$A11)+SUMIFS(ExpExcl,ExpDocDate,"<="&$G$3,ExpDocDate,">"&$C$3,ExpAccount,$A11)+IF($A11="BS-1700",-SUMIFS(IncTax1,IncDocDate,"<="&$G$3,IncDocDate,">"&$C$3)+SUMIFS(ExpTax1,ExpDocDate,"<="&$G$3,ExpDocDate,">"&$C$3),0)+IF($A11="BS-1710",-IF(IncTaxCount=2,SUMIFS(IncTax2,IncDocDate,"<="&$G$3,IncDocDate,">"&$C$3),0)+IF(ExpTaxCount=2,SUMIFS(ExpTax2,ExpDocDate,"<="&$G$3,ExpDocDate,">"&$C$3),0),0)) -> 0 | H11: Group
A12: BS-0110 | B12: Plant & Equipment - Accum Depreciation | C12: 0 | E12: =IF(LEFT($A12,2)="IS",-SUMIFS(IncExcl,IncDocDate,"<="&$E$3,IncDocDate,">"&$E$2,IncAccount,$A12)+SUMIFS(ExpExcl,ExpDocDate,"<="&$E$3,ExpDocDate,">"&$E$2,ExpAccount,$A12),$C12-SUMIFS(IncExcl,IncDocDate,"<="&$E$3,IncDocDate,">"&$C$3,IncAccount,$A12)+SUMIFS(ExpExcl,ExpDocDate,"<="&$E$3,ExpDocDate,">"&$C$3,ExpAccount,$A12)+IF($A12="BS-1700",-SUMIFS(IncTax1,IncDocDate,"<="&$E$3,IncDocDate,">"&$C$3)+SUMIFS(ExpTax1,ExpDocDate,"<="&$E$3,ExpDocDate,">"&$C$3),0)+IF($A12="BS-1710",-IF(IncTaxCount=2,SUMIFS(IncTax2,IncDocDate,"<="&$E$3,IncDocDate,">"&$C$3),0)+IF(ExpTaxCount=2,SUMIFS(ExpTax2,ExpDocDate,"<="&$E$3,ExpDocDate,">"&$C$3),0),0)) -> 0 | F12: 0 | G12: =IF(LEFT($A12,2)="IS",-SUMIFS(IncExcl,IncDocDate,"<="&$G$3,IncDocDate,">"&$G$2,IncAccount,$A12)+SUMIFS(ExpExcl,ExpDocDate,"<="&$G$3,ExpDocDate,">"&$G$2,ExpAccount,$A12),$C12-SUMIFS(IncExcl,IncDocDate,"<="&$G$3,IncDocDate,">"&$C$3,IncAccount,$A12)+SUMIFS(ExpExcl,ExpDocDate,"<="&$G$3,ExpDocDate,">"&$C$3,ExpAccount,$A12)+IF($A12="BS-1700",-SUMIFS(IncTax1,IncDocDate,"<="&$G$3,IncDocDate,">"&$C$3)+SUMIFS(ExpTax1,ExpDocDate,"<="&$G$3,ExpDocDate,">"&$C$3),0)+IF($A12="BS-1710",-IF(IncTaxCount=2,SUMIFS(IncTax2,IncDocDate,"<="&$G$3,IncDocDate,">"&$C$3),0)+IF(ExpTaxCount=2,SUMIFS(ExpTax2,ExpDocDate,"<="&$G$3,ExpDocDate,">"&$C$3),0),0)) -> 0 | H12: Group
A13: BS-0115 | B13: Furniture & Fittings - Accum Depreciation | C13: -22000 | E13: =IF(LEFT($A13,2)="IS",-SUMIFS(IncExcl,IncDocDate,"<="&$E$3,IncDocDate,">"&$E$2,IncAccount,$A13)+SUMIFS(ExpExcl,ExpDocDate,"<="&$E$3,ExpDocDate,">"&$E$2,ExpAccount,$A13),$C13-SUMIFS(IncExcl,IncDocDate,"<="&$E$3,IncDocDate,">"&$C$3,IncAccount,$A13)+SUMIFS(ExpExcl,ExpDocDate,"<="&$E$3,ExpDocDate,">"&$C$3,ExpAccount,$A13)+IF($A13="BS-1700",-SUMIFS(IncTax1,IncDocDate,"<="&$E$3,IncDocDate,">"&$C$3)+SUMIFS(ExpTax1,ExpDocDate,"<="&$E$3,ExpDocDate,">"&$C$3),0)+IF($A13="BS-1710",-IF(IncTaxCount=2,SUMIFS(IncTax2,IncDocDate,"<="&$E$3,IncDocDate,">"&$C$3),0)+IF(ExpTaxCount=2,SUMIFS(ExpTax2,ExpDocDate,"<="&$E$3,ExpDocDate,">"&$C$3),0),0)) -> -22000 | F13: -18232 | G13: =IF(LEFT($A13,2)="IS",-SUMIFS(IncExcl,IncDocDate,"<="&$G$3,IncDocDate,">"&$G$2,IncAccount,$A13)+SUMIFS(ExpExcl,ExpDocDate,"<="&$G$3,ExpDocDate,">"&$G$2,ExpAccount,$A13),$C13-SUMIFS(IncExcl,IncDocDate,"<="&$G$3,IncDocDate,">"&$C$3,IncAccount,$A13)+SUMIFS(ExpExcl,ExpDocDate,"<="&$G$3,ExpDocDate,">"&$C$3,ExpAccount,$A13)+IF($A13="BS-1700",-SUMIFS(IncTax1,IncDocDate,"<="&$G$3,IncDocDate,">"&$C$3)+SUMIFS(ExpTax1,ExpDocDate,"<="&$G$3,ExpDocDate,">"&$C$3),0)+IF($A13="BS-1710",-IF(IncTaxCount=2,SUMIFS(IncTax2,IncDocDate,"<="&$G$3,IncDocDate,">"&$C$3),0)+IF(ExpTaxCount=2,SUMIFS(ExpTax2,ExpDocDate,"<="&$G$3,ExpDocDate,">"&$C$3),0),0)) -> -40232 | H13: Group
A14: BS-0120 | B14: Office Equipment - Accum Depreciation | C14: -12500 | E14: =IF(LEFT($A14,2)="IS",-SUMIFS(IncExcl,IncDocDate,"<="&$E$3,IncDocDate,">"&$E$2,IncAccount,$A14)+SUMIFS(ExpExcl,ExpDocDate,"<="&$E$3,ExpDocDate,">"&$E$2,ExpAccount,$A14),$C14-SUMIFS(IncExcl,IncDocDate,"<="&$E$3,IncDocDate,">"&$C$3,IncAccount,$A14)+SUMIFS(ExpExcl,ExpDocDate,"<="&$E$3,ExpDocDate,">"&$C$3,ExpAccount,$A14)+IF($A14="BS-1700",-SUMIFS(IncTax1,IncDocDate,"<="&$E$3,IncDocDate,">"&$C$3)+SUMIFS(ExpTax1,ExpDocDate,"<="&$E$3,ExpDocDate,">"&$C$3),0)+IF($A14="BS-1710",-IF(IncTaxCount=2,SUMIFS(IncTax2,IncDocDate,"<="&$E$3,IncDocDate,">"&$C$3),0)+IF(ExpTaxCount=2,SUMIFS(ExpTax2,ExpDocDate,"<="&$E$3,ExpDocDate,">"&$C$3),0),0)) -> -12500 | F14: -12190 | G14: =IF(LEFT($A14,2)="IS",-SUMIFS(IncExcl,IncDocDate,"<="&$G$3,IncDocDate,">"&$G$2,IncAccount,$A14)+SUMIFS(ExpExcl,ExpDocDate,"<="&$G$3,ExpDocDate,">"&$G$2,ExpAccount,$A14),$C14-SUMIFS(IncExcl,IncDocDate,"<="&$G$3,IncDocDate,">"&$C$3,IncAccount,$A14)+SUMIFS(ExpExcl,ExpDocDate,"<="&$G$3,ExpDocDate,">"&$C$3,ExpAccount,$A14)+IF($A14="BS-1700",-SUMIFS(IncTax1,IncDocDate,"<="&$G$3,IncDocDate,">"&$C$3)+SUMIFS(ExpTax1,ExpDocDate,"<="&$G$3,ExpDocDate,">"&$C$3),0)+IF($A14="BS-1710",-IF(IncTaxCount=2,SUMIFS(IncTax2,IncDocDate,"<="&$G$3,IncDocDate,">"&$C$3),0)+IF(ExpTaxCount=2,SUMIFS(ExpTax2,ExpDocDate,"<="&$G$3,ExpDocDate,">"&$C$3),0),0)) -> -24690 | H14: Group
A15: BS-0125 | B15: Computer Equipment - Accum Depreciation | C15: 0 | E15: =IF(LEFT($A15,2)="IS",-SUMIFS(IncExcl,IncDocDate,"<="&$E$3,IncDocDate,">"&$E$2,IncAccount,$A15)+SUMIFS(ExpExcl,ExpDocDate,"<="&$E$3,ExpDocDate,">"&$E$2,ExpAccount,$A15),$C15-SUMIFS(IncExcl,IncDocDate,"<="&$E$3,IncDocDate,">"&$C$3,IncAccount,$A15)+SUMIFS(ExpExcl,ExpDocDate,"<="&$E$3,ExpDocDate,">"&$C$3,ExpAccount,$A15)+IF($A15="BS-1700",-SUMIFS(IncTax1,IncDocDate,"<="&$E$3,IncDocDate,">"&$C$3)+SUMIFS(ExpTax1,ExpDocDate,"<="&$E$3,ExpDocDate,">"&$C$3),0)+IF($A15="BS-1710",-IF(IncTaxCount=2,SUMIFS(IncTax2,IncDocDate,"<="&$E$3,IncDocDate,">"&$C$3),0)+IF(ExpTaxCount=2,SUMIFS(ExpTax2,ExpDocDate,"<="&$E$3,ExpDocDate,">"&$C$3),0),0)) -> 0 | F15: 0 | G15: =IF(LEFT($A15,2)="IS",-SUMIFS(IncExcl,IncDocDate,"<="&$G$3,IncDocDate,">"&$G$2,IncAccount,$A15)+SUMIFS(ExpExcl,ExpDocDate,"<="&$G$3,ExpDocDate,">"&$G$2,ExpAccount,$A15),$C15-SUMIFS(IncExcl,IncDocDate,"<="&$G$3,IncDocDate,">"&$C$3,IncAccount,$A15)+SUMIFS(ExpExcl,ExpDocDate,"<="&$G$3,ExpDocDate,">"&$C$3,ExpAccount,$A15)+IF($A15="BS-1700",-SUMIFS(IncTax1,IncDocDate,"<="&$G$3,IncDocDate,">"&$C$3)+SUMIFS(ExpTax1,ExpDocDate,"<="&$G$3,ExpDocDate,">"&$C$3),0)+IF($A15="BS-1710",-IF(IncTaxCount=2,SUMIFS(IncTax2,IncDocDate,"<="&$G$3,IncDocDate,">"&$C$3),0)+IF(ExpTaxCount=2,SUMIFS(ExpTax2,ExpDocDate,"<="&$G$3,ExpDocDate,">"&$C$3),0),0)) -> 0 | H15: Group
A16: BS-0130 | B16: Other Assets - Accum Depreciation | C16: 0 | E16: =IF(LEFT($A16,2)="IS",-SUMIFS(IncExcl,IncDocDate,"<="&$E$3,IncDocDate,">"&$E$2,IncAccount,$A16)+SUMIFS(ExpExcl,ExpDocDate,"<="&$E$3,ExpDocDate,">"&$E$2,ExpAccount,$A16),$C16-SUMIFS(IncExcl,IncDocDate,"<="&$E$3,IncDocDate,">"&$C$3,IncAccount,$A16)+SUMIFS(ExpExcl,ExpDocDate,"<="&$E$3,ExpDocDate,">"&$C$3,ExpAccount,$A16)+IF($A16="BS-1700",-SUMIFS(IncTax1,IncDocDate,"<="&$E$3,IncDocDate,">"&$C$3)+SUMIFS(ExpTax1,ExpDocDate,"<="&$E$3,ExpDocDate,">"&$C$3),0)+IF($A16="BS-1710",-IF(IncTaxCount=2,SUMIFS(IncTax2,IncDocDate,"<="&$E$3,IncDocDate,">"&$C$3),0)+IF(ExpTaxCount=2,SUMIFS(ExpTax2,ExpDocDate,"<="&$E$3,ExpDocDate,">"&$C$3),0),0)) -> 0 | F16: 0 | G16: =IF(LEFT($A16,2)="IS",-SUMIFS(IncExcl,IncDocDate,"<="&$G$3,IncDocDate,">"&$G$2,IncAccount,$A16)+SUMIFS(ExpExcl,ExpDocDate,"<="&$G$3,ExpDocDate,">"&$G$2,ExpAccount,$A16),$C16-SUMIFS(IncExcl,IncDocDate,"<="&$G$3,IncDocDate,">"&$C$3,IncAccount,$A16)+SUMIFS(ExpExcl,ExpDocDate,"<="&$G$3,ExpDocDate,">"&$C$3,ExpAccount,$A16)+IF($A16="BS-1700",-SUMIFS(IncTax1,IncDocDate,"<="&$G$3,IncDocDate,">"&$C$3)+SUMIFS(ExpTax1,ExpDocDate,"<="&$G$3,ExpDocDate,">"&$C$3),0)+IF($A16="BS-1710",-IF(IncTaxCount=2,SUMIFS(IncTax2,IncDocDate,"<="&$G$3,IncDocDate,">"&$C$3),0)+IF(ExpTaxCount=2,SUMIFS(ExpTax2,ExpDocDate,"<="&$G$3,ExpDocDate,">"&$C$3),0),0)) -> 0 | H16: Group
A17: BS-0205 | B17: Goodwill - Cost | C17: 0 | E17: =IF(LEFT($A17,2)="IS",-SUMIFS(IncExcl,IncDocDate,"<="&$E$3,IncDocDate,">"&$E$2,IncAccount,$A17)+SUMIFS(ExpExcl,ExpDocDate,"<="&$E$3,ExpDocDate,">"&$E$2,ExpAccount,$A17),$C17-SUMIFS(IncExcl,IncDocDate,"<="&$E$3,IncDocDate,">"&$C$3,IncAccount,$A17)+SUMIFS(ExpExcl,ExpDocDate,"<="&$E$3,ExpDocDate,">"&$C$3,ExpAccount,$A17)+IF($A17="BS-1700",-SUMIFS(IncTax1,IncDocDate,"<="&$E$3,IncDocDate,">"&$C$3)+SUMIFS(ExpTax1,ExpDocDate,"<="&$E$3,ExpDocDate,">"&$C$3),0)+IF($A17="BS-1710",-IF(IncTaxCount=2,SUMIFS(IncTax2,IncDocDate,"<="&$E$3,IncDocDate,">"&$C$3),0)+IF(ExpTaxCount=2,SUMIFS(ExpTax2,ExpDocDate,"<="&$E$3,ExpDocDate,">"&$C$3),0),0)) -> 0 | F17: 0 | G17: =IF(LEFT($A17,2)="IS",-SUMIFS(IncExcl,IncDocDate,"<="&$G$3,IncDocDate,">"&$G$2,IncAccount,$A17)+SUMIFS(ExpExcl,ExpDocDate,"<="&$G$3,ExpDocDate,">"&$G$2,ExpAccount,$A17),$C17-SUMIFS(IncExcl,IncDocDate,"<="&$G$3,IncDocDate,">"&$C$3,IncAccount,$A17)+SUMIFS(ExpExcl,ExpDocDate,"<="&$G$3,ExpDocDate,">"&$C$3,ExpAccount,$A17)+IF($A17="BS-1700",-SUMIFS(IncTax1,IncDocDate,"<="&$G$3,IncDocDate,">"&$C$3)+SUMIFS(ExpTax1,ExpDocDate,"<="&$G$3,ExpDocDate,">"&$C$3),0)+IF($A17="BS-1710",-IF(IncTaxCount=2,SUMIFS(IncTax2,IncDocDate,"<="&$G$3,IncDocDate,">"&$C$3),0)+IF(ExpTaxCount=2,SUMIFS(ExpTax2,ExpDocDate,"<="&$G$3,ExpDocDate,">"&$C$3),0),0)) -> 0 | H17: Group
A18: BS-0210 | B18: Trademarks - Cost | C18: 0 | E18: =IF(LEFT($A18,2)="IS",-SUMIFS(IncExcl,IncDocDate,"<="&$E$3,IncDocDate,">"&$E$2,IncAccount,$A18)+SUMIFS(ExpExcl,ExpDocDate,"<="&$E$3,ExpDocDate,">"&$E$2,ExpAccount,$A18),$C18-SUMIFS(IncExcl,IncDocDate,"<="&$E$3,IncDocDate,">"&$C$3,IncAccount,$A18)+SUMIFS(ExpExcl,ExpDocDate,"<="&$E$3,ExpDocDate,">"&$C$3,ExpAccount,$A18)+IF($A18="BS-1700",-SUMIFS(IncTax1,IncDocDate,"<="&$E$3,IncDocDate,">"&$C$3)+SUMIFS(ExpTax1,ExpDocDate,"<="&$E$3,ExpDocDate,">"&$C$3),0)+IF($A18="BS-1710",-IF(IncTaxCount=2,SUMIFS(IncTax2,IncDocDate,"<="&$E$3,IncDocDate,">"&$C$3),0)+IF(ExpTaxCount=2,SUMIFS(ExpTax2,ExpDocDate,"<="&$E$3,ExpDocDate,">"&$C$3),0),0)) -> 0 | F18: 0 | G18: =IF(LEFT($A18,2)="IS",-SUMIFS(IncExcl,IncDocDate,"<="&$G$3,IncDocDate,">"&$G$2,IncAccount,$A18)+SUMIFS(ExpExcl,ExpDocDate,"<="&$G$3,ExpDocDate,">"&$G$2,ExpAccount,$A18),$C18-SUMIFS(IncExcl,IncDocDate,"<="&$G$3,IncDocDate,">"&$C$3,IncAccount,$A18)+SUMIFS(ExpExcl,ExpDocDate,"<="&$G$3,ExpDocDate,">"&$C$3,ExpAccount,$A18)+IF($A18="BS-1700",-SUMIFS(IncTax1,IncDocDate,"<="&$G$3,IncDocDate,">"&$C$3)+SUMIFS(ExpTax1,ExpDocDate,"<="&$G$3,ExpDocDate,">"&$C$3),0)+IF($A18="BS-1710",-IF(IncTaxCount=2,SUMIFS(IncTax2,IncDocDate,"<="&$G$3,IncDocDate,">"&$C$3),0)+IF(ExpTaxCount=2,SUMIFS(ExpTax2,ExpDocDate,"<="&$G$3,ExpDocDate,">"&$C$3),0),0)) -> 0 | H18: Group
A19: BS-0215 | B19: Software - Cost | C19: 147200 | E19: =IF(LEFT($A19,2)="IS",-SUMIFS(IncExcl,IncDocDate,"<="&$E$3,IncDocDate,">"&$E$2,IncAccount,$A19)+SUMIFS(ExpExcl,ExpDocDate,"<="&$E$3,ExpDocDate,">"&$E$2,ExpAccount,$A19),$C19-SUMIFS(IncExcl,IncDocDate,"<="&$E$3,IncDocDate,">"&$C$3,IncAccount,$A19)+SUMIFS(ExpExcl,ExpDocDate,"<="&$E$3,ExpDocDate,">"&$C$3,ExpAccount,$A19)+IF($A19="BS-1700",-SUMIFS(IncTax1,IncDocDate,"<="&$E$3,IncDocDate,">"&$C$3)+SUMIFS(ExpTax1,ExpDocDate,"<="&$E$3,ExpDocDate,">"&$C$3),0)+IF($A19="BS-1710",-IF(IncTaxCount=2,SUMIFS(IncTax2,IncDocDate,"<="&$E$3,IncDocDate,">"&$C$3),0)+IF(ExpTaxCount=2,SUMIFS(ExpTax2,ExpDocDate,"<="&$E$3,ExpDocDate,">"&$C$3),0),0)) -> 147200 | F19: 0 | G19: =IF(LEFT($A19,2)="IS",-SUMIFS(IncExcl,IncDocDate,"<="&$G$3,IncDocDate,">"&$G$2,IncAccount,$A19)+SUMIFS(ExpExcl,ExpDocDate,"<="&$G$3,ExpDocDate,">"&$G$2,ExpAccount,$A19),$C19-SUMIFS(IncExcl,IncDocDate,"<="&$G$3,IncDocDate,">"&$C$3,IncAccount,$A19)+SUMIFS(ExpExcl,ExpDocDate,"<="&$G$3,ExpDocDate,">"&$C$3,ExpAccount,$A19)+IF($A19="BS-1700",-SUMIFS(IncTax1,IncDocDate,"<="&$G$3,IncDocDate,">"&$C$3)+SUMIFS(ExpTax1,ExpDocDate,"<="&$G$3,ExpDocDate,">"&$C$3),0)+IF($A19="BS-1710",-IF(IncTaxCount=2,SUMIFS(IncTax2,IncDocDate,"<="&$G$3,IncDocDate,">"&$C$3),0)+IF(ExpTaxCount=2,SUMIFS(ExpTax2,ExpDocDate,"<="&$G$3,ExpDocDate,">"&$C$3),0),0)) -> 147200 | H19: Group
A20: BS-0305 | B20: Goodwill - Accum Amortization | C20: 0 | E20: =IF(LEFT($A20,2)="IS",-SUMIFS(IncExcl,IncDocDate,"<="&$E$3,IncDocDate,">"&$E$2,IncAccount,$A20)+SUMIFS(ExpExcl,ExpDocDate,"<="&$E$3,ExpDocDate,">"&$E$2,ExpAccount,$A20),$C20-SUMIFS(IncExcl,IncDocDate,"<="&$E$3,IncDocDate,">"&$C$3,IncAccount,$A20)+SUMIFS(ExpExcl,ExpDocDate,"<="&$E$3,ExpDocDate,">"&$C$3,ExpAccount,$A20)+IF($A20="BS-1700",-SUMIFS(IncTax1,IncDocDate,"<="&$E$3,IncDocDate,">"&$C$3)+SUMIFS(ExpTax1,ExpDocDate,"<="&$E$3,ExpDocDate,">"&$C$3),0)+IF($A20="BS-1710",-IF(IncTaxCount=2,SUMIFS(IncTax2,IncDocDate,"<="&$E$3,IncDocDate,">"&$C$3),0)+IF(ExpTaxCount=2,SUMIFS(ExpTax2,ExpDocDate,"<="&$E$3,ExpDocDate,">"&$C$3),0),0)) -> 0 | F20: 0 | G20: =IF(LEFT($A20,2)="IS",-SUMIFS(IncExcl,IncDocDate,"<="&$G$3,IncDocDate,">"&$G$2,IncAccount,$A20)+SUMIFS(ExpExcl,ExpDocDate,"<="&$G$3,ExpDocDate,">"&$G$2,ExpAccount,$A20),$C20-SUMIFS(IncExcl,IncDocDate,"<="&$G$3,IncDocDate,">"&$C$3,IncAccount,$A20)+SUMIFS(ExpExcl,ExpDocDate,"<="&$G$3,ExpDocDate,">"&$C$3,ExpAccount,$A20)+IF($A20="BS-1700",-SUMIFS(IncTax1,IncDocDate,"<="&$G$3,IncDocDate,">"&$C$3)+SUMIFS(ExpTax1,ExpDocDate,"<="&$G$3,ExpDocDate,">"&$C$3),0)+IF($A20="BS-1710",-IF(IncTaxCount=2,SUMIFS(IncTax2,IncDocDate,"<="&$G$3,IncDocDate,">"&$C$3),0)+IF(ExpTaxCount=2,SUMIFS(ExpTax2,ExpDocDate,"<="&$G$3,ExpDocDate,">"&$C$3),0),0)) -> 0 | H20: Group
A21: BS-0310 | B21: Trademarks - Accum Amortization | C21: 0 | E21: =IF(LEFT($A21,2)="IS",-SUMIFS(IncExcl,IncDocDate,"<="&$E$3,IncDocDate,">"&$E$2,IncAccount,$A21)+SUMIFS(ExpExcl,ExpDocDate,"<="&$E$3,ExpDocDate,">"&$E$2,ExpAccount,$A21),$C21-SUMIFS(IncExcl,IncDocDate,"<="&$E$3,IncDocDate,">"&$C$3,IncAccount,$A21)+SUMIFS(ExpExcl,ExpDocDate,"<="&$E$3,ExpDocDate,">"&$C$3,ExpAccount,$A21)+IF($A21="BS-1700",-SUMIFS(IncTax1,IncDocDate,"<="&$E$3,IncDocDate,">"&$C$3)+SUMIFS(ExpTax1,ExpDocDate,"<="&$E$3,ExpDocDate,">"&$C$3),0)+IF($A21="BS-1710",-IF(IncTaxCount=2,SUMIFS(IncTax2,IncDocDate,"<="&$E$3,IncDocDate,">"&$C$3),0)+IF(ExpTaxCount=2,SUMIFS(ExpTax2,ExpDocDate,"<="&$E$3,ExpDocDate,">"&$C$3),0),0)) -> 0 | F21: 0 | G21: =IF(LEFT($A21,2)="IS",-SUMIFS(IncExcl,IncDocDate,"<="&$G$3,IncDocDate,">"&$G$2,IncAccount,$A21)+SUMIFS(ExpExcl,ExpDocDate,"<="&$G$3,ExpDocDate,">"&$G$2,ExpAccount,$A21),$C21-SUMIFS(IncExcl,IncDocDate,"<="&$G$3,IncDocDate,">"&$C$3,IncAccount,$A21)+SUMIFS(ExpExcl,ExpDocDate,"<="&$G$3,ExpDocDate,">"&$C$3,ExpAccount,$A21)+IF($A21="BS-1700",-SUMIFS(IncTax1,IncDocDate,"<="&$G$3,IncDocDate,">"&$C$3)+SUMIFS(ExpTax1,ExpDocDate,"<="&$G$3,ExpDocDate,">"&$C$3),0)+IF($A21="BS-1710",-IF(IncTaxCount=2,SUMIFS(IncTax2,IncDocDate,"<="&$G$3,IncDocDate,">"&$C$3),0)+IF(ExpTaxCount=2,SUMIFS(ExpTax2,ExpDocDate,"<="&$G$3,ExpDocDate,">"&$C$3),0),0)) -> 0 | H21: Group
A22: BS-0315 | B22: Software - Accum Amortization | C22: -29440 | E22: =IF(LEFT($A22,2)="IS",-SUMIFS(IncExcl,IncDocDate,"<="&$E$3,IncDocDate,">"&$E$2,IncAccount,$A22)+SUMIFS(ExpExcl,ExpDocDate,"<="&$E$3,ExpDocDate,">"&$E$2,ExpAccount,$A22),$C22-SUMIFS(IncExcl,IncDocDate,"<="&$E$3,IncDocDate,">"&$C$3,IncAccount,$A22)+SUMIFS(ExpExcl,ExpDocDate,"<="&$E$3,ExpDocDate,">"&$C$3,ExpAccount,$A22)+IF($A22="BS-1700",-SUMIFS(IncTax1,IncDocDate,"<="&$E$3,IncDocDate,">"&$C$3)+SUMIFS(ExpTax1,ExpDocDate,"<="&$E$3,ExpDocDate,">"&$C$3),0)+IF($A22="BS-1710",-IF(IncTaxCount=2,SUMIFS(IncTax2,IncDocDate,"<="&$E$3,IncDocDate,">"&$C$3),0)+IF(ExpTaxCount=2,SUMIFS(ExpTax2,ExpDocDate,"<="&$E$3,ExpDocDate,">"&$C$3),0),0)) -> -29440 | F22: -14720 | G22: =IF(LEFT($A22,2)="IS",-SUMIFS(IncExcl,IncDocDate,"<="&$G$3,IncDocDate,">"&$G$2,IncAccount,$A22)+SUMIFS(ExpExcl,ExpDocDate,"<="&$G$3,ExpDocDate,">"&$G$2,ExpAccount,$A22),$C22-SUMIFS(IncExcl,IncDocDate,"<="&$G$3,IncDocDate,">"&$C$3,IncAccount,$A22)+SUMIFS(ExpExcl,ExpDocDate,"<="&$G$3,ExpDocDate,">"&$C$3,ExpAccount,$A22)+IF($A22="BS-1700",-SUMIFS(IncTax1,IncDocDate,"<="&$G$3,IncDocDate,">"&$C$3)+SUMIFS(ExpTax1,ExpDocDate,"<="&$G$3,ExpDocDate,">"&$C$3),0)+IF($A22="BS-1710",-IF(IncTaxCount=2,SUMIFS(IncTax2,IncDocDate,"<="&$G$3,IncDocDate,">"&$C$3),0)+IF(ExpTaxCount=2,SUMIFS(ExpTax2,ExpDocDate,"<="&$G$3,ExpDocDate,">"&$C$3),0),0)) -> -44160 | H22: Group
A23: BS-0400 | B23: Investments | C23: 150000 | E23: =IF(LEFT($A23,2)="IS",-SUMIFS(IncExcl,IncDocDate,"<="&$E$3,IncDocDate,">"&$E$2,IncAccount,$A23)+SUMIFS(ExpExcl,ExpDocDate,"<="&$E$3,ExpDocDate,">"&$E$2,ExpAccount,$A23),$C23-SUMIFS(IncExcl,IncDocDate,"<="&$E$3,IncDocDate,">"&$C$3,IncAccount,$A23)+SUMIFS(ExpExcl,ExpDocDate,"<="&$E$3,ExpDocDate,">"&$C$3,ExpAccount,$A23)+IF($A23="BS-1700",-SUMIFS(IncTax1,IncDocDate,"<="&$E$3,IncDocDate,">"&$C$3)+SUMIFS(ExpTax1,ExpDocDate,"<="&$E$3,ExpDocDate,">"&$C$3),0)+IF($A23="BS-1710",-IF(IncTaxCount=2,SUMIFS(IncTax2,IncDocDate,"<="&$E$3,IncDocDate,">"&$C$3),0)+IF(ExpTaxCount=2,SUMIFS(ExpTax2,ExpDocDate,"<="&$E$3,ExpDocDate,">"&$C$3),0),0)) -> 150000 | F23: 30750 | G23: =IF(LEFT($A23,2)="IS",-SUMIFS(IncExcl,IncDocDate,"<="&$G$3,IncDocDate,">"&$G$2,IncAccount,$A23)+SUMIFS(ExpExcl,ExpDocDate,"<="&$G$3,ExpDocDate,">"&$G$2,ExpAccount,$A23),$C23-SUMIFS(IncExcl,IncDocDate,"<="&$G$3,IncDocDate,">"&$C$3,IncAccount,$A23)+SUMIFS(ExpExcl,ExpDocDate,"<="&$G$3,ExpDocDate,">"&$C$3,ExpAccount,$A23)+IF($A23="BS-1700",-SUMIFS(IncTax1,IncDocDate,"<="&$G$3,IncDocDate,">"&$C$3)+SUMIFS(ExpTax1,ExpDocDate,"<="&$G$3,ExpDocDate,">"&$C$3),0)+IF($A23="BS-1710",-IF(IncTaxCount=2,SUMIFS(IncTax2,IncDocDate,"<="&$G$3,IncDocDate,">"&$C$3),0)+IF(ExpTaxCount=2,SUMIFS(ExpTax2,ExpDocDate,"<="&$G$3,ExpDocDate,">"&$C$3),0),0)) -> 180750 | H23: Group
A24: BS-0500 | B24: Loans & Advances | C24: 12000 | E24: =IF(LEFT($A24,2)="IS",-SUMIFS(IncExcl,IncDocDate,"<="&$E$3,IncDocDate,">"&$E$2,IncAccount,$A24)+SUMIFS(ExpExcl,ExpDocDate,"<="&$E$3,ExpDocDate,">"&$E$2,ExpAccount,$A24),$C24-SUMIFS(IncExcl,IncDocDate,"<="&$E$3,IncDocDate,">"&$C$3,IncAccount,$A24)+SUMIFS(ExpExcl,ExpDocDate,"<="&$E$3,ExpDocDate,">"&$C$3,ExpAccount,$A24)+IF($A24="BS-1700",-SUMIFS(IncTax1,IncDocDate,"<="&$E$3,IncDocDate,">"&$C$3)+SUMIFS(ExpTax1,ExpDocDate,"<="&$E$3,ExpDocDate,">"&$C$3),0)+IF($A24="BS-1710",-IF(IncTaxCount=2,SUMIFS(IncTax2,IncDocDate,"<="&$E$3,IncDocDate,">"&$C$3),0)+IF(ExpTaxCount=2,SUMIFS(ExpTax2,ExpDocDate,"<="&$E$3,ExpDocDate,">"&$C$3),0),0)) -> 12000 | F24: -12000 | G24: =IF(LEFT($A24,2)="IS",-SUMIFS(IncExcl,IncDocDate,"<="&$G$3,IncDocDate,">"&$G$2,IncAccount,$A24)+SUMIFS(ExpExcl,ExpDocDate,"<="&$G$3,ExpDocDate,">"&$G$2,ExpAccount,$A24),$C24-SUMIFS(IncExcl,IncDocDate,"<="&$G$3,IncDocDate,">"&$C$3,IncAccount,$A24)+SUMIFS(ExpExcl,ExpDocDate,"<="&$G$3,ExpDocDate,">"&$C$3,ExpAccount,$A24)+IF($A24="BS-1700",-SUMIFS(IncTax1,IncDocDate,"<="&$G$3,IncDocDate,">"&$C$3)+SUMIFS(ExpTax1,ExpDocDate,"<="&$G$3,ExpDocDate,">"&$C$3),0)+IF($A24="BS-1710",-IF(IncTaxCount=2,SUMIFS(IncTax2,IncDocDate,"<="&$G$3,IncDocDate,">"&$C$3),0)+IF(ExpTaxCount=2,SUMIFS(ExpTax2,ExpDocDate,"<="&$G$3,ExpDocDate,">"&$C$3),0),0)) -> 0 | H24: Group
A25: BS-0700 | B25: Cash On Hand | C25: 0 | E25: =IF(LEFT($A25,2)="IS",-SUMIFS(IncExcl,IncDocDate,"<="&$E$3,IncDocDate,">"&$E$2,IncAccount,$A25)+SUMIFS(ExpExcl,ExpDocDate,"<="&$E$3,ExpDocDate,">"&$E$2,ExpAccount,$A25),$C25-SUMIFS(IncExcl,IncDocDate,"<="&$E$3,IncDocDate,">"&$C$3,IncAccount,$A25)+SUMIFS(ExpExcl,ExpDocDate,"<="&$E$3,ExpDocDate,">"&$C$3,ExpAccount,$A25)+IF($A25="BS-1700",-SUMIFS(IncTax1,IncDocDate,"<="&$E$3,IncDocDate,">"&$C$3)+SUMIFS(ExpTax1,ExpDocDate,"<="&$E$3,ExpDocDate,">"&$C$3),0)+IF($A25="BS-1710",-IF(IncTaxCount=2,SUMIFS(IncTax2,IncDocDate,"<="&$E$3,IncDocDate,">"&$C$3),0)+IF(ExpTaxCount=2,SUMIFS(ExpTax2,ExpDocDate,"<="&$E$3,ExpDocDate,">"&$C$3),0),0)) -> 0 | F25: 0 | G25: =IF(LEFT($A25,2)="IS",-SUMIFS(IncExcl,IncDocDate,"<="&$G$3,IncDocDate,">"&$G$2,IncAccount,$A25)+SUMIFS(ExpExcl,ExpDocDate,"<="&$G$3,ExpDocDate,">"&$G$2,ExpAccount,$A25),$C25-SUMIFS(IncExcl,IncDocDate,"<="&$G$3,IncDocDate,">"&$C$3,IncAccount,$A25)+SUMIFS(ExpExcl,ExpDocDate,"<="&$G$3,ExpDocDate,">"&$C$3,ExpAccount,$A25)+IF($A25="BS-1700",-SUMIFS(IncTax1,IncDocDate,"<="&$G$3,IncDocDate,">"&$C$3)+SUMIFS(ExpTax1,ExpDocDate,"<="&$G$3,ExpDocDate,">"&$C$3),0)+IF($A25="BS-1710",-IF(IncTaxCount=2,SUMIFS(IncTax2,IncDocDate,"<="&$G$3,IncDocDate,">"&$C$3),0)+IF(ExpTaxCount=2,SUMIFS(ExpTax2,ExpDocDate,"<="&$G$3,ExpDocDate,">"&$C$3),0),0)) -> 0 | H25: Group
A26: BS-0799 | B26: Cash Transfer Control | C26: 0 | E26: =IF(LEFT($A26,2)="IS",-SUMIFS(IncExcl,IncDocDate,"<="&$E$3,IncDocDate,">"&$E$2,IncAccount,$A26)+SUMIFS(ExpExcl,ExpDocDate,"<="&$E$3,ExpDocDate,">"&$E$2,ExpAccount,$A26),$C26-SUMIFS(IncExcl,IncDocDate,"<="&$E$3,IncDocDate,">"&$C$3,IncAccount,$A26)+SUMIFS(ExpExcl,ExpDocDate,"<="&$E$3,ExpDocDate,">"&$C$3,ExpAccount,$A26)+IF($A26="BS-1700",-SUMIFS(IncTax1,IncDocDate,"<="&$E$3,IncDocDate,">"&$C$3)+SUMIFS(ExpTax1,ExpDocDate,"<="&$E$3,ExpDocDate,">"&$C$3),0)+IF($A26="BS-1710",-IF(IncTaxCount=2,SUMIFS(IncTax2,IncDocDate,"<="&$E$3,IncDocDate,">"&$C$3),0)+IF(ExpTaxCount=2,SUMIFS(ExpTax2,ExpDocDate,"<="&$E$3,ExpDocDate,">"&$C$3),0),0)) -> 0 | F26: 0 | G26: =IF(LEFT($A26,2)="IS",-SUMIFS(IncExcl,IncDocDate,"<="&$G$3,IncDocDate,">"&$G$2,IncAccount,$A26)+SUMIFS(ExpExcl,ExpDocDate,"<="&$G$3,ExpDocDate,">"&$G$2,ExpAccount,$A26),$C26-SUMIFS(IncExcl,IncDocDate,"<="&$G$3,IncDocDate,">"&$C$3,IncAccount,$A26)+SUMIFS(ExpExcl,ExpDocDate,"<="&$G$3,ExpDocDate,">"&$C$3,ExpAccount,$A26)+IF($A26="BS-1700",-SUMIFS(IncTax1,IncDocDate,"<="&$G$3,IncDocDate,">"&$C$3)+SUMIFS(ExpTax1,ExpDocDate,"<="&$G$3,ExpDocDate,">"&$C$3),0)+IF($A26="BS-1710",-IF(IncTaxCount=2,SUMIFS(IncTax2,IncDocDate,"<="&$G$3,IncDocDate,">"&$C$3),0)+IF(ExpTaxCount=2,SUMIFS(ExpTax2,ExpDocDate,"<="&$G$3,ExpDocDate,">"&$C$3),0),0)) -> 0 | H26: Group
A27: BS-0900 | B27: Other Debtors | C27: 0 | E27: =IF(LEFT($A27,2)="IS",-SUMIFS(IncExcl,IncDocDate,"<="&$E$3,IncDocDate,">"&$E$2,IncAccount,$A27)+SUMIFS(ExpExcl,ExpDocDate,"<="&$E$3,ExpDocDate,">"&$E$2,ExpAccount,$A27),$C27-SUMIFS(IncExcl,IncDocDate,"<="&$E$3,IncDocDate,">"&$C$3,IncAccount,$A27)+SUMIFS(ExpExcl,ExpDocDate,"<="&$E$3,ExpDocDate,">"&$C$3,ExpAccount,$A27)+IF($A27="BS-1700",-SUMIFS(IncTax1,IncDocDate,"<="&$E$3,IncDocDate,">"&$C$3)+SUMIFS(ExpTax1,ExpDocDate,"<="&$E$3,ExpDocDate,">"&$C$3),0)+IF($A27="BS-1710",-IF(IncTaxCount=2,SUMIFS(IncTax2,IncDocDate,"<="&$E$3,IncDocDate,">"&$C$3),0)+IF(ExpTaxCount=2,SUMIFS(ExpTax2,ExpDocDate,"<="&$E$3,ExpDocDate,">"&$C$3),0),0)) -> 0 | F27: 0 | G27: =IF(LEFT($A27,2)="IS",-SUMIFS(IncExcl,IncDocDate,"<="&$G$3,IncDocDate,">"&$G$2,IncAccount,$A27)+SUMIFS(ExpExcl,ExpDocDate,"<="&$G$3,ExpDocDate,">"&$G$2,ExpAccount,$A27),$C27-SUMIFS(IncExcl,IncDocDate,"<="&$G$3,IncDocDate,">"&$C$3,IncAccount,$A27)+SUMIFS(ExpExcl,ExpDocDate,"<="&$G$3,ExpDocDate,">"&$C$3,ExpAccount,$A27)+IF($A27="BS-1700",-SUMIFS(IncTax1,IncDocDate,"<="&$G$3,IncDocDate,">"&$C$3)+SUMIFS(ExpTax1,ExpDocDate,"<="&$G$3,ExpDocDate,">"&$C$3),0)+IF($A27="BS-1710",-IF(IncTaxCount=2,SUMIFS(IncTax2,IncDocDate,"<="&$G$3,IncDocDate,">"&$C$3),0)+IF(ExpTaxCount=2,SUMIFS(ExpTax2,ExpDocDate,"<="&$G$3,ExpDocDate,">"&$C$3),0),0)) -> 0 | H27: Group
A28: BS-0905 | B28: Prepayments | C28: 15000 | E28: =IF(LEFT($A28,2)="IS",-SUMIFS(IncExcl,IncDocDate,"<="&$E$3,IncDocDate,">"&$E$2,IncAccount,$A28)+SUMIFS(ExpExcl,ExpDocDate,"<="&$E$3,ExpDocDate,">"&$E$2,ExpAccount,$A28),$C28-SUMIFS(IncExcl,IncDocDate,"<="&$E$3,IncDocDate,">"&$C$3,IncAccount,$A28)+SUMIFS(ExpExcl,ExpDocDate,"<="&$E$3,ExpDocDate,">"&$C$3,ExpAccount,$A28)+IF($A28="BS-1700",-SUMIFS(IncTax1,IncDocDate,"<="&$E$3,IncDocDate,">"&$C$3)+SUMIFS(ExpTax1,ExpDocDate,"<="&$E$3,ExpDocDate,">"&$C$3),0)+IF($A28="BS-1710",-IF(IncTaxCount=2,SUMIFS(IncTax2,IncDocDate,"<="&$E$3,IncDocDate,">"&$C$3),0)+IF(ExpTaxCount=2,SUMIFS(ExpTax2,ExpDocDate,"<="&$E$3,ExpDocDate,">"&$C$3),0),0)) -> 15000 | F28: -15000 | G28: =IF(LEFT($A28,2)="IS",-SUMIFS(IncExcl,IncDocDate,"<="&$G$3,IncDocDate,">"&$G$2,IncAccount,$A28)+SUMIFS(ExpExcl,ExpDocDate,"<="&$G$3,ExpDocDate,">"&$G$2,ExpAccount,$A28),$C28-SUMIFS(IncExcl,IncDocDate,"<="&$G$3,IncDocDate,">"&$C$3,IncAccount,$A28)+SUMIFS(ExpExcl,ExpDocDate,"<="&$G$3,ExpDocDate,">"&$C$3,ExpAccount,$A28)+IF($A28="BS-1700",-SUMIFS(IncTax1,IncDocDate,"<="&$G$3,IncDocDate,">"&$C$3)+SUMIFS(ExpTax1,ExpDocDate,"<="&$G$3,ExpDocDate,">"&$C$3),0)+IF($A28="BS-1710",-IF(IncTaxCount=2,SUMIFS(IncTax2,IncDocDate,"<="&$G$3,IncDocDate,">"&$C$3),0)+IF(ExpTaxCount=2,SUMIFS(ExpTax2,ExpDocDate,"<="&$G$3,ExpDocDate,">"&$C$3),0),0)) -> 0 | H28: Group
A29: BS-1300 | B29: Accruals | C29: 0 | E29: =IF(LEFT($A29,2)="IS",-SUMIFS(IncExcl,IncDocDate,"<="&$E$3,IncDocDate,">"&$E$2,IncAccount,$A29)+SUMIFS(ExpExcl,ExpDocDate,"<="&$E$3,ExpDocDate,">"&$E$2,ExpAccount,$A29),$C29-SUMIFS(IncExcl,IncDocDate,"<="&$E$3,IncDocDate,">"&$C$3,IncAccount,$A29)+SUMIFS(ExpExcl,ExpDocDate,"<="&$E$3,ExpDocDate,">"&$C$3,ExpAccount,$A29)+IF($A29="BS-1700",-SUMIFS(IncTax1,IncDocDate,"<="&$E$3,IncDocDate,">"&$C$3)+SUMIFS(ExpTax1,ExpDocDate,"<="&$E$3,ExpDocDate,">"&$C$3),0)+IF($A29="BS-1710",-IF(IncTaxCount=2,SUMIFS(IncTax2,IncDocDate,"<="&$E$3,IncDocDate,">"&$C$3),0)+IF(ExpTaxCount=2,SUMIFS(ExpTax2,ExpDocDate,"<="&$E$3,ExpDocDate,">"&$C$3),0),0)) -> 0 | F29: 0 | G29: =IF(LEFT($A29,2)="IS",-SUMIFS(IncExcl,IncDocDate,"<="&$G$3,IncDocDate,">"&$G$2,IncAccount,$A29)+SUMIFS(ExpExcl,ExpDocDate,"<="&$G$3,ExpDocDate,">"&$G$2,ExpAccount,$A29),$C29-SUMIFS(IncExcl,IncDocDate,"<="&$G$3,IncDocDate,">"&$C$3,IncAccount,$A29)+SUMIFS(ExpExcl,ExpDocDate,"<="&$G$3,ExpDocDate,">"&$C$3,ExpAccount,$A29)+IF($A29="BS-1700",-SUMIFS(IncTax1,IncDocDate,"<="&$G$3,IncDocDate,">"&$C$3)+SUMIFS(ExpTax1,ExpDocDate,"<="&$G$3,ExpDocDate,">"&$C$3),0)+IF($A29="BS-1710",-IF(IncTaxCount=2,SUMIFS(IncTax2,IncDocDate,"<="&$G$3,IncDocDate,">"&$C$3),0)+IF(ExpTaxCount=2,SUMIFS(ExpTax2,ExpDocDate,"<="&$G$3,ExpDocDate,">"&$C$3),0),0)) -> 0 | H29: Group
A30: BS-1305 | B30: Payroll Accruals | C30: 0 | E30: =IF(LEFT($A30,2)="IS",-SUMIFS(IncExcl,IncDocDate,"<="&$E$3,IncDocDate,">"&$E$2,IncAccount,$A30)+SUMIFS(ExpExcl,ExpDocDate,"<="&$E$3,ExpDocDate,">"&$E$2,ExpAccount,$A30),$C30-SUMIFS(IncExcl,IncDocDate,"<="&$E$3,IncDocDate,">"&$C$3,IncAccount,$A30)+SUMIFS(ExpExcl,ExpDocDate,"<="&$E$3,ExpDocDate,">"&$C$3,ExpAccount,$A30)+IF($A30="BS-1700",-SUMIFS(IncTax1,IncDocDate,"<="&$E$3,IncDocDate,">"&$C$3)+SUMIFS(ExpTax1,ExpDocDate,"<="&$E$3,ExpDocDate,">"&$C$3),0)+IF($A30="BS-1710",-IF(IncTaxCount=2,SUMIFS(IncTax2,IncDocDate,"<="&$E$3,IncDocDate,">"&$C$3),0)+IF(ExpTaxCount=2,SUMIFS(ExpTax2,ExpDocDate,"<="&$E$3,ExpDocDate,">"&$C$3),0),0)) -> 0 | F30: 0 | G30: =IF(LEFT($A30,2)="IS",-SUMIFS(IncExcl,IncDocDate,"<="&$G$3,IncDocDate,">"&$G$2,IncAccount,$A30)+SUMIFS(ExpExcl,ExpDocDate,"<="&$G$3,ExpDocDate,">"&$G$2,ExpAccount,$A30),$C30-SUMIFS(IncExcl,IncDocDate,"<="&$G$3,IncDocDate,">"&$C$3,IncAccount,$A30)+SUMIFS(ExpExcl,ExpDocDate,"<="&$G$3,ExpDocDate,">"&$C$3,ExpAccount,$A30)+IF($A30="BS-1700",-SUMIFS(IncTax1,IncDocDate,"<="&$G$3,IncDocDate,">"&$C$3)+SUMIFS(ExpTax1,ExpDocDate,"<="&$G$3,ExpDocDate,">"&$C$3),0)+IF($A30="BS-1710",-IF(IncTaxCount=2,SUMIFS(IncTax2,IncDocDate,"<="&$G$3,IncDocDate,">"&$C$3),0)+IF(ExpTaxCount=2,SUMIFS(ExpTax2,ExpDocDate,"<="&$G$3,ExpDocDate,">"&$C$3),0),0)) -> 0 | H30: Group
A31: BS-1310 | B31: Interest Payable | C31: 0 | E31: =IF(LEFT($A31,2)="IS",-SUMIFS(IncExcl,IncDocDate,"<="&$E$3,IncDocDate,">"&$E$2,IncAccount,$A31)+SUMIFS(ExpExcl,ExpDocDate,"<="&$E$3,ExpDocDate,">"&$E$2,ExpAccount,$A31),$C31-SUMIFS(IncExcl,IncDocDate,"<="&$E$3,IncDocDate,">"&$C$3,IncAccount,$A31)+SUMIFS(ExpExcl,ExpDocDate,"<="&$E$3,ExpDocDate,">"&$C$3,ExpAccount,$A31)+IF($A31="BS-1700",-SUMIFS(IncTax1,IncDocDate,"<="&$E$3,IncDocDate,">"&$C$3)+SUMIFS(ExpTax1,ExpDocDate,"<="&$E$3,ExpDocDate,">"&$C$3),0)+IF($A31="BS-1710",-IF(IncTaxCount=2,SUMIFS(IncTax2,IncDocDate,"<="&$E$3,IncDocDate,">"&$C$3),0)+IF(ExpTaxCount=2,SUMIFS(ExpTax2,ExpDocDate,"<="&$E$3,ExpDocDate,">"&$C$3),0),0)) -> 0 | F31: 0 | G31: =IF(LEFT($A31,2)="IS",-SUMIFS(IncExcl,IncDocDate,"<="&$G$3,IncDocDate,">"&$G$2,IncAccount,$A31)+SUMIFS(ExpExcl,ExpDocDate,"<="&$G$3,ExpDocDate,">"&$G$2,ExpAccount,$A31),$C31-SUMIFS(IncExcl,IncDocDate,"<="&$G$3,IncDocDate,">"&$C$3,IncAccount,$A31)+SUMIFS(ExpExcl,ExpDocDate,"<="&$G$3,ExpDocDate,">"&$C$3,ExpAccount,$A31)+IF($A31="BS-1700",-SUMIFS(IncTax1,IncDocDate,"<="&$G$3,IncDocDate,">"&$C$3)+SUMIFS(ExpTax1,ExpDocDate,"<="&$G$3,ExpDocDate,">"&$C$3),0)+IF($A31="BS-1710",-IF(IncTaxCount=2,SUMIFS(IncTax2,IncDocDate,"<="&$G$3,IncDocDate,">"&$C$3),0)+IF(ExpTaxCount=2,SUMIFS(ExpTax2,ExpDocDate,"<="&$G$3,ExpDocDate,">"&$C$3),0),0)) -> 0 | H31: Group
A32: BS-1405 | B32: Dividends Payable | C32: 0 | E32: =IF(LEFT($A32,2)="IS",-SUMIFS(IncExcl,IncDocDate,"<="&$E$3,IncDocDate,">"&$E$2,IncAccount,$A32)+SUMIFS(ExpExcl,ExpDocDate,"<="&$E$3,ExpDocDate,">"&$E$2,ExpAccount,$A32),$C32-SUMIFS(IncExcl,IncDocDate,"<="&$E$3,IncDocDate,">"&$C$3,IncAccount,$A32)+SUMIFS(ExpExcl,ExpDocDate,"<="&$E$3,ExpDocDate,">"&$C$3,ExpAccount,$A32)+IF($A32="BS-1700",-SUMIFS(IncTax1,IncDocDate,"<="&$E$3,IncDocDate,">"&$C$3)+SUMIFS(ExpTax1,ExpDocDate,"<="&$E$3,ExpDocDate,">"&$C$3),0)+IF($A32="BS-1710",-IF(IncTaxCount=2,SUMIFS(IncTax2,IncDocDate,"<="&$E$3,IncDocDate,">"&$C$3),0)+IF(ExpTaxCount=2,SUMIFS(ExpTax2,ExpDocDate,"<="&$E$3,ExpDocDate,">"&$C$3),0),0)) -> 0 | F32: -50000 | G32: =IF(LEFT($A32,2)="IS",-SUMIFS(IncExcl,IncDocDate,"<="&$G$3,IncDocDate,">"&$G$2,IncAccount,$A32)+SUMIFS(ExpExcl,ExpDocDate,"<="&$G$3,ExpDocDate,">"&$G$2,ExpAccount,$A32),$C32-SUMIFS(IncExcl,IncDocDate,"<="&$G$3,IncDocDate,">"&$C$3,IncAccount,$A32)+SUMIFS(ExpExcl,ExpDocDate,"<="&$G$3,ExpDocDate,">"&$C$3,ExpAccount,$A32)+IF($A32="BS-1700",-SUMIFS(IncTax1,IncDocDate,"<="&$G$3,IncDocDate,">"&$C$3)+SUMIFS(ExpTax1,ExpDocDate,"<="&$G$3,ExpDocDate,">"&$C$3),0)+IF($A32="BS-1710",-IF(IncTaxCount=2,SUMIFS(IncTax2,IncDocDate,"<="&$G$3,IncDocDate,">"&$C$3),0)+IF(ExpTaxCount=2,SUMIFS(ExpTax2,ExpDocDate,"<="&$G$3,ExpDocDate,">"&$C$3),0),0)) -> -50000 | H32: Group
A33: BS-1505 | B33: Provision For Taxation | C33: 0 | E33: =IF(LEFT($A33,2)="IS",-SUMIFS(IncExcl,IncDocDate,"<="&$E$3,IncDocDate,">"&$E$2,IncAccount,$A33)+SUMIFS(ExpExcl,ExpDocDate,"<="&$E$3,ExpDocDate,">"&$E$2,ExpAccount,$A33),$C33-SUMIFS(IncExcl,IncDocDate,"<="&$E$3,IncDocDate,">"&$C$3,IncAccount,$A33)+SUMIFS(ExpExcl,ExpDocDate,"<="&$E$3,ExpDocDate,">"&$C$3,ExpAccount,$A33)+IF($A33="BS-1700",-SUMIFS(IncTax1,IncDocDate,"<="&$E$3,IncDocDate,">"&$C$3)+SUMIFS(ExpTax1,ExpDocDate,"<="&$E$3,ExpDocDate,">"&$C$3),0)+IF($A33="BS-1710",-IF(IncTaxCount=2,SUMIFS(IncTax2,IncDocDate,"<="&$E$3,IncDocDate,">"&$C$3),0)+IF(ExpTaxCount=2,SUMIFS(ExpTax2,ExpDocDate,"<="&$E$3,ExpDocDate,">"&$C$3),0),0)) -> 0 | F33: 0 | G33: =IF(LEFT($A33,2)="IS",-SUMIFS(IncExcl,IncDocDate,"<="&$G$3,IncDocDate,">"&$G$2,IncAccount,$A33)+SUMIFS(ExpExcl,ExpDocDate,"<="&$G$3,ExpDocDate,">"&$G$2,ExpAccount,$A33),$C33-SUMIFS(IncExcl,IncDocDate,"<="&$G$3,IncDocDate,">"&$C$3,IncAccount,$A33)+SUMIFS(ExpExcl,ExpDocDate,"<="&$G$3,ExpDocDate,">"&$C$3,ExpAccount,$A33)+IF($A33="BS-1700",-SUMIFS(IncTax1,IncDocDate,"<="&$G$3,IncDocDate,">"&$C$3)+SUMIFS(ExpTax1,ExpDocDate,"<="&$G$3,ExpDocDate,">"&$C$3),0)+IF($A33="BS-1710",-IF(IncTaxCount=2,SUMIFS(IncTax2,IncDocDate,"<="&$G$3,IncDocDate,">"&$C$3),0)+IF(ExpTaxCount=2,SUMIFS(ExpTax2,ExpDocDate,"<="&$G$3,ExpDocDate,">"&$C$3),0),0)) -> 0 | H33: Group
A34: BS-1610 | B34: Provision For Bonuses | C34: 0 | E34: =IF(LEFT($A34,2)="IS",-SUMIFS(IncExcl,IncDocDate,"<="&$E$3,IncDocDate,">"&$E$2,IncAccount,$A34)+SUMIFS(ExpExcl,ExpDocDate,"<="&$E$3,ExpDocDate,">"&$E$2,ExpAccount,$A34),$C34-SUMIFS(IncExcl,IncDocDate,"<="&$E$3,IncDocDate,">"&$C$3,IncAccount,$A34)+SUMIFS(ExpExcl,ExpDocDate,"<="&$E$3,ExpDocDate,">"&$C$3,ExpAccount,$A34)+IF($A34="BS-1700",-SUMIFS(IncTax1,IncDocDate,"<="&$E$3,IncDocDate,">"&$C$3)+SUMIFS(ExpTax1,ExpDocDate,"<="&$E$3,ExpDocDate,">"&$C$3),0)+IF($A34="BS-1710",-IF(IncTaxCount=2,SUMIFS(IncTax2,IncDocDate,"<="&$E$3,IncDocDate,">"&$C$3),0)+IF(ExpTaxCount=2,SUMIFS(ExpTax2,ExpDocDate,"<="&$E$3,ExpDocDate,">"&$C$3),0),0)) -> 0 | F34: 0 | G34: =IF(LEFT($A34,2)="IS",-SUMIFS(IncExcl,IncDocDate,"<="&$G$3,IncDocDate,">"&$G$2,IncAccount,$A34)+SUMIFS(ExpExcl,ExpDocDate,"<="&$G$3,ExpDocDate,">"&$G$2,ExpAccount,$A34),$C34-SUMIFS(IncExcl,IncDocDate,"<="&$G$3,IncDocDate,">"&$C$3,IncAccount,$A34)+SUMIFS(ExpExcl,ExpDocDate,"<="&$G$3,ExpDocDate,">"&$C$3,ExpAccount,$A34)+IF($A34="BS-1700",-SUMIFS(IncTax1,IncDocDate,"<="&$G$3,IncDocDate,">"&$C$3)+SUMIFS(ExpTax1,ExpDocDate,"<="&$G$3,ExpDocDate,">"&$C$3),0)+IF($A34="BS-1710",-IF(IncTaxCount=2,SUMIFS(IncTax2,IncDocDate,"<="&$G$3,IncDocDate,">"&$C$3),0)+IF(ExpTaxCount=2,SUMIFS(ExpTax2,ExpDocDate,"<="&$G$3,ExpDocDate,">"&$C$3),0),0)) -> 0 | H34: Group
A35: BS-1700 | B35: Sales Tax 1 - National / Federal | C35: -20240 | E35: =IF(LEFT($A35,2)="IS",-SUMIFS(IncExcl,IncDocDate,"<="&$E$3,IncDocDate,">"&$E$2,IncAccount,$A35)+SUMIFS(ExpExcl,ExpDocDate,"<="&$E$3,ExpDocDate,">"&$E$2,ExpAccount,$A35),$C35-SUMIFS(IncExcl,IncDocDate,"<="&$E$3,IncDocDate,">"&$C$3,IncAccount,$A35)+SUMIFS(ExpExcl,ExpDocDate,"<="&$E$3,ExpDocDate,">"&$C$3,ExpAccount,$A35)+IF($A35="BS-1700",-SUMIFS(IncTax1,IncDocDate,"<="&$E$3,IncDocDate,">"&$C$3)+SUMIFS(ExpTax1,ExpDocDate,"<="&$E$3,ExpDocDate,">"&$C$3),0)+IF($A35="BS-1710",-IF(IncTaxCount=2,SUMIFS(IncTax2,IncDocDate,"<="&$E$3,IncDocDate,">"&$C$3),0)+IF(ExpTaxCount=2,SUMIFS(ExpTax2,ExpDocDate,"<="&$E$3,ExpDocDate,">"&$C$3),0),0)) -> -20240 | F35: 3121.347391 | G35: =IF(LEFT($A35,2)="IS",-SUMIFS(IncExcl,IncDocDate,"<="&$G$3,IncDocDate,">"&$G$2,IncAccount,$A35)+SUMIFS(ExpExcl,ExpDocDate,"<="&$G$3,ExpDocDate,">"&$G$2,ExpAccount,$A35),$C35-SUMIFS(IncExcl,IncDocDate,"<="&$G$3,IncDocDate,">"&$C$3,IncAccount,$A35)+SUMIFS(ExpExcl,ExpDocDate,"<="&$G$3,ExpDocDate,">"&$C$3,ExpAccount,$A35)+IF($A35="BS-1700",-SUMIFS(IncTax1,IncDocDate,"<="&$G$3,IncDocDate,">"&$C$3)+SUMIFS(ExpTax1,ExpDocDate,"<="&$G$3,ExpDocDate,">"&$C$3),0)+IF($A35="BS-1710",-IF(IncTaxCount=2,SUMIFS(IncTax2,IncDocDate,"<="&$G$3,IncDocDate,">"&$C$3),0)+IF(ExpTaxCount=2,SUMIFS(ExpTax2,ExpDocDate,"<="&$G$3,ExpDocDate,">"&$C$3),0),0)) -> -17118.65261 | H35: Account
A36: BS-1710 | B36: Sales Tax 2 - State | C36: 0 | E36: =IF(LEFT($A36,2)="IS",-SUMIFS(IncExcl,IncDocDate,"<="&$E$3,IncDocDate,">"&$E$2,IncAccount,$A36)+SUMIFS(ExpExcl,ExpDocDate,"<="&$E$3,ExpDocDate,">"&$E$2,ExpAccount,$A36),$C36-SUMIFS(IncExcl,IncDocDate,"<="&$E$3,IncDocDate,">"&$C$3,IncAccount,$A36)+SUMIFS(ExpExcl,ExpDocDate,"<="&$E$3,ExpDocDate,">"&$C$3,ExpAccount,$A36)+IF($A36="BS-1700",-SUMIFS(IncTax1,IncDocDate,"<="&$E$3,IncDocDate,">"&$C$3)+SUMIFS(ExpTax1,ExpDocDate,"<="&$E$3,ExpDocDate,">"&$C$3),0)+IF($A36="BS-1710",-IF(IncTaxCount=2,SUMIFS(IncTax2,IncDocDate,"<="&$E$3,IncDocDate,">"&$C$3),0)+IF(ExpTaxCount=2,SUMIFS(ExpTax2,ExpDocDate,"<="&$E$3,ExpDocDate,">"&$C$3),0),0)) -> 0 | F36: =G36-E36 -> 0 | G36: =IF(LEFT($A36,2)="IS",-SUMIFS(IncExcl,IncDocDate,"<="&$G$3,IncDocDate,">"&$G$2,IncAccount,$A36)+SUMIFS(ExpExcl,ExpDocDate,"<="&$G$3,ExpDocDate,">"&$G$2,ExpAccount,$A36),$C36-SUMIFS(IncExcl,IncDocDate,"<="&$G$3,IncDocDate,">"&$C$3,IncAccount,$A36)+SUMIFS(ExpExcl,ExpDocDate,"<="&$G$3,ExpDocDate,">"&$C$3,ExpAccount,$A36)+IF($A36="BS-1700",-SUMIFS(IncTax1,IncDocDate,"<="&$G$3,IncDocDate,">"&$C$3)+SUMIFS(ExpTax1,ExpDocDate,"<="&$G$3,ExpDocDate,">"&$C$3),0)+IF($A36="BS-1710",-IF(IncTaxCount=2,SUMIFS(IncTax2,IncDocDate,"<="&$G$3,IncDocDate,">"&$C$3),0)+IF(ExpTaxCount=2,SUMIFS(ExpTax2,ExpDocDate,"<="&$G$3,ExpDocDate,">"&$C$3),0),0)) -> 0 | H36: Account
A37: BS-1805 | B37: Long Term Loans | C37: -200000 | E37: =IF(LEFT($A37,2)="IS",-SUMIFS(IncExcl,IncDocDate,"<="&$E$3,IncDocDate,">"&$E$2,IncAccount,$A37)+SUMIFS(ExpExcl,ExpDocDate,"<="&$E$3,ExpDocDate,">"&$E$2,ExpAccount,$A37),$C37-SUMIFS(IncExcl,IncDocDate,"<="&$E$3,IncDocDate,">"&$C$3,IncAccount,$A37)+SUMIFS(ExpExcl,ExpDocDate,"<="&$E$3,ExpDocDate,">"&$C$3,ExpAccount,$A37)+IF($A37="BS-1700",-SUMIFS(IncTax1,IncDocDate,"<="&$E$3,IncDocDate,">"&$C$3)+SUMIFS(ExpTax1,ExpDocDate,"<="&$E$3,ExpDocDate,">"&$C$3),0)+IF($A37="BS-1710",-IF(IncTaxCount=2,SUMIFS(IncTax2,IncDocDate,"<="&$E$3,IncDocDate,">"&$C$3),0)+IF(ExpTaxCount=2,SUMIFS(ExpTax2,ExpDocDate,"<="&$E$3,ExpDocDate,">"&$C$3),0),0)) -> -200000 | F37: -16249.61 | G37: =IF(LEFT($A37,2)="IS",-SUMIFS(IncExcl,IncDocDate,"<="&$G$3,IncDocDate,">"&$G$2,IncAccount,$A37)+SUMIFS(ExpExcl,ExpDocDate,"<="&$G$3,ExpDocDate,">"&$G$2,ExpAccount,$A37),$C37-SUMIFS(IncExcl,IncDocDate,"<="&$G$3,IncDocDate,">"&$C$3,IncAccount,$A37)+SUMIFS(ExpExcl,ExpDocDate,"<="&$G$3,ExpDocDate,">"&$C$3,ExpAccount,$A37)+IF($A37="BS-1700",-SUMIFS(IncTax1,IncDocDate,"<="&$G$3,IncDocDate,">"&$C$3)+SUMIFS(ExpTax1,ExpDocDate,"<="&$G$3,ExpDocDate,">"&$C$3),0)+IF($A37="BS-1710",-IF(IncTaxCount=2,SUMIFS(IncTax2,IncDocDate,"<="&$G$3,IncDocDate,">"&$C$3),0)+IF(ExpTaxCount=2,SUMIFS(ExpTax2,ExpDocDate,"<="&$G$3,ExpDocDate,">"&$C$3),0),0)) -> -216249.61 | H37: Group
A38: BS-1900 | B38: Reserves | C38: 0 | E38: =IF(LEFT($A38,2)="IS",-SUMIFS(IncExcl,IncDocDate,"<="&$E$3,IncDocDate,">"&$E$2,IncAccount,$A38)+SUMIFS(ExpExcl,ExpDocDate,"<="&$E$3,ExpDocDate,">"&$E$2,ExpAccount,$A38),$C38-SUMIFS(IncExcl,IncDocDate,"<="&$E$3,IncDocDate,">"&$C$3,IncAccount,$A38)+SUMIFS(ExpExcl,ExpDocDate,"<="&$E$3,ExpDocDate,">"&$C$3,ExpAccount,$A38)+IF($A38="BS-1700",-SUMIFS(IncTax1,IncDocDate,"<="&$E$3,IncDocDate,">"&$C$3)+SUMIFS(ExpTax1,ExpDocDate,"<="&$E$3,ExpDocDate,">"&$C$3),0)+IF($A38="BS-1710",-IF(IncTaxCount=2,SUMIFS(IncTax2,IncDocDate,"<="&$E$3,IncDocDate,">"&$C$3),0)+IF(ExpTaxCount=2,SUMIFS(ExpTax2,ExpDocDate,"<="&$E$3,ExpDocDate,">"&$C$3),0),0)) -> 0 | F38: 0 | G38: =IF(LEFT($A38,2)="IS",-SUMIFS(IncExcl,IncDocDate,"<="&$G$3,IncDocDate,">"&$G$2,IncAccount,$A38)+SUMIFS(ExpExcl,ExpDocDate,"<="&$G$3,ExpDocDate,">"&$G$2,ExpAccount,$A38),$C38-SUMIFS(IncExcl,IncDocDate,"<="&$G$3,IncDocDate,">"&$C$3,IncAccount,$A38)+SUMIFS(ExpExcl,ExpDocDate,"<="&$G$3,ExpDocDate,">"&$C$3,ExpAccount,$A38)+IF($A38="BS-1700",-SUMIFS(IncTax1,IncDocDate,"<="&$G$3,IncDocDate,">"&$C$3)+SUMIFS(ExpTax1,ExpDocDate,"<="&$G$3,ExpDocDate,">"&$C$3),0)+IF($A38="BS-1710",-IF(IncTaxCount=2,SUMIFS(IncTax2,IncDocDate,"<="&$G$3,IncDocDate,">"&$C$3),0)+IF(ExpTaxCount=2,SUMIFS(ExpTax2,ExpDocDate,"<="&$G$3,ExpDocDate,">"&$C$3),0),0)) -> 0 | H38: =IF(LEFT($A38,2)="BS",IF(ISNA(MATCH(LEFT($A38,5)&"G",KeyBS,0)),IF(ISNA(MATCH($A38,KeyBS,0)),"Error!","Account"),IF(ISNA(MATCH($A38,KeyBS,0)),"Group","Double!")),IF(ISNA(MATCH(LEFT($A38,5)&"G",KeyIS,0)),IF(ISNA(MATCH($A38,KeyIS,0)),"Error!","Account"),IF(ISNA(MATCH($A38,KeyIS,0)),"Group","Double!"))) -> Group
A39: BS-2000 | B39: Shareholders' Contributions | C39: -100 | E39: =IF(LEFT($A39,2)="IS",-SUMIFS(IncExcl,IncDocDate,"<="&$E$3,IncDocDate,">"&$E$2,IncAccount,$A39)+SUMIFS(ExpExcl,ExpDocDate,"<="&$E$3,ExpDocDate,">"&$E$2,ExpAccount,$A39),$C39-SUMIFS(IncExcl,IncDocDate,"<="&$E$3,IncDocDate,">"&$C$3,IncAccount,$A39)+SUMIFS(ExpExcl,ExpDocDate,"<="&$E$3,ExpDocDate,">"&$C$3,ExpAccount,$A39)+IF($A39="BS-1700",-SUMIFS(IncTax1,IncDocDate,"<="&$E$3,IncDocDate,">"&$C$3)+SUMIFS(ExpTax1,ExpDocDate,"<="&$E$3,ExpDocDate,">"&$C$3),0)+IF($A39="BS-1710",-IF(IncTaxCount=2,SUMIFS(IncTax2,IncDocDate,"<="&$E$3,IncDocDate,">"&$C$3),0)+IF(ExpTaxCount=2,SUMIFS(ExpTax2,ExpDocDate,"<="&$E$3,ExpDocDate,">"&$C$3),0),0)) -> -100 | F39: 0 | G39: =IF(LEFT($A39,2)="IS",-SUMIFS(IncExcl,IncDocDate,"<="&$G$3,IncDocDate,">"&$G$2,IncAccount,$A39)+SUMIFS(ExpExcl,ExpDocDate,"<="&$G$3,ExpDocDate,">"&$G$2,ExpAccount,$A39),$C39-SUMIFS(IncExcl,IncDocDate,"<="&$G$3,IncDocDate,">"&$C$3,IncAccount,$A39)+SUMIFS(ExpExcl,ExpDocDate,"<="&$G$3,ExpDocDate,">"&$C$3,ExpAccount,$A39)+IF($A39="BS-1700",-SUMIFS(IncTax1,IncDocDate,"<="&$G$3,IncDocDate,">"&$C$3)+SUMIFS(ExpTax1,ExpDocDate,"<="&$G$3,ExpDocDate,">"&$C$3),0)+IF($A39="BS-1710",-IF(IncTaxCount=2,SUMIFS(IncTax2,IncDocDate,"<="&$G$3,IncDocDate,">"&$C$3),0)+IF(ExpTaxCount=2,SUMIFS(ExpTax2,ExpDocDate,"<="&$G$3,ExpDocDate,">"&$C$3),0),0)) -> -100 | H39: Group
A40: IS-0105 | B40: Software Sales | E40: =IF(LEFT($A40,2)="IS",-SUMIFS(IncExcl,IncDocDate,"<="&$E$3,IncDocDate,">"&$E$2,IncAccount,$A40)+SUMIFS(ExpExcl,ExpDocDate,"<="&$E$3,ExpDocDate,">"&$E$2,ExpAccount,$A40),$C40-SUMIFS(IncExcl,IncDocDate,"<="&$E$3,IncDocDate,">"&$C$3,IncAccount,$A40)+SUMIFS(ExpExcl,ExpDocDate,"<="&$E$3,ExpDocDate,">"&$C$3,ExpAccount,$A40)+IF($A40="BS-1700",-SUMIFS(IncTax1,IncDocDate,"<="&$E$3,IncDocDate,">"&$C$3)+SUMIFS(ExpTax1,ExpDocDate,"<="&$E$3,ExpDocDate,">"&$C$3),0)+IF($A40="BS-1710",-IF(IncTaxCount=2,SUMIFS(IncTax2,IncDocDate,"<="&$E$3,IncDocDate,">"&$C$3),0)+IF(ExpTaxCount=2,SUMIFS(ExpTax2,ExpDocDate,"<="&$E$3,ExpDocDate,">"&$C$3),0),0)) -> 0 | F40: -1720236.391 | G40: =IF(LEFT($A40,2)="IS",-SUMIFS(IncExcl,IncDocDate,"<="&$G$3,IncDocDate,">"&$G$2,IncAccount,$A40)+SUMIFS(ExpExcl,ExpDocDate,"<="&$G$3,ExpDocDate,">"&$G$2,ExpAccount,$A40),$C40-SUMIFS(IncExcl,IncDocDate,"<="&$G$3,IncDocDate,">"&$C$3,IncAccount,$A40)+SUMIFS(ExpExcl,ExpDocDate,"<="&$G$3,ExpDocDate,">"&$C$3,ExpAccount,$A40)+IF($A40="BS-1700",-SUMIFS(IncTax1,IncDocDate,"<="&$G$3,IncDocDate,">"&$C$3)+SUMIFS(ExpTax1,ExpDocDate,"<="&$G$3,ExpDocDate,">"&$C$3),0)+IF($A40="BS-1710",-IF(IncTaxCount=2,SUMIFS(IncTax2,IncDocDate,"<="&$G$3,IncDocDate,">"&$C$3),0)+IF(ExpTaxCount=2,SUMIFS(ExpTax2,ExpDocDate,"<="&$G$3,ExpDocDate,">"&$C$3),0),0)) -> -1720236.391 | H40: Account
A41: IS-0110 | B41: Advertising Income | E41: =IF(LEFT($A41,2)="IS",-SUMIFS(IncExcl,IncDocDate,"<="&$E$3,IncDocDate,">"&$E$2,IncAccount,$A41)+SUMIFS(ExpExcl,ExpDocDate,"<="&$E$3,ExpDocDate,">"&$E$2,ExpAccount,$A41),$C41-SUMIFS(IncExcl,IncDocDate,"<="&$E$3,IncDocDate,">"&$C$3,IncAccount,$A41)+SUMIFS(ExpExcl,ExpDocDate,"<="&$E$3,ExpDocDate,">"&$C$3,ExpAccount,$A41)+IF($A41="BS-1700",-SUMIFS(IncTax1,IncDocDate,"<="&$E$3,IncDocDate,">"&$C$3)+SUMIFS(ExpTax1,ExpDocDate,"<="&$E$3,ExpDocDate,">"&$C$3),0)+IF($A41="BS-1710",-IF(IncTaxCount=2,SUMIFS(IncTax2,IncDocDate,"<="&$E$3,IncDocDate,">"&$C$3),0)+IF(ExpTaxCount=2,SUMIFS(ExpTax2,ExpDocDate,"<="&$E$3,ExpDocDate,">"&$C$3),0),0)) -> 0 | F41: -196920 | G41: =IF(LEFT($A41,2)="IS",-SUMIFS(IncExcl,IncDocDate,"<="&$G$3,IncDocDate,">"&$G$2,IncAccount,$A41)+SUMIFS(ExpExcl,ExpDocDate,"<="&$G$3,ExpDocDate,">"&$G$2,ExpAccount,$A41),$C41-SUMIFS(IncExcl,IncDocDate,"<="&$G$3,IncDocDate,">"&$C$3,IncAccount,$A41)+SUMIFS(ExpExcl,ExpDocDate,"<="&$G$3,ExpDocDate,">"&$C$3,ExpAccount,$A41)+IF($A41="BS-1700",-SUMIFS(IncTax1,IncDocDate,"<="&$G$3,IncDocDate,">"&$C$3)+SUMIFS(ExpTax1,ExpDocDate,"<="&$G$3,ExpDocDate,">"&$C$3),0)+IF($A41="BS-1710",-IF(IncTaxCount=2,SUMIFS(IncTax2,IncDocDate,"<="&$G$3,IncDocDate,">"&$C$3),0)+IF(ExpTaxCount=2,SUMIFS(ExpTax2,ExpDocDate,"<="&$G$3,ExpDocDate,">"&$C$3),0),0)) -> -196920 | H41: Account
A42: IS-0115 | B42: Commission Received | E42: =IF(LEFT($A42,2)="IS",-SUMIFS(IncExcl,IncDocDate,"<="&$E$3,IncDocDate,">"&$E$2,IncAccount,$A42)+SUMIFS(ExpExcl,ExpDocDate,"<="&$E$3,ExpDocDate,">"&$E$2,ExpAccount,$A42),$C42-SUMIFS(IncExcl,IncDocDate,"<="&$E$3,IncDocDate,">"&$C$3,IncAccount,$A42)+SUMIFS(ExpExcl,ExpDocDate,"<="&$E$3,ExpDocDate,">"&$C$3,ExpAccount,$A42)+IF($A42="BS-1700",-SUMIFS(IncTax1,IncDocDate,"<="&$E$3,IncDocDate,">"&$C$3)+SUMIFS(ExpTax1,ExpDocDate,"<="&$E$3,ExpDocDate,">"&$C$3),0)+IF($A42="BS-1710",-IF(IncTaxCount=2,SUMIFS(IncTax2,IncDocDate,"<="&$E$3,IncDocDate,">"&$C$3),0)+IF(ExpTaxCount=2,SUMIFS(ExpTax2,ExpDocDate,"<="&$E$3,ExpDocDate,">"&$C$3),0),0)) -> 0 | F42: -22326.95652 | G42: =IF(LEFT($A42,2)="IS",-SUMIFS(IncExcl,IncDocDate,"<="&$G$3,IncDocDate,">"&$G$2,IncAccount,$A42)+SUMIFS(ExpExcl,ExpDocDate,"<="&$G$3,ExpDocDate,">"&$G$2,ExpAccount,$A42),$C42-SUMIFS(IncExcl,IncDocDate,"<="&$G$3,IncDocDate,">"&$C$3,IncAccount,$A42)+SUMIFS(ExpExcl,ExpDocDate,"<="&$G$3,ExpDocDate,">"&$C$3,ExpAccount,$A42)+IF($A42="BS-1700",-SUMIFS(IncTax1,IncDocDate,"<="&$G$3,IncDocDate,">"&$C$3)+SUMIFS(ExpTax1,ExpDocDate,"<="&$G$3,ExpDocDate,">"&$C$3),0)+IF($A42="BS-1710",-IF(IncTaxCount=2,SUMIFS(IncTax2,IncDocDate,"<="&$G$3,IncDocDate,">"&$C$3),0)+IF(ExpTaxCount=2,SUMIFS(ExpTax2,ExpDocDate,"<="&$G$3,ExpDocDate,">"&$C$3),0),0)) -> -22326.95652 | H42: Account
A43: IS-0305 | B43: Accounting Fees | E43: =IF(LEFT($A43,2)="IS",-SUMIFS(IncExcl,IncDocDate,"<="&$E$3,IncDocDate,">"&$E$2,IncAccount,$A43)+SUMIFS(ExpExcl,ExpDocDate,"<="&$E$3,ExpDocDate,">"&$E$2,ExpAccount,$A43),$C43-SUMIFS(IncExcl,IncDocDate,"<="&$E$3,IncDocDate,">"&$C$3,IncAccount,$A43)+SUMIFS(ExpExcl,ExpDocDate,"<="&$E$3,ExpDocDate,">"&$C$3,ExpAccount,$A43)+IF($A43="BS-1700",-SUMIFS(IncTax1,IncDocDate,"<="&$E$3,IncDocDate,">"&$C$3)+SUMIFS(ExpTax1,ExpDocDate,"<="&$E$3,ExpDocDate,">"&$C$3),0)+IF($A43="BS-1710",-IF(IncTaxCount=2,SUMIFS(IncTax2,IncDocDate,"<="&$E$3,IncDocDate,">"&$C$3),0)+IF(ExpTaxCount=2,SUMIFS(ExpTax2,ExpDocDate,"<="&$E$3,ExpDocDate,">"&$C$3),0),0)) -> 0 | F43: 23982.6087 | G43: =IF(LEFT($A43,2)="IS",-SUMIFS(IncExcl,IncDocDate,"<="&$G$3,IncDocDate,">"&$G$2,IncAccount,$A43)+SUMIFS(ExpExcl,ExpDocDate,"<="&$G$3,ExpDocDate,">"&$G$2,ExpAccount,$A43),$C43-SUMIFS(IncExcl,IncDocDate,"<="&$G$3,IncDocDate,">"&$C$3,IncAccount,$A43)+SUMIFS(ExpExcl,ExpDocDate,"<="&$G$3,ExpDocDate,">"&$C$3,ExpAccount,$A43)+IF($A43="BS-1700",-SUMIFS(IncTax1,IncDocDate,"<="&$G$3,IncDocDate,">"&$C$3)+SUMIFS(ExpTax1,ExpDocDate,"<="&$G$3,ExpDocDate,">"&$C$3),0)+IF($A43="BS-1710",-IF(IncTaxCount=2,SUMIFS(IncTax2,IncDocDate,"<="&$G$3,IncDocDate,">"&$C$3),0)+IF(ExpTaxCount=2,SUMIFS(ExpTax2,ExpDocDate,"<="&$G$3,ExpDocDate,">"&$C$3),0),0)) -> 23982.6087 | H43: Account
A44: IS-0310 | B44: Advertising & Marketing | E44: =IF(LEFT($A44,2)="IS",-SUMIFS(IncExcl,IncDocDate,"<="&$E$3,IncDocDate,">"&$E$2,IncAccount,$A44)+SUMIFS(ExpExcl,ExpDocDate,"<="&$E$3,ExpDocDate,">"&$E$2,ExpAccount,$A44),$C44-SUMIFS(IncExcl,IncDocDate,"<="&$E$3,IncDocDate,">"&$C$3,IncAccount,$A44)+SUMIFS(ExpExcl,ExpDocDate,"<="&$E$3,ExpDocDate,">"&$C$3,ExpAccount,$A44)+IF($A44="BS-1700",-SUMIFS(IncTax1,IncDocDate,"<="&$E$3,IncDocDate,">"&$C$3)+SUMIFS(ExpTax1,ExpDocDate,"<="&$E$3,ExpDocDate,">"&$C$3),0)+IF($A44="BS-1710",-IF(IncTaxCount=2,SUMIFS(IncTax2,IncDocDate,"<="&$E$3,IncDocDate,">"&$C$3),0)+IF(ExpTaxCount=2,SUMIFS(ExpTax2,ExpDocDate,"<="&$E$3,ExpDocDate,">"&$C$3),0),0)) -> 0 | F44: 143643 | G44: =IF(LEFT($A44,2)="IS",-SUMIFS(IncExcl,IncDocDate,"<="&$G$3,IncDocDate,">"&$G$2,IncAccount,$A44)+SUMIFS(ExpExcl,ExpDocDate,"<="&$G$3,ExpDocDate,">"&$G$2,ExpAccount,$A44),$C44-SUMIFS(IncExcl,IncDocDate,"<="&$G$3,IncDocDate,">"&$C$3,IncAccount,$A44)+SUMIFS(ExpExcl,ExpDocDate,"<="&$G$3,ExpDocDate,">"&$C$3,ExpAccount,$A44)+IF($A44="BS-1700",-SUMIFS(IncTax1,IncDocDate,"<="&$G$3,IncDocDate,">"&$C$3)+SUMIFS(ExpTax1,ExpDocDate,"<="&$G$3,ExpDocDate,">"&$C$3),0)+IF($A44="BS-1710",-IF(IncTaxCount=2,SUMIFS(IncTax2,IncDocDate,"<="&$G$3,IncDocDate,">"&$C$3),0)+IF(ExpTaxCount=2,SUMIFS(ExpTax2,ExpDocDate,"<="&$G$3,ExpDocDate,">"&$C$3),0),0)) -> 143643 | H44: Account
A45: IS-0315 | B45: Bank Charges | E45: =IF(LEFT($A45,2)="IS",-SUMIFS(IncExcl,IncDocDate,"<="&$E$3,IncDocDate,">"&$E$2,IncAccount,$A45)+SUMIFS(ExpExcl,ExpDocDate,"<="&$E$3,ExpDocDate,">"&$E$2,ExpAccount,$A45),$C45-SUMIFS(IncExcl,IncDocDate,"<="&$E$3,IncDocDate,">"&$C$3,IncAccount,$A45)+SUMIFS(ExpExcl,ExpDocDate,"<="&$E$3,ExpDocDate,">"&$C$3,ExpAccount,$A45)+IF($A45="BS-1700",-SUMIFS(IncTax1,IncDocDate,"<="&$E$3,IncDocDate,">"&$C$3)+SUMIFS(ExpTax1,ExpDocDate,"<="&$E$3,ExpDocDate,">"&$C$3),0)+IF($A45="BS-1710",-IF(IncTaxCount=2,SUMIFS(IncTax2,IncDocDate,"<="&$E$3,IncDocDate,">"&$C$3),0)+IF(ExpTaxCount=2,SUMIFS(ExpTax2,ExpDocDate,"<="&$E$3,ExpDocDate,">"&$C$3),0),0)) -> 0 | F45: 1179.304348 | G45: =IF(LEFT($A45,2)="IS",-SUMIFS(IncExcl,IncDocDate,"<="&$G$3,IncDocDate,">"&$G$2,IncAccount,$A45)+SUMIFS(ExpExcl,ExpDocDate,"<="&$G$3,ExpDocDate,">"&$G$2,ExpAccount,$A45),$C45-SUMIFS(IncExcl,IncDocDate,"<="&$G$3,IncDocDate,">"&$C$3,IncAccount,$A45)+SUMIFS(ExpExcl,ExpDocDate,"<="&$G$3,ExpDocDate,">"&$C$3,ExpAccount,$A45)+IF($A45="BS-1700",-SUMIFS(IncTax1,IncDocDate,"<="&$G$3,IncDocDate,">"&$C$3)+SUMIFS(ExpTax1,ExpDocDate,"<="&$G$3,ExpDocDate,">"&$C$3),0)+IF($A45="BS-1710",-IF(IncTaxCount=2,SUMIFS(IncTax2,IncDocDate,"<="&$G$3,IncDocDate,">"&$C$3),0)+IF(ExpTaxCount=2,SUMIFS(ExpTax2,ExpDocDate,"<="&$G$3,ExpDocDate,">"&$C$3),0),0)) -> 1179.304348 | H45: Account
A46: IS-0320 | B46: Commission | E46: =IF(LEFT($A46,2)="IS",-SUMIFS(IncExcl,IncDocDate,"<="&$E$3,IncDocDate,">"&$E$2,IncAccount,$A46)+SUMIFS(ExpExcl,ExpDocDate,"<="&$E$3,ExpDocDate,">"&$E$2,ExpAccount,$A46),$C46-SUMIFS(IncExcl,IncDocDate,"<="&$E$3,IncDocDate,">"&$C$3,IncAccount,$A46)+SUMIFS(ExpExcl,ExpDocDate,"<="&$E$3,ExpDocDate,">"&$C$3,ExpAccount,$A46)+IF($A46="BS-1700",-SUMIFS(IncTax1,IncDocDate,"<="&$E$3,IncDocDate,">"&$C$3)+SUMIFS(ExpTax1,ExpDocDate,"<="&$E$3,ExpDocDate,">"&$C$3),0)+IF($A46="BS-1710",-IF(IncTaxCount=2,SUMIFS(IncTax2,IncDocDate,"<="&$E$3,IncDocDate,">"&$C$3),0)+IF(ExpTaxCount=2,SUMIFS(ExpTax2,ExpDocDate,"<="&$E$3,ExpDocDate,">"&$C$3),0),0)) -> 0 | F46: 27850 | G46: =IF(LEFT($A46,2)="IS",-SUMIFS(IncExcl,IncDocDate,"<="&$G$3,IncDocDate,">"&$G$2,IncAccount,$A46)+SUMIFS(ExpExcl,ExpDocDate,"<="&$G$3,ExpDocDate,">"&$G$2,ExpAccount,$A46),$C46-SUMIFS(IncExcl,IncDocDate,"<="&$G$3,IncDocDate,">"&$C$3,IncAccount,$A46)+SUMIFS(ExpExcl,ExpDocDate,"<="&$G$3,ExpDocDate,">"&$C$3,ExpAccount,$A46)+IF($A46="BS-1700",-SUMIFS(IncTax1,IncDocDate,"<="&$G$3,IncDocDate,">"&$C$3)+SUMIFS(ExpTax1,ExpDocDate,"<="&$G$3,ExpDocDate,">"&$C$3),0)+IF($A46="BS-1710",-IF(IncTaxCount=2,SUMIFS(IncTax2,IncDocDate,"<="&$G$3,IncDocDate,">"&$C$3),0)+IF(ExpTaxCount=2,SUMIFS(ExpTax2,ExpDocDate,"<="&$G$3,ExpDocDate,">"&$C$3),0),0)) -> 27850 | H46: Account
A47: IS-0325 | B47: Computer Expenses | E47: =IF(LEFT($A47,2)="IS",-SUMIFS(IncExcl,IncDocDate,"<="&$E$3,IncDocDate,">"&$E$2,IncAccount,$A47)+SUMIFS(ExpExcl,ExpDocDate,"<="&$E$3,ExpDocDate,">"&$E$2,ExpAccount,$A47),$C47-SUMIFS(IncExcl,IncDocDate,"<="&$E$3,IncDocDate,">"&$C$3,IncAccount,$A47)+SUMIFS(ExpExcl,ExpDocDate,"<="&$E$3,ExpDocDate,">"&$C$3,ExpAccount,$A47)+IF($A47="BS-1700",-SUMIFS(IncTax1,IncDocDate,"<="&$E$3,IncDocDate,">"&$C$3)+SUMIFS(ExpTax1,ExpDocDate,"<="&$E$3,ExpDocDate,">"&$C$3),0)+IF($A47="BS-1710",-IF(IncTaxCount=2,SUMIFS(IncTax2,IncDocDate,"<="&$E$3,IncDocDate,">"&$C$3),0)+IF(ExpTaxCount=2,SUMIFS(ExpTax2,ExpDocDate,"<="&$E$3,ExpDocDate,">"&$C$3),0),0)) -> 0 | F47: 3476.521739 | G47: =IF(LEFT($A47,2)="IS",-SUMIFS(IncExcl,IncDocDate,"<="&$G$3,IncDocDate,">"&$G$2,IncAccount,$A47)+SUMIFS(ExpExcl,ExpDocDate,"<="&$G$3,ExpDocDate,">"&$G$2,ExpAccount,$A47),$C47-SUMIFS(IncExcl,IncDocDate,"<="&$G$3,IncDocDate,">"&$C$3,IncAccount,$A47)+SUMIFS(ExpExcl,ExpDocDate,"<="&$G$3,ExpDocDate,">"&$C$3,ExpAccount,$A47)+IF($A47="BS-1700",-SUMIFS(IncTax1,IncDocDate,"<="&$G$3,IncDocDate,">"&$C$3)+SUMIFS(ExpTax1,ExpDocDate,"<="&$G$3,ExpDocDate,">"&$C$3),0)+IF($A47="BS-1710",-IF(IncTaxCount=2,SUMIFS(IncTax2,IncDocDate,"<="&$G$3,IncDocDate,">"&$C$3),0)+IF(ExpTaxCount=2,SUMIFS(ExpTax2,ExpDocDate,"<="&$G$3,ExpDocDate,">"&$C$3),0),0)) -> 3476.521739 | H47: Account
A48: IS-0330 | B48: Consumables & Cleaning | E48: =IF(LEFT($A48,2)="IS",-SUMIFS(IncExcl,IncDocDate,"<="&$E$3,IncDocDate,">"&$E$2,IncAccount,$A48)+SUMIFS(ExpExcl,ExpDocDate,"<="&$E$3,ExpDocDate,">"&$E$2,ExpAccount,$A48),$C48-SUMIFS(IncExcl,IncDocDate,"<="&$E$3,IncDocDate,">"&$C$3,IncAccount,$A48)+SUMIFS(ExpExcl,ExpDocDate,"<="&$E$3,ExpDocDate,">"&$C$3,ExpAccount,$A48)+IF($A48="BS-1700",-SUMIFS(IncTax1,IncDocDate,"<="&$E$3,IncDocDate,">"&$C$3)+SUMIFS(ExpTax1,ExpDocDate,"<="&$E$3,ExpDocDate,">"&$C$3),0)+IF($A48="BS-1710",-IF(IncTaxCount=2,SUMIFS(IncTax2,IncDocDate,"<="&$E$3,IncDocDate,">"&$C$3),0)+IF(ExpTaxCount=2,SUMIFS(ExpTax2,ExpDocDate,"<="&$E$3,ExpDocDate,">"&$C$3),0),0)) -> 0 | F48: 2500 | G48: =IF(LEFT($A48,2)="IS",-SUMIFS(IncExcl,IncDocDate,"<="&$G$3,IncDocDate,">"&$G$2,IncAccount,$A48)+SUMIFS(ExpExcl,ExpDocDate,"<="&$G$3,ExpDocDate,">"&$G$2,ExpAccount,$A48),$C48-SUMIFS(IncExcl,IncDocDate,"<="&$G$3,IncDocDate,">"&$C$3,IncAccount,$A48)+SUMIFS(ExpExcl,ExpDocDate,"<="&$G$3,ExpDocDate,">"&$C$3,ExpAccount,$A48)+IF($A48="BS-1700",-SUMIFS(IncTax1,IncDocDate,"<="&$G$3,IncDocDate,">"&$C$3)+SUMIFS(ExpTax1,ExpDocDate,"<="&$G$3,ExpDocDate,">"&$C$3),0)+IF($A48="BS-1710",-IF(IncTaxCount=2,SUMIFS(IncTax2,IncDocDate,"<="&$G$3,IncDocDate,">"&$C$3),0)+IF(ExpTaxCount=2,SUMIFS(ExpTax2,ExpDocDate,"<="&$G$3,ExpDocDate,">"&$C$3),0),0)) -> 2500 | H48: Account
A49: IS-0335 | B49: Entertainment | E49: =IF(LEFT($A49,2)="IS",-SUMIFS(IncExcl,IncDocDate,"<="&$E$3,IncDocDate,">"&$E$2,IncAccount,$A49)+SUMIFS(ExpExcl,ExpDocDate,"<="&$E$3,ExpDocDate,">"&$E$2,ExpAccount,$A49),$C49-SUMIFS(IncExcl,IncDocDate,"<="&$E$3,IncDocDate,">"&$C$3,IncAccount,$A49)+SUMIFS(ExpExcl,ExpDocDate,"<="&$E$3,ExpDocDate,">"&$C$3,ExpAccount,$A49)+IF($A49="BS-1700",-SUMIFS(IncTax1,IncDocDate,"<="&$E$3,IncDocDate,">"&$C$3)+SUMIFS(ExpTax1,ExpDocDate,"<="&$E$3,ExpDocDate,">"&$C$3),0)+IF($A49="BS-1710",-IF(IncTaxCount=2,SUMIFS(IncTax2,IncDocDate,"<="&$E$3,IncDocDate,">"&$C$3),0)+IF(ExpTaxCount=2,SUMIFS(ExpTax2,ExpDocDate,"<="&$E$3,ExpDocDate,">"&$C$3),0),0)) -> 0 | F49: 0 | G49: =IF(LEFT($A49,2)="IS",-SUMIFS(IncExcl,IncDocDate,"<="&$G$3,IncDocDate,">"&$G$2,IncAccount,$A49)+SUMIFS(ExpExcl,ExpDocDate,"<="&$G$3,ExpDocDate,">"&$G$2,ExpAccount,$A49),$C49-SUMIFS(IncExcl,IncDocDate,"<="&$G$3,IncDocDate,">"&$C$3,IncAccount,$A49)+SUMIFS(ExpExcl,ExpDocDate,"<="&$G$3,ExpDocDate,">"&$C$3,ExpAccount,$A49)+IF($A49="BS-1700",-SUMIFS(IncTax1,IncDocDate,"<="&$G$3,IncDocDate,">"&$C$3)+SUMIFS(ExpTax1,ExpDocDate,"<="&$G$3,ExpDocDate,">"&$C$3),0)+IF($A49="BS-1710",-IF(IncTaxCount=2,SUMIFS(IncTax2,IncDocDate,"<="&$G$3,IncDocDate,">"&$C$3),0)+IF(ExpTaxCount=2,SUMIFS(ExpTax2,ExpDocDate,"<="&$G$3,ExpDocDate,">"&$C$3),0),0)) -> 0 | H49: Account
A50: IS-0340 | B50: Insurance | E50: =IF(LEFT($A50,2)="IS",-SUMIFS(IncExcl,IncDocDate,"<="&$E$3,IncDocDate,">"&$E$2,IncAccount,$A50)+SUMIFS(ExpExcl,ExpDocDate,"<="&$E$3,ExpDocDate,">"&$E$2,ExpAccount,$A50),$C50-SUMIFS(IncExcl,IncDocDate,"<="&$E$3,IncDocDate,">"&$C$3,IncAccount,$A50)+SUMIFS(ExpExcl,ExpDocDate,"<="&$E$3,ExpDocDate,">"&$C$3,ExpAccount,$A50)+IF($A50="BS-1700",-SUMIFS(IncTax1,IncDocDate,"<="&$E$3,IncDocDate,">"&$C$3)+SUMIFS(ExpTax1,ExpDocDate,"<="&$E$3,ExpDocDate,">"&$C$3),0)+IF($A50="BS-1710",-IF(IncTaxCount=2,SUMIFS(IncTax2,IncDocDate,"<="&$E$3,IncDocDate,">"&$C$3),0)+IF(ExpTaxCount=2,SUMIFS(ExpTax2,ExpDocDate,"<="&$E$3,ExpDocDate,">"&$C$3),0),0)) -> 0 | F50: 3837.217391 | G50: =IF(LEFT($A50,2)="IS",-SUMIFS(IncExcl,IncDocDate,"<="&$G$3,IncDocDate,">"&$G$2,IncAccount,$A50)+SUMIFS(ExpExcl,ExpDocDate,"<="&$G$3,ExpDocDate,">"&$G$2,ExpAccount,$A50),$C50-SUMIFS(IncExcl,IncDocDate,"<="&$G$3,IncDocDate,">"&$C$3,IncAccount,$A50)+SUMIFS(ExpExcl,ExpDocDate,"<="&$G$3,ExpDocDate,">"&$C$3,ExpAccount,$A50)+IF($A50="BS-1700",-SUMIFS(IncTax1,IncDocDate,"<="&$G$3,IncDocDate,">"&$C$3)+SUMIFS(ExpTax1,ExpDocDate,"<="&$G$3,ExpDocDate,">"&$C$3),0)+IF($A50="BS-1710",-IF(IncTaxCount=2,SUMIFS(IncTax2,IncDocDate,"<="&$G$3,IncDocDate,">"&$C$3),0)+IF(ExpTaxCount=2,SUMIFS(ExpTax2,ExpDocDate,"<="&$G$3,ExpDocDate,">"&$C$3),0),0)) -> 3837.217391 | H50: Account
A51: IS-0345 | B51: Office Expenses | E51: =IF(LEFT($A51,2)="IS",-SUMIFS(IncExcl,IncDocDate,"<="&$E$3,IncDocDate,">"&$E$2,IncAccount,$A51)+SUMIFS(ExpExcl,ExpDocDate,"<="&$E$3,ExpDocDate,">"&$E$2,ExpAccount,$A51),$C51-SUMIFS(IncExcl,IncDocDate,"<="&$E$3,IncDocDate,">"&$C$3,IncAccount,$A51)+SUMIFS(ExpExcl,ExpDocDate,"<="&$E$3,ExpDocDate,">"&$C$3,ExpAccount,$A51)+IF($A51="BS-1700",-SUMIFS(IncTax1,IncDocDate,"<="&$E$3,IncDocDate,">"&$C$3)+SUMIFS(ExpTax1,ExpDocDate,"<="&$E$3,ExpDocDate,">"&$C$3),0)+IF($A51="BS-1710",-IF(IncTaxCount=2,SUMIFS(IncTax2,IncDocDate,"<="&$E$3,IncDocDate,">"&$C$3),0)+IF(ExpTaxCount=2,SUMIFS(ExpTax2,ExpDocDate,"<="&$E$3,ExpDocDate,">"&$C$3),0),0)) -> 0 | F51: 995.6521739 | G51: =IF(LEFT($A51,2)="IS",-SUMIFS(IncExcl,IncDocDate,"<="&$G$3,IncDocDate,">"&$G$2,IncAccount,$A51)+SUMIFS(ExpExcl,ExpDocDate,"<="&$G$3,ExpDocDate,">"&$G$2,ExpAccount,$A51),$C51-SUMIFS(IncExcl,IncDocDate,"<="&$G$3,IncDocDate,">"&$C$3,IncAccount,$A51)+SUMIFS(ExpExcl,ExpDocDate,"<="&$G$3,ExpDocDate,">"&$C$3,ExpAccount,$A51)+IF($A51="BS-1700",-SUMIFS(IncTax1,IncDocDate,"<="&$G$3,IncDocDate,">"&$C$3)+SUMIFS(ExpTax1,ExpDocDate,"<="&$G$3,ExpDocDate,">"&$C$3),0)+IF($A51="BS-1710",-IF(IncTaxCount=2,SUMIFS(IncTax2,IncDocDate,"<="&$G$3,IncDocDate,">"&$C$3),0)+IF(ExpTaxCount=2,SUMIFS(ExpTax2,ExpDocDate,"<="&$G$3,ExpDocDate,">"&$C$3),0),0)) -> 995.6521739 | H51: Account
A52: IS-0350 | B52: Office Rent | E52: =IF(LEFT($A52,2)="IS",-SUMIFS(IncExcl,IncDocDate,"<="&$E$3,IncDocDate,">"&$E$2,IncAccount,$A52)+SUMIFS(ExpExcl,ExpDocDate,"<="&$E$3,ExpDocDate,">"&$E$2,ExpAccount,$A52),$C52-SUMIFS(IncExcl,IncDocDate,"<="&$E$3,IncDocDate,">"&$C$3,IncAccount,$A52)+SUMIFS(ExpExcl,ExpDocDate,"<="&$E$3,ExpDocDate,">"&$C$3,ExpAccount,$A52)+IF($A52="BS-1700",-SUMIFS(IncTax1,IncDocDate,"<="&$E$3,IncDocDate,">"&$C$3)+SUMIFS(ExpTax1,ExpDocDate,"<="&$E$3,ExpDocDate,">"&$C$3),0)+IF($A52="BS-1710",-IF(IncTaxCount=2,SUMIFS(IncTax2,IncDocDate,"<="&$E$3,IncDocDate,">"&$C$3),0)+IF(ExpTaxCount=2,SUMIFS(ExpTax2,ExpDocDate,"<="&$E$3,ExpDocDate,">"&$C$3),0),0)) -> 0 | F52: 143895.6522 | G52: =IF(LEFT($A52,2)="IS",-SUMIFS(IncExcl,IncDocDate,"<="&$G$3,IncDocDate,">"&$G$2,IncAccount,$A52)+SUMIFS(ExpExcl,ExpDocDate,"<="&$G$3,ExpDocDate,">"&$G$2,ExpAccount,$A52),$C52-SUMIFS(IncExcl,IncDocDate,"<="&$G$3,IncDocDate,">"&$C$3,IncAccount,$A52)+SUMIFS(ExpExcl,ExpDocDate,"<="&$G$3,ExpDocDate,">"&$C$3,ExpAccount,$A52)+IF($A52="BS-1700",-SUMIFS(IncTax1,IncDocDate,"<="&$G$3,IncDocDate,">"&$C$3)+SUMIFS(ExpTax1,ExpDocDate,"<="&$G$3,ExpDocDate,">"&$C$3),0)+IF($A52="BS-1710",-IF(IncTaxCount=2,SUMIFS(IncTax2,IncDocDate,"<="&$G$3,IncDocDate,">"&$C$3),0)+IF(ExpTaxCount=2,SUMIFS(ExpTax2,ExpDocDate,"<="&$G$3,ExpDocDate,">"&$C$3),0),0)) -> 143895.6522 | H52: Account
A53: IS-0355 | B53: Postage | E53: =IF(LEFT($A53,2)="IS",-SUMIFS(IncExcl,IncDocDate,"<="&$E$3,IncDocDate,">"&$E$2,IncAccount,$A53)+SUMIFS(ExpExcl,ExpDocDate,"<="&$E$3,ExpDocDate,">"&$E$2,ExpAccount,$A53),$C53-SUMIFS(IncExcl,IncDocDate,"<="&$E$3,IncDocDate,">"&$C$3,IncAccount,$A53)+SUMIFS(ExpExcl,ExpDocDate,"<="&$E$3,ExpDocDate,">"&$C$3,ExpAccount,$A53)+IF($A53="BS-1700",-SUMIFS(IncTax1,IncDocDate,"<="&$E$3,IncDocDate,">"&$C$3)+SUMIFS(ExpTax1,ExpDocDate,"<="&$E$3,ExpDocDate,">"&$C$3),0)+IF($A53="BS-1710",-IF(IncTaxCount=2,SUMIFS(IncTax2,IncDocDate,"<="&$E$3,IncDocDate,">"&$C$3),0)+IF(ExpTaxCount=2,SUMIFS(ExpTax2,ExpDocDate,"<="&$E$3,ExpDocDate,">"&$C$3),0),0)) -> 0 | F53: 520 | G53: =IF(LEFT($A53,2)="IS",-SUMIFS(IncExcl,IncDocDate,"<="&$G$3,IncDocDate,">"&$G$2,IncAccount,$A53)+SUMIFS(ExpExcl,ExpDocDate,"<="&$G$3,ExpDocDate,">"&$G$2,ExpAccount,$A53),$C53-SUMIFS(IncExcl,IncDocDate,"<="&$G$3,IncDocDate,">"&$C$3,IncAccount,$A53)+SUMIFS(ExpExcl,ExpDocDate,"<="&$G$3,ExpDocDate,">"&$C$3,ExpAccount,$A53)+IF($A53="BS-1700",-SUMIFS(IncTax1,IncDocDate,"<="&$G$3,IncDocDate,">"&$C$3)+SUMIFS(ExpTax1,ExpDocDate,"<="&$G$3,ExpDocDate,">"&$C$3),0)+IF($A53="BS-1710",-IF(IncTaxCount=2,SUMIFS(IncTax2,IncDocDate,"<="&$G$3,IncDocDate,">"&$C$3),0)+IF(ExpTaxCount=2,SUMIFS(ExpTax2,ExpDocDate,"<="&$G$3,ExpDocDate,">"&$C$3),0),0)) -> 520 | H53: Account
A54: IS-0360 | B54: Professional & Legal Fees | E54: =IF(LEFT($A54,2)="IS",-SUMIFS(IncExcl,IncDocDate,"<="&$E$3,IncDocDate,">"&$E$2,IncAccount,$A54)+SUMIFS(ExpExcl,ExpDocDate,"<="&$E$3,ExpDocDate,">"&$E$2,ExpAccount,$A54),$C54-SUMIFS(IncExcl,IncDocDate,"<="&$E$3,IncDocDate,">"&$C$3,IncAccount,$A54)+SUMIFS(ExpExcl,ExpDocDate,"<="&$E$3,ExpDocDate,">"&$C$3,ExpAccount,$A54)+IF($A54="BS-1700",-SUMIFS(IncTax1,IncDocDate,"<="&$E$3,IncDocDate,">"&$C$3)+SUMIFS(ExpTax1,ExpDocDate,"<="&$E$3,ExpDocDate,">"&$C$3),0)+IF($A54="BS-1710",-IF(IncTaxCount=2,SUMIFS(IncTax2,IncDocDate,"<="&$E$3,IncDocDate,">"&$C$3),0)+IF(ExpTaxCount=2,SUMIFS(ExpTax2,ExpDocDate,"<="&$E$3,ExpDocDate,">"&$C$3),0),0)) -> 0 | F54: 5652.173913 | G54: =IF(LEFT($A54,2)="IS",-SUMIFS(IncExcl,IncDocDate,"<="&$G$3,IncDocDate,">"&$G$2,IncAccount,$A54)+SUMIFS(ExpExcl,ExpDocDate,"<="&$G$3,ExpDocDate,">"&$G$2,ExpAccount,$A54),$C54-SUMIFS(IncExcl,IncDocDate,"<="&$G$3,IncDocDate,">"&$C$3,IncAccount,$A54)+SUMIFS(ExpExcl,ExpDocDate,"<="&$G$3,ExpDocDate,">"&$C$3,ExpAccount,$A54)+IF($A54="BS-1700",-SUMIFS(IncTax1,IncDocDate,"<="&$G$3,IncDocDate,">"&$C$3)+SUMIFS(ExpTax1,ExpDocDate,"<="&$G$3,ExpDocDate,">"&$C$3),0)+IF($A54="BS-1710",-IF(IncTaxCount=2,SUMIFS(IncTax2,IncDocDate,"<="&$G$3,IncDocDate,">"&$C$3),0)+IF(ExpTaxCount=2,SUMIFS(ExpTax2,ExpDocDate,"<="&$G$3,ExpDocDate,">"&$C$3),0),0)) -> 5652.173913 | H54: Account
A55: IS-0365 | B55: Stationery | E55: =IF(LEFT($A55,2)="IS",-SUMIFS(IncExcl,IncDocDate,"<="&$E$3,IncDocDate,">"&$E$2,IncAccount,$A55)+SUMIFS(ExpExcl,ExpDocDate,"<="&$E$3,ExpDocDate,">"&$E$2,ExpAccount,$A55),$C55-SUMIFS(IncExcl,IncDocDate,"<="&$E$3,IncDocDate,">"&$C$3,IncAccount,$A55)+SUMIFS(ExpExcl,ExpDocDate,"<="&$E$3,ExpDocDate,">"&$C$3,ExpAccount,$A55)+IF($A55="BS-1700",-SUMIFS(IncTax1,IncDocDate,"<="&$E$3,IncDocDate,">"&$C$3)+SUMIFS(ExpTax1,ExpDocDate,"<="&$E$3,ExpDocDate,">"&$C$3),0)+IF($A55="BS-1710",-IF(IncTaxCount=2,SUMIFS(IncTax2,IncDocDate,"<="&$E$3,IncDocDate,">"&$C$3),0)+IF(ExpTaxCount=2,SUMIFS(ExpTax2,ExpDocDate,"<="&$E$3,ExpDocDate,">"&$C$3),0),0)) -> 0 | F55: 2491.304348 | G55: =IF(LEFT($A55,2)="IS",-SUMIFS(IncExcl,IncDocDate,"<="&$G$3,IncDocDate,">"&$G$2,IncAccount,$A55)+SUMIFS(ExpExcl,ExpDocDate,"<="&$G$3,ExpDocDate,">"&$G$2,ExpAccount,$A55),$C55-SUMIFS(IncExcl,IncDocDate,"<="&$G$3,IncDocDate,">"&$C$3,IncAccount,$A55)+SUMIFS(ExpExcl,ExpDocDate,"<="&$G$3,ExpDocDate,">"&$C$3,ExpAccount,$A55)+IF($A55="BS-1700",-SUMIFS(IncTax1,IncDocDate,"<="&$G$3,IncDocDate,">"&$C$3)+SUMIFS(ExpTax1,ExpDocDate,"<="&$G$3,ExpDocDate,">"&$C$3),0)+IF($A55="BS-1710",-IF(IncTaxCount=2,SUMIFS(IncTax2,IncDocDate,"<="&$G$3,IncDocDate,">"&$C$3),0)+IF(ExpTaxCount=2,SUMIFS(ExpTax2,ExpDocDate,"<="&$G$3,ExpDocDate,">"&$C$3),0),0)) -> 2491.304348 | H55: Account
A56: IS-0370 | B56: Subscriptions & Memberships | E56: =IF(LEFT($A56,2)="IS",-SUMIFS(IncExcl,IncDocDate,"<="&$E$3,IncDocDate,">"&$E$2,IncAccount,$A56)+SUMIFS(ExpExcl,ExpDocDate,"<="&$E$3,ExpDocDate,">"&$E$2,ExpAccount,$A56),$C56-SUMIFS(IncExcl,IncDocDate,"<="&$E$3,IncDocDate,">"&$C$3,IncAccount,$A56)+SUMIFS(ExpExcl,ExpDocDate,"<="&$E$3,ExpDocDate,">"&$C$3,ExpAccount,$A56)+IF($A56="BS-1700",-SUMIFS(IncTax1,IncDocDate,"<="&$E$3,IncDocDate,">"&$C$3)+SUMIFS(ExpTax1,ExpDocDate,"<="&$E$3,ExpDocDate,">"&$C$3),0)+IF($A56="BS-1710",-IF(IncTaxCount=2,SUMIFS(IncTax2,IncDocDate,"<="&$E$3,IncDocDate,">"&$C$3),0)+IF(ExpTaxCount=2,SUMIFS(ExpTax2,ExpDocDate,"<="&$E$3,ExpDocDate,">"&$C$3),0),0)) -> 0 | F56: 5200 | G56: =IF(LEFT($A56,2)="IS",-SUMIFS(IncExcl,IncDocDate,"<="&$G$3,IncDocDate,">"&$G$2,IncAccount,$A56)+SUMIFS(ExpExcl,ExpDocDate,"<="&$G$3,ExpDocDate,">"&$G$2,ExpAccount,$A56),$C56-SUMIFS(IncExcl,IncDocDate,"<="&$G$3,IncDocDate,">"&$C$3,IncAccount,$A56)+SUMIFS(ExpExcl,ExpDocDate,"<="&$G$3,ExpDocDate,">"&$C$3,ExpAccount,$A56)+IF($A56="BS-1700",-SUMIFS(IncTax1,IncDocDate,"<="&$G$3,IncDocDate,">"&$C$3)+SUMIFS(ExpTax1,ExpDocDate,"<="&$G$3,ExpDocDate,">"&$C$3),0)+IF($A56="BS-1710",-IF(IncTaxCount=2,SUMIFS(IncTax2,IncDocDate,"<="&$G$3,IncDocDate,">"&$C$3),0)+IF(ExpTaxCount=2,SUMIFS(ExpTax2,ExpDocDate,"<="&$G$3,ExpDocDate,">"&$C$3),0),0)) -> 5200 | H56: Account
A57: IS-0375 | B57: Telephone & Internet | E57: =IF(LEFT($A57,2)="IS",-SUMIFS(IncExcl,IncDocDate,"<="&$E$3,IncDocDate,">"&$E$2,IncAccount,$A57)+SUMIFS(ExpExcl,ExpDocDate,"<="&$E$3,ExpDocDate,">"&$E$2,ExpAccount,$A57),$C57-SUMIFS(IncExcl,IncDocDate,"<="&$E$3,IncDocDate,">"&$C$3,IncAccount,$A57)+SUMIFS(ExpExcl,ExpDocDate,"<="&$E$3,ExpDocDate,">"&$C$3,ExpAccount,$A57)+IF($A57="BS-1700",-SUMIFS(IncTax1,IncDocDate,"<="&$E$3,IncDocDate,">"&$C$3)+SUMIFS(ExpTax1,ExpDocDate,"<="&$E$3,ExpDocDate,">"&$C$3),0)+IF($A57="BS-1710",-IF(IncTaxCount=2,SUMIFS(IncTax2,IncDocDate,"<="&$E$3,IncDocDate,">"&$C$3),0)+IF(ExpTaxCount=2,SUMIFS(ExpTax2,ExpDocDate,"<="&$E$3,ExpDocDate,">"&$C$3),0),0)) -> 0 | F57: 8860.869565 | G57: =IF(LEFT($A57,2)="IS",-SUMIFS(IncExcl,IncDocDate,"<="&$G$3,IncDocDate,">"&$G$2,IncAccount,$A57)+SUMIFS(ExpExcl,ExpDocDate,"<="&$G$3,ExpDocDate,">"&$G$2,ExpAccount,$A57),$C57-SUMIFS(IncExcl,IncDocDate,"<="&$G$3,IncDocDate,">"&$C$3,IncAccount,$A57)+SUMIFS(ExpExcl,ExpDocDate,"<="&$G$3,ExpDocDate,">"&$C$3,ExpAccount,$A57)+IF($A57="BS-1700",-SUMIFS(IncTax1,IncDocDate,"<="&$G$3,IncDocDate,">"&$C$3)+SUMIFS(ExpTax1,ExpDocDate,"<="&$G$3,ExpDocDate,">"&$C$3),0)+IF($A57="BS-1710",-IF(IncTaxCount=2,SUMIFS(IncTax2,IncDocDate,"<="&$G$3,IncDocDate,">"&$C$3),0)+IF(ExpTaxCount=2,SUMIFS(ExpTax2,ExpDocDate,"<="&$G$3,ExpDocDate,">"&$C$3),0),0)) -> 8860.869565 | H57: Account
A58: IS-0380 | B58: Training | E58: =IF(LEFT($A58,2)="IS",-SUMIFS(IncExcl,IncDocDate,"<="&$E$3,IncDocDate,">"&$E$2,IncAccount,$A58)+SUMIFS(ExpExcl,ExpDocDate,"<="&$E$3,ExpDocDate,">"&$E$2,ExpAccount,$A58),$C58-SUMIFS(IncExcl,IncDocDate,"<="&$E$3,IncDocDate,">"&$C$3,IncAccount,$A58)+SUMIFS(ExpExcl,ExpDocDate,"<="&$E$3,ExpDocDate,">"&$C$3,ExpAccount,$A58)+IF($A58="BS-1700",-SUMIFS(IncTax1,IncDocDate,"<="&$E$3,IncDocDate,">"&$C$3)+SUMIFS(ExpTax1,ExpDocDate,"<="&$E$3,ExpDocDate,">"&$C$3),0)+IF($A58="BS-1710",-IF(IncTaxCount=2,SUMIFS(IncTax2,IncDocDate,"<="&$E$3,IncDocDate,">"&$C$3),0)+IF(ExpTaxCount=2,SUMIFS(ExpTax2,ExpDocDate,"<="&$E$3,ExpDocDate,">"&$C$3),0),0)) -> 0 | F58: 4043.478261 | G58: =IF(LEFT($A58,2)="IS",-SUMIFS(IncExcl,IncDocDate,"<="&$G$3,IncDocDate,">"&$G$2,IncAccount,$A58)+SUMIFS(ExpExcl,ExpDocDate,"<="&$G$3,ExpDocDate,">"&$G$2,ExpAccount,$A58),$C58-SUMIFS(IncExcl,IncDocDate,"<="&$G$3,IncDocDate,">"&$C$3,IncAccount,$A58)+SUMIFS(ExpExcl,ExpDocDate,"<="&$G$3,ExpDocDate,">"&$C$3,ExpAccount,$A58)+IF($A58="BS-1700",-SUMIFS(IncTax1,IncDocDate,"<="&$G$3,IncDocDate,">"&$C$3)+SUMIFS(ExpTax1,ExpDocDate,"<="&$G$3,ExpDocDate,">"&$C$3),0)+IF($A58="BS-1710",-IF(IncTaxCount=2,SUMIFS(IncTax2,IncDocDate,"<="&$G$3,IncDocDate,">"&$C$3),0)+IF(ExpTaxCount=2,SUMIFS(ExpTax2,ExpDocDate,"<="&$G$3,ExpDocDate,">"&$C$3),0),0)) -> 4043.478261 | H58: Account
A59: IS-0385 | B59: Travelling & Accommodation | E59: =IF(LEFT($A59,2)="IS",-SUMIFS(IncExcl,IncDocDate,"<="&$E$3,IncDocDate,">"&$E$2,IncAccount,$A59)+SUMIFS(ExpExcl,ExpDocDate,"<="&$E$3,ExpDocDate,">"&$E$2,ExpAccount,$A59),$C59-SUMIFS(IncExcl,IncDocDate,"<="&$E$3,IncDocDate,">"&$C$3,IncAccount,$A59)+SUMIFS(ExpExcl,ExpDocDate,"<="&$E$3,ExpDocDate,">"&$C$3,ExpAccount,$A59)+IF($A59="BS-1700",-SUMIFS(IncTax1,IncDocDate,"<="&$E$3,IncDocDate,">"&$C$3)+SUMIFS(ExpTax1,ExpDocDate,"<="&$E$3,ExpDocDate,">"&$C$3),0)+IF($A59="BS-1710",-IF(IncTaxCount=2,SUMIFS(IncTax2,IncDocDate,"<="&$E$3,IncDocDate,">"&$C$3),0)+IF(ExpTaxCount=2,SUMIFS(ExpTax2,ExpDocDate,"<="&$E$3,ExpDocDate,">"&$C$3),0),0)) -> 0 | F59: 13704.34783 | G59: =IF(LEFT($A59,2)="IS",-SUMIFS(IncExcl,IncDocDate,"<="&$G$3,IncDocDate,">"&$G$2,IncAccount,$A59)+SUMIFS(ExpExcl,ExpDocDate,"<="&$G$3,ExpDocDate,">"&$G$2,ExpAccount,$A59),$C59-SUMIFS(IncExcl,IncDocDate,"<="&$G$3,IncDocDate,">"&$C$3,IncAccount,$A59)+SUMIFS(ExpExcl,ExpDocDate,"<="&$G$3,ExpDocDate,">"&$C$3,ExpAccount,$A59)+IF($A59="BS-1700",-SUMIFS(IncTax1,IncDocDate,"<="&$G$3,IncDocDate,">"&$C$3)+SUMIFS(ExpTax1,ExpDocDate,"<="&$G$3,ExpDocDate,">"&$C$3),0)+IF($A59="BS-1710",-IF(IncTaxCount=2,SUMIFS(IncTax2,IncDocDate,"<="&$G$3,IncDocDate,">"&$C$3),0)+IF(ExpTaxCount=2,SUMIFS(ExpTax2,ExpDocDate,"<="&$G$3,ExpDocDate,">"&$C$3),0),0)) -> 13704.34783 | H59: Account
A60: IS-0390 | B60: Utilities | E60: =IF(LEFT($A60,2)="IS",-SUMIFS(IncExcl,IncDocDate,"<="&$E$3,IncDocDate,">"&$E$2,IncAccount,$A60)+SUMIFS(ExpExcl,ExpDocDate,"<="&$E$3,ExpDocDate,">"&$E$2,ExpAccount,$A60),$C60-SUMIFS(IncExcl,IncDocDate,"<="&$E$3,IncDocDate,">"&$C$3,IncAccount,$A60)+SUMIFS(ExpExcl,ExpDocDate,"<="&$E$3,ExpDocDate,">"&$C$3,ExpAccount,$A60)+IF($A60="BS-1700",-SUMIFS(IncTax1,IncDocDate,"<="&$E$3,IncDocDate,">"&$C$3)+SUMIFS(ExpTax1,ExpDocDate,"<="&$E$3,ExpDocDate,">"&$C$3),0)+IF($A60="BS-1710",-IF(IncTaxCount=2,SUMIFS(IncTax2,IncDocDate,"<="&$E$3,IncDocDate,">"&$C$3),0)+IF(ExpTaxCount=2,SUMIFS(ExpTax2,ExpDocDate,"<="&$E$3,ExpDocDate,">"&$C$3),0),0)) -> 0 | F60: 0 | G60: =IF(LEFT($A60,2)="IS",-SUMIFS(IncExcl,IncDocDate,"<="&$G$3,IncDocDate,">"&$G$2,IncAccount,$A60)+SUMIFS(ExpExcl,ExpDocDate,"<="&$G$3,ExpDocDate,">"&$G$2,ExpAccount,$A60),$C60-SUMIFS(IncExcl,IncDocDate,"<="&$G$3,IncDocDate,">"&$C$3,IncAccount,$A60)+SUMIFS(ExpExcl,ExpDocDate,"<="&$G$3,ExpDocDate,">"&$C$3,ExpAccount,$A60)+IF($A60="BS-1700",-SUMIFS(IncTax1,IncDocDate,"<="&$G$3,IncDocDate,">"&$C$3)+SUMIFS(ExpTax1,ExpDocDate,"<="&$G$3,ExpDocDate,">"&$C$3),0)+IF($A60="BS-1710",-IF(IncTaxCount=2,SUMIFS(IncTax2,IncDocDate,"<="&$G$3,IncDocDate,">"&$C$3),0)+IF(ExpTaxCount=2,SUMIFS(ExpTax2,ExpDocDate,"<="&$G$3,ExpDocDate,">"&$C$3),0),0)) -> 0 | H60: Account
A61: IS-0405 | B61: Salaries & Wages - Staff | E61: =IF(LEFT($A61,2)="IS",-SUMIFS(IncExcl,IncDocDate,"<="&$E$3,IncDocDate,">"&$E$2,IncAccount,$A61)+SUMIFS(ExpExcl,ExpDocDate,"<="&$E$3,ExpDocDate,">"&$E$2,ExpAccount,$A61),$C61-SUMIFS(IncExcl,IncDocDate,"<="&$E$3,IncDocDate,">"&$C$3,IncAccount,$A61)+SUMIFS(ExpExcl,ExpDocDate,"<="&$E$3,ExpDocDate,">"&$C$3,ExpAccount,$A61)+IF($A61="BS-1700",-SUMIFS(IncTax1,IncDocDate,"<="&$E$3,IncDocDate,">"&$C$3)+SUMIFS(ExpTax1,ExpDocDate,"<="&$E$3,ExpDocDate,">"&$C$3),0)+IF($A61="BS-1710",-IF(IncTaxCount=2,SUMIFS(IncTax2,IncDocDate,"<="&$E$3,IncDocDate,">"&$C$3),0)+IF(ExpTaxCount=2,SUMIFS(ExpTax2,ExpDocDate,"<="&$E$3,ExpDocDate,">"&$C$3),0),0)) -> 0 | F61: 548600 | G61: =IF(LEFT($A61,2)="IS",-SUMIFS(IncExcl,IncDocDate,"<="&$G$3,IncDocDate,">"&$G$2,IncAccount,$A61)+SUMIFS(ExpExcl,ExpDocDate,"<="&$G$3,ExpDocDate,">"&$G$2,ExpAccount,$A61),$C61-SUMIFS(IncExcl,IncDocDate,"<="&$G$3,IncDocDate,">"&$C$3,IncAccount,$A61)+SUMIFS(ExpExcl,ExpDocDate,"<="&$G$3,ExpDocDate,">"&$C$3,ExpAccount,$A61)+IF($A61="BS-1700",-SUMIFS(IncTax1,IncDocDate,"<="&$G$3,IncDocDate,">"&$C$3)+SUMIFS(ExpTax1,ExpDocDate,"<="&$G$3,ExpDocDate,">"&$C$3),0)+IF($A61="BS-1710",-IF(IncTaxCount=2,SUMIFS(IncTax2,IncDocDate,"<="&$G$3,IncDocDate,">"&$C$3),0)+IF(ExpTaxCount=2,SUMIFS(ExpTax2,ExpDocDate,"<="&$G$3,ExpDocDate,">"&$C$3),0),0)) -> 548600 | H61: Account
A62: IS-0410 | B62: Salaries & Wages - Management | E62: =IF(LEFT($A62,2)="IS",-SUMIFS(IncExcl,IncDocDate,"<="&$E$3,IncDocDate,">"&$E$2,IncAccount,$A62)+SUMIFS(ExpExcl,ExpDocDate,"<="&$E$3,ExpDocDate,">"&$E$2,ExpAccount,$A62),$C62-SUMIFS(IncExcl,IncDocDate,"<="&$E$3,IncDocDate,">"&$C$3,IncAccount,$A62)+SUMIFS(ExpExcl,ExpDocDate,"<="&$E$3,ExpDocDate,">"&$C$3,ExpAccount,$A62)+IF($A62="BS-1700",-SUMIFS(IncTax1,IncDocDate,"<="&$E$3,IncDocDate,">"&$C$3)+SUMIFS(ExpTax1,ExpDocDate,"<="&$E$3,ExpDocDate,">"&$C$3),0)+IF($A62="BS-1710",-IF(IncTaxCount=2,SUMIFS(IncTax2,IncDocDate,"<="&$E$3,IncDocDate,">"&$C$3),0)+IF(ExpTaxCount=2,SUMIFS(ExpTax2,ExpDocDate,"<="&$E$3,ExpDocDate,">"&$C$3),0),0)) -> 0 | F62: 685720 | G62: =IF(LEFT($A62,2)="IS",-SUMIFS(IncExcl,IncDocDate,"<="&$G$3,IncDocDate,">"&$G$2,IncAccount,$A62)+SUMIFS(ExpExcl,ExpDocDate,"<="&$G$3,ExpDocDate,">"&$G$2,ExpAccount,$A62),$C62-SUMIFS(IncExcl,IncDocDate,"<="&$G$3,IncDocDate,">"&$C$3,IncAccount,$A62)+SUMIFS(ExpExcl,ExpDocDate,"<="&$G$3,ExpDocDate,">"&$C$3,ExpAccount,$A62)+IF($A62="BS-1700",-SUMIFS(IncTax1,IncDocDate,"<="&$G$3,IncDocDate,">"&$C$3)+SUMIFS(ExpTax1,ExpDocDate,"<="&$G$3,ExpDocDate,">"&$C$3),0)+IF($A62="BS-1710",-IF(IncTaxCount=2,SUMIFS(IncTax2,IncDocDate,"<="&$G$3,IncDocDate,">"&$C$3),0)+IF(ExpTaxCount=2,SUMIFS(ExpTax2,ExpDocDate,"<="&$G$3,ExpDocDate,">"&$C$3),0),0)) -> 685720 | H62: Account
A63: IS-0505 | B63: Depreciation | E63: =IF(LEFT($A63,2)="IS",-SUMIFS(IncExcl,IncDocDate,"<="&$E$3,IncDocDate,">"&$E$2,IncAccount,$A63)+SUMIFS(ExpExcl,ExpDocDate,"<="&$E$3,ExpDocDate,">"&$E$2,ExpAccount,$A63),$C63-SUMIFS(IncExcl,IncDocDate,"<="&$E$3,IncDocDate,">"&$C$3,IncAccount,$A63)+SUMIFS(ExpExcl,ExpDocDate,"<="&$E$3,ExpDocDate,">"&$C$3,ExpAccount,$A63)+IF($A63="BS-1700",-SUMIFS(IncTax1,IncDocDate,"<="&$E$3,IncDocDate,">"&$C$3)+SUMIFS(ExpTax1,ExpDocDate,"<="&$E$3,ExpDocDate,">"&$C$3),0)+IF($A63="BS-1710",-IF(IncTaxCount=2,SUMIFS(IncTax2,IncDocDate,"<="&$E$3,IncDocDate,">"&$C$3),0)+IF(ExpTaxCount=2,SUMIFS(ExpTax2,ExpDocDate,"<="&$E$3,ExpDocDate,">"&$C$3),0),0)) -> 0 | F63: 30422 | G63: =IF(LEFT($A63,2)="IS",-SUMIFS(IncExcl,IncDocDate,"<="&$G$3,IncDocDate,">"&$G$2,IncAccount,$A63)+SUMIFS(ExpExcl,ExpDocDate,"<="&$G$3,ExpDocDate,">"&$G$2,ExpAccount,$A63),$C63-SUMIFS(IncExcl,IncDocDate,"<="&$G$3,IncDocDate,">"&$C$3,IncAccount,$A63)+SUMIFS(ExpExcl,ExpDocDate,"<="&$G$3,ExpDocDate,">"&$C$3,ExpAccount,$A63)+IF($A63="BS-1700",-SUMIFS(IncTax1,IncDocDate,"<="&$G$3,IncDocDate,">"&$C$3)+SUMIFS(ExpTax1,ExpDocDate,"<="&$G$3,ExpDocDate,">"&$C$3),0)+IF($A63="BS-1710",-IF(IncTaxCount=2,SUMIFS(IncTax2,IncDocDate,"<="&$G$3,IncDocDate,">"&$C$3),0)+IF(ExpTaxCount=2,SUMIFS(ExpTax2,ExpDocDate,"<="&$G$3,ExpDocDate,">"&$C$3),0),0)) -> 30422 | H63: Account
A64: IS-0510 | B64: Amortization | E64: =IF(LEFT($A64,2)="IS",-SUMIFS(IncExcl,IncDocDate,"<="&$E$3,IncDocDate,">"&$E$2,IncAccount,$A64)+SUMIFS(ExpExcl,ExpDocDate,"<="&$E$3,ExpDocDate,">"&$E$2,ExpAccount,$A64),$C64-SUMIFS(IncExcl,IncDocDate,"<="&$E$3,IncDocDate,">"&$C$3,IncAccount,$A64)+SUMIFS(ExpExcl,ExpDocDate,"<="&$E$3,ExpDocDate,">"&$C$3,ExpAccount,$A64)+IF($A64="BS-1700",-SUMIFS(IncTax1,IncDocDate,"<="&$E$3,IncDocDate,">"&$C$3)+SUMIFS(ExpTax1,ExpDocDate,"<="&$E$3,ExpDocDate,">"&$C$3),0)+IF($A64="BS-1710",-IF(IncTaxCount=2,SUMIFS(IncTax2,IncDocDate,"<="&$E$3,IncDocDate,">"&$C$3),0)+IF(ExpTaxCount=2,SUMIFS(ExpTax2,ExpDocDate,"<="&$E$3,ExpDocDate,">"&$C$3),0),0)) -> 0 | F64: 14720 | G64: =IF(LEFT($A64,2)="IS",-SUMIFS(IncExcl,IncDocDate,"<="&$G$3,IncDocDate,">"&$G$2,IncAccount,$A64)+SUMIFS(ExpExcl,ExpDocDate,"<="&$G$3,ExpDocDate,">"&$G$2,ExpAccount,$A64),$C64-SUMIFS(IncExcl,IncDocDate,"<="&$G$3,IncDocDate,">"&$C$3,IncAccount,$A64)+SUMIFS(ExpExcl,ExpDocDate,"<="&$G$3,ExpDocDate,">"&$C$3,ExpAccount,$A64)+IF($A64="BS-1700",-SUMIFS(IncTax1,IncDocDate,"<="&$G$3,IncDocDate,">"&$C$3)+SUMIFS(ExpTax1,ExpDocDate,"<="&$G$3,ExpDocDate,">"&$C$3),0)+IF($A64="BS-1710",-IF(IncTaxCount=2,SUMIFS(IncTax2,IncDocDate,"<="&$G$3,IncDocDate,">"&$C$3),0)+IF(ExpTaxCount=2,SUMIFS(ExpTax2,ExpDocDate,"<="&$G$3,ExpDocDate,">"&$C$3),0),0)) -> 14720 | H64: Account
A65: IS-0600 | B65: Interest Paid | E65: =IF(LEFT($A65,2)="IS",-SUMIFS(IncExcl,IncDocDate,"<="&$E$3,IncDocDate,">"&$E$2,IncAccount,$A65)+SUMIFS(ExpExcl,ExpDocDate,"<="&$E$3,ExpDocDate,">"&$E$2,ExpAccount,$A65),$C65-SUMIFS(IncExcl,IncDocDate,"<="&$E$3,IncDocDate,">"&$C$3,IncAccount,$A65)+SUMIFS(ExpExcl,ExpDocDate,"<="&$E$3,ExpDocDate,">"&$C$3,ExpAccount,$A65)+IF($A65="BS-1700",-SUMIFS(IncTax1,IncDocDate,"<="&$E$3,IncDocDate,">"&$C$3)+SUMIFS(ExpTax1,ExpDocDate,"<="&$E$3,ExpDocDate,">"&$C$3),0)+IF($A65="BS-1710",-IF(IncTaxCount=2,SUMIFS(IncTax2,IncDocDate,"<="&$E$3,IncDocDate,">"&$C$3),0)+IF(ExpTaxCount=2,SUMIFS(ExpTax2,ExpDocDate,"<="&$E$3,ExpDocDate,">"&$C$3),0),0)) -> 0 | F65: 19367.24 | G65: =IF(LEFT($A65,2)="IS",-SUMIFS(IncExcl,IncDocDate,"<="&$G$3,IncDocDate,">"&$G$2,IncAccount,$A65)+SUMIFS(ExpExcl,ExpDocDate,"<="&$G$3,ExpDocDate,">"&$G$2,ExpAccount,$A65),$C65-SUMIFS(IncExcl,IncDocDate,"<="&$G$3,IncDocDate,">"&$C$3,IncAccount,$A65)+SUMIFS(ExpExcl,ExpDocDate,"<="&$G$3,ExpDocDate,">"&$C$3,ExpAccount,$A65)+IF($A65="BS-1700",-SUMIFS(IncTax1,IncDocDate,"<="&$G$3,IncDocDate,">"&$C$3)+SUMIFS(ExpTax1,ExpDocDate,"<="&$G$3,ExpDocDate,">"&$C$3),0)+IF($A65="BS-1710",-IF(IncTaxCount=2,SUMIFS(IncTax2,IncDocDate,"<="&$G$3,IncDocDate,">"&$C$3),0)+IF(ExpTaxCount=2,SUMIFS(ExpTax2,ExpDocDate,"<="&$G$3,ExpDocDate,">"&$C$3),0),0)) -> 19367.24 | H65: Group
A66: IS-0700 | B66: Taxation | E66: =IF(LEFT($A66,2)="IS",-SUMIFS(IncExcl,IncDocDate,"<="&$E$3,IncDocDate,">"&$E$2,IncAccount,$A66)+SUMIFS(ExpExcl,ExpDocDate,"<="&$E$3,ExpDocDate,">"&$E$2,ExpAccount,$A66),$C66-SUMIFS(IncExcl,IncDocDate,"<="&$E$3,IncDocDate,">"&$C$3,IncAccount,$A66)+SUMIFS(ExpExcl,ExpDocDate,"<="&$E$3,ExpDocDate,">"&$C$3,ExpAccount,$A66)+IF($A66="BS-1700",-SUMIFS(IncTax1,IncDocDate,"<="&$E$3,IncDocDate,">"&$C$3)+SUMIFS(ExpTax1,ExpDocDate,"<="&$E$3,ExpDocDate,">"&$C$3),0)+IF($A66="BS-1710",-IF(IncTaxCount=2,SUMIFS(IncTax2,IncDocDate,"<="&$E$3,IncDocDate,">"&$C$3),0)+IF(ExpTaxCount=2,SUMIFS(ExpTax2,ExpDocDate,"<="&$E$3,ExpDocDate,">"&$C$3),0),0)) -> 0 | F66: 70765 | G66: =IF(LEFT($A66,2)="IS",-SUMIFS(IncExcl,IncDocDate,"<="&$G$3,IncDocDate,">"&$G$2,IncAccount,$A66)+SUMIFS(ExpExcl,ExpDocDate,"<="&$G$3,ExpDocDate,">"&$G$2,ExpAccount,$A66),$C66-SUMIFS(IncExcl,IncDocDate,"<="&$G$3,IncDocDate,">"&$C$3,IncAccount,$A66)+SUMIFS(ExpExcl,ExpDocDate,"<="&$G$3,ExpDocDate,">"&$C$3,ExpAccount,$A66)+IF($A66="BS-1700",-SUMIFS(IncTax1,IncDocDate,"<="&$G$3,IncDocDate,">"&$C$3)+SUMIFS(ExpTax1,ExpDocDate,"<="&$G$3,ExpDocDate,">"&$C$3),0)+IF($A66="BS-1710",-IF(IncTaxCount=2,SUMIFS(IncTax2,IncDocDate,"<="&$G$3,IncDocDate,">"&$C$3),0)+IF(ExpTaxCount=2,SUMIFS(ExpTax2,ExpDocDate,"<="&$G$3,ExpDocDate,">"&$C$3),0),0)) -> 70765 | H66: Group
A67: IS-0800 | B67: Other Expenses | E67: =IF(LEFT($A67,2)="IS",-SUMIFS(IncExcl,IncDocDate,"<="&$E$3,IncDocDate,">"&$E$2,IncAccount,$A67)+SUMIFS(ExpExcl,ExpDocDate,"<="&$E$3,ExpDocDate,">"&$E$2,ExpAccount,$A67),$C67-SUMIFS(IncExcl,IncDocDate,"<="&$E$3,IncDocDate,">"&$C$3,IncAccount,$A67)+SUMIFS(ExpExcl,ExpDocDate,"<="&$E$3,ExpDocDate,">"&$C$3,ExpAccount,$A67)+IF($A67="BS-1700",-SUMIFS(IncTax1,IncDocDate,"<="&$E$3,IncDocDate,">"&$C$3)+SUMIFS(ExpTax1,ExpDocDate,"<="&$E$3,ExpDocDate,">"&$C$3),0)+IF($A67="BS-1710",-IF(IncTaxCount=2,SUMIFS(IncTax2,IncDocDate,"<="&$E$3,IncDocDate,">"&$C$3),0)+IF(ExpTaxCount=2,SUMIFS(ExpTax2,ExpDocDate,"<="&$E$3,ExpDocDate,">"&$C$3),0),0)) -> 0 | F67: 0 | G67: =IF(LEFT($A67,2)="IS",-SUMIFS(IncExcl,IncDocDate,"<="&$G$3,IncDocDate,">"&$G$2,IncAccount,$A67)+SUMIFS(ExpExcl,ExpDocDate,"<="&$G$3,ExpDocDate,">"&$G$2,ExpAccount,$A67),$C67-SUMIFS(IncExcl,IncDocDate,"<="&$G$3,IncDocDate,">"&$C$3,IncAccount,$A67)+SUMIFS(ExpExcl,ExpDocDate,"<="&$G$3,ExpDocDate,">"&$C$3,ExpAccount,$A67)+IF($A67="BS-1700",-SUMIFS(IncTax1,IncDocDate,"<="&$G$3,IncDocDate,">"&$C$3)+SUMIFS(ExpTax1,ExpDocDate,"<="&$G$3,ExpDocDate,">"&$C$3),0)+IF($A67="BS-1710",-IF(IncTaxCount=2,SUMIFS(IncTax2,IncDocDate,"<="&$G$3,IncDocDate,">"&$C$3),0)+IF(ExpTaxCount=2,SUMIFS(ExpTax2,ExpDocDate,"<="&$G$3,ExpDocDate,">"&$C$3),0),0)) -> 0 | H67: Group
A68: IS-0805 | B68: Foreign Exchange Loss | E68: =IF(LEFT($A68,2)="IS",-SUMIFS(IncExcl,IncDocDate,"<="&$E$3,IncDocDate,">"&$E$2,IncAccount,$A68)+SUMIFS(ExpExcl,ExpDocDate,"<="&$E$3,ExpDocDate,">"&$E$2,ExpAccount,$A68),$C68-SUMIFS(IncExcl,IncDocDate,"<="&$E$3,IncDocDate,">"&$C$3,IncAccount,$A68)+SUMIFS(ExpExcl,ExpDocDate,"<="&$E$3,ExpDocDate,">"&$C$3,ExpAccount,$A68)+IF($A68="BS-1700",-SUMIFS(IncTax1,IncDocDate,"<="&$E$3,IncDocDate,">"&$C$3)+SUMIFS(ExpTax1,ExpDocDate,"<="&$E$3,ExpDocDate,">"&$C$3),0)+IF($A68="BS-1710",-IF(IncTaxCount=2,SUMIFS(IncTax2,IncDocDate,"<="&$E$3,IncDocDate,">"&$C$3),0)+IF(ExpTaxCount=2,SUMIFS(ExpTax2,ExpDocDate,"<="&$E$3,ExpDocDate,">"&$C$3),0),0)) -> 0 | F68: 0 | G68: =IF(LEFT($A68,2)="IS",-SUMIFS(IncExcl,IncDocDate,"<="&$G$3,IncDocDate,">"&$G$2,IncAccount,$A68)+SUMIFS(ExpExcl,ExpDocDate,"<="&$G$3,ExpDocDate,">"&$G$2,ExpAccount,$A68),$C68-SUMIFS(IncExcl,IncDocDate,"<="&$G$3,IncDocDate,">"&$C$3,IncAccount,$A68)+SUMIFS(ExpExcl,ExpDocDate,"<="&$G$3,ExpDocDate,">"&$C$3,ExpAccount,$A68)+IF($A68="BS-1700",-SUMIFS(IncTax1,IncDocDate,"<="&$G$3,IncDocDate,">"&$C$3)+SUMIFS(ExpTax1,ExpDocDate,"<="&$G$3,ExpDocDate,">"&$C$3),0)+IF($A68="BS-1710",-IF(IncTaxCount=2,SUMIFS(IncTax2,IncDocDate,"<="&$G$3,IncDocDate,">"&$C$3),0)+IF(ExpTaxCount=2,SUMIFS(ExpTax2,ExpDocDate,"<="&$G$3,ExpDocDate,">"&$C$3),0),0)) -> 0 | H68: Group
A69: IS-0810 | B69: Loss on Disposal of Assets | E69: =IF(LEFT($A69,2)="IS",-SUMIFS(IncExcl,IncDocDate,"<="&$E$3,IncDocDate,">"&$E$2,IncAccount,$A69)+SUMIFS(ExpExcl,ExpDocDate,"<="&$E$3,ExpDocDate,">"&$E$2,ExpAccount,$A69),$C69-SUMIFS(IncExcl,IncDocDate,"<="&$E$3,IncDocDate,">"&$C$3,IncAccount,$A69)+SUMIFS(ExpExcl,ExpDocDate,"<="&$E$3,ExpDocDate,">"&$C$3,ExpAccount,$A69)+IF($A69="BS-1700",-SUMIFS(IncTax1,IncDocDate,"<="&$E$3,IncDocDate,">"&$C$3)+SUMIFS(ExpTax1,ExpDocDate,"<="&$E$3,ExpDocDate,">"&$C$3),0)+IF($A69="BS-1710",-IF(IncTaxCount=2,SUMIFS(IncTax2,IncDocDate,"<="&$E$3,IncDocDate,">"&$C$3),0)+IF(ExpTaxCount=2,SUMIFS(ExpTax2,ExpDocDate,"<="&$E$3,ExpDocDate,">"&$C$3),0),0)) -> 0 | F69: 0 | G69: =IF(LEFT($A69,2)="IS",-SUMIFS(IncExcl,IncDocDate,"<="&$G$3,IncDocDate,">"&$G$2,IncAccount,$A69)+SUMIFS(ExpExcl,ExpDocDate,"<="&$G$3,ExpDocDate,">"&$G$2,ExpAccount,$A69),$C69-SUMIFS(IncExcl,IncDocDate,"<="&$G$3,IncDocDate,">"&$C$3,IncAccount,$A69)+SUMIFS(ExpExcl,ExpDocDate,"<="&$G$3,ExpDocDate,">"&$C$3,ExpAccount,$A69)+IF($A69="BS-1700",-SUMIFS(IncTax1,IncDocDate,"<="&$G$3,IncDocDate,">"&$C$3)+SUMIFS(ExpTax1,ExpDocDate,"<="&$G$3,ExpDocDate,">"&$C$3),0)+IF($A69="BS-1710",-IF(IncTaxCount=2,SUMIFS(IncTax2,IncDocDate,"<="&$G$3,IncDocDate,">"&$C$3),0)+IF(ExpTaxCount=2,SUMIFS(ExpTax2,ExpDocDate,"<="&$G$3,ExpDocDate,">"&$C$3),0),0)) -> 0 | H69: Group
A70: IS-0900 | B70: Other Income | E70: =IF(LEFT($A70,2)="IS",-SUMIFS(IncExcl,IncDocDate,"<="&$E$3,IncDocDate,">"&$E$2,IncAccount,$A70)+SUMIFS(ExpExcl,ExpDocDate,"<="&$E$3,ExpDocDate,">"&$E$2,ExpAccount,$A70),$C70-SUMIFS(IncExcl,IncDocDate,"<="&$E$3,IncDocDate,">"&$C$3,IncAccount,$A70)+SUMIFS(ExpExcl,ExpDocDate,"<="&$E$3,ExpDocDate,">"&$C$3,ExpAccount,$A70)+IF($A70="BS-1700",-SUMIFS(IncTax1,IncDocDate,"<="&$E$3,IncDocDate,">"&$C$3)+SUMIFS(ExpTax1,ExpDocDate,"<="&$E$3,ExpDocDate,">"&$C$3),0)+IF($A70="BS-1710",-IF(IncTaxCount=2,SUMIFS(IncTax2,IncDocDate,"<="&$E$3,IncDocDate,">"&$C$3),0)+IF(ExpTaxCount=2,SUMIFS(ExpTax2,ExpDocDate,"<="&$E$3,ExpDocDate,">"&$C$3),0),0)) -> 0 | F70: -1929.85 | G70: =IF(LEFT($A70,2)="IS",-SUMIFS(IncExcl,IncDocDate,"<="&$G$3,IncDocDate,">"&$G$2,IncAccount,$A70)+SUMIFS(ExpExcl,ExpDocDate,"<="&$G$3,ExpDocDate,">"&$G$2,ExpAccount,$A70),$C70-SUMIFS(IncExcl,IncDocDate,"<="&$G$3,IncDocDate,">"&$C$3,IncAccount,$A70)+SUMIFS(ExpExcl,ExpDocDate,"<="&$G$3,ExpDocDate,">"&$C$3,ExpAccount,$A70)+IF($A70="BS-1700",-SUMIFS(IncTax1,IncDocDate,"<="&$G$3,IncDocDate,">"&$C$3)+SUMIFS(ExpTax1,ExpDocDate,"<="&$G$3,ExpDocDate,">"&$C$3),0)+IF($A70="BS-1710",-IF(IncTaxCount=2,SUMIFS(IncTax2,IncDocDate,"<="&$G$3,IncDocDate,">"&$C$3),0)+IF(ExpTaxCount=2,SUMIFS(ExpTax2,ExpDocDate,"<="&$G$3,ExpDocDate,">"&$C$3),0),0)) -> -1929.85 | H70: Group
A71: IS-1000 | B71: Dividends | E71: =IF(LEFT($A71,2)="IS",-SUMIFS(IncExcl,IncDocDate,"<="&$E$3,IncDocDate,">"&$E$2,IncAccount,$A71)+SUMIFS(ExpExcl,ExpDocDate,"<="&$E$3,ExpDocDate,">"&$E$2,ExpAccount,$A71),$C71-SUMIFS(IncExcl,IncDocDate,"<="&$E$3,IncDocDate,">"&$C$3,IncAccount,$A71)+SUMIFS(ExpExcl,ExpDocDate,"<="&$E$3,ExpDocDate,">"&$C$3,ExpAccount,$A71)+IF($A71="BS-1700",-SUMIFS(IncTax1,IncDocDate,"<="&$E$3,IncDocDate,">"&$C$3)+SUMIFS(ExpTax1,ExpDocDate,"<="&$E$3,ExpDocDate,">"&$C$3),0)+IF($A71="BS-1710",-IF(IncTaxCount=2,SUMIFS(IncTax2,IncDocDate,"<="&$E$3,IncDocDate,">"&$C$3),0)+IF(ExpTaxCount=2,SUMIFS(ExpTax2,ExpDocDate,"<="&$E$3,ExpDocDate,">"&$C$3),0),0)) -> 0 | F71: =G71-E71 -> 50000 | G71: =IF(LEFT($A71,2)="IS",-SUMIFS(IncExcl,IncDocDate,"<="&$G$3,IncDocDate,">"&$G$2,IncAccount,$A71)+SUMIFS(ExpExcl,ExpDocDate,"<="&$G$3,ExpDocDate,">"&$G$2,ExpAccount,$A71),$C71-SUMIFS(IncExcl,IncDocDate,"<="&$G$3,IncDocDate,">"&$C$3,IncAccount,$A71)+SUMIFS(ExpExcl,ExpDocDate,"<="&$G$3,ExpDocDate,">"&$C$3,ExpAccount,$A71)+IF($A71="BS-1700",-SUMIFS(IncTax1,IncDocDate,"<="&$G$3,IncDocDate,">"&$C$3)+SUMIFS(ExpTax1,ExpDocDate,"<="&$G$3,ExpDocDate,">"&$C$3),0)+IF($A71="BS-1710",-IF(IncTaxCount=2,SUMIFS(IncTax2,IncDocDate,"<="&$G$3,IncDocDate,">"&$C$3),0)+IF(ExpTaxCount=2,SUMIFS(ExpTax2,ExpDocDate,"<="&$G$3,ExpDocDate,">"&$C$3),0),0)) -> 50000 | H71: Group
A72: End of list - add accounts above this row
A74: Control Accounts
A75: ="BS-B"&H75 -> BS-BB1 | B75: =IF(ISNA(VLOOKUP($H75,BankAll,2,0))=TRUE,"Bank Account",VLOOKUP($H75,BankAll,2,0)) -> B1 Bank Account | C75: =SUMIFS(IncPayAmount,IncPayDate,"<"&Setup!$D$8,IncPayDate,"<>""",IncBank,$H75)-SUMIFS(ExpIncl,ExpPayDate,"<"&Setup!$D$8,ExpPayDate,"<>""",ExpBank,$H75) -> 45250.5 | E75: =SUMIFS(IncPayAmount,IncPayDate,"<="&$E$3,IncPayDate,"<>""",IncBank,$H75)-SUMIFS(ExpIncl,ExpPayDate,"<="&$E$3,ExpPayDate,"<>""",ExpBank,$H75) -> 45250.5 | F75: =G75-E75 -> 295326.44 | G75: =SUMIFS(IncPayAmount,IncPayDate,"<="&$G$3,IncPayDate,"<>""",IncBank,$H75)-SUMIFS(ExpIncl,ExpPayDate,"<="&$G$3,ExpPayDate,"<>""",ExpBank,$H75) -> 340576.94 | H75: =OFFSET(Setup!$A$24,1+ROW($A75)-ROW($A$75),0,1,1) -> B1
A76: ="BS-B"&H76 -> BS-BB2 | B76: =IF(ISNA(VLOOKUP($H76,BankAll,2,0))=TRUE,"Bank Account",VLOOKUP($H76,BankAll,2,0)) -> B2 Bank Account | C76: =SUMIFS(IncPayAmount,IncPayDate,"<"&Setup!$D$8,IncPayDate,"<>""",IncBank,$H76)-SUMIFS(ExpIncl,ExpPayDate,"<"&Setup!$D$8,ExpPayDate,"<>""",ExpBank,$H76) -> 61500 | E76: =SUMIFS(IncPayAmount,IncPayDate,"<="&$E$3,IncPayDate,"<>""",IncBank,$H76)-SUMIFS(ExpIncl,ExpPayDate,"<="&$E$3,ExpPayDate,"<>""",ExpBank,$H76) -> 61500 | F76: =G76-E76 -> -26719.35 | G76: =SUMIFS(IncPayAmount,IncPayDate,"<="&$G$3,IncPayDate,"<>""",IncBank,$H76)-SUMIFS(ExpIncl,ExpPayDate,"<="&$G$3,ExpPayDate,"<>""",ExpBank,$H76) -> 34780.65 | H76: =OFFSET(Setup!$A$24,1+ROW($A76)-ROW($A$75),0,1,1) -> B2
A77: ="BS-B"&H77 -> BS-BB3 | B77: =IF(ISNA(VLOOKUP($H77,BankAll,2,0))=TRUE,"Bank Account",VLOOKUP($H77,BankAll,2,0)) -> B3 Bank Account | C77: =SUMIFS(IncPayAmount,IncPayDate,"<"&Setup!$D$8,IncPayDate,"<>""",IncBank,$H77)-SUMIFS(ExpIncl,ExpPayDate,"<"&Setup!$D$8,ExpPayDate,"<>""",ExpBank,$H77) -> 0 | E77: =SUMIFS(IncPayAmount,IncPayDate,"<="&$E$3,IncPayDate,"<>""",IncBank,$H77)-SUMIFS(ExpIncl,ExpPayDate,"<="&$E$3,ExpPayDate,"<>""",ExpBank,$H77) -> 0 | F77: =G77-E77 -> 9457 | G77: =SUMIFS(IncPayAmount,IncPayDate,"<="&$G$3,IncPayDate,"<>""",IncBank,$H77)-SUMIFS(ExpIncl,ExpPayDate,"<="&$G$3,ExpPayDate,"<>""",ExpBank,$H77) -> 9457 | H77: =OFFSET(Setup!$A$24,1+ROW($A77)-ROW($A$75),0,1,1) -> B3
A78: ="BS-B"&H78 -> BS-BPC | B78: =IF(ISNA(VLOOKUP($H78,BankAll,2,0))=TRUE,"Bank Account",VLOOKUP($H78,BankAll,2,0)) -> PC Petty Cash | C78: =SUMIFS(IncPayAmount,IncPayDate,"<"&Setup!$D$8,IncPayDate,"<>""",IncBank,$H78)-SUMIFS(ExpIncl,ExpPayDate,"<"&Setup!$D$8,ExpPayDate,"<>""",ExpBank,$H78) -> 1000 | E78: =SUMIFS(IncPayAmount,IncPayDate,"<="&$E$3,IncPayDate,"<>""",IncBank,$H78)-SUMIFS(ExpIncl,ExpPayDate,"<="&$E$3,ExpPayDate,"<>""",ExpBank,$H78) -> 1000 | F78: =G78-E78 -> -5 | G78: =SUMIFS(IncPayAmount,IncPayDate,"<="&$G$3,IncPayDate,"<>""",IncBank,$H78)-SUMIFS(ExpIncl,ExpPayDate,"<="&$G$3,ExpPayDate,"<>""",ExpBank,$H78) -> 995 | H78: =OFFSET(Setup!$A$24,1+ROW($A78)-ROW($A$75),0,1,1) -> PC
A79: ="BS-B"&H79 -> BS-BJC | B79: =IF(ISNA(VLOOKUP($H79,BankAll,2,0))=TRUE,"Bank Account",VLOOKUP($H79,BankAll,2,0)) -> GL Journal Control | C79: =SUMIFS(IncPayAmount,IncPayDate,"<"&Setup!$D$8,IncPayDate,"<>""",IncBank,$H79)-SUMIFS(ExpIncl,ExpPayDate,"<"&Setup!$D$8,ExpPayDate,"<>""",ExpBank,$H79) -> 0 | E79: =SUMIFS(IncPayAmount,IncPayDate,"<="&$E$3,IncPayDate,"<>""",IncBank,$H79)-SUMIFS(ExpIncl,ExpPayDate,"<="&$E$3,ExpPayDate,"<>""",ExpBank,$H79) -> 0 | F79: =G79-E79 -> 0 | G79: =SUMIFS(IncPayAmount,IncPayDate,"<="&$G$3,IncPayDate,"<>""",IncBank,$H79)-SUMIFS(ExpIncl,ExpPayDate,"<="&$G$3,ExpPayDate,"<>""",ExpBank,$H79) -> 0 | H79: =OFFSET(Setup!$A$24,1+ROW($A79)-ROW($A$75),0,1,1) -> JC
A80: BS-RCG | B80: Trade Debtors | C80: =SUMIFS(IncIncl,IncDocDate,"<"&Setup!$D$8)-SUMIFS(IncPayAmount,IncDocDate,"<"&Setup!$D$8,IncPayDate,"<"&Setup!$D$8) -> 146376 | E80: =SUMIFS(IncIncl,IncDocDate,"<="&$E$3)-SUMIFS(IncPayAmount,IncDocDate,"<="&$E$3,IncPayDate,"<="&$E$3) -> 146376 | F80: =G80-E80 -> -53316 | G80: =SUMIFS(IncIncl,IncDocDate,"<="&$G$3)-SUMIFS(IncPayAmount,IncDocDate,"<="&$G$3,IncPayDate,"<="&$G$3) -> 93060
A81: BS-PAG | B81: Trade Creditors | C81: =-SUMIFS(ExpIncl,ExpDocDate,"<"&Setup!$D$8,ExpPayDate,">="&Setup!$D$8)-SUMIFS(ExpIncl,ExpDocDate,"<"&Setup!$D$8,ExpPayDate,"") -> -45153 | E81: =-SUMIFS(ExpIncl,ExpDocDate,"<="&$E$3,ExpPayDate,">"&$E$3)-SUMIFS(ExpIncl,ExpDocDate,"<="&$E$3,ExpPayDate,"") -> -45153 | F81: =G81-E81 -> -15886 | G81: =-SUMIFS(ExpIncl,ExpDocDate,"<="&$G$3,ExpPayDate,">"&$G$3)-SUMIFS(ExpIncl,ExpDocDate,"<="&$G$3,ExpPayDate,"") -> -61039
A82: BS-RTG | B82: Retained Earnings | C82: -432643.5 | E82: =$C$82-SUMIFS(IncExcl,IncDocDate,"<="&$E$2,IncDocDate,">"&$C$3,IncAccount,">=IS-0000",IncAccount,"<=IS-9999")+SUMIFS(ExpExcl,ExpDocDate,"<="&$E$2,ExpDocDate,">"&$C$3,ExpAccount,">=IS-0000",ExpAccount,"<=IS-9999") -> -432643.5 | F82: =G82-E82 -> 0 | G82: =$C$82-SUMIFS(IncExcl,IncDocDate,"<="&$G$2,IncDocDate,">"&$C$3,IncAccount,">=IS-0000",IncAccount,"<=IS-9999")+SUMIFS(ExpExcl,ExpDocDate,"<="&$G$2,ExpDocDate,">"&$C$3,ExpAccount,">=IS-0000",ExpAccount,"<=IS-9999") -> -432643.5
C84: =ROUND(SUM(C5:C83),2) -> 0 | E84: =ROUND(SUM(E5:E83),2) -> 0 | F84: =ROUND(SUM(F5:F83),2) -> 0 | G84: =ROUND(SUM(G5:G83),2) -> 0
A86: Recording of opening balances
A87: Assets are debit balances and should be entered as positive values.
A88: Liabilities are credit balances and should be entered as negative values.
A89: Equity items are credit balances and should be entered as negative values.
A90: Bank and trade debtor balances should be entered on the Income sheet.
A91: Trade creditor balances should be entered on the Expenses sheet.
A92: The total in column C should be nil if all opening balances have been entered correctly.
A93: Use a trial balance as at the end of the period which is reflected at the top of the sheet in column C for entering opening balances.

Sheet Income (hidden)
A1: =IF(ISBLANK(Setup!$C$4),"Example Limited",Setup!$C$4) -> Example (Pty) Limited | L1: Balance Date
A2: Income & Other Receipts | L2: 2021-02-28 | M2: =IF(ISBLANK(L2),TODAY(),L2) -> 2021-02-28
A3: © www.excel-skills.com | E3: =SUBTOTAL(109,Income[[#Data],[Tax Inclusive Amount]]) -> 2503207.95 | J3: =SUBTOTAL(109,Income[[#Data],[Payment Amount]]) -> 2471297.95 | L3: =SUBTOTAL(109,Income[[#Data],[Outstanding Balance]]) -> 93060 | M3: =SUBTOTAL(109,Income[[#Data],[Exclusive Amount]]) -> 2226447.176 | N3: =SUBTOTAL(109,Income[[#Data],[Sales Tax 1 Amount]]) -> 276760.7739 | O3: =SUBTOTAL(109,Income[[#Data],[Sales Tax 2 Amount]]) -> 0 | P3: =SUBTOTAL(109,Income[[#Data],[Inclusive Amount]]) -> 2503207.95
A4: Invoice Number | B4: Invoice Date | C4: Customer | D4: Description | E4: Tax Inclusive Amount | F4: Tax 1 Code | G4: Tax 2 Code | H4: Bank Code | I4: Account Number | J4: Payment Amount | K4: Payment Date | L4: Outstanding Balance | M4: Exclusive Amount | N4: Sales Tax 1 Amount | O4: Sales Tax 2 Amount | P4: Inclusive Amount | Q4: Unique INV | R4: Error Code
A5: IN0051 | B5: 2020-02-10 | C5: DF Manufacturing | D5: Software Sales | E5: 35796 | F5: A | G5: E | H5: B1 | I5: BS-0799 | J5: 35796 | K5: 2020-03-01 | L5: =IF($Q5="N",0,SUMIFS(IncIncl,IncDocDate,"<="&$M$2,IncInvoice,$A5)-SUMIFS(IncPayAmount,IncDocDate,"<="&$M$2,IncPayDate,"<="&$M$2,IncInvoice,$A5)) -> 0 | M5: =P5-IF(IncTaxCount=2,SUM($N5:$O5),$N5:$N5) -> 31126.95652 | N5: =$P5/(1+IF(ISERROR($F5),0,IF(ISNA(MATCH($F5,TaxCode,0)),0,OFFSET(Setup!$D$15,MATCH($F5,TaxCode,0),0,1,1)))+IF(ISERROR($G5),0,IF(ISNA(MATCH($G5,TaxCode,0)),0,OFFSET(Setup!$D$15,MATCH($G5,TaxCode,0),0,1,1))))*IF(ISERROR($F5),0,IF(ISNA(MATCH($F5,TaxCode,0)),0,OFFSET(Setup!$D$15,MATCH($F5,TaxCode,0),0,1,1))) -> 4669.043478 | O5: =$P5/(1+IF(ISERROR($F5),0,IF(ISNA(MATCH($F5,TaxCode,0)),0,OFFSET(Setup!$D$15,MATCH($F5,TaxCode,0),0,1,1)))+IF(ISERROR($G5),0,IF(ISNA(MATCH($G5,TaxCode,0)),0,OFFSET(Setup!$D$15,MATCH($G5,TaxCode,0),0,1,1))))*IF(ISERROR($G5),0,IF(ISNA(MATCH($G5,TaxCode,0)),0,OFFSET(Setup!$D$15,MATCH($G5,TaxCode,0),0,1,1))) -> 0 | P5: =E5 -> 35796 | Q5: =IF(ISNA(MATCH($A5,IncInvoice,0)),"N",IF(MATCH($A5,IncInvoice,0)=ROW($A5)-4,"Y","N")) -> Y | R5: =IF(AND(ISBLANK(K5)=FALSE,K5<B5),"E1",IF(AND(ISBLANK(I5)=FALSE,ISNA(MATCH($I5,AccountNo,0))),"E2",IF(AND(ISBLANK(H5)=FALSE,ISNA(MATCH($H5,BankCode,0))),"E3","-"))) -> -
A6: IN0052 | B6: 2020-02-18 | C6: CC Supplies | D6: Software Sales | E6: 110580 | F6: A | G6: E | H6: B1 | I6: BS-0799 | J6: 110580 | K6: 2020-03-10 | L6: =IF($Q6="N",0,SUMIFS(IncIncl,IncDocDate,"<="&$M$2,IncInvoice,$A6)-SUMIFS(IncPayAmount,IncDocDate,"<="&$M$2,IncPayDate,"<="&$M$2,IncInvoice,$A6)) -> 0 | M6: =P6-IF(IncTaxCount=2,SUM($N6:$O6),$N6:$N6) -> 96156.52174 | N6: =$P6/(1+IF(ISERROR($F6),0,IF(ISNA(MATCH($F6,TaxCode,0)),0,OFFSET(Setup!$D$15,MATCH($F6,TaxCode,0),0,1,1)))+IF(ISERROR($G6),0,IF(ISNA(MATCH($G6,TaxCode,0)),0,OFFSET(Setup!$D$15,MATCH($G6,TaxCode,0),0,1,1))))*IF(ISERROR($F6),0,IF(ISNA(MATCH($F6,TaxCode,0)),0,OFFSET(Setup!$D$15,MATCH($F6,TaxCode,0),0,1,1))) -> 14423.47826 | O6: =$P6/(1+IF(ISERROR($F6),0,IF(ISNA(MATCH($F6,TaxCode,0)),0,OFFSET(Setup!$D$15,MATCH($F6,TaxCode,0),0,1,1)))+IF(ISERROR($G6),0,IF(ISNA(MATCH($G6,TaxCode,0)),0,OFFSET(Setup!$D$15,MATCH($G6,TaxCode,0),0,1,1))))*IF(ISERROR($G6),0,IF(ISNA(MATCH($G6,TaxCode,0)),0,OFFSET(Setup!$D$15,MATCH($G6,TaxCode,0),0,1,1))) -> 0 | P6: 110580 | Q6: Y | R6: -
A7: OB | B7: 2020-02-28 | C7: Opening Balance | D7: Opening Bank Balance | E7: 45250.5 | F7: E | G7: E | H7: B1 | I7: BS-0799 | J7: 45250.5 | K7: 2020-02-28 | L7: =IF($Q7="N",0,SUMIFS(IncIncl,IncDocDate,"<="&$M$2,IncInvoice,$A7)-SUMIFS(IncPayAmount,IncDocDate,"<="&$M$2,IncPayDate,"<="&$M$2,IncInvoice,$A7)) -> 0 | M7: =P7-IF(IncTaxCount=2,SUM($N7:$O7),$N7:$N7) -> 45250.5 | N7: =$P7/(1+IF(ISERROR($F7),0,IF(ISNA(MATCH($F7,TaxCode,0)),0,OFFSET(Setup!$D$15,MATCH($F7,TaxCode,0),0,1,1)))+IF(ISERROR($G7),0,IF(ISNA(MATCH($G7,TaxCode,0)),0,OFFSET(Setup!$D$15,MATCH($G7,TaxCode,0),0,1,1))))*IF(ISERROR($F7),0,IF(ISNA(MATCH($F7,TaxCode,0)),0,OFFSET(Setup!$D$15,MATCH($F7,TaxCode,0),0,1,1))) -> 0 | O7: =$P7/(1+IF(ISERROR($F7),0,IF(ISNA(MATCH($F7,TaxCode,0)),0,OFFSET(Setup!$D$15,MATCH($F7,TaxCode,0),0,1,1)))+IF(ISERROR($G7),0,IF(ISNA(MATCH($G7,TaxCode,0)),0,OFFSET(Setup!$D$15,MATCH($G7,TaxCode,0),0,1,1))))*IF(ISERROR($G7),0,IF(ISNA(MATCH($G7,TaxCode,0)),0,OFFSET(Setup!$D$15,MATCH($G7,TaxCode,0),0,1,1))) -> 0 | P7: 45250.5 | Q7: Y | R7: -
A8: OB | B8: 2020-02-28 | C8: Opening Balance | D8: Opening Bank Balance | E8: 61500 | F8: E | G8: E | H8: B2 | I8: BS-0799 | J8: 61500 | K8: 2020-02-28 | L8: =IF($Q8="N",0,SUMIFS(IncIncl,IncDocDate,"<="&$M$2,IncInvoice,$A8)-SUMIFS(IncPayAmount,IncDocDate,"<="&$M$2,IncPayDate,"<="&$M$2,IncInvoice,$A8)) -> 0 | M8: =P8-IF(IncTaxCount=2,SUM($N8:$O8),$N8:$N8) -> 61500 | N8: =$P8/(1+IF(ISERROR($F8),0,IF(ISNA(MATCH($F8,TaxCode,0)),0,OFFSET(Setup!$D$15,MATCH($F8,TaxCode,0),0,1,1)))+IF(ISERROR($G8),0,IF(ISNA(MATCH($G8,TaxCode,0)),0,OFFSET(Setup!$D$15,MATCH($G8,TaxCode,0),0,1,1))))*IF(ISERROR($F8),0,IF(ISNA(MATCH($F8,TaxCode,0)),0,OFFSET(Setup!$D$15,MATCH($F8,TaxCode,0),0,1,1))) -> 0 | O8: =$P8/(1+IF(ISERROR($F8),0,IF(ISNA(MATCH($F8,TaxCode,0)),0,OFFSET(Setup!$D$15,MATCH($F8,TaxCode,0),0,1,1)))+IF(ISERROR($G8),0,IF(ISNA(MATCH($G8,TaxCode,0)),0,OFFSET(Setup!$D$15,MATCH($G8,TaxCode,0),0,1,1))))*IF(ISERROR($G8),0,IF(ISNA(MATCH($G8,TaxCode,0)),0,OFFSET(Setup!$D$15,MATCH($G8,TaxCode,0),0,1,1))) -> 0 | P8: 61500 | Q8: N | R8: -
A9: OB | B9: 2020-02-28 | C9: Opening Balance | D9: Opening Bank Balance | E9: 0 | F9: E | G9: E | H9: B3 | I9: BS-0799 | J9: 0 | K9: 2020-02-28 | L9: =IF($Q9="N",0,SUMIFS(IncIncl,IncDocDate,"<="&$M$2,IncInvoice,$A9)-SUMIFS(IncPayAmount,IncDocDate,"<="&$M$2,IncPayDate,"<="&$M$2,IncInvoice,$A9)) -> 0 | M9: =P9-IF(IncTaxCount=2,SUM($N9:$O9),$N9:$N9) -> 0 | N9: =$P9/(1+IF(ISERROR($F9),0,IF(ISNA(MATCH($F9,TaxCode,0)),0,OFFSET(Setup!$D$15,MATCH($F9,TaxCode,0),0,1,1)))+IF(ISERROR($G9),0,IF(ISNA(MATCH($G9,TaxCode,0)),0,OFFSET(Setup!$D$15,MATCH($G9,TaxCode,0),0,1,1))))*IF(ISERROR($F9),0,IF(ISNA(MATCH($F9,TaxCode,0)),0,OFFSET(Setup!$D$15,MATCH($F9,TaxCode,0),0,1,1))) -> 0 | O9: =$P9/(1+IF(ISERROR($F9),0,IF(ISNA(MATCH($F9,TaxCode,0)),0,OFFSET(Setup!$D$15,MATCH($F9,TaxCode,0),0,1,1)))+IF(ISERROR($G9),0,IF(ISNA(MATCH($G9,TaxCode,0)),0,OFFSET(Setup!$D$15,MATCH($G9,TaxCode,0),0,1,1))))*IF(ISERROR($G9),0,IF(ISNA(MATCH($G9,TaxCode,0)),0,OFFSET(Setup!$D$15,MATCH($G9,TaxCode,0),0,1,1))) -> 0 | P9: 0 | Q9: N | R9: -
A10: OB | B10: 2020-02-28 | C10: Opening Balance | D10: Opening Bank Balance | E10: 1000 | F10: E | G10: E | H10: PC | I10: BS-0799 | J10: 1000 | K10: 2020-02-28 | L10: =IF($Q10="N",0,SUMIFS(IncIncl,IncDocDate,"<="&$M$2,IncInvoice,$A10)-SUMIFS(IncPayAmount,IncDocDate,"<="&$M$2,IncPayDate,"<="&$M$2,IncInvoice,$A10)) -> 0 | M10: =P10-IF(IncTaxCount=2,SUM($N10:$O10),$N10:$N10) -> 1000 | N10: =$P10/(1+IF(ISERROR($F10),0,IF(ISNA(MATCH($F10,TaxCode,0)),0,OFFSET(Setup!$D$15,MATCH($F10,TaxCode,0),0,1,1)))+IF(ISERROR($G10),0,IF(ISNA(MATCH($G10,TaxCode,0)),0,OFFSET(Setup!$D$15,MATCH($G10,TaxCode,0),0,1,1))))*IF(ISERROR($F10),0,IF(ISNA(MATCH($F10,TaxCode,0)),0,OFFSET(Setup!$D$15,MATCH($F10,TaxCode,0),0,1,1))) -> 0 | O10: =$P10/(1+IF(ISERROR($F10),0,IF(ISNA(MATCH($F10,TaxCode,0)),0,OFFSET(Setup!$D$15,MATCH($F10,TaxCode,0),0,1,1)))+IF(ISERROR($G10),0,IF(ISNA(MATCH($G10,TaxCode,0)),0,OFFSET(Setup!$D$15,MATCH($G10,TaxCode,0),0,1,1))))*IF(ISERROR($G10),0,IF(ISNA(MATCH($G10,TaxCode,0)),0,OFFSET(Setup!$D$15,MATCH($G10,TaxCode,0),0,1,1))) -> 0 | P10: 1000 | Q10: N | R10: -
A11: REC0020 | B11: 2020-03-01 | C11: ABC Bank | D11: Interest Received | E11: 150.01 | F11: E | G11: E | H11: B2 | I11: IS-0900 | J11: 150.01 | K11: 2020-03-01 | L11: =IF($Q11="N",0,SUMIFS(IncIncl,IncDocDate,"<="&$M$2,IncInvoice,$A11)-SUMIFS(IncPayAmount,IncDocDate,"<="&$M$2,IncPayDate,"<="&$M$2,IncInvoice,$A11)) -> 0 | M11: =P11-IF(IncTaxCount=2,SUM($N11:$O11),$N11:$N11) -> 150.01 | N11: =$P11/(1+IF(ISERROR($F11),0,IF(ISNA(MATCH($F11,TaxCode,0)),0,OFFSET(Setup!$D$15,MATCH($F11,TaxCode,0),0,1,1)))+IF(ISERROR($G11),0,IF(ISNA(MATCH($G11,TaxCode,0)),0,OFFSET(Setup!$D$15,MATCH($G11,TaxCode,0),0,1,1))))*IF(ISERROR($F11),0,IF(ISNA(MATCH($F11,TaxCode,0)),0,OFFSET(Setup!$D$15,MATCH($F11,TaxCode,0),0,1,1))) -> 0 | O11: =$P11/(1+IF(ISERROR($F11),0,IF(ISNA(MATCH($F11,TaxCode,0)),0,OFFSET(Setup!$D$15,MATCH($F11,TaxCode,0),0,1,1)))+IF(ISERROR($G11),0,IF(ISNA(MATCH($G11,TaxCode,0)),0,OFFSET(Setup!$D$15,MATCH($G11,TaxCode,0),0,1,1))))*IF(ISERROR($G11),0,IF(ISNA(MATCH($G11,TaxCode,0)),0,OFFSET(Setup!$D$15,MATCH($G11,TaxCode,0),0,1,1))) -> 0 | P11: 150.01 | Q11: Y | R11: -
A12: REC0021 | B12: 2020-03-07 | C12: ERP Software | D12: Commission Received | E12: 1710 | F12: A | G12: E | H12: B1 | I12: IS-0115 | J12: 1710 | K12: 2020-03-07 | L12: =IF($Q12="N",0,SUMIFS(IncIncl,IncDocDate,"<="&$M$2,IncInvoice,$A12)-SUMIFS(IncPayAmount,IncDocDate,"<="&$M$2,IncPayDate,"<="&$M$2,IncInvoice,$A12)) -> 0 | M12: =P12-IF(IncTaxCount=2,SUM($N12:$O12),$N12:$N12) -> 1486.956522 | N12: =$P12/(1+IF(ISERROR($F12),0,IF(ISNA(MATCH($F12,TaxCode,0)),0,OFFSET(Setup!$D$15,MATCH($F12,TaxCode,0),0,1,1)))+IF(ISERROR($G12),0,IF(ISNA(MATCH($G12,TaxCode,0)),0,OFFSET(Setup!$D$15,MATCH($G12,TaxCode,0),0,1,1))))*IF(ISERROR($F12),0,IF(ISNA(MATCH($F12,TaxCode,0)),0,OFFSET(Setup!$D$15,MATCH($F12,TaxCode,0),0,1,1))) -> 223.0434783 | O12: =$P12/(1+IF(ISERROR($F12),0,IF(ISNA(MATCH($F12,TaxCode,0)),0,OFFSET(Setup!$D$15,MATCH($F12,TaxCode,0),0,1,1)))+IF(ISERROR($G12),0,IF(ISNA(MATCH($G12,TaxCode,0)),0,OFFSET(Setup!$D$15,MATCH($G12,TaxCode,0),0,1,1))))*IF(ISERROR($G12),0,IF(ISNA(MATCH($G12,TaxCode,0)),0,OFFSET(Setup!$D$15,MATCH($G12,TaxCode,0),0,1,1))) -> 0 | P12: 1710 | Q12: Y | R12: -
A13: IN0053 | B13: 2020-03-14 | C13: IT Solutions | D13: Software Sales | E13: 12880 | F13: E | G13: E | H13: B1 | I13: IS-0105 | J13: 12880 | K13: 2020-04-13 | L13: =IF($Q13="N",0,SUMIFS(IncIncl,IncDocDate,"<="&$M$2,IncInvoice,$A13)-SUMIFS(IncPayAmount,IncDocDate,"<="&$M$2,IncPayDate,"<="&$M$2,IncInvoice,$A13)) -> 0 | M13: =P13-IF(IncTaxCount=2,SUM($N13:$O13),$N13:$N13) -> 12880 | N13: =$P13/(1+IF(ISERROR($F13),0,IF(ISNA(MATCH($F13,TaxCode,0)),0,OFFSET(Setup!$D$15,MATCH($F13,TaxCode,0),0,1,1)))+IF(ISERROR($G13),0,IF(ISNA(MATCH($G13,TaxCode,0)),0,OFFSET(Setup!$D$15,MATCH($G13,TaxCode,0),0,1,1))))*IF(ISERROR($F13),0,IF(ISNA(MATCH($F13,TaxCode,0)),0,OFFSET(Setup!$D$15,MATCH($F13,TaxCode,0),0,1,1))) -> 0 | O13: =$P13/(1+IF(ISERROR($F13),0,IF(ISNA(MATCH($F13,TaxCode,0)),0,OFFSET(Setup!$D$15,MATCH($F13,TaxCode,0),0,1,1)))+IF(ISERROR($G13),0,IF(ISNA(MATCH($G13,TaxCode,0)),0,OFFSET(Setup!$D$15,MATCH($G13,TaxCode,0),0,1,1))))*IF(ISERROR($G13),0,IF(ISNA(MATCH($G13,TaxCode,0)),0,OFFSET(Setup!$D$15,MATCH($G13,TaxCode,0),0,1,1))) -> 0 | P13: 12880 | Q13: Y | R13: -
A14: IN0054 | B14: 2020-03-19 | C14: IQ Bonds | D14: Software Sales | E14: 125018.1 | F14: A | G14: E | H14: B1 | I14: IS-0105 | J14: 125018.1 | K14: 2020-04-10 | L14: =IF($Q14="N",0,SUMIFS(IncIncl,IncDocDate,"<="&$M$2,IncInvoice,$A14)-SUMIFS(IncPayAmount,IncDocDate,"<="&$M$2,IncPayDate,"<="&$M$2,IncInvoice,$A14)) -> 0 | M14: =P14-IF(IncTaxCount=2,SUM($N14:$O14),$N14:$N14) -> 108711.3913 | N14: =$P14/(1+IF(ISERROR($F14),0,IF(ISNA(MATCH($F14,TaxCode,0)),0,OFFSET(Setup!$D$15,MATCH($F14,TaxCode,0),0,1,1)))+IF(ISERROR($G14),0,IF(ISNA(MATCH($G14,TaxCode,0)),0,OFFSET(Setup!$D$15,MATCH($G14,TaxCode,0),0,1,1))))*IF(ISERROR($F14),0,IF(ISNA(MATCH($F14,TaxCode,0)),0,OFFSET(Setup!$D$15,MATCH($F14,TaxCode,0),0,1,1))) -> 16306.7087 | O14: =$P14/(1+IF(ISERROR($F14),0,IF(ISNA(MATCH($F14,TaxCode,0)),0,OFFSET(Setup!$D$15,MATCH($F14,TaxCode,0),0,1,1)))+IF(ISERROR($G14),0,IF(ISNA(MATCH($G14,TaxCode,0)),0,OFFSET(Setup!$D$15,MATCH($G14,TaxCode,0),0,1,1))))*IF(ISERROR($G14),0,IF(ISNA(MATCH($G14,TaxCode,0)),0,OFFSET(Setup!$D$15,MATCH($G14,TaxCode,0),0,1,1))) -> 0 | P14: 125018.1 | Q14: Y | R14: -
A15: REC0022 | B15: 2020-03-25 | C15: Google AdSense | D15: Advertising Income | E15: 12500 | F15: E | G15: E | H15: B2 | I15: IS-0110 | J15: 12500 | K15: 2020-04-05 | L15: =IF($Q15="N",0,SUMIFS(IncIncl,IncDocDate,"<="&$M$2,IncInvoice,$A15)-SUMIFS(IncPayAmount,IncDocDate,"<="&$M$2,IncPayDate,"<="&$M$2,IncInvoice,$A15)) -> 0 | M15: =P15-IF(IncTaxCount=2,SUM($N15:$O15),$N15:$N15) -> 12500 | N15: =$P15/(1+IF(ISERROR($F15),0,IF(ISNA(MATCH($F15,TaxCode,0)),0,OFFSET(Setup!$D$15,MATCH($F15,TaxCode,0),0,1,1)))+IF(ISERROR($G15),0,IF(ISNA(MATCH($G15,TaxCode,0)),0,OFFSET(Setup!$D$15,MATCH($G15,TaxCode,0),0,1,1))))*IF(ISERROR($F15),0,IF(ISNA(MATCH($F15,TaxCode,0)),0,OFFSET(Setup!$D$15,MATCH($F15,TaxCode,0),0,1,1))) -> 0 | O15: =$P15/(1+IF(ISERROR($F15),0,IF(ISNA(MATCH($F15,TaxCode,0)),0,OFFSET(Setup!$D$15,MATCH($F15,TaxCode,0),0,1,1)))+IF(ISERROR($G15),0,IF(ISNA(MATCH($G15,TaxCode,0)),0,OFFSET(Setup!$D$15,MATCH($G15,TaxCode,0),0,1,1))))*IF(ISERROR($G15),0,IF(ISNA(MATCH($G15,TaxCode,0)),0,OFFSET(Setup!$D$15,MATCH($G15,TaxCode,0),0,1,1))) -> 0 | P15: 12500 | Q15: Y | R15: -
A16: REC0023 | B16: 2020-04-01 | C16: ABC Bank | D16: Interest Received | E16: 120.65 | F16: E | G16: E | H16: B2 | I16: IS-0900 | J16: 120.65 | K16: 2020-04-01 | L16: =IF($Q16="N",0,SUMIFS(IncIncl,IncDocDate,"<="&$M$2,IncInvoice,$A16)-SUMIFS(IncPayAmount,IncDocDate,"<="&$M$2,IncPayDate,"<="&$M$2,IncInvoice,$A16)) -> 0 | M16: =P16-IF(IncTaxCount=2,SUM($N16:$O16),$N16:$N16) -> 120.65 | N16: =$P16/(1+IF(ISERROR($F16),0,IF(ISNA(MATCH($F16,TaxCode,0)),0,OFFSET(Setup!$D$15,MATCH($F16,TaxCode,0),0,1,1)))+IF(ISERROR($G16),0,IF(ISNA(MATCH($G16,TaxCode,0)),0,OFFSET(Setup!$D$15,MATCH($G16,TaxCode,0),0,1,1))))*IF(ISERROR($F16),0,IF(ISNA(MATCH($F16,TaxCode,0)),0,OFFSET(Setup!$D$15,MATCH($F16,TaxCode,0),0,1,1))) -> 0 | O16: =$P16/(1+IF(ISERROR($F16),0,IF(ISNA(MATCH($F16,TaxCode,0)),0,OFFSET(Setup!$D$15,MATCH($F16,TaxCode,0),0,1,1)))+IF(ISERROR($G16),0,IF(ISNA(MATCH($G16,TaxCode,0)),0,OFFSET(Setup!$D$15,MATCH($G16,TaxCode,0),0,1,1))))*IF(ISERROR($G16),0,IF(ISNA(MATCH($G16,TaxCode,0)),0,OFFSET(Setup!$D$15,MATCH($G16,TaxCode,0),0,1,1))) -> 0 | P16: 120.65 | Q16: Y | R16: -
A17: REC0024 | B17: 2020-04-07 | C17: ERP Software | D17: Commission Received | E17: 1380 | F17: A | G17: E | H17: B1 | I17: IS-0115 | J17: 1380 | K17: 2020-04-07 | L17: =IF($Q17="N",0,SUMIFS(IncIncl,IncDocDate,"<="&$M$2,IncInvoice,$A17)-SUMIFS(IncPayAmount,IncDocDate,"<="&$M$2,IncPayDate,"<="&$M$2,IncInvoice,$A17)) -> 0 | M17: =P17-IF(IncTaxCount=2,SUM($N17:$O17),$N17:$N17) -> 1200 | N17: =$P17/(1+IF(ISERROR($F17),0,IF(ISNA(MATCH($F17,TaxCode,0)),0,OFFSET(Setup!$D$15,MATCH($F17,TaxCode,0),0,1,1)))+IF(ISERROR($G17),0,IF(ISNA(MATCH($G17,TaxCode,0)),0,OFFSET(Setup!$D$15,MATCH($G17,TaxCode,0),0,1,1))))*IF(ISERROR($F17),0,IF(ISNA(MATCH($F17,TaxCode,0)),0,OFFSET(Setup!$D$15,MATCH($F17,TaxCode,0),0,1,1))) -> 180 | O17: =$P17/(1+IF(ISERROR($F17),0,IF(ISNA(MATCH($F17,TaxCode,0)),0,OFFSET(Setup!$D$15,MATCH($F17,TaxCode,0),0,1,1)))+IF(ISERROR($G17),0,IF(ISNA(MATCH($G17,TaxCode,0)),0,OFFSET(Setup!$D$15,MATCH($G17,TaxCode,0),0,1,1))))*IF(ISERROR($G17),0,IF(ISNA(MATCH($G17,TaxCode,0)),0,OFFSET(Setup!$D$15,MATCH($G17,TaxCode,0),0,1,1))) -> 0 | P17: 1380 | Q17: Y | R17: -
A18: IN0055 | B18: 2020-04-09 | C18: WC Financial Advisors | D18: Software Sales | E18: 137482.5 | F18: A | G18: E | H18: B1 | I18: IS-0105 | J18: 137482.5 | K18: 2020-05-09 | L18: =IF($Q18="N",0,SUMIFS(IncIncl,IncDocDate,"<="&$M$2,IncInvoice,$A18)-SUMIFS(IncPayAmount,IncDocDate,"<="&$M$2,IncPayDate,"<="&$M$2,IncInvoice,$A18)) -> 0 | M18: =P18-IF(IncTaxCount=2,SUM($N18:$O18),$N18:$N18) -> 119550 | N18: =$P18/(1+IF(ISERROR($F18),0,IF(ISNA(MATCH($F18,TaxCode,0)),0,OFFSET(Setup!$D$15,MATCH($F18,TaxCode,0),0,1,1)))+IF(ISERROR($G18),0,IF(ISNA(MATCH($G18,TaxCode,0)),0,OFFSET(Setup!$D$15,MATCH($G18,TaxCode,0),0,1,1))))*IF(ISERROR($F18),0,IF(ISNA(MATCH($F18,TaxCode,0)),0,OFFSET(Setup!$D$15,MATCH($F18,TaxCode,0),0,1,1))) -> 17932.5 | O18: =$P18/(1+IF(ISERROR($F18),0,IF(ISNA(MATCH($F18,TaxCode,0)),0,OFFSET(Setup!$D$15,MATCH($F18,TaxCode,0),0,1,1)))+IF(ISERROR($G18),0,IF(ISNA(MATCH($G18,TaxCode,0)),0,OFFSET(Setup!$D$15,MATCH($G18,TaxCode,0),0,1,1))))*IF(ISERROR($G18),0,IF(ISNA(MATCH($G18,TaxCode,0)),0,OFFSET(Setup!$D$15,MATCH($G18,TaxCode,0),0,1,1))) -> 0 | P18: 137482.5 | Q18: Y | R18: -
A19: IN0056 | B19: 2020-04-22 | C19: DF Manufacturing | D19: Software Sales | E19: 20033 | F19: A | G19: E | H19: B1 | I19: IS-0105 | J19: 20033 | K19: 2020-05-09 | L19: =IF($Q19="N",0,SUMIFS(IncIncl,IncDocDate,"<="&$M$2,IncInvoice,$A19)-SUMIFS(IncPayAmount,IncDocDate,"<="&$M$2,IncPayDate,"<="&$M$2,IncInvoice,$A19)) -> 0 | M19: =P19-IF(IncTaxCount=2,SUM($N19:$O19),$N19:$N19) -> 17420 | N19: =$P19/(1+IF(ISERROR($F19),0,IF(ISNA(MATCH($F19,TaxCode,0)),0,OFFSET(Setup!$D$15,MATCH($F19,TaxCode,0),0,1,1)))+IF(ISERROR($G19),0,IF(ISNA(MATCH($G19,TaxCode,0)),0,OFFSET(Setup!$D$15,MATCH($G19,TaxCode,0),0,1,1))))*IF(ISERROR($F19),0,IF(ISNA(MATCH($F19,TaxCode,0)),0,OFFSET(Setup!$D$15,MATCH($F19,TaxCode,0),0,1,1))) -> 2613 | O19: =$P19/(1+IF(ISERROR($F19),0,IF(ISNA(MATCH($F19,TaxCode,0)),0,OFFSET(Setup!$D$15,MATCH($F19,TaxCode,0),0,1,1)))+IF(ISERROR($G19),0,IF(ISNA(MATCH($G19,TaxCode,0)),0,OFFSET(Setup!$D$15,MATCH($G19,TaxCode,0),0,1,1))))*IF(ISERROR($G19),0,IF(ISNA(MATCH($G19,TaxCode,0)),0,OFFSET(Setup!$D$15,MATCH($G19,TaxCode,0),0,1,1))) -> 0 | P19: 20033 | Q19: Y | R19: -
A20: REC0025 | B20: 2020-04-25 | C20: Google AdSense | D20: Advertising Income | E20: 10300 | F20: E | G20: E | H20: B2 | I20: IS-0110 | J20: 10300 | K20: 2020-05-05 | L20: =IF($Q20="N",0,SUMIFS(IncIncl,IncDocDate,"<="&$M$2,IncInvoice,$A20)-SUMIFS(IncPayAmount,IncDocDate,"<="&$M$2,IncPayDate,"<="&$M$2,IncInvoice,$A20)) -> 0 | M20: =P20-IF(IncTaxCount=2,SUM($N20:$O20),$N20:$N20) -> 10300 | N20: =$P20/(1+IF(ISERROR($F20),0,IF(ISNA(MATCH($F20,TaxCode,0)),0,OFFSET(Setup!$D$15,MATCH($F20,TaxCode,0),0,1,1)))+IF(ISERROR($G20),0,IF(ISNA(MATCH($G20,TaxCode,0)),0,OFFSET(Setup!$D$15,MATCH($G20,TaxCode,0),0,1,1))))*IF(ISERROR($F20),0,IF(ISNA(MATCH($F20,TaxCode,0)),0,OFFSET(Setup!$D$15,MATCH($F20,TaxCode,0),0,1,1))) -> 0 | O20: =$P20/(1+IF(ISERROR($F20),0,IF(ISNA(MATCH($F20,TaxCode,0)),0,OFFSET(Setup!$D$15,MATCH($F20,TaxCode,0),0,1,1)))+IF(ISERROR($G20),0,IF(ISNA(MATCH($G20,TaxCode,0)),0,OFFSET(Setup!$D$15,MATCH($G20,TaxCode,0),0,1,1))))*IF(ISERROR($G20),0,IF(ISNA(MATCH($G20,TaxCode,0)),0,OFFSET(Setup!$D$15,MATCH($G20,TaxCode,0),0,1,1))) -> 0 | P20: 10300 | Q20: Y | R20: -
A21: REC0026 | B21: 2020-05-01 | C21: ABC Bank | D21: Interest Received | E21: 160.23 | F21: E | G21: E | H21: B2 | I21: IS-0900 | J21: 160.23 | K21: 2020-05-01 | L21: =IF($Q21="N",0,SUMIFS(IncIncl,IncDocDate,"<="&$M$2,IncInvoice,$A21)-SUMIFS(IncPayAmount,IncDocDate,"<="&$M$2,IncPayDate,"<="&$M$2,IncInvoice,$A21)) -> 0 | M21: =P21-IF(IncTaxCount=2,SUM($N21:$O21),$N21:$N21) -> 160.23 | N21: =$P21/(1+IF(ISERROR($F21),0,IF(ISNA(MATCH($F21,TaxCode,0)),0,OFFSET(Setup!$D$15,MATCH($F21,TaxCode,0),0,1,1)))+IF(ISERROR($G21),0,IF(ISNA(MATCH($G21,TaxCode,0)),0,OFFSET(Setup!$D$15,MATCH($G21,TaxCode,0),0,1,1))))*IF(ISERROR($F21),0,IF(ISNA(MATCH($F21,TaxCode,0)),0,OFFSET(Setup!$D$15,MATCH($F21,TaxCode,0),0,1,1))) -> 0 | O21: =$P21/(1+IF(ISERROR($F21),0,IF(ISNA(MATCH($F21,TaxCode,0)),0,OFFSET(Setup!$D$15,MATCH($F21,TaxCode,0),0,1,1)))+IF(ISERROR($G21),0,IF(ISNA(MATCH($G21,TaxCode,0)),0,OFFSET(Setup!$D$15,MATCH($G21,TaxCode,0),0,1,1))))*IF(ISERROR($G21),0,IF(ISNA(MATCH($G21,TaxCode,0)),0,OFFSET(Setup!$D$15,MATCH($G21,TaxCode,0),0,1,1))) -> 0 | P21: 160.23 | Q21: Y | R21: -
A22: IN0057 | B22: 2020-05-05 | C22: GP Accountants | D22: Software Sales | E22: 106950 | F22: A | G22: E | H22: B1 | I22: IS-0105 | J22: 106950 | K22: 2020-05-10 | L22: =IF($Q22="N",0,SUMIFS(IncIncl,IncDocDate,"<="&$M$2,IncInvoice,$A22)-SUMIFS(IncPayAmount,IncDocDate,"<="&$M$2,IncPayDate,"<="&$M$2,IncInvoice,$A22)) -> 0 | M22: =P22-IF(IncTaxCount=2,SUM($N22:$O22),$N22:$N22) -> 93000 | N22: =$P22/(1+IF(ISERROR($F22),0,IF(ISNA(MATCH($F22,TaxCode,0)),0,OFFSET(Setup!$D$15,MATCH($F22,TaxCode,0),0,1,1)))+IF(ISERROR($G22),0,IF(ISNA(MATCH($G22,TaxCode,0)),0,OFFSET(Setup!$D$15,MATCH($G22,TaxCode,0),0,1,1))))*IF(ISERROR($F22),0,IF(ISNA(MATCH($F22,TaxCode,0)),0,OFFSET(Setup!$D$15,MATCH($F22,TaxCode,0),0,1,1))) -> 13950 | O22: =$P22/(1+IF(ISERROR($F22),0,IF(ISNA(MATCH($F22,TaxCode,0)),0,OFFSET(Setup!$D$15,MATCH($F22,TaxCode,0),0,1,1)))+IF(ISERROR($G22),0,IF(ISNA(MATCH($G22,TaxCode,0)),0,OFFSET(Setup!$D$15,MATCH($G22,TaxCode,0),0,1,1))))*IF(ISERROR($G22),0,IF(ISNA(MATCH($G22,TaxCode,0)),0,OFFSET(Setup!$D$15,MATCH($G22,TaxCode,0),0,1,1))) -> 0 | P22: 106950 | Q22: Y | R22: -
A23: IN0058 | B23: 2020-05-07 | C23: Energy Incorporated | D23: Software Sales | E23: 9464.5 | F23: A | G23: E | H23: B1 | I23: IS-0105 | J23: 9464.5 | K23: 2020-06-06 | L23: =IF($Q23="N",0,SUMIFS(IncIncl,IncDocDate,"<="&$M$2,IncInvoice,$A23)-SUMIFS(IncPayAmount,IncDocDate,"<="&$M$2,IncPayDate,"<="&$M$2,IncInvoice,$A23)) -> 0 | M23: =P23-IF(IncTaxCount=2,SUM($N23:$O23),$N23:$N23) -> 8230 | N23: =$P23/(1+IF(ISERROR($F23),0,IF(ISNA(MATCH($F23,TaxCode,0)),0,OFFSET(Setup!$D$15,MATCH($F23,TaxCode,0),0,1,1)))+IF(ISERROR($G23),0,IF(ISNA(MATCH($G23,TaxCode,0)),0,OFFSET(Setup!$D$15,MATCH($G23,TaxCode,0),0,1,1))))*IF(ISERROR($F23),0,IF(ISNA(MATCH($F23,TaxCode,0)),0,OFFSET(Setup!$D$15,MATCH($F23,TaxCode,0),0,1,1))) -> 1234.5 | O23: =$P23/(1+IF(ISERROR($F23),0,IF(ISNA(MATCH($F23,TaxCode,0)),0,OFFSET(Setup!$D$15,MATCH($F23,TaxCode,0),0,1,1)))+IF(ISERROR($G23),0,IF(ISNA(MATCH($G23,TaxCode,0)),0,OFFSET(Setup!$D$15,MATCH($G23,TaxCode,0),0,1,1))))*IF(ISERROR($G23),0,IF(ISNA(MATCH($G23,TaxCode,0)),0,OFFSET(Setup!$D$15,MATCH($G23,TaxCode,0),0,1,1))) -> 0 | P23: 9464.5 | Q23: Y | R23: -
A24: REC0027 | B24: 2020-05-07 | C24: ERP Software | D24: Commission Received | E24: 1610 | F24: A | G24: E | H24: B1 | I24: IS-0115 | J24: 1610 | K24: 2020-05-07 | L24: =IF($Q24="N",0,SUMIFS(IncIncl,IncDocDate,"<="&$M$2,IncInvoice,$A24)-SUMIFS(IncPayAmount,IncDocDate,"<="&$M$2,IncPayDate,"<="&$M$2,IncInvoice,$A24)) -> 0 | M24: =P24-IF(IncTaxCount=2,SUM($N24:$O24),$N24:$N24) -> 1400 | N24: =$P24/(1+IF(ISERROR($F24),0,IF(ISNA(MATCH($F24,TaxCode,0)),0,OFFSET(Setup!$D$15,MATCH($F24,TaxCode,0),0,1,1)))+IF(ISERROR($G24),0,IF(ISNA(MATCH($G24,TaxCode,0)),0,OFFSET(Setup!$D$15,MATCH($G24,TaxCode,0),0,1,1))))*IF(ISERROR($F24),0,IF(ISNA(MATCH($F24,TaxCode,0)),0,OFFSET(Setup!$D$15,MATCH($F24,TaxCode,0),0,1,1))) -> 210 | O24: =$P24/(1+IF(ISERROR($F24),0,IF(ISNA(MATCH($F24,TaxCode,0)),0,OFFSET(Setup!$D$15,MATCH($F24,TaxCode,0),0,1,1)))+IF(ISERROR($G24),0,IF(ISNA(MATCH($G24,TaxCode,0)),0,OFFSET(Setup!$D$15,MATCH($G24,TaxCode,0),0,1,1))))*IF(ISERROR($G24),0,IF(ISNA(MATCH($G24,TaxCode,0)),0,OFFSET(Setup!$D$15,MATCH($G24,TaxCode,0),0,1,1))) -> 0 | P24: 1610 | Q24: Y | R24: -
A25: IN0059 | B25: 2020-05-10 | C25: Energy Incorporated | D25: Software Sales | E25: 26220 | F25: A | G25: E | H25: B1 | I25: IS-0105 | J25: 26220 | K25: 2020-06-09 | L25: =IF($Q25="N",0,SUMIFS(IncIncl,IncDocDate,"<="&$M$2,IncInvoice,$A25)-SUMIFS(IncPayAmount,IncDocDate,"<="&$M$2,IncPayDate,"<="&$M$2,IncInvoice,$A25)) -> 0 | M25: =P25-IF(IncTaxCount=2,SUM($N25:$O25),$N25:$N25) -> 22800 | N25: =$P25/(1+IF(ISERROR($F25),0,IF(ISNA(MATCH($F25,TaxCode,0)),0,OFFSET(Setup!$D$15,MATCH($F25,TaxCode,0),0,1,1)))+IF(ISERROR($G25),0,IF(ISNA(MATCH($G25,TaxCode,0)),0,OFFSET(Setup!$D$15,MATCH($G25,TaxCode,0),0,1,1))))*IF(ISERROR($F25),0,IF(ISNA(MATCH($F25,TaxCode,0)),0,OFFSET(Setup!$D$15,MATCH($F25,TaxCode,0),0,1,1))) -> 3420 | O25: =$P25/(1+IF(ISERROR($F25),0,IF(ISNA(MATCH($F25,TaxCode,0)),0,OFFSET(Setup!$D$15,MATCH($F25,TaxCode,0),0,1,1)))+IF(ISERROR($G25),0,IF(ISNA(MATCH($G25,TaxCode,0)),0,OFFSET(Setup!$D$15,MATCH($G25,TaxCode,0),0,1,1))))*IF(ISERROR($G25),0,IF(ISNA(MATCH($G25,TaxCode,0)),0,OFFSET(Setup!$D$15,MATCH($G25,TaxCode,0),0,1,1))) -> 0 | P25: 26220 | Q25: Y | R25: -
A26: REC0028 | B26: 2020-05-25 | C26: Google AdSense | D26: Advertising Income | E26: 15200 | F26: E | G26: E | H26: B2 | I26: IS-0110 | J26: 15200 | K26: 2020-06-05 | L26: =IF($Q26="N",0,SUMIFS(IncIncl,IncDocDate,"<="&$M$2,IncInvoice,$A26)-SUMIFS(IncPayAmount,IncDocDate,"<="&$M$2,IncPayDate,"<="&$M$2,IncInvoice,$A26)) -> 0 | M26: =P26-IF(IncTaxCount=2,SUM($N26:$O26),$N26:$N26) -> 15200 | N26: =$P26/(1+IF(ISERROR($F26),0,IF(ISNA(MATCH($F26,TaxCode,0)),0,OFFSET(Setup!$D$15,MATCH($F26,TaxCode,0),0,1,1)))+IF(ISERROR($G26),0,IF(ISNA(MATCH($G26,TaxCode,0)),0,OFFSET(Setup!$D$15,MATCH($G26,TaxCode,0),0,1,1))))*IF(ISERROR($F26),0,IF(ISNA(MATCH($F26,TaxCode,0)),0,OFFSET(Setup!$D$15,MATCH($F26,TaxCode,0),0,1,1))) -> 0 | O26: =$P26/(1+IF(ISERROR($F26),0,IF(ISNA(MATCH($F26,TaxCode,0)),0,OFFSET(Setup!$D$15,MATCH($F26,TaxCode,0),0,1,1)))+IF(ISERROR($G26),0,IF(ISNA(MATCH($G26,TaxCode,0)),0,OFFSET(Setup!$D$15,MATCH($G26,TaxCode,0),0,1,1))))*IF(ISERROR($G26),0,IF(ISNA(MATCH($G26,TaxCode,0)),0,OFFSET(Setup!$D$15,MATCH($G26,TaxCode,0),0,1,1))) -> 0 | P26: 15200 | Q26: Y | R26: -
A27: IN0060 | B27: 2020-05-31 | C27: CC Supplies | D27: Software Sales | E27: 67907.5 | F27: A | G27: E | H27: B1 | I27: IS-0105 | J27: 67907.5 | K27: 2020-06-30 | L27: =IF($Q27="N",0,SUMIFS(IncIncl,IncDocDate,"<="&$M$2,IncInvoice,$A27)-SUMIFS(IncPayAmount,IncDocDate,"<="&$M$2,IncPayDate,"<="&$M$2,IncInvoice,$A27)) -> 0 | M27: =P27-IF(IncTaxCount=2,SUM($N27:$O27),$N27:$N27) -> 59050 | N27: =$P27/(1+IF(ISERROR($F27),0,IF(ISNA(MATCH($F27,TaxCode,0)),0,OFFSET(Setup!$D$15,MATCH($F27,TaxCode,0),0,1,1)))+IF(ISERROR($G27),0,IF(ISNA(MATCH($G27,TaxCode,0)),0,OFFSET(Setup!$D$15,MATCH($G27,TaxCode,0),0,1,1))))*IF(ISERROR($F27),0,IF(ISNA(MATCH($F27,TaxCode,0)),0,OFFSET(Setup!$D$15,MATCH($F27,TaxCode,0),0,1,1))) -> 8857.5 | O27: =$P27/(1+IF(ISERROR($F27),0,IF(ISNA(MATCH($F27,TaxCode,0)),0,OFFSET(Setup!$D$15,MATCH($F27,TaxCode,0),0,1,1)))+IF(ISERROR($G27),0,IF(ISNA(MATCH($G27,TaxCode,0)),0,OFFSET(Setup!$D$15,MATCH($G27,TaxCode,0),0,1,1))))*IF(ISERROR($G27),0,IF(ISNA(MATCH($G27,TaxCode,0)),0,OFFSET(Setup!$D$15,MATCH($G27,TaxCode,0),0,1,1))) -> 0 | P27: 67907.5 | Q27: Y | R27: -
A28: REC0029 | B28: 2020-06-01 | C28: ABC Bank | D28: Interest Received | E28: 170.21 | F28: E | G28: E | H28: B2 | I28: IS-0900 | J28: 170.21 | K28: 2020-06-01 | L28: =IF($Q28="N",0,SUMIFS(IncIncl,IncDocDate,"<="&$M$2,IncInvoice,$A28)-SUMIFS(IncPayAmount,IncDocDate,"<="&$M$2,IncPayDate,"<="&$M$2,IncInvoice,$A28)) -> 0 | M28: =P28-IF(IncTaxCount=2,SUM($N28:$O28),$N28:$N28) -> 170.21 | N28: =$P28/(1+IF(ISERROR($F28),0,IF(ISNA(MATCH($F28,TaxCode,0)),0,OFFSET(Setup!$D$15,MATCH($F28,TaxCode,0),0,1,1)))+IF(ISERROR($G28),0,IF(ISNA(MATCH($G28,TaxCode,0)),0,OFFSET(Setup!$D$15,MATCH($G28,TaxCode,0),0,1,1))))*IF(ISERROR($F28),0,IF(ISNA(MATCH($F28,TaxCode,0)),0,OFFSET(Setup!$D$15,MATCH($F28,TaxCode,0),0,1,1))) -> 0 | O28: =$P28/(1+IF(ISERROR($F28),0,IF(ISNA(MATCH($F28,TaxCode,0)),0,OFFSET(Setup!$D$15,MATCH($F28,TaxCode,0),0,1,1)))+IF(ISERROR($G28),0,IF(ISNA(MATCH($G28,TaxCode,0)),0,OFFSET(Setup!$D$15,MATCH($G28,TaxCode,0),0,1,1))))*IF(ISERROR($G28),0,IF(ISNA(MATCH($G28,TaxCode,0)),0,OFFSET(Setup!$D$15,MATCH($G28,TaxCode,0),0,1,1))) -> 0 | P28: 170.21 | Q28: Y | R28: -
A29: REC0030 | B29: 2020-06-07 | C29: ERP Software | D29: Commission Received | E29: 1840 | F29: A | G29: E | H29: B1 | I29: IS-0115 | J29: 1840 | K29: 2020-06-07 | L29: =IF($Q29="N",0,SUMIFS(IncIncl,IncDocDate,"<="&$M$2,IncInvoice,$A29)-SUMIFS(IncPayAmount,IncDocDate,"<="&$M$2,IncPayDate,"<="&$M$2,IncInvoice,$A29)) -> 0 | M29: =P29-IF(IncTaxCount=2,SUM($N29:$O29),$N29:$N29) -> 1600 | N29: =$P29/(1+IF(ISERROR($F29),0,IF(ISNA(MATCH($F29,TaxCode,0)),0,OFFSET(Setup!$D$15,MATCH($F29,TaxCode,0),0,1,1)))+IF(ISERROR($G29),0,IF(ISNA(MATCH($G29,TaxCode,0)),0,OFFSET(Setup!$D$15,MATCH($G29,TaxCode,0),0,1,1))))*IF(ISERROR($F29),0,IF(ISNA(MATCH($F29,TaxCode,0)),0,OFFSET(Setup!$D$15,MATCH($F29,TaxCode,0),0,1,1))) -> 240 | O29: =$P29/(1+IF(ISERROR($F29),0,IF(ISNA(MATCH($F29,TaxCode,0)),0,OFFSET(Setup!$D$15,MATCH($F29,TaxCode,0),0,1,1)))+IF(ISERROR($G29),0,IF(ISNA(MATCH($G29,TaxCode,0)),0,OFFSET(Setup!$D$15,MATCH($G29,TaxCode,0),0,1,1))))*IF(ISERROR($G29),0,IF(ISNA(MATCH($G29,TaxCode,0)),0,OFFSET(Setup!$D$15,MATCH($G29,TaxCode,0),0,1,1))) -> 0 | P29: 1840 | Q29: Y | R29: -
A30: REC0031 | B30: 2020-06-25 | C30: Google AdSense | D30: Advertising Income | E30: 9500 | F30: E | G30: E | H30: B2 | I30: IS-0110 | J30: 9500 | K30: 2020-07-05 | L30: =IF($Q30="N",0,SUMIFS(IncIncl,IncDocDate,"<="&$M$2,IncInvoice,$A30)-SUMIFS(IncPayAmount,IncDocDate,"<="&$M$2,IncPayDate,"<="&$M$2,IncInvoice,$A30)) -> 0 | M30: =P30-IF(IncTaxCount=2,SUM($N30:$O30),$N30:$N30) -> 9500 | N30: =$P30/(1+IF(ISERROR($F30),0,IF(ISNA(MATCH($F30,TaxCode,0)),0,OFFSET(Setup!$D$15,MATCH($F30,TaxCode,0),0,1,1)))+IF(ISERROR($G30),0,IF(ISNA(MATCH($G30,TaxCode,0)),0,OFFSET(Setup!$D$15,MATCH($G30,TaxCode,0),0,1,1))))*IF(ISERROR($F30),0,IF(ISNA(MATCH($F30,TaxCode,0)),0,OFFSET(Setup!$D$15,MATCH($F30,TaxCode,0),0,1,1))) -> 0 | O30: =$P30/(1+IF(ISERROR($F30),0,IF(ISNA(MATCH($F30,TaxCode,0)),0,OFFSET(Setup!$D$15,MATCH($F30,TaxCode,0),0,1,1)))+IF(ISERROR($G30),0,IF(ISNA(MATCH($G30,TaxCode,0)),0,OFFSET(Setup!$D$15,MATCH($G30,TaxCode,0),0,1,1))))*IF(ISERROR($G30),0,IF(ISNA(MATCH($G30,TaxCode,0)),0,OFFSET(Setup!$D$15,MATCH($G30,TaxCode,0),0,1,1))) -> 0 | P30: 9500 | Q30: Y | R30: -
A31: IN0061 | B31: 2020-06-26 | C31: DF Manufacturing | D31: Software Sales | E31: 154100 | F31: A | G31: E | H31: B1 | I31: IS-0105 | J31: 154100 | K31: 2020-07-26 | L31: =IF($Q31="N",0,SUMIFS(IncIncl,IncDocDate,"<="&$M$2,IncInvoice,$A31)-SUMIFS(IncPayAmount,IncDocDate,"<="&$M$2,IncPayDate,"<="&$M$2,IncInvoice,$A31)) -> 0 | M31: =P31-IF(IncTaxCount=2,SUM($N31:$O31),$N31:$N31) -> 134000 | N31: =$P31/(1+IF(ISERROR($F31),0,IF(ISNA(MATCH($F31,TaxCode,0)),0,OFFSET(Setup!$D$15,MATCH($F31,TaxCode,0),0,1,1)))+IF(ISERROR($G31),0,IF(ISNA(MATCH($G31,TaxCode,0)),0,OFFSET(Setup!$D$15,MATCH($G31,TaxCode,0),0,1,1))))*IF(ISERROR($F31),0,IF(ISNA(MATCH($F31,TaxCode,0)),0,OFFSET(Setup!$D$15,MATCH($F31,TaxCode,0),0,1,1))) -> 20100 | O31: =$P31/(1+IF(ISERROR($F31),0,IF(ISNA(MATCH($F31,TaxCode,0)),0,OFFSET(Setup!$D$15,MATCH($F31,TaxCode,0),0,1,1)))+IF(ISERROR($G31),0,IF(ISNA(MATCH($G31,TaxCode,0)),0,OFFSET(Setup!$D$15,MATCH($G31,TaxCode,0),0,1,1))))*IF(ISERROR($G31),0,IF(ISNA(MATCH($G31,TaxCode,0)),0,OFFSET(Setup!$D$15,MATCH($G31,TaxCode,0),0,1,1))) -> 0 | P31: 154100 | Q31: Y | R31: -
A32: IN0062 | B32: 2020-06-29 | C32: WC Financial Advisors | D32: Software Sales | E32: 14421 | F32: A | G32: E | H32: B1 | I32: IS-0105 | J32: 14421 | K32: 2020-07-16 | L32: =IF($Q32="N",0,SUMIFS(IncIncl,IncDocDate,"<="&$M$2,IncInvoice,$A32)-SUMIFS(IncPayAmount,IncDocDate,"<="&$M$2,IncPayDate,"<="&$M$2,IncInvoice,$A32)) -> 0 | M32: =P32-IF(IncTaxCount=2,SUM($N32:$O32),$N32:$N32) -> 12540 | N32: =$P32/(1+IF(ISERROR($F32),0,IF(ISNA(MATCH($F32,TaxCode,0)),0,OFFSET(Setup!$D$15,MATCH($F32,TaxCode,0),0,1,1)))+IF(ISERROR($G32),0,IF(ISNA(MATCH($G32,TaxCode,0)),0,OFFSET(Setup!$D$15,MATCH($G32,TaxCode,0),0,1,1))))*IF(ISERROR($F32),0,IF(ISNA(MATCH($F32,TaxCode,0)),0,OFFSET(Setup!$D$15,MATCH($F32,TaxCode,0),0,1,1))) -> 1881 | O32: =$P32/(1+IF(ISERROR($F32),0,IF(ISNA(MATCH($F32,TaxCode,0)),0,OFFSET(Setup!$D$15,MATCH($F32,TaxCode,0),0,1,1)))+IF(ISERROR($G32),0,IF(ISNA(MATCH($G32,TaxCode,0)),0,OFFSET(Setup!$D$15,MATCH($G32,TaxCode,0),0,1,1))))*IF(ISERROR($G32),0,IF(ISNA(MATCH($G32,TaxCode,0)),0,OFFSET(Setup!$D$15,MATCH($G32,TaxCode,0),0,1,1))) -> 0 | P32: 14421 | Q32: Y | R32: -
A33: REC0032 | B33: 2020-07-01 | C33: ABC Bank | D33: Interest Received | E33: 165.23 | F33: E | G33: E | H33: B2 | I33: IS-0900 | J33: 165.23 | K33: 2020-07-01 | L33: =IF($Q33="N",0,SUMIFS(IncIncl,IncDocDate,"<="&$M$2,IncInvoice,$A33)-SUMIFS(IncPayAmount,IncDocDate,"<="&$M$2,IncPayDate,"<="&$M$2,IncInvoice,$A33)) -> 0 | M33: =P33-IF(IncTaxCount=2,SUM($N33:$O33),$N33:$N33) -> 165.23 | N33: =$P33/(1+IF(ISERROR($F33),0,IF(ISNA(MATCH($F33,TaxCode,0)),0,OFFSET(Setup!$D$15,MATCH($F33,TaxCode,0),0,1,1)))+IF(ISERROR($G33),0,IF(ISNA(MATCH($G33,TaxCode,0)),0,OFFSET(Setup!$D$15,MATCH($G33,TaxCode,0),0,1,1))))*IF(ISERROR($F33),0,IF(ISNA(MATCH($F33,TaxCode,0)),0,OFFSET(Setup!$D$15,MATCH($F33,TaxCode,0),0,1,1))) -> 0 | O33: =$P33/(1+IF(ISERROR($F33),0,IF(ISNA(MATCH($F33,TaxCode,0)),0,OFFSET(Setup!$D$15,MATCH($F33,TaxCode,0),0,1,1)))+IF(ISERROR($G33),0,IF(ISNA(MATCH($G33,TaxCode,0)),0,OFFSET(Setup!$D$15,MATCH($G33,TaxCode,0),0,1,1))))*IF(ISERROR($G33),0,IF(ISNA(MATCH($G33,TaxCode,0)),0,OFFSET(Setup!$D$15,MATCH($G33,TaxCode,0),0,1,1))) -> 0 | P33: 165.23 | Q33: Y | R33: -
A34: REC0033 | B34: 2020-07-07 | C34: ERP Software | D34: Commission Received | E34: 2415 | F34: A | G34: E | H34: B1 | I34: IS-0115 | J34: 2415 | K34: 2020-07-07 | L34: =IF($Q34="N",0,SUMIFS(IncIncl,IncDocDate,"<="&$M$2,IncInvoice,$A34)-SUMIFS(IncPayAmount,IncDocDate,"<="&$M$2,IncPayDate,"<="&$M$2,IncInvoice,$A34)) -> 0 | M34: =P34-IF(IncTaxCount=2,SUM($N34:$O34),$N34:$N34) -> 2100 | N34: =$P34/(1+IF(ISERROR($F34),0,IF(ISNA(MATCH($F34,TaxCode,0)),0,OFFSET(Setup!$D$15,MATCH($F34,TaxCode,0),0,1,1)))+IF(ISERROR($G34),0,IF(ISNA(MATCH($G34,TaxCode,0)),0,OFFSET(Setup!$D$15,MATCH($G34,TaxCode,0),0,1,1))))*IF(ISERROR($F34),0,IF(ISNA(MATCH($F34,TaxCode,0)),0,OFFSET(Setup!$D$15,MATCH($F34,TaxCode,0),0,1,1))) -> 315 | O34: =$P34/(1+IF(ISERROR($F34),0,IF(ISNA(MATCH($F34,TaxCode,0)),0,OFFSET(Setup!$D$15,MATCH($F34,TaxCode,0),0,1,1)))+IF(ISERROR($G34),0,IF(ISNA(MATCH($G34,TaxCode,0)),0,OFFSET(Setup!$D$15,MATCH($G34,TaxCode,0),0,1,1))))*IF(ISERROR($G34),0,IF(ISNA(MATCH($G34,TaxCode,0)),0,OFFSET(Setup!$D$15,MATCH($G34,TaxCode,0),0,1,1))) -> 0 | P34: 2415 | Q34: Y | R34: -
A35: IN0063 | B35: 2020-07-11 | C35: PTY Consultants | D35: Software Sales | E35: 135700 | F35: A | G35: E | H35: B1 | I35: IS-0105 | J35: 135700 | K35: 2020-07-16 | L35: =IF($Q35="N",0,SUMIFS(IncIncl,IncDocDate,"<="&$M$2,IncInvoice,$A35)-SUMIFS(IncPayAmount,IncDocDate,"<="&$M$2,IncPayDate,"<="&$M$2,IncInvoice,$A35)) -> 0 | M35: =P35-IF(IncTaxCount=2,SUM($N35:$O35),$N35:$N35) -> 118000 | N35: =$P35/(1+IF(ISERROR($F35),0,IF(ISNA(MATCH($F35,TaxCode,0)),0,OFFSET(Setup!$D$15,MATCH($F35,TaxCode,0),0,1,1)))+IF(ISERROR($G35),0,IF(ISNA(MATCH($G35,TaxCode,0)),0,OFFSET(Setup!$D$15,MATCH($G35,TaxCode,0),0,1,1))))*IF(ISERROR($F35),0,IF(ISNA(MATCH($F35,TaxCode,0)),0,OFFSET(Setup!$D$15,MATCH($F35,TaxCode,0),0,1,1))) -> 17700 | O35: =$P35/(1+IF(ISERROR($F35),0,IF(ISNA(MATCH($F35,TaxCode,0)),0,OFFSET(Setup!$D$15,MATCH($F35,TaxCode,0),0,1,1)))+IF(ISERROR($G35),0,IF(ISNA(MATCH($G35,TaxCode,0)),0,OFFSET(Setup!$D$15,MATCH($G35,TaxCode,0),0,1,1))))*IF(ISERROR($G35),0,IF(ISNA(MATCH($G35,TaxCode,0)),0,OFFSET(Setup!$D$15,MATCH($G35,TaxCode,0),0,1,1))) -> 0 | P35: 135700 | Q35: Y | R35: -
A36: IN0064 | B36: 2020-07-22 | C36: WW Retail | D36: Software Sales | E36: 17480 | F36: A | G36: E | H36: B1 | I36: IS-0105 | J36: 17480 | K36: 2020-08-21 | L36: =IF($Q36="N",0,SUMIFS(IncIncl,IncDocDate,"<="&$M$2,IncInvoice,$A36)-SUMIFS(IncPayAmount,IncDocDate,"<="&$M$2,IncPayDate,"<="&$M$2,IncInvoice,$A36)) -> 0 | M36: =P36-IF(IncTaxCount=2,SUM($N36:$O36),$N36:$N36) -> 15200 | N36: =$P36/(1+IF(ISERROR($F36),0,IF(ISNA(MATCH($F36,TaxCode,0)),0,OFFSET(Setup!$D$15,MATCH($F36,TaxCode,0),0,1,1)))+IF(ISERROR($G36),0,IF(ISNA(MATCH($G36,TaxCode,0)),0,OFFSET(Setup!$D$15,MATCH($G36,TaxCode,0),0,1,1))))*IF(ISERROR($F36),0,IF(ISNA(MATCH($F36,TaxCode,0)),0,OFFSET(Setup!$D$15,MATCH($F36,TaxCode,0),0,1,1))) -> 2280 | O36: =$P36/(1+IF(ISERROR($F36),0,IF(ISNA(MATCH($F36,TaxCode,0)),0,OFFSET(Setup!$D$15,MATCH($F36,TaxCode,0),0,1,1)))+IF(ISERROR($G36),0,IF(ISNA(MATCH($G36,TaxCode,0)),0,OFFSET(Setup!$D$15,MATCH($G36,TaxCode,0),0,1,1))))*IF(ISERROR($G36),0,IF(ISNA(MATCH($G36,TaxCode,0)),0,OFFSET(Setup!$D$15,MATCH($G36,TaxCode,0),0,1,1))) -> 0 | P36: 17480 | Q36: Y | R36: -
A37: REC0034 | B37: 2020-07-25 | C37: Google AdSense | D37: Advertising Income | E37: 22300 | F37: E | G37: E | H37: B2 | I37: IS-0110 | J37: 22300 | K37: 2020-08-05 | L37: =IF($Q37="N",0,SUMIFS(IncIncl,IncDocDate,"<="&$M$2,IncInvoice,$A37)-SUMIFS(IncPayAmount,IncDocDate,"<="&$M$2,IncPayDate,"<="&$M$2,IncInvoice,$A37)) -> 0 | M37: =P37-IF(IncTaxCount=2,SUM($N37:$O37),$N37:$N37) -> 22300 | N37: =$P37/(1+IF(ISERROR($F37),0,IF(ISNA(MATCH($F37,TaxCode,0)),0,OFFSET(Setup!$D$15,MATCH($F37,TaxCode,0),0,1,1)))+IF(ISERROR($G37),0,IF(ISNA(MATCH($G37,TaxCode,0)),0,OFFSET(Setup!$D$15,MATCH($G37,TaxCode,0),0,1,1))))*IF(ISERROR($F37),0,IF(ISNA(MATCH($F37,TaxCode,0)),0,OFFSET(Setup!$D$15,MATCH($F37,TaxCode,0),0,1,1))) -> 0 | O37: =$P37/(1+IF(ISERROR($F37),0,IF(ISNA(MATCH($F37,TaxCode,0)),0,OFFSET(Setup!$D$15,MATCH($F37,TaxCode,0),0,1,1)))+IF(ISERROR($G37),0,IF(ISNA(MATCH($G37,TaxCode,0)),0,OFFSET(Setup!$D$15,MATCH($G37,TaxCode,0),0,1,1))))*IF(ISERROR($G37),0,IF(ISNA(MATCH($G37,TaxCode,0)),0,OFFSET(Setup!$D$15,MATCH($G37,TaxCode,0),0,1,1))) -> 0 | P37: =E37 -> 22300 | Q37: =IF(ISNA(MATCH($A37,IncInvoice,0)),"N",IF(MATCH($A37,IncInvoice,0)=ROW($A37)-4,"Y","N")) -> Y | R37: =IF(AND(ISBLANK(K37)=FALSE,K37<B37),"E1",IF(AND(ISBLANK(I37)=FALSE,ISNA(MATCH($I37,AccountNo,0))),"E2",IF(AND(ISBLANK(H37)=FALSE,ISNA(MATCH($H37,BankCode,0))),"E3","-"))) -> -
A38: REC0035 | B38: 2020-08-01 | C38: ABC Bank | D38: Interest Received | E38: 166.24 | F38: E | G38: E | H38: B2 | I38: IS-0900 | J38: 166.24 | K38: 2020-08-01 | L38: =IF($Q38="N",0,SUMIFS(IncIncl,IncDocDate,"<="&$M$2,IncInvoice,$A38)-SUMIFS(IncPayAmount,IncDocDate,"<="&$M$2,IncPayDate,"<="&$M$2,IncInvoice,$A38)) -> 0 | M38: =P38-IF(IncTaxCount=2,SUM($N38:$O38),$N38:$N38) -> 166.24 | N38: =$P38/(1+IF(ISERROR($F38),0,IF(ISNA(MATCH($F38,TaxCode,0)),0,OFFSET(Setup!$D$15,MATCH($F38,TaxCode,0),0,1,1)))+IF(ISERROR($G38),0,IF(ISNA(MATCH($G38,TaxCode,0)),0,OFFSET(Setup!$D$15,MATCH($G38,TaxCode,0),0,1,1))))*IF(ISERROR($F38),0,IF(ISNA(MATCH($F38,TaxCode,0)),0,OFFSET(Setup!$D$15,MATCH($F38,TaxCode,0),0,1,1))) -> 0 | O38: =$P38/(1+IF(ISERROR($F38),0,IF(ISNA(MATCH($F38,TaxCode,0)),0,OFFSET(Setup!$D$15,MATCH($F38,TaxCode,0),0,1,1)))+IF(ISERROR($G38),0,IF(ISNA(MATCH($G38,TaxCode,0)),0,OFFSET(Setup!$D$15,MATCH($G38,TaxCode,0),0,1,1))))*IF(ISERROR($G38),0,IF(ISNA(MATCH($G38,TaxCode,0)),0,OFFSET(Setup!$D$15,MATCH($G38,TaxCode,0),0,1,1))) -> 0 | P38: 166.24 | Q38: Y | R38: -
A39: REC0036 | B39: 2020-08-07 | C39: ERP Software | D39: Commission Received | E39: 2185 | F39: A | G39: E | H39: B1 | I39: IS-0115 | J39: 2185 | K39: 2020-08-07 | L39: =IF($Q39="N",0,SUMIFS(IncIncl,IncDocDate,"<="&$M$2,IncInvoice,$A39)-SUMIFS(IncPayAmount,IncDocDate,"<="&$M$2,IncPayDate,"<="&$M$2,IncInvoice,$A39)) -> 0 | M39: =P39-IF(IncTaxCount=2,SUM($N39:$O39),$N39:$N39) -> 1900 | N39: =$P39/(1+IF(ISERROR($F39),0,IF(ISNA(MATCH($F39,TaxCode,0)),0,OFFSET(Setup!$D$15,MATCH($F39,TaxCode,0),0,1,1)))+IF(ISERROR($G39),0,IF(ISNA(MATCH($G39,TaxCode,0)),0,OFFSET(Setup!$D$15,MATCH($G39,TaxCode,0),0,1,1))))*IF(ISERROR($F39),0,IF(ISNA(MATCH($F39,TaxCode,0)),0,OFFSET(Setup!$D$15,MATCH($F39,TaxCode,0),0,1,1))) -> 285 | O39: =$P39/(1+IF(ISERROR($F39),0,IF(ISNA(MATCH($F39,TaxCode,0)),0,OFFSET(Setup!$D$15,MATCH($F39,TaxCode,0),0,1,1)))+IF(ISERROR($G39),0,IF(ISNA(MATCH($G39,TaxCode,0)),0,OFFSET(Setup!$D$15,MATCH($G39,TaxCode,0),0,1,1))))*IF(ISERROR($G39),0,IF(ISNA(MATCH($G39,TaxCode,0)),0,OFFSET(Setup!$D$15,MATCH($G39,TaxCode,0),0,1,1))) -> 0 | P39: 2185 | Q39: Y | R39: -
A40: IN0065 | B40: 2020-08-13 | C40: EC Estate Agents | D40: Software Sales | E40: 132250 | F40: A | G40: E | H40: B1 | I40: IS-0105 | J40: 132250 | K40: 2020-09-12 | L40: =IF($Q40="N",0,SUMIFS(IncIncl,IncDocDate,"<="&$M$2,IncInvoice,$A40)-SUMIFS(IncPayAmount,IncDocDate,"<="&$M$2,IncPayDate,"<="&$M$2,IncInvoice,$A40)) -> 0 | M40: =P40-IF(IncTaxCount=2,SUM($N40:$O40),$N40:$N40) -> 115000 | N40: =$P40/(1+IF(ISERROR($F40),0,IF(ISNA(MATCH($F40,TaxCode,0)),0,OFFSET(Setup!$D$15,MATCH($F40,TaxCode,0),0,1,1)))+IF(ISERROR($G40),0,IF(ISNA(MATCH($G40,TaxCode,0)),0,OFFSET(Setup!$D$15,MATCH($G40,TaxCode,0),0,1,1))))*IF(ISERROR($F40),0,IF(ISNA(MATCH($F40,TaxCode,0)),0,OFFSET(Setup!$D$15,MATCH($F40,TaxCode,0),0,1,1))) -> 17250 | O40: =$P40/(1+IF(ISERROR($F40),0,IF(ISNA(MATCH($F40,TaxCode,0)),0,OFFSET(Setup!$D$15,MATCH($F40,TaxCode,0),0,1,1)))+IF(ISERROR($G40),0,IF(ISNA(MATCH($G40,TaxCode,0)),0,OFFSET(Setup!$D$15,MATCH($G40,TaxCode,0),0,1,1))))*IF(ISERROR($G40),0,IF(ISNA(MATCH($G40,TaxCode,0)),0,OFFSET(Setup!$D$15,MATCH($G40,TaxCode,0),0,1,1))) -> 0 | P40: 132250 | Q40: Y | R40: -
A41: IN0066 | B41: 2020-08-17 | C41: The Paint Shop | D41: Software Sales | E41: 14915.5 | F41: A | G41: E | H41: B1 | I41: IS-0105 | J41: 14915.5 | K41: 2020-09-16 | L41: =IF($Q41="N",0,SUMIFS(IncIncl,IncDocDate,"<="&$M$2,IncInvoice,$A41)-SUMIFS(IncPayAmount,IncDocDate,"<="&$M$2,IncPayDate,"<="&$M$2,IncInvoice,$A41)) -> 0 | M41: =P41-IF(IncTaxCount=2,SUM($N41:$O41),$N41:$N41) -> 12970 | N41: =$P41/(1+IF(ISERROR($F41),0,IF(ISNA(MATCH($F41,TaxCode,0)),0,OFFSET(Setup!$D$15,MATCH($F41,TaxCode,0),0,1,1)))+IF(ISERROR($G41),0,IF(ISNA(MATCH($G41,TaxCode,0)),0,OFFSET(Setup!$D$15,MATCH($G41,TaxCode,0),0,1,1))))*IF(ISERROR($F41),0,IF(ISNA(MATCH($F41,TaxCode,0)),0,OFFSET(Setup!$D$15,MATCH($F41,TaxCode,0),0,1,1))) -> 1945.5 | O41: =$P41/(1+IF(ISERROR($F41),0,IF(ISNA(MATCH($F41,TaxCode,0)),0,OFFSET(Setup!$D$15,MATCH($F41,TaxCode,0),0,1,1)))+IF(ISERROR($G41),0,IF(ISNA(MATCH($G41,TaxCode,0)),0,OFFSET(Setup!$D$15,MATCH($G41,TaxCode,0),0,1,1))))*IF(ISERROR($G41),0,IF(ISNA(MATCH($G41,TaxCode,0)),0,OFFSET(Setup!$D$15,MATCH($G41,TaxCode,0),0,1,1))) -> 0 | P41: 14915.5 | Q41: Y | R41: -
A42: REC0037 | B42: 2020-08-25 | C42: Google AdSense | D42: Advertising Income | E42: 21400 | F42: E | G42: E | H42: B2 | I42: IS-0110 | J42: 21400 | K42: 2020-09-05 | L42: =IF($Q42="N",0,SUMIFS(IncIncl,IncDocDate,"<="&$M$2,IncInvoice,$A42)-SUMIFS(IncPayAmount,IncDocDate,"<="&$M$2,IncPayDate,"<="&$M$2,IncInvoice,$A42)) -> 0 | M42: =P42-IF(IncTaxCount=2,SUM($N42:$O42),$N42:$N42) -> 21400 | N42: =$P42/(1+IF(ISERROR($F42),0,IF(ISNA(MATCH($F42,TaxCode,0)),0,OFFSET(Setup!$D$15,MATCH($F42,TaxCode,0),0,1,1)))+IF(ISERROR($G42),0,IF(ISNA(MATCH($G42,TaxCode,0)),0,OFFSET(Setup!$D$15,MATCH($G42,TaxCode,0),0,1,1))))*IF(ISERROR($F42),0,IF(ISNA(MATCH($F42,TaxCode,0)),0,OFFSET(Setup!$D$15,MATCH($F42,TaxCode,0),0,1,1))) -> 0 | O42: =$P42/(1+IF(ISERROR($F42),0,IF(ISNA(MATCH($F42,TaxCode,0)),0,OFFSET(Setup!$D$15,MATCH($F42,TaxCode,0),0,1,1)))+IF(ISERROR($G42),0,IF(ISNA(MATCH($G42,TaxCode,0)),0,OFFSET(Setup!$D$15,MATCH($G42,TaxCode,0),0,1,1))))*IF(ISERROR($G42),0,IF(ISNA(MATCH($G42,TaxCode,0)),0,OFFSET(Setup!$D$15,MATCH($G42,TaxCode,0),0,1,1))) -> 0 | P42: 21400 | Q42: Y | R42: -
A43: REC0038 | B43: 2020-09-01 | C43: ABC Bank | D43: Interest Received | E43: 164.21 | F43: E | G43: E | H43: B2 | I43: IS-0900 | J43: 164.21 | K43: 2020-09-01 | L43: =IF($Q43="N",0,SUMIFS(IncIncl,IncDocDate,"<="&$M$2,IncInvoice,$A43)-SUMIFS(IncPayAmount,IncDocDate,"<="&$M$2,IncPayDate,"<="&$M$2,IncInvoice,$A43)) -> 0 | M43: =P43-IF(IncTaxCount=2,SUM($N43:$O43),$N43:$N43) -> 164.21 | N43: =$P43/(1+IF(ISERROR($F43),0,IF(ISNA(MATCH($F43,TaxCode,0)),0,OFFSET(Setup!$D$15,MATCH($F43,TaxCode,0),0,1,1)))+IF(ISERROR($G43),0,IF(ISNA(MATCH($G43,TaxCode,0)),0,OFFSET(Setup!$D$15,MATCH($G43,TaxCode,0),0,1,1))))*IF(ISERROR($F43),0,IF(ISNA(MATCH($F43,TaxCode,0)),0,OFFSET(Setup!$D$15,MATCH($F43,TaxCode,0),0,1,1))) -> 0 | O43: =$P43/(1+IF(ISERROR($F43),0,IF(ISNA(MATCH($F43,TaxCode,0)),0,OFFSET(Setup!$D$15,MATCH($F43,TaxCode,0),0,1,1)))+IF(ISERROR($G43),0,IF(ISNA(MATCH($G43,TaxCode,0)),0,OFFSET(Setup!$D$15,MATCH($G43,TaxCode,0),0,1,1))))*IF(ISERROR($G43),0,IF(ISNA(MATCH($G43,TaxCode,0)),0,OFFSET(Setup!$D$15,MATCH($G43,TaxCode,0),0,1,1))) -> 0 | P43: 164.21 | Q43: Y | R43: -
A44: REC0039 | B44: 2020-09-07 | C44: ERP Software | D44: Commission Received | E44: 2070 | F44: A | G44: E | H44: B1 | I44: IS-0115 | J44: 2070 | K44: 2020-09-07 | L44: =IF($Q44="N",0,SUMIFS(IncIncl,IncDocDate,"<="&$M$2,IncInvoice,$A44)-SUMIFS(IncPayAmount,IncDocDate,"<="&$M$2,IncPayDate,"<="&$M$2,IncInvoice,$A44)) -> 0 | M44: =P44-IF(IncTaxCount=2,SUM($N44:$O44),$N44:$N44) -> 1800 | N44: =$P44/(1+IF(ISERROR($F44),0,IF(ISNA(MATCH($F44,TaxCode,0)),0,OFFSET(Setup!$D$15,MATCH($F44,TaxCode,0),0,1,1)))+IF(ISERROR($G44),0,IF(ISNA(MATCH($G44,TaxCode,0)),0,OFFSET(Setup!$D$15,MATCH($G44,TaxCode,0),0,1,1))))*IF(ISERROR($F44),0,IF(ISNA(MATCH($F44,TaxCode,0)),0,OFFSET(Setup!$D$15,MATCH($F44,TaxCode,0),0,1,1))) -> 270 | O44: =$P44/(1+IF(ISERROR($F44),0,IF(ISNA(MATCH($F44,TaxCode,0)),0,OFFSET(Setup!$D$15,MATCH($F44,TaxCode,0),0,1,1)))+IF(ISERROR($G44),0,IF(ISNA(MATCH($G44,TaxCode,0)),0,OFFSET(Setup!$D$15,MATCH($G44,TaxCode,0),0,1,1))))*IF(ISERROR($G44),0,IF(ISNA(MATCH($G44,TaxCode,0)),0,OFFSET(Setup!$D$15,MATCH($G44,TaxCode,0),0,1,1))) -> 0 | P44: 2070 | Q44: Y | R44: -
A45: IN0067 | B45: 2020-09-12 | C45: Energy Incorporated | D45: Software Sales | E45: 55200 | F45: A | G45: E | H45: B1 | I45: IS-0105 | J45: 55200 | K45: 2020-09-30 | L45: =IF($Q45="N",0,SUMIFS(IncIncl,IncDocDate,"<="&$M$2,IncInvoice,$A45)-SUMIFS(IncPayAmount,IncDocDate,"<="&$M$2,IncPayDate,"<="&$M$2,IncInvoice,$A45)) -> 0 | M45: =P45-IF(IncTaxCount=2,SUM($N45:$O45),$N45:$N45) -> 48000 | N45: =$P45/(1+IF(ISERROR($F45),0,IF(ISNA(MATCH($F45,TaxCode,0)),0,OFFSET(Setup!$D$15,MATCH($F45,TaxCode,0),0,1,1)))+IF(ISERROR($G45),0,IF(ISNA(MATCH($G45,TaxCode,0)),0,OFFSET(Setup!$D$15,MATCH($G45,TaxCode,0),0,1,1))))*IF(ISERROR($F45),0,IF(ISNA(MATCH($F45,TaxCode,0)),0,OFFSET(Setup!$D$15,MATCH($F45,TaxCode,0),0,1,1))) -> 7200 | O45: =$P45/(1+IF(ISERROR($F45),0,IF(ISNA(MATCH($F45,TaxCode,0)),0,OFFSET(Setup!$D$15,MATCH($F45,TaxCode,0),0,1,1)))+IF(ISERROR($G45),0,IF(ISNA(MATCH($G45,TaxCode,0)),0,OFFSET(Setup!$D$15,MATCH($G45,TaxCode,0),0,1,1))))*IF(ISERROR($G45),0,IF(ISNA(MATCH($G45,TaxCode,0)),0,OFFSET(Setup!$D$15,MATCH($G45,TaxCode,0),0,1,1))) -> 0 | P45: 55200 | Q45: Y | R45: -
A46: IN0068 | B46: 2020-09-17 | C46: TRF Solutions | D46: Software Sales | E46: 130180 | F46: A | G46: E | H46: B1 | I46: IS-0105 | J46: 130180 | K46: 2020-10-04 | L46: =IF($Q46="N",0,SUMIFS(IncIncl,IncDocDate,"<="&$M$2,IncInvoice,$A46)-SUMIFS(IncPayAmount,IncDocDate,"<="&$M$2,IncPayDate,"<="&$M$2,IncInvoice,$A46)) -> 0 | M46: =P46-IF(IncTaxCount=2,SUM($N46:$O46),$N46:$N46) -> 113200 | N46: =$P46/(1+IF(ISERROR($F46),0,IF(ISNA(MATCH($F46,TaxCode,0)),0,OFFSET(Setup!$D$15,MATCH($F46,TaxCode,0),0,1,1)))+IF(ISERROR($G46),0,IF(ISNA(MATCH($G46,TaxCode,0)),0,OFFSET(Setup!$D$15,MATCH($G46,TaxCode,0),0,1,1))))*IF(ISERROR($F46),0,IF(ISNA(MATCH($F46,TaxCode,0)),0,OFFSET(Setup!$D$15,MATCH($F46,TaxCode,0),0,1,1))) -> 16980 | O46: =$P46/(1+IF(ISERROR($F46),0,IF(ISNA(MATCH($F46,TaxCode,0)),0,OFFSET(Setup!$D$15,MATCH($F46,TaxCode,0),0,1,1)))+IF(ISERROR($G46),0,IF(ISNA(MATCH($G46,TaxCode,0)),0,OFFSET(Setup!$D$15,MATCH($G46,TaxCode,0),0,1,1))))*IF(ISERROR($G46),0,IF(ISNA(MATCH($G46,TaxCode,0)),0,OFFSET(Setup!$D$15,MATCH($G46,TaxCode,0),0,1,1))) -> 0 | P46: 130180 | Q46: Y | R46: -
A47: REC0040 | B47: 2020-09-25 | C47: Google AdSense | D47: Advertising Income | E47: 15100 | F47: E | G47: E | H47: B2 | I47: IS-0110 | J47: 15100 | K47: 2020-10-05 | L47: =IF($Q47="N",0,SUMIFS(IncIncl,IncDocDate,"<="&$M$2,IncInvoice,$A47)-SUMIFS(IncPayAmount,IncDocDate,"<="&$M$2,IncPayDate,"<="&$M$2,IncInvoice,$A47)) -> 0 | M47: =P47-IF(IncTaxCount=2,SUM($N47:$O47),$N47:$N47) -> 15100 | N47: =$P47/(1+IF(ISERROR($F47),0,IF(ISNA(MATCH($F47,TaxCode,0)),0,OFFSET(Setup!$D$15,MATCH($F47,TaxCode,0),0,1,1)))+IF(ISERROR($G47),0,IF(ISNA(MATCH($G47,TaxCode,0)),0,OFFSET(Setup!$D$15,MATCH($G47,TaxCode,0),0,1,1))))*IF(ISERROR($F47),0,IF(ISNA(MATCH($F47,TaxCode,0)),0,OFFSET(Setup!$D$15,MATCH($F47,TaxCode,0),0,1,1))) -> 0 | O47: =$P47/(1+IF(ISERROR($F47),0,IF(ISNA(MATCH($F47,TaxCode,0)),0,OFFSET(Setup!$D$15,MATCH($F47,TaxCode,0),0,1,1)))+IF(ISERROR($G47),0,IF(ISNA(MATCH($G47,TaxCode,0)),0,OFFSET(Setup!$D$15,MATCH($G47,TaxCode,0),0,1,1))))*IF(ISERROR($G47),0,IF(ISNA(MATCH($G47,TaxCode,0)),0,OFFSET(Setup!$D$15,MATCH($G47,TaxCode,0),0,1,1))) -> 0 | P47: 15100 | Q47: Y | R47: -
A48: REC0041 | B48: 2020-10-01 | C48: ABC Bank | D48: Interest Received | E48: 165.89 | F48: E | G48: E | H48: B2 | I48: IS-0900 | J48: 165.89 | K48: 2020-10-01 | L48: =IF($Q48="N",0,SUMIFS(IncIncl,IncDocDate,"<="&$M$2,IncInvoice,$A48)-SUMIFS(IncPayAmount,IncDocDate,"<="&$M$2,IncPayDate,"<="&$M$2,IncInvoice,$A48)) -> 0 | M48: =P48-IF(IncTaxCount=2,SUM($N48:$O48),$N48:$N48) -> 165.89 | N48: =$P48/(1+IF(ISERROR($F48),0,IF(ISNA(MATCH($F48,TaxCode,0)),0,OFFSET(Setup!$D$15,MATCH($F48,TaxCode,0),0,1,1)))+IF(ISERROR($G48),0,IF(ISNA(MATCH($G48,TaxCode,0)),0,OFFSET(Setup!$D$15,MATCH($G48,TaxCode,0),0,1,1))))*IF(ISERROR($F48),0,IF(ISNA(MATCH($F48,TaxCode,0)),0,OFFSET(Setup!$D$15,MATCH($F48,TaxCode,0),0,1,1))) -> 0 | O48: =$P48/(1+IF(ISERROR($F48),0,IF(ISNA(MATCH($F48,TaxCode,0)),0,OFFSET(Setup!$D$15,MATCH($F48,TaxCode,0),0,1,1)))+IF(ISERROR($G48),0,IF(ISNA(MATCH($G48,TaxCode,0)),0,OFFSET(Setup!$D$15,MATCH($G48,TaxCode,0),0,1,1))))*IF(ISERROR($G48),0,IF(ISNA(MATCH($G48,TaxCode,0)),0,OFFSET(Setup!$D$15,MATCH($G48,TaxCode,0),0,1,1))) -> 0 | P48: 165.89 | Q48: Y | R48: -
A49: REC0042 | B49: 2020-10-07 | C49: ERP Software | D49: Commission Received | E49: 2530 | F49: A | G49: E | H49: B1 | I49: IS-0115 | J49: 2530 | K49: 2020-10-07 | L49: =IF($Q49="N",0,SUMIFS(IncIncl,IncDocDate,"<="&$M$2,IncInvoice,$A49)-SUMIFS(IncPayAmount,IncDocDate,"<="&$M$2,IncPayDate,"<="&$M$2,IncInvoice,$A49)) -> 0 | M49: =P49-IF(IncTaxCount=2,SUM($N49:$O49),$N49:$N49) -> 2200 | N49: =$P49/(1+IF(ISERROR($F49),0,IF(ISNA(MATCH($F49,TaxCode,0)),0,OFFSET(Setup!$D$15,MATCH($F49,TaxCode,0),0,1,1)))+IF(ISERROR($G49),0,IF(ISNA(MATCH($G49,TaxCode,0)),0,OFFSET(Setup!$D$15,MATCH($G49,TaxCode,0),0,1,1))))*IF(ISERROR($F49),0,IF(ISNA(MATCH($F49,TaxCode,0)),0,OFFSET(Setup!$D$15,MATCH($F49,TaxCode,0),0,1,1))) -> 330 | O49: =$P49/(1+IF(ISERROR($F49),0,IF(ISNA(MATCH($F49,TaxCode,0)),0,OFFSET(Setup!$D$15,MATCH($F49,TaxCode,0),0,1,1)))+IF(ISERROR($G49),0,IF(ISNA(MATCH($G49,TaxCode,0)),0,OFFSET(Setup!$D$15,MATCH($G49,TaxCode,0),0,1,1))))*IF(ISERROR($G49),0,IF(ISNA(MATCH($G49,TaxCode,0)),0,OFFSET(Setup!$D$15,MATCH($G49,TaxCode,0),0,1,1))) -> 0 | P49: 2530 | Q49: Y | R49: -
A50: IN0069 | B50: 2020-10-08 | C50: EC Estate Agents | D50: Software Sales | E50: 25564.5 | F50: A | G50: E | H50: B1 | I50: IS-0105 | J50: 25564.5 | K50: 2020-10-13 | L50: =IF($Q50="N",0,SUMIFS(IncIncl,IncDocDate,"<="&$M$2,IncInvoice,$A50)-SUMIFS(IncPayAmount,IncDocDate,"<="&$M$2,IncPayDate,"<="&$M$2,IncInvoice,$A50)) -> 0 | M50: =P50-IF(IncTaxCount=2,SUM($N50:$O50),$N50:$N50) -> 22230 | N50: =$P50/(1+IF(ISERROR($F50),0,IF(ISNA(MATCH($F50,TaxCode,0)),0,OFFSET(Setup!$D$15,MATCH($F50,TaxCode,0),0,1,1)))+IF(ISERROR($G50),0,IF(ISNA(MATCH($G50,TaxCode,0)),0,OFFSET(Setup!$D$15,MATCH($G50,TaxCode,0),0,1,1))))*IF(ISERROR($F50),0,IF(ISNA(MATCH($F50,TaxCode,0)),0,OFFSET(Setup!$D$15,MATCH($F50,TaxCode,0),0,1,1))) -> 3334.5 | O50: =$P50/(1+IF(ISERROR($F50),0,IF(ISNA(MATCH($F50,TaxCode,0)),0,OFFSET(Setup!$D$15,MATCH($F50,TaxCode,0),0,1,1)))+IF(ISERROR($G50),0,IF(ISNA(MATCH($G50,TaxCode,0)),0,OFFSET(Setup!$D$15,MATCH($G50,TaxCode,0),0,1,1))))*IF(ISERROR($G50),0,IF(ISNA(MATCH($G50,TaxCode,0)),0,OFFSET(Setup!$D$15,MATCH($G50,TaxCode,0),0,1,1))) -> 0 | P50: 25564.5 | Q50: Y | R50: -
A51: IN0070 | B51: 2020-10-08 | C51: GP Accountants | D51: Software Sales | E51: 33120 | F51: A | G51: E | H51: B1 | I51: IS-0105 | J51: 33120 | K51: 2020-10-13 | L51: =IF($Q51="N",0,SUMIFS(IncIncl,IncDocDate,"<="&$M$2,IncInvoice,$A51)-SUMIFS(IncPayAmount,IncDocDate,"<="&$M$2,IncPayDate,"<="&$M$2,IncInvoice,$A51)) -> 0 | M51: =P51-IF(IncTaxCount=2,SUM($N51:$O51),$N51:$N51) -> 28800 | N51: =$P51/(1+IF(ISERROR($F51),0,IF(ISNA(MATCH($F51,TaxCode,0)),0,OFFSET(Setup!$D$15,MATCH($F51,TaxCode,0),0,1,1)))+IF(ISERROR($G51),0,IF(ISNA(MATCH($G51,TaxCode,0)),0,OFFSET(Setup!$D$15,MATCH($G51,TaxCode,0),0,1,1))))*IF(ISERROR($F51),0,IF(ISNA(MATCH($F51,TaxCode,0)),0,OFFSET(Setup!$D$15,MATCH($F51,TaxCode,0),0,1,1))) -> 4320 | O51: =$P51/(1+IF(ISERROR($F51),0,IF(ISNA(MATCH($F51,TaxCode,0)),0,OFFSET(Setup!$D$15,MATCH($F51,TaxCode,0),0,1,1)))+IF(ISERROR($G51),0,IF(ISNA(MATCH($G51,TaxCode,0)),0,OFFSET(Setup!$D$15,MATCH($G51,TaxCode,0),0,1,1))))*IF(ISERROR($G51),0,IF(ISNA(MATCH($G51,TaxCode,0)),0,OFFSET(Setup!$D$15,MATCH($G51,TaxCode,0),0,1,1))) -> 0 | P51: 33120 | Q51: Y | R51: -
A52: REC0043 | B52: 2020-10-25 | C52: Google AdSense | D52: Advertising Income | E52: 18400 | F52: E | G52: E | H52: B2 | I52: IS-0110 | J52: 18400 | K52: 2020-11-05 | L52: =IF($Q52="N",0,SUMIFS(IncIncl,IncDocDate,"<="&$M$2,IncInvoice,$A52)-SUMIFS(IncPayAmount,IncDocDate,"<="&$M$2,IncPayDate,"<="&$M$2,IncInvoice,$A52)) -> 0 | M52: =P52-IF(IncTaxCount=2,SUM($N52:$O52),$N52:$N52) -> 18400 | N52: =$P52/(1+IF(ISERROR($F52),0,IF(ISNA(MATCH($F52,TaxCode,0)),0,OFFSET(Setup!$D$15,MATCH($F52,TaxCode,0),0,1,1)))+IF(ISERROR($G52),0,IF(ISNA(MATCH($G52,TaxCode,0)),0,OFFSET(Setup!$D$15,MATCH($G52,TaxCode,0),0,1,1))))*IF(ISERROR($F52),0,IF(ISNA(MATCH($F52,TaxCode,0)),0,OFFSET(Setup!$D$15,MATCH($F52,TaxCode,0),0,1,1))) -> 0 | O52: =$P52/(1+IF(ISERROR($F52),0,IF(ISNA(MATCH($F52,TaxCode,0)),0,OFFSET(Setup!$D$15,MATCH($F52,TaxCode,0),0,1,1)))+IF(ISERROR($G52),0,IF(ISNA(MATCH($G52,TaxCode,0)),0,OFFSET(Setup!$D$15,MATCH($G52,TaxCode,0),0,1,1))))*IF(ISERROR($G52),0,IF(ISNA(MATCH($G52,TaxCode,0)),0,OFFSET(Setup!$D$15,MATCH($G52,TaxCode,0),0,1,1))) -> 0 | P52: 18400 | Q52: Y | R52: -
A53: IN0071 | B53: 2020-10-31 | C53: The Paint Shop | D53: Software Sales | E53: 144325 | F53: A | G53: E | H53: B1 | I53: IS-0105 | J53: 72000 | K53: 2020-11-30 | L53: =IF($Q53="N",0,SUMIFS(IncIncl,IncDocDate,"<="&$M$2,IncInvoice,$A53)-SUMIFS(IncPayAmount,IncDocDate,"<="&$M$2,IncPayDate,"<="&$M$2,IncInvoice,$A53)) -> 0 | M53: =P53-IF(IncTaxCount=2,SUM($N53:$O53),$N53:$N53) -> 125500 | N53: =$P53/(1+IF(ISERROR($F53),0,IF(ISNA(MATCH($F53,TaxCode,0)),0,OFFSET(Setup!$D$15,MATCH($F53,TaxCode,0),0,1,1)))+IF(ISERROR($G53),0,IF(ISNA(MATCH($G53,TaxCode,0)),0,OFFSET(Setup!$D$15,MATCH($G53,TaxCode,0),0,1,1))))*IF(ISERROR($F53),0,IF(ISNA(MATCH($F53,TaxCode,0)),0,OFFSET(Setup!$D$15,MATCH($F53,TaxCode,0),0,1,1))) -> 18825 | O53: =$P53/(1+IF(ISERROR($F53),0,IF(ISNA(MATCH($F53,TaxCode,0)),0,OFFSET(Setup!$D$15,MATCH($F53,TaxCode,0),0,1,1)))+IF(ISERROR($G53),0,IF(ISNA(MATCH($G53,TaxCode,0)),0,OFFSET(Setup!$D$15,MATCH($G53,TaxCode,0),0,1,1))))*IF(ISERROR($G53),0,IF(ISNA(MATCH($G53,TaxCode,0)),0,OFFSET(Setup!$D$15,MATCH($G53,TaxCode,0),0,1,1))) -> 0 | P53: 144325 | Q53: Y | R53: -
A54: IN0071 | B54: 2020-10-31 | C54: The Paint Shop | D54: Software Sales | E54: 0 | F54: A | G54: E | H54: B1 | I54: IS-0105 | J54: 72325 | K54: 2021-01-10 | L54: =IF($Q54="N",0,SUMIFS(IncIncl,IncDocDate,"<="&$M$2,IncInvoice,$A54)-SUMIFS(IncPayAmount,IncDocDate,"<="&$M$2,IncPayDate,"<="&$M$2,IncInvoice,$A54)) -> 0 | M54: =P54-IF(IncTaxCount=2,SUM($N54:$O54),$N54:$N54) -> 0 | N54: =$P54/(1+IF(ISERROR($F54),0,IF(ISNA(MATCH($F54,TaxCode,0)),0,OFFSET(Setup!$D$15,MATCH($F54,TaxCode,0),0,1,1)))+IF(ISERROR($G54),0,IF(ISNA(MATCH($G54,TaxCode,0)),0,OFFSET(Setup!$D$15,MATCH($G54,TaxCode,0),0,1,1))))*IF(ISERROR($F54),0,IF(ISNA(MATCH($F54,TaxCode,0)),0,OFFSET(Setup!$D$15,MATCH($F54,TaxCode,0),0,1,1))) -> 0 | O54: =$P54/(1+IF(ISERROR($F54),0,IF(ISNA(MATCH($F54,TaxCode,0)),0,OFFSET(Setup!$D$15,MATCH($F54,TaxCode,0),0,1,1)))+IF(ISERROR($G54),0,IF(ISNA(MATCH($G54,TaxCode,0)),0,OFFSET(Setup!$D$15,MATCH($G54,TaxCode,0),0,1,1))))*IF(ISERROR($G54),0,IF(ISNA(MATCH($G54,TaxCode,0)),0,OFFSET(Setup!$D$15,MATCH($G54,TaxCode,0),0,1,1))) -> 0 | P54: 0 | Q54: N | R54: -
A55: REC0044 | B55: 2020-11-01 | C55: ABC Bank | D55: Interest Received | E55: 167.25 | F55: E | G55: E | H55: B2 | I55: IS-0900 | J55: 167.25 | K55: 2020-11-01 | L55: =IF($Q55="N",0,SUMIFS(IncIncl,IncDocDate,"<="&$M$2,IncInvoice,$A55)-SUMIFS(IncPayAmount,IncDocDate,"<="&$M$2,IncPayDate,"<="&$M$2,IncInvoice,$A55)) -> 0 | M55: =P55-IF(IncTaxCount=2,SUM($N55:$O55),$N55:$N55) -> 167.25 | N55: =$P55/(1+IF(ISERROR($F55),0,IF(ISNA(MATCH($F55,TaxCode,0)),0,OFFSET(Setup!$D$15,MATCH($F55,TaxCode,0),0,1,1)))+IF(ISERROR($G55),0,IF(ISNA(MATCH($G55,TaxCode,0)),0,OFFSET(Setup!$D$15,MATCH($G55,TaxCode,0),0,1,1))))*IF(ISERROR($F55),0,IF(ISNA(MATCH($F55,TaxCode,0)),0,OFFSET(Setup!$D$15,MATCH($F55,TaxCode,0),0,1,1))) -> 0 | O55: =$P55/(1+IF(ISERROR($F55),0,IF(ISNA(MATCH($F55,TaxCode,0)),0,OFFSET(Setup!$D$15,MATCH($F55,TaxCode,0),0,1,1)))+IF(ISERROR($G55),0,IF(ISNA(MATCH($G55,TaxCode,0)),0,OFFSET(Setup!$D$15,MATCH($G55,TaxCode,0),0,1,1))))*IF(ISERROR($G55),0,IF(ISNA(MATCH($G55,TaxCode,0)),0,OFFSET(Setup!$D$15,MATCH($G55,TaxCode,0),0,1,1))) -> 0 | P55: 167.25 | Q55: Y | R55: -
A56: IN0072 | B56: 2020-11-03 | C56: PTY Consultants | D56: Software Sales | E56: 3588 | F56: A | G56: E | H56: B1 | I56: IS-0105 | J56: 3588 | K56: 2020-12-03 | L56: =IF($Q56="N",0,SUMIFS(IncIncl,IncDocDate,"<="&$M$2,IncInvoice,$A56)-SUMIFS(IncPayAmount,IncDocDate,"<="&$M$2,IncPayDate,"<="&$M$2,IncInvoice,$A56)) -> -4.547473509e-13 | M56: =P56-IF(IncTaxCount=2,SUM($N56:$O56),$N56:$N56) -> 3120 | N56: =$P56/(1+IF(ISERROR($F56),0,IF(ISNA(MATCH($F56,TaxCode,0)),0,OFFSET(Setup!$D$15,MATCH($F56,TaxCode,0),0,1,1)))+IF(ISERROR($G56),0,IF(ISNA(MATCH($G56,TaxCode,0)),0,OFFSET(Setup!$D$15,MATCH($G56,TaxCode,0),0,1,1))))*IF(ISERROR($F56),0,IF(ISNA(MATCH($F56,TaxCode,0)),0,OFFSET(Setup!$D$15,MATCH($F56,TaxCode,0),0,1,1))) -> 468 | O56: =$P56/(1+IF(ISERROR($F56),0,IF(ISNA(MATCH($F56,TaxCode,0)),0,OFFSET(Setup!$D$15,MATCH($F56,TaxCode,0),0,1,1)))+IF(ISERROR($G56),0,IF(ISNA(MATCH($G56,TaxCode,0)),0,OFFSET(Setup!$D$15,MATCH($G56,TaxCode,0),0,1,1))))*IF(ISERROR($G56),0,IF(ISNA(MATCH($G56,TaxCode,0)),0,OFFSET(Setup!$D$15,MATCH($G56,TaxCode,0),0,1,1))) -> 0 | P56: 3588 | Q56: Y | R56: -
A57: REC0045 | B57: 2020-11-07 | C57: ERP Software | D57: Commission Received | E57: 2760 | F57: A | G57: E | H57: B1 | I57: IS-0115 | J57: 2760 | K57: 2020-11-07 | L57: =IF($Q57="N",0,SUMIFS(IncIncl,IncDocDate,"<="&$M$2,IncInvoice,$A57)-SUMIFS(IncPayAmount,IncDocDate,"<="&$M$2,IncPayDate,"<="&$M$2,IncInvoice,$A57)) -> 0 | M57: =P57-IF(IncTaxCount=2,SUM($N57:$O57),$N57:$N57) -> 2400 | N57: =$P57/(1+IF(ISERROR($F57),0,IF(ISNA(MATCH($F57,TaxCode,0)),0,OFFSET(Setup!$D$15,MATCH($F57,TaxCode,0),0,1,1)))+IF(ISERROR($G57),0,IF(ISNA(MATCH($G57,TaxCode,0)),0,OFFSET(Setup!$D$15,MATCH($G57,TaxCode,0),0,1,1))))*IF(ISERROR($F57),0,IF(ISNA(MATCH($F57,TaxCode,0)),0,OFFSET(Setup!$D$15,MATCH($F57,TaxCode,0),0,1,1))) -> 360 | O57: =$P57/(1+IF(ISERROR($F57),0,IF(ISNA(MATCH($F57,TaxCode,0)),0,OFFSET(Setup!$D$15,MATCH($F57,TaxCode,0),0,1,1)))+IF(ISERROR($G57),0,IF(ISNA(MATCH($G57,TaxCode,0)),0,OFFSET(Setup!$D$15,MATCH($G57,TaxCode,0),0,1,1))))*IF(ISERROR($G57),0,IF(ISNA(MATCH($G57,TaxCode,0)),0,OFFSET(Setup!$D$15,MATCH($G57,TaxCode,0),0,1,1))) -> 0 | P57: 2760 | Q57: Y | R57: -
A58: REC0046 | B58: 2020-11-25 | C58: Google AdSense | D58: Advertising Income | E58: 22150 | F58: E | G58: E | H58: B2 | I58: IS-0110 | J58: 22150 | K58: 2020-12-05 | L58: =IF($Q58="N",0,SUMIFS(IncIncl,IncDocDate,"<="&$M$2,IncInvoice,$A58)-SUMIFS(IncPayAmount,IncDocDate,"<="&$M$2,IncPayDate,"<="&$M$2,IncInvoice,$A58)) -> 0 | M58: =P58-IF(IncTaxCount=2,SUM($N58:$O58),$N58:$N58) -> 22150 | N58: =$P58/(1+IF(ISERROR($F58),0,IF(ISNA(MATCH($F58,TaxCode,0)),0,OFFSET(Setup!$D$15,MATCH($F58,TaxCode,0),0,1,1)))+IF(ISERROR($G58),0,IF(ISNA(MATCH($G58,TaxCode,0)),0,OFFSET(Setup!$D$15,MATCH($G58,TaxCode,0),0,1,1))))*IF(ISERROR($F58),0,IF(ISNA(MATCH($F58,TaxCode,0)),0,OFFSET(Setup!$D$15,MATCH($F58,TaxCode,0),0,1,1))) -> 0 | O58: =$P58/(1+IF(ISERROR($F58),0,IF(ISNA(MATCH($F58,TaxCode,0)),0,OFFSET(Setup!$D$15,MATCH($F58,TaxCode,0),0,1,1)))+IF(ISERROR($G58),0,IF(ISNA(MATCH($G58,TaxCode,0)),0,OFFSET(Setup!$D$15,MATCH($G58,TaxCode,0),0,1,1))))*IF(ISERROR($G58),0,IF(ISNA(MATCH($G58,TaxCode,0)),0,OFFSET(Setup!$D$15,MATCH($G58,TaxCode,0),0,1,1))) -> 0 | P58: 22150 | Q58: Y | R58: -
A59: IN0073 | B59: 2020-11-29 | C59: CC Supplies | D59: Software Sales | E59: 15180 | F59: A | G59: E | H59: B1 | I59: IS-0105 | J59: 15180 | K59: 2020-12-21 | L59: =IF($Q59="N",0,SUMIFS(IncIncl,IncDocDate,"<="&$M$2,IncInvoice,$A59)-SUMIFS(IncPayAmount,IncDocDate,"<="&$M$2,IncPayDate,"<="&$M$2,IncInvoice,$A59)) -> -1.818989404e-12 | M59: =P59-IF(IncTaxCount=2,SUM($N59:$O59),$N59:$N59) -> 13200 | N59: =$P59/(1+IF(ISERROR($F59),0,IF(ISNA(MATCH($F59,TaxCode,0)),0,OFFSET(Setup!$D$15,MATCH($F59,TaxCode,0),0,1,1)))+IF(ISERROR($G59),0,IF(ISNA(MATCH($G59,TaxCode,0)),0,OFFSET(Setup!$D$15,MATCH($G59,TaxCode,0),0,1,1))))*IF(ISERROR($F59),0,IF(ISNA(MATCH($F59,TaxCode,0)),0,OFFSET(Setup!$D$15,MATCH($F59,TaxCode,0),0,1,1))) -> 1980 | O59: =$P59/(1+IF(ISERROR($F59),0,IF(ISNA(MATCH($F59,TaxCode,0)),0,OFFSET(Setup!$D$15,MATCH($F59,TaxCode,0),0,1,1)))+IF(ISERROR($G59),0,IF(ISNA(MATCH($G59,TaxCode,0)),0,OFFSET(Setup!$D$15,MATCH($G59,TaxCode,0),0,1,1))))*IF(ISERROR($G59),0,IF(ISNA(MATCH($G59,TaxCode,0)),0,OFFSET(Setup!$D$15,MATCH($G59,TaxCode,0),0,1,1))) -> 0 | P59: 15180 | Q59: Y | R59: -
A60: IN0074 | B60: 2020-11-29 | C60: XX Building Supplies | D60: Software Sales | E60: 132250 | F60: A | G60: E | H60: B1 | I60: IS-0105 | J60: 132250 | K60: 2020-12-29 | L60: =IF($Q60="N",0,SUMIFS(IncIncl,IncDocDate,"<="&$M$2,IncInvoice,$A60)-SUMIFS(IncPayAmount,IncDocDate,"<="&$M$2,IncPayDate,"<="&$M$2,IncInvoice,$A60)) -> 0 | M60: =P60-IF(IncTaxCount=2,SUM($N60:$O60),$N60:$N60) -> 115000 | N60: =$P60/(1+IF(ISERROR($F60),0,IF(ISNA(MATCH($F60,TaxCode,0)),0,OFFSET(Setup!$D$15,MATCH($F60,TaxCode,0),0,1,1)))+IF(ISERROR($G60),0,IF(ISNA(MATCH($G60,TaxCode,0)),0,OFFSET(Setup!$D$15,MATCH($G60,TaxCode,0),0,1,1))))*IF(ISERROR($F60),0,IF(ISNA(MATCH($F60,TaxCode,0)),0,OFFSET(Setup!$D$15,MATCH($F60,TaxCode,0),0,1,1))) -> 17250 | O60: =$P60/(1+IF(ISERROR($F60),0,IF(ISNA(MATCH($F60,TaxCode,0)),0,OFFSET(Setup!$D$15,MATCH($F60,TaxCode,0),0,1,1)))+IF(ISERROR($G60),0,IF(ISNA(MATCH($G60,TaxCode,0)),0,OFFSET(Setup!$D$15,MATCH($G60,TaxCode,0),0,1,1))))*IF(ISERROR($G60),0,IF(ISNA(MATCH($G60,TaxCode,0)),0,OFFSET(Setup!$D$15,MATCH($G60,TaxCode,0),0,1,1))) -> 0 | P60: 132250 | Q60: Y | R60: -
A61: REC0047 | B61: 2020-12-01 | C61: ABC Bank | D61: Interest Received | E61: 166.45 | F61: E | G61: E | H61: B2 | I61: IS-0900 | J61: 166.45 | K61: 2020-12-01 | L61: =IF($Q61="N",0,SUMIFS(IncIncl,IncDocDate,"<="&$M$2,IncInvoice,$A61)-SUMIFS(IncPayAmount,IncDocDate,"<="&$M$2,IncPayDate,"<="&$M$2,IncInvoice,$A61)) -> 0 | M61: =P61-IF(IncTaxCount=2,SUM($N61:$O61),$N61:$N61) -> 166.45 | N61: =$P61/(1+IF(ISERROR($F61),0,IF(ISNA(MATCH($F61,TaxCode,0)),0,OFFSET(Setup!$D$15,MATCH($F61,TaxCode,0),0,1,1)))+IF(ISERROR($G61),0,IF(ISNA(MATCH($G61,TaxCode,0)),0,OFFSET(Setup!$D$15,MATCH($G61,TaxCode,0),0,1,1))))*IF(ISERROR($F61),0,IF(ISNA(MATCH($F61,TaxCode,0)),0,OFFSET(Setup!$D$15,MATCH($F61,TaxCode,0),0,1,1))) -> 0 | O61: =$P61/(1+IF(ISERROR($F61),0,IF(ISNA(MATCH($F61,TaxCode,0)),0,OFFSET(Setup!$D$15,MATCH($F61,TaxCode,0),0,1,1)))+IF(ISERROR($G61),0,IF(ISNA(MATCH($G61,TaxCode,0)),0,OFFSET(Setup!$D$15,MATCH($G61,TaxCode,0),0,1,1))))*IF(ISERROR($G61),0,IF(ISNA(MATCH($G61,TaxCode,0)),0,OFFSET(Setup!$D$15,MATCH($G61,TaxCode,0),0,1,1))) -> 0 | P61: 166.45 | Q61: Y | R61: -
A62: REC0048 | B62: 2020-12-07 | C62: ERP Software | D62: Commission Received | E62: 1771 | F62: A | G62: E | H62: B1 | I62: IS-0115 | J62: 1771 | K62: 2020-12-07 | L62: =IF($Q62="N",0,SUMIFS(IncIncl,IncDocDate,"<="&$M$2,IncInvoice,$A62)-SUMIFS(IncPayAmount,IncDocDate,"<="&$M$2,IncPayDate,"<="&$M$2,IncInvoice,$A62)) -> 0 | M62: =P62-IF(IncTaxCount=2,SUM($N62:$O62),$N62:$N62) -> 1540 | N62: =$P62/(1+IF(ISERROR($F62),0,IF(ISNA(MATCH($F62,TaxCode,0)),0,OFFSET(Setup!$D$15,MATCH($F62,TaxCode,0),0,1,1)))+IF(ISERROR($G62),0,IF(ISNA(MATCH($G62,TaxCode,0)),0,OFFSET(Setup!$D$15,MATCH($G62,TaxCode,0),0,1,1))))*IF(ISERROR($F62),0,IF(ISNA(MATCH($F62,TaxCode,0)),0,OFFSET(Setup!$D$15,MATCH($F62,TaxCode,0),0,1,1))) -> 231 | O62: =$P62/(1+IF(ISERROR($F62),0,IF(ISNA(MATCH($F62,TaxCode,0)),0,OFFSET(Setup!$D$15,MATCH($F62,TaxCode,0),0,1,1)))+IF(ISERROR($G62),0,IF(ISNA(MATCH($G62,TaxCode,0)),0,OFFSET(Setup!$D$15,MATCH($G62,TaxCode,0),0,1,1))))*IF(ISERROR($G62),0,IF(ISNA(MATCH($G62,TaxCode,0)),0,OFFSET(Setup!$D$15,MATCH($G62,TaxCode,0),0,1,1))) -> 0 | P62: 1771 | Q62: Y | R62: -
A63: IN0075 | B63: 2020-12-12 | C63: Energy Incorporated | D63: Software Sales | E63: 115000 | F63: A | G63: E | H63: B1 | I63: IS-0105 | J63: 115000 | K63: 2021-01-02 | L63: =IF($Q63="N",0,SUMIFS(IncIncl,IncDocDate,"<="&$M$2,IncInvoice,$A63)-SUMIFS(IncPayAmount,IncDocDate,"<="&$M$2,IncPayDate,"<="&$M$2,IncInvoice,$A63)) -> 0 | M63: =P63-IF(IncTaxCount=2,SUM($N63:$O63),$N63:$N63) -> 100000 | N63: =$P63/(1+IF(ISERROR($F63),0,IF(ISNA(MATCH($F63,TaxCode,0)),0,OFFSET(Setup!$D$15,MATCH($F63,TaxCode,0),0,1,1)))+IF(ISERROR($G63),0,IF(ISNA(MATCH($G63,TaxCode,0)),0,OFFSET(Setup!$D$15,MATCH($G63,TaxCode,0),0,1,1))))*IF(ISERROR($F63),0,IF(ISNA(MATCH($F63,TaxCode,0)),0,OFFSET(Setup!$D$15,MATCH($F63,TaxCode,0),0,1,1))) -> 15000 | O63: =$P63/(1+IF(ISERROR($F63),0,IF(ISNA(MATCH($F63,TaxCode,0)),0,OFFSET(Setup!$D$15,MATCH($F63,TaxCode,0),0,1,1)))+IF(ISERROR($G63),0,IF(ISNA(MATCH($G63,TaxCode,0)),0,OFFSET(Setup!$D$15,MATCH($G63,TaxCode,0),0,1,1))))*IF(ISERROR($G63),0,IF(ISNA(MATCH($G63,TaxCode,0)),0,OFFSET(Setup!$D$15,MATCH($G63,TaxCode,0),0,1,1))) -> 0 | P63: 115000 | Q63: Y | R63: -
A64: IN0076 | B64: 2020-12-25 | C64: IT Solutions | D64: Software Sales | E64: 13045 | F64: E | G64: E | H64: B1 | I64: IS-0105 | J64: 13045 | K64: 2021-01-11 | L64: =IF($Q64="N",0,SUMIFS(IncIncl,IncDocDate,"<="&$M$2,IncInvoice,$A64)-SUMIFS(IncPayAmount,IncDocDate,"<="&$M$2,IncPayDate,"<="&$M$2,IncInvoice,$A64)) -> 0 | M64: =P64-IF(IncTaxCount=2,SUM($N64:$O64),$N64:$N64) -> 13045 | N64: =$P64/(1+IF(ISERROR($F64),0,IF(ISNA(MATCH($F64,TaxCode,0)),0,OFFSET(Setup!$D$15,MATCH($F64,TaxCode,0),0,1,1)))+IF(ISERROR($G64),0,IF(ISNA(MATCH($G64,TaxCode,0)),0,OFFSET(Setup!$D$15,MATCH($G64,TaxCode,0),0,1,1))))*IF(ISERROR($F64),0,IF(ISNA(MATCH($F64,TaxCode,0)),0,OFFSET(Setup!$D$15,MATCH($F64,TaxCode,0),0,1,1))) -> 0 | O64: =$P64/(1+IF(ISERROR($F64),0,IF(ISNA(MATCH($F64,TaxCode,0)),0,OFFSET(Setup!$D$15,MATCH($F64,TaxCode,0),0,1,1)))+IF(ISERROR($G64),0,IF(ISNA(MATCH($G64,TaxCode,0)),0,OFFSET(Setup!$D$15,MATCH($G64,TaxCode,0),0,1,1))))*IF(ISERROR($G64),0,IF(ISNA(MATCH($G64,TaxCode,0)),0,OFFSET(Setup!$D$15,MATCH($G64,TaxCode,0),0,1,1))) -> 0 | P64: 13045 | Q64: Y | R64: -
A65: REC0049 | B65: 2020-12-25 | C65: Google AdSense | D65: Advertising Income | E65: 10320 | F65: E | G65: E | H65: B2 | I65: IS-0110 | J65: 10320 | K65: 2021-01-05 | L65: =IF($Q65="N",0,SUMIFS(IncIncl,IncDocDate,"<="&$M$2,IncInvoice,$A65)-SUMIFS(IncPayAmount,IncDocDate,"<="&$M$2,IncPayDate,"<="&$M$2,IncInvoice,$A65)) -> 0 | M65: =P65-IF(IncTaxCount=2,SUM($N65:$O65),$N65:$N65) -> 10320 | N65: =$P65/(1+IF(ISERROR($F65),0,IF(ISNA(MATCH($F65,TaxCode,0)),0,OFFSET(Setup!$D$15,MATCH($F65,TaxCode,0),0,1,1)))+IF(ISERROR($G65),0,IF(ISNA(MATCH($G65,TaxCode,0)),0,OFFSET(Setup!$D$15,MATCH($G65,TaxCode,0),0,1,1))))*IF(ISERROR($F65),0,IF(ISNA(MATCH($F65,TaxCode,0)),0,OFFSET(Setup!$D$15,MATCH($F65,TaxCode,0),0,1,1))) -> 0 | O65: =$P65/(1+IF(ISERROR($F65),0,IF(ISNA(MATCH($F65,TaxCode,0)),0,OFFSET(Setup!$D$15,MATCH($F65,TaxCode,0),0,1,1)))+IF(ISERROR($G65),0,IF(ISNA(MATCH($G65,TaxCode,0)),0,OFFSET(Setup!$D$15,MATCH($G65,TaxCode,0),0,1,1))))*IF(ISERROR($G65),0,IF(ISNA(MATCH($G65,TaxCode,0)),0,OFFSET(Setup!$D$15,MATCH($G65,TaxCode,0),0,1,1))) -> 0 | P65: 10320 | Q65: Y | R65: -
A66: REC0050 | B66: 2021-01-01 | C66: ABC Bank | D66: Interest Received | E66: 166.23 | F66: E | G66: E | H66: B2 | I66: IS-0900 | J66: 166.23 | K66: 2021-01-01 | L66: =IF($Q66="N",0,SUMIFS(IncIncl,IncDocDate,"<="&$M$2,IncInvoice,$A66)-SUMIFS(IncPayAmount,IncDocDate,"<="&$M$2,IncPayDate,"<="&$M$2,IncInvoice,$A66)) -> 0 | M66: =P66-IF(IncTaxCount=2,SUM($N66:$O66),$N66:$N66) -> 166.23 | N66: =$P66/(1+IF(ISERROR($F66),0,IF(ISNA(MATCH($F66,TaxCode,0)),0,OFFSET(Setup!$D$15,MATCH($F66,TaxCode,0),0,1,1)))+IF(ISERROR($G66),0,IF(ISNA(MATCH($G66,TaxCode,0)),0,OFFSET(Setup!$D$15,MATCH($G66,TaxCode,0),0,1,1))))*IF(ISERROR($F66),0,IF(ISNA(MATCH($F66,TaxCode,0)),0,OFFSET(Setup!$D$15,MATCH($F66,TaxCode,0),0,1,1))) -> 0 | O66: =$P66/(1+IF(ISERROR($F66),0,IF(ISNA(MATCH($F66,TaxCode,0)),0,OFFSET(Setup!$D$15,MATCH($F66,TaxCode,0),0,1,1)))+IF(ISERROR($G66),0,IF(ISNA(MATCH($G66,TaxCode,0)),0,OFFSET(Setup!$D$15,MATCH($G66,TaxCode,0),0,1,1))))*IF(ISERROR($G66),0,IF(ISNA(MATCH($G66,TaxCode,0)),0,OFFSET(Setup!$D$15,MATCH($G66,TaxCode,0),0,1,1))) -> 0 | P66: 166.23 | Q66: Y | R66: -
A67: CN0011 | B67: 2021-01-05 | C67: IT Solutions | D67: Module Discount | E67: -1150 | F67: E | G67: E | H67: B1 | I67: IS-0105 | J67: -1150 | K67: 2021-01-11 | L67: =IF($Q67="N",0,SUMIFS(IncIncl,IncDocDate,"<="&$M$2,IncInvoice,$A67)-SUMIFS(IncPayAmount,IncDocDate,"<="&$M$2,IncPayDate,"<="&$M$2,IncInvoice,$A67)) -> 0 | M67: =P67-IF(IncTaxCount=2,SUM($N67:$O67),$N67:$N67) -> -1150 | N67: =$P67/(1+IF(ISERROR($F67),0,IF(ISNA(MATCH($F67,TaxCode,0)),0,OFFSET(Setup!$D$15,MATCH($F67,TaxCode,0),0,1,1)))+IF(ISERROR($G67),0,IF(ISNA(MATCH($G67,TaxCode,0)),0,OFFSET(Setup!$D$15,MATCH($G67,TaxCode,0),0,1,1))))*IF(ISERROR($F67),0,IF(ISNA(MATCH($F67,TaxCode,0)),0,OFFSET(Setup!$D$15,MATCH($F67,TaxCode,0),0,1,1))) -> 0 | O67: =$P67/(1+IF(ISERROR($F67),0,IF(ISNA(MATCH($F67,TaxCode,0)),0,OFFSET(Setup!$D$15,MATCH($F67,TaxCode,0),0,1,1)))+IF(ISERROR($G67),0,IF(ISNA(MATCH($G67,TaxCode,0)),0,OFFSET(Setup!$D$15,MATCH($G67,TaxCode,0),0,1,1))))*IF(ISERROR($G67),0,IF(ISNA(MATCH($G67,TaxCode,0)),0,OFFSET(Setup!$D$15,MATCH($G67,TaxCode,0),0,1,1))) -> 0 | P67: -1150 | Q67: Y | R67: -
A68: REC0051 | B68: 2021-01-07 | C68: ERP Software | D68: Commission Received | E68: 2300 | F68: A | G68: E | H68: B1 | I68: IS-0115 | J68: 2300 | K68: 2021-01-07 | L68: =IF($Q68="N",0,SUMIFS(IncIncl,IncDocDate,"<="&$M$2,IncInvoice,$A68)-SUMIFS(IncPayAmount,IncDocDate,"<="&$M$2,IncPayDate,"<="&$M$2,IncInvoice,$A68)) -> 0 | M68: =P68-IF(IncTaxCount=2,SUM($N68:$O68),$N68:$N68) -> 2000 | N68: =$P68/(1+IF(ISERROR($F68),0,IF(ISNA(MATCH($F68,TaxCode,0)),0,OFFSET(Setup!$D$15,MATCH($F68,TaxCode,0),0,1,1)))+IF(ISERROR($G68),0,IF(ISNA(MATCH($G68,TaxCode,0)),0,OFFSET(Setup!$D$15,MATCH($G68,TaxCode,0),0,1,1))))*IF(ISERROR($F68),0,IF(ISNA(MATCH($F68,TaxCode,0)),0,OFFSET(Setup!$D$15,MATCH($F68,TaxCode,0),0,1,1))) -> 300 | O68: =$P68/(1+IF(ISERROR($F68),0,IF(ISNA(MATCH($F68,TaxCode,0)),0,OFFSET(Setup!$D$15,MATCH($F68,TaxCode,0),0,1,1)))+IF(ISERROR($G68),0,IF(ISNA(MATCH($G68,TaxCode,0)),0,OFFSET(Setup!$D$15,MATCH($G68,TaxCode,0),0,1,1))))*IF(ISERROR($G68),0,IF(ISNA(MATCH($G68,TaxCode,0)),0,OFFSET(Setup!$D$15,MATCH($G68,TaxCode,0),0,1,1))) -> 0 | P68: 2300 | Q68: Y | R68: -
A69: REC0050 | B69: 2021-01-10 | C69: ABC Bank | D69: Loan Received | E69: 50000 | F69: E | G69: E | H69: B2 | I69: BS-1805 | J69: 50000 | K69: 2021-01-10 | L69: =IF($Q69="N",0,SUMIFS(IncIncl,IncDocDate,"<="&$M$2,IncInvoice,$A69)-SUMIFS(IncPayAmount,IncDocDate,"<="&$M$2,IncPayDate,"<="&$M$2,IncInvoice,$A69)) -> 0 | M69: =P69-IF(IncTaxCount=2,SUM($N69:$O69),$N69:$N69) -> 50000 | N69: =$P69/(1+IF(ISERROR($F69),0,IF(ISNA(MATCH($F69,TaxCode,0)),0,OFFSET(Setup!$D$15,MATCH($F69,TaxCode,0),0,1,1)))+IF(ISERROR($G69),0,IF(ISNA(MATCH($G69,TaxCode,0)),0,OFFSET(Setup!$D$15,MATCH($G69,TaxCode,0),0,1,1))))*IF(ISERROR($F69),0,IF(ISNA(MATCH($F69,TaxCode,0)),0,OFFSET(Setup!$D$15,MATCH($F69,TaxCode,0),0,1,1))) -> 0 | O69: =$P69/(1+IF(ISERROR($F69),0,IF(ISNA(MATCH($F69,TaxCode,0)),0,OFFSET(Setup!$D$15,MATCH($F69,TaxCode,0),0,1,1)))+IF(ISERROR($G69),0,IF(ISNA(MATCH($G69,TaxCode,0)),0,OFFSET(Setup!$D$15,MATCH($G69,TaxCode,0),0,1,1))))*IF(ISERROR($G69),0,IF(ISNA(MATCH($G69,TaxCode,0)),0,OFFSET(Setup!$D$15,MATCH($G69,TaxCode,0),0,1,1))) -> 0 | P69: =E69 -> 50000 | Q69: =IF(ISNA(MATCH($A69,IncInvoice,0)),"N",IF(MATCH($A69,IncInvoice,0)=ROW($A69)-4,"Y","N")) -> N | R69: =IF(AND(ISBLANK(K69)=FALSE,K69<B69),"E1",IF(AND(ISBLANK(I69)=FALSE,ISNA(MATCH($I69,AccountNo,0))),"E2",IF(AND(ISBLANK(H69)=FALSE,ISNA(MATCH($H69,BankCode,0))),"E3","-"))) -> -
A70: IN0077 | B70: 2021-01-19 | C70: PTY Consultants | D70: Software Sales | E70: 16606 | F70: A | G70: E | H70: B1 | I70: IS-0105 | J70: 16606 | K70: 2021-01-31 | L70: =IF($Q70="N",0,SUMIFS(IncIncl,IncDocDate,"<="&$M$2,IncInvoice,$A70)-SUMIFS(IncPayAmount,IncDocDate,"<="&$M$2,IncPayDate,"<="&$M$2,IncInvoice,$A70)) -> 0 | M70: =P70-IF(IncTaxCount=2,SUM($N70:$O70),$N70:$N70) -> 14440 | N70: =$P70/(1+IF(ISERROR($F70),0,IF(ISNA(MATCH($F70,TaxCode,0)),0,OFFSET(Setup!$D$15,MATCH($F70,TaxCode,0),0,1,1)))+IF(ISERROR($G70),0,IF(ISNA(MATCH($G70,TaxCode,0)),0,OFFSET(Setup!$D$15,MATCH($G70,TaxCode,0),0,1,1))))*IF(ISERROR($F70),0,IF(ISNA(MATCH($F70,TaxCode,0)),0,OFFSET(Setup!$D$15,MATCH($F70,TaxCode,0),0,1,1))) -> 2166 | O70: =$P70/(1+IF(ISERROR($F70),0,IF(ISNA(MATCH($F70,TaxCode,0)),0,OFFSET(Setup!$D$15,MATCH($F70,TaxCode,0),0,1,1)))+IF(ISERROR($G70),0,IF(ISNA(MATCH($G70,TaxCode,0)),0,OFFSET(Setup!$D$15,MATCH($G70,TaxCode,0),0,1,1))))*IF(ISERROR($G70),0,IF(ISNA(MATCH($G70,TaxCode,0)),0,OFFSET(Setup!$D$15,MATCH($G70,TaxCode,0),0,1,1))) -> 0 | P70: 16606 | Q70: Y | R70: -
A71: IN0078 | B71: 2021-01-20 | C71: GP Accountants | D71: Software Sales | E71: 141910 | F71: A | G71: E | H71: B1 | I71: IS-0105 | J71: 110000 | K71: 2021-02-26 | L71: =IF($Q71="N",0,SUMIFS(IncIncl,IncDocDate,"<="&$M$2,IncInvoice,$A71)-SUMIFS(IncPayAmount,IncDocDate,"<="&$M$2,IncPayDate,"<="&$M$2,IncInvoice,$A71)) -> 31910 | M71: =P71-IF(IncTaxCount=2,SUM($N71:$O71),$N71:$N71) -> 123400 | N71: =$P71/(1+IF(ISERROR($F71),0,IF(ISNA(MATCH($F71,TaxCode,0)),0,OFFSET(Setup!$D$15,MATCH($F71,TaxCode,0),0,1,1)))+IF(ISERROR($G71),0,IF(ISNA(MATCH($G71,TaxCode,0)),0,OFFSET(Setup!$D$15,MATCH($G71,TaxCode,0),0,1,1))))*IF(ISERROR($F71),0,IF(ISNA(MATCH($F71,TaxCode,0)),0,OFFSET(Setup!$D$15,MATCH($F71,TaxCode,0),0,1,1))) -> 18510 | O71: =$P71/(1+IF(ISERROR($F71),0,IF(ISNA(MATCH($F71,TaxCode,0)),0,OFFSET(Setup!$D$15,MATCH($F71,TaxCode,0),0,1,1)))+IF(ISERROR($G71),0,IF(ISNA(MATCH($G71,TaxCode,0)),0,OFFSET(Setup!$D$15,MATCH($G71,TaxCode,0),0,1,1))))*IF(ISERROR($G71),0,IF(ISNA(MATCH($G71,TaxCode,0)),0,OFFSET(Setup!$D$15,MATCH($G71,TaxCode,0),0,1,1))) -> 0 | P71: 141910 | Q71: Y | R71: -
A72: IN0078 | B72: 2021-01-20 | C72: GP Accountants | D72: Software Sales | E72: 0 | F72: A | G72: E | H72: B1 | I72: IS-0105 | L72: =IF($Q72="N",0,SUMIFS(IncIncl,IncDocDate,"<="&$M$2,IncInvoice,$A72)-SUMIFS(IncPayAmount,IncDocDate,"<="&$M$2,IncPayDate,"<="&$M$2,IncInvoice,$A72)) -> 0 | M72: =P72-IF(IncTaxCount=2,SUM($N72:$O72),$N72:$N72) -> 0 | N72: =$P72/(1+IF(ISERROR($F72),0,IF(ISNA(MATCH($F72,TaxCode,0)),0,OFFSET(Setup!$D$15,MATCH($F72,TaxCode,0),0,1,1)))+IF(ISERROR($G72),0,IF(ISNA(MATCH($G72,TaxCode,0)),0,OFFSET(Setup!$D$15,MATCH($G72,TaxCode,0),0,1,1))))*IF(ISERROR($F72),0,IF(ISNA(MATCH($F72,TaxCode,0)),0,OFFSET(Setup!$D$15,MATCH($F72,TaxCode,0),0,1,1))) -> 0 | O72: =$P72/(1+IF(ISERROR($F72),0,IF(ISNA(MATCH($F72,TaxCode,0)),0,OFFSET(Setup!$D$15,MATCH($F72,TaxCode,0),0,1,1)))+IF(ISERROR($G72),0,IF(ISNA(MATCH($G72,TaxCode,0)),0,OFFSET(Setup!$D$15,MATCH($G72,TaxCode,0),0,1,1))))*IF(ISERROR($G72),0,IF(ISNA(MATCH($G72,TaxCode,0)),0,OFFSET(Setup!$D$15,MATCH($G72,TaxCode,0),0,1,1))) -> 0 | P72: 0 | Q72: N | R72: -
A73: REC0052 | B73: 2021-01-25 | C73: Google AdSense | D73: Advertising Income | E73: 15400 | F73: E | G73: E | H73: B2 | I73: IS-0110 | J73: 15400 | K73: 2021-02-05 | L73: =IF($Q73="N",0,SUMIFS(IncIncl,IncDocDate,"<="&$M$2,IncInvoice,$A73)-SUMIFS(IncPayAmount,IncDocDate,"<="&$M$2,IncPayDate,"<="&$M$2,IncInvoice,$A73)) -> 0 | M73: =P73-IF(IncTaxCount=2,SUM($N73:$O73),$N73:$N73) -> 15400 | N73: =$P73/(1+IF(ISERROR($F73),0,IF(ISNA(MATCH($F73,TaxCode,0)),0,OFFSET(Setup!$D$15,MATCH($F73,TaxCode,0),0,1,1)))+IF(ISERROR($G73),0,IF(ISNA(MATCH($G73,TaxCode,0)),0,OFFSET(Setup!$D$15,MATCH($G73,TaxCode,0),0,1,1))))*IF(ISERROR($F73),0,IF(ISNA(MATCH($F73,TaxCode,0)),0,OFFSET(Setup!$D$15,MATCH($F73,TaxCode,0),0,1,1))) -> 0 | O73: =$P73/(1+IF(ISERROR($F73),0,IF(ISNA(MATCH($F73,TaxCode,0)),0,OFFSET(Setup!$D$15,MATCH($F73,TaxCode,0),0,1,1)))+IF(ISERROR($G73),0,IF(ISNA(MATCH($G73,TaxCode,0)),0,OFFSET(Setup!$D$15,MATCH($G73,TaxCode,0),0,1,1))))*IF(ISERROR($G73),0,IF(ISNA(MATCH($G73,TaxCode,0)),0,OFFSET(Setup!$D$15,MATCH($G73,TaxCode,0),0,1,1))) -> 0 | P73: 15400 | Q73: Y | R73: -
A74: REC0053 | B74: 2021-02-01 | C74: ABC Bank | D74: Interest Received | E74: 167.25 | F74: E | G74: E | H74: B2 | I74: IS-0900 | J74: 167.25 | K74: 2021-02-01 | L74: =IF($Q74="N",0,SUMIFS(IncIncl,IncDocDate,"<="&$M$2,IncInvoice,$A74)-SUMIFS(IncPayAmount,IncDocDate,"<="&$M$2,IncPayDate,"<="&$M$2,IncInvoice,$A74)) -> 0 | M74: =P74-IF(IncTaxCount=2,SUM($N74:$O74),$N74:$N74) -> 167.25 | N74: =$P74/(1+IF(ISERROR($F74),0,IF(ISNA(MATCH($F74,TaxCode,0)),0,OFFSET(Setup!$D$15,MATCH($F74,TaxCode,0),0,1,1)))+IF(ISERROR($G74),0,IF(ISNA(MATCH($G74,TaxCode,0)),0,OFFSET(Setup!$D$15,MATCH($G74,TaxCode,0),0,1,1))))*IF(ISERROR($F74),0,IF(ISNA(MATCH($F74,TaxCode,0)),0,OFFSET(Setup!$D$15,MATCH($F74,TaxCode,0),0,1,1))) -> 0 | O74: =$P74/(1+IF(ISERROR($F74),0,IF(ISNA(MATCH($F74,TaxCode,0)),0,OFFSET(Setup!$D$15,MATCH($F74,TaxCode,0),0,1,1)))+IF(ISERROR($G74),0,IF(ISNA(MATCH($G74,TaxCode,0)),0,OFFSET(Setup!$D$15,MATCH($G74,TaxCode,0),0,1,1))))*IF(ISERROR($G74),0,IF(ISNA(MATCH($G74,TaxCode,0)),0,OFFSET(Setup!$D$15,MATCH($G74,TaxCode,0),0,1,1))) -> 0 | P74: 167.25 | Q74: Y | R74: -
A75: REC0054 | B75: 2021-02-07 | C75: ERP Software | D75: Commission Received | E75: 3105 | F75: A | G75: E | H75: B1 | I75: IS-0115 | J75: 3105 | K75: 2021-02-07 | L75: =IF($Q75="N",0,SUMIFS(IncIncl,IncDocDate,"<="&$M$2,IncInvoice,$A75)-SUMIFS(IncPayAmount,IncDocDate,"<="&$M$2,IncPayDate,"<="&$M$2,IncInvoice,$A75)) -> 0 | M75: =P75-IF(IncTaxCount=2,SUM($N75:$O75),$N75:$N75) -> 2700 | N75: =$P75/(1+IF(ISERROR($F75),0,IF(ISNA(MATCH($F75,TaxCode,0)),0,OFFSET(Setup!$D$15,MATCH($F75,TaxCode,0),0,1,1)))+IF(ISERROR($G75),0,IF(ISNA(MATCH($G75,TaxCode,0)),0,OFFSET(Setup!$D$15,MATCH($G75,TaxCode,0),0,1,1))))*IF(ISERROR($F75),0,IF(ISNA(MATCH($F75,TaxCode,0)),0,OFFSET(Setup!$D$15,MATCH($F75,TaxCode,0),0,1,1))) -> 405 | O75: =$P75/(1+IF(ISERROR($F75),0,IF(ISNA(MATCH($F75,TaxCode,0)),0,OFFSET(Setup!$D$15,MATCH($F75,TaxCode,0),0,1,1)))+IF(ISERROR($G75),0,IF(ISNA(MATCH($G75,TaxCode,0)),0,OFFSET(Setup!$D$15,MATCH($G75,TaxCode,0),0,1,1))))*IF(ISERROR($G75),0,IF(ISNA(MATCH($G75,TaxCode,0)),0,OFFSET(Setup!$D$15,MATCH($G75,TaxCode,0),0,1,1))) -> 0 | P75: 3105 | Q75: Y | R75: -
A76: IN0079 | B76: 2021-02-15 | C76: WC Financial Advisors | D76: Software Sales | E76: 120865 | F76: A | G76: E | H76: B1 | I76: IS-0105 | J76: 138115 | K76: 2021-02-28 | L76: =IF($Q76="N",0,SUMIFS(IncIncl,IncDocDate,"<="&$M$2,IncInvoice,$A76)-SUMIFS(IncPayAmount,IncDocDate,"<="&$M$2,IncPayDate,"<="&$M$2,IncInvoice,$A76)) -> 0 | M76: =P76-IF(IncTaxCount=2,SUM($N76:$O76),$N76:$N76) -> 105100 | N76: =$P76/(1+IF(ISERROR($F76),0,IF(ISNA(MATCH($F76,TaxCode,0)),0,OFFSET(Setup!$D$15,MATCH($F76,TaxCode,0),0,1,1)))+IF(ISERROR($G76),0,IF(ISNA(MATCH($G76,TaxCode,0)),0,OFFSET(Setup!$D$15,MATCH($G76,TaxCode,0),0,1,1))))*IF(ISERROR($F76),0,IF(ISNA(MATCH($F76,TaxCode,0)),0,OFFSET(Setup!$D$15,MATCH($F76,TaxCode,0),0,1,1))) -> 15765 | O76: =$P76/(1+IF(ISERROR($F76),0,IF(ISNA(MATCH($F76,TaxCode,0)),0,OFFSET(Setup!$D$15,MATCH($F76,TaxCode,0),0,1,1)))+IF(ISERROR($G76),0,IF(ISNA(MATCH($G76,TaxCode,0)),0,OFFSET(Setup!$D$15,MATCH($G76,TaxCode,0),0,1,1))))*IF(ISERROR($G76),0,IF(ISNA(MATCH($G76,TaxCode,0)),0,OFFSET(Setup!$D$15,MATCH($G76,TaxCode,0),0,1,1))) -> 0 | P76: 120865 | Q76: Y | R76: -
A77: IN0079 | B77: 2021-02-15 | C77: WC Financial Advisors | D77: Additional Module | E77: 17250 | F77: A | G77: E | H77: B1 | I77: IS-0105 | J77: 0 | K77: 2021-02-28 | L77: =IF($Q77="N",0,SUMIFS(IncIncl,IncDocDate,"<="&$M$2,IncInvoice,$A77)-SUMIFS(IncPayAmount,IncDocDate,"<="&$M$2,IncPayDate,"<="&$M$2,IncInvoice,$A77)) -> 0 | M77: =P77-IF(IncTaxCount=2,SUM($N77:$O77),$N77:$N77) -> 15000 | N77: =$P77/(1+IF(ISERROR($F77),0,IF(ISNA(MATCH($F77,TaxCode,0)),0,OFFSET(Setup!$D$15,MATCH($F77,TaxCode,0),0,1,1)))+IF(ISERROR($G77),0,IF(ISNA(MATCH($G77,TaxCode,0)),0,OFFSET(Setup!$D$15,MATCH($G77,TaxCode,0),0,1,1))))*IF(ISERROR($F77),0,IF(ISNA(MATCH($F77,TaxCode,0)),0,OFFSET(Setup!$D$15,MATCH($F77,TaxCode,0),0,1,1))) -> 2250 | O77: =$P77/(1+IF(ISERROR($F77),0,IF(ISNA(MATCH($F77,TaxCode,0)),0,OFFSET(Setup!$D$15,MATCH($F77,TaxCode,0),0,1,1)))+IF(ISERROR($G77),0,IF(ISNA(MATCH($G77,TaxCode,0)),0,OFFSET(Setup!$D$15,MATCH($G77,TaxCode,0),0,1,1))))*IF(ISERROR($G77),0,IF(ISNA(MATCH($G77,TaxCode,0)),0,OFFSET(Setup!$D$15,MATCH($G77,TaxCode,0),0,1,1))) -> 0 | P77: 17250 | Q77: N | R77: -
A78: REC0055 | B78: 2021-02-25 | C78: Google AdSense | D78: Advertising Income | E78: 24350 | F78: E | G78: E | H78: B2 | I78: IS-0110 | J78: 24350 | L78: =IF($Q78="N",0,SUMIFS(IncIncl,IncDocDate,"<="&$M$2,IncInvoice,$A78)-SUMIFS(IncPayAmount,IncDocDate,"<="&$M$2,IncPayDate,"<="&$M$2,IncInvoice,$A78)) -> 24350 | M78: =P78-IF(IncTaxCount=2,SUM($N78:$O78),$N78:$N78) -> 24350 | N78: =$P78/(1+IF(ISERROR($F78),0,IF(ISNA(MATCH($F78,TaxCode,0)),0,OFFSET(Setup!$D$15,MATCH($F78,TaxCode,0),0,1,1)))+IF(ISERROR($G78),0,IF(ISNA(MATCH($G78,TaxCode,0)),0,OFFSET(Setup!$D$15,MATCH($G78,TaxCode,0),0,1,1))))*IF(ISERROR($F78),0,IF(ISNA(MATCH($F78,TaxCode,0)),0,OFFSET(Setup!$D$15,MATCH($F78,TaxCode,0),0,1,1))) -> 0 | O78: =$P78/(1+IF(ISERROR($F78),0,IF(ISNA(MATCH($F78,TaxCode,0)),0,OFFSET(Setup!$D$15,MATCH($F78,TaxCode,0),0,1,1)))+IF(ISERROR($G78),0,IF(ISNA(MATCH($G78,TaxCode,0)),0,OFFSET(Setup!$D$15,MATCH($G78,TaxCode,0),0,1,1))))*IF(ISERROR($G78),0,IF(ISNA(MATCH($G78,TaxCode,0)),0,OFFSET(Setup!$D$15,MATCH($G78,TaxCode,0),0,1,1))) -> 0 | P78: 24350 | Q78: Y | R78: -
A79: IN0080 | B79: 2021-02-28 | C79: XX Building Supplies | D79: Software Sales | E79: 36800 | F79: A | G79: E | H79: B1 | I79: IS-0105 | J79: 36800 | L79: =IF($Q79="N",0,SUMIFS(IncIncl,IncDocDate,"<="&$M$2,IncInvoice,$A79)-SUMIFS(IncPayAmount,IncDocDate,"<="&$M$2,IncPayDate,"<="&$M$2,IncInvoice,$A79)) -> 36800 | M79: =P79-IF(IncTaxCount=2,SUM($N79:$O79),$N79:$N79) -> 32000 | N79: =$P79/(1+IF(ISERROR($F79),0,IF(ISNA(MATCH($F79,TaxCode,0)),0,OFFSET(Setup!$D$15,MATCH($F79,TaxCode,0),0,1,1)))+IF(ISERROR($G79),0,IF(ISNA(MATCH($G79,TaxCode,0)),0,OFFSET(Setup!$D$15,MATCH($G79,TaxCode,0),0,1,1))))*IF(ISERROR($F79),0,IF(ISNA(MATCH($F79,TaxCode,0)),0,OFFSET(Setup!$D$15,MATCH($F79,TaxCode,0),0,1,1))) -> 4800 | O79: =$P79/(1+IF(ISERROR($F79),0,IF(ISNA(MATCH($F79,TaxCode,0)),0,OFFSET(Setup!$D$15,MATCH($F79,TaxCode,0),0,1,1)))+IF(ISERROR($G79),0,IF(ISNA(MATCH($G79,TaxCode,0)),0,OFFSET(Setup!$D$15,MATCH($G79,TaxCode,0),0,1,1))))*IF(ISERROR($G79),0,IF(ISNA(MATCH($G79,TaxCode,0)),0,OFFSET(Setup!$D$15,MATCH($G79,TaxCode,0),0,1,1))) -> 0 | P79: 36800 | Q79: Y | R79: -

Sheet Expenses (hidden)
A1: =IF(ISBLANK(Setup!$C$4),"Example Limited",Setup!$C$4) -> Example (Pty) Limited | K1: Balance Date
A2: Expenses & Other Payments | K2: 2021-02-28 | L2: =IF(ISBLANK(K2),TODAY(),K2) -> 2021-02-28
A3: © www.excel-skills.com | E3: =SUBTOTAL(109,Expense[[#Data],[Tax Inclusive Amount]]) -> 2085377.36 | K3: =SUBTOTAL(109,Expense[[#Data],[Outstanding Balance]]) -> 61039 | L3: =SUBTOTAL(109,Expense[[#Data],[Exclusive Amount]]) -> 2038411.969 | M3: =SUBTOTAL(109,Expense[[#Data],[Sales Tax 1 Amount]]) -> 46965.3913 | N3: =SUBTOTAL(109,Expense[[#Data],[Sales Tax 2 Amount]]) -> 0 | O3: =SUBTOTAL(109,Expense[[#Data],[Inclusive Amount]]) -> 2085377.36
A4: Document Date | B4: Supplier | C4: Reference | D4: Description | E4: Tax Inclusive Amount | F4: Tax 1 Code | G4: Tax 2 Code | H4: Bank Code | I4: Account Number | J4: Payment Date | K4: Outstanding Balance | L4: Exclusive Amount | M4: Sales Tax 1 Amount | N4: Sales Tax 2 Amount | O4: Inclusive Amount | P4: Error Code
A5: 2020-02-14 | B5: XY Solutions | C5: S77782 | D5: Opening Balance | E5: 40365 | F5: A | G5: E | H5: B1 | I5: BS-0799 | J5: 2020-03-02 | K5: =IF(AND($A5<=$L$2,OR($J5>$L$2,ISBLANK($J5))),$E5,0) -> 0 | L5: =O5-IF(ExpTaxCount=2,SUM($M5:$N5),$M5:$M5) -> 35100 | M5: =$O5/(1+IF(ISERROR($F5),0,IF(ISNA(MATCH($F5,TaxCode,0)),0,OFFSET(Setup!$D$15,MATCH($F5,TaxCode,0),0,1,1)))+IF(ISERROR($G5),0,IF(ISNA(MATCH($G5,TaxCode,0)),0,OFFSET(Setup!$D$15,MATCH($G5,TaxCode,0),0,1,1))))*IF(ISERROR($F5),0,IF(ISNA(MATCH($F5,TaxCode,0)),0,OFFSET(Setup!$D$15,MATCH($F5,TaxCode,0),0,1,1))) -> 5265 | N5: =$O5/(1+IF(ISERROR($F5),0,IF(ISNA(MATCH($F5,TaxCode,0)),0,OFFSET(Setup!$D$15,MATCH($F5,TaxCode,0),0,1,1)))+IF(ISERROR($G5),0,IF(ISNA(MATCH($G5,TaxCode,0)),0,OFFSET(Setup!$D$15,MATCH($G5,TaxCode,0),0,1,1))))*IF(ISERROR($G5),0,IF(ISNA(MATCH($G5,TaxCode,0)),0,OFFSET(Setup!$D$15,MATCH($G5,TaxCode,0),0,1,1))) -> 0 | O5: =E5 -> 40365 | P5: =IF(AND(ISBLANK(J5)=FALSE,J5<A5),"E1",IF(AND(ISBLANK(I5)=FALSE,ISNA(MATCH($I5,AccountNo,0))),"E2",IF(AND(ISBLANK(H5)=FALSE,ISNA(MATCH($H5,BankCode,0))),"E3","-"))) -> -
A6: 2020-02-17 | B6: XY Traders | C6: Invoice 13432 | D6: Commission | E6: 4788 | F6: A | G6: E | H6: B1 | I6: BS-0799 | J6: 2020-03-20 | K6: 0 | L6: =O6-IF(ExpTaxCount=2,SUM($M6:$N6),$M6:$M6) -> 4163.478261 | M6: =$O6/(1+IF(ISERROR($F6),0,IF(ISNA(MATCH($F6,TaxCode,0)),0,OFFSET(Setup!$D$15,MATCH($F6,TaxCode,0),0,1,1)))+IF(ISERROR($G6),0,IF(ISNA(MATCH($G6,TaxCode,0)),0,OFFSET(Setup!$D$15,MATCH($G6,TaxCode,0),0,1,1))))*IF(ISERROR($F6),0,IF(ISNA(MATCH($F6,TaxCode,0)),0,OFFSET(Setup!$D$15,MATCH($F6,TaxCode,0),0,1,1))) -> 624.5217391 | N6: =$O6/(1+IF(ISERROR($F6),0,IF(ISNA(MATCH($F6,TaxCode,0)),0,OFFSET(Setup!$D$15,MATCH($F6,TaxCode,0),0,1,1)))+IF(ISERROR($G6),0,IF(ISNA(MATCH($G6,TaxCode,0)),0,OFFSET(Setup!$D$15,MATCH($G6,TaxCode,0),0,1,1))))*IF(ISERROR($G6),0,IF(ISNA(MATCH($G6,TaxCode,0)),0,OFFSET(Setup!$D$15,MATCH($G6,TaxCode,0),0,1,1))) -> 0 | O6: 4788 | P6: -
A7: 2020-03-01 | B7: IS Communications | C7: Invoice EXP22 | D7: Internet Service Provider | E7: 840 | F7: A | G7: E | H7: B1 | I7: IS-0375 | J7: 2020-03-31 | K7: 0 | L7: =O7-IF(ExpTaxCount=2,SUM($M7:$N7),$M7:$M7) -> 730.4347826 | M7: =$O7/(1+IF(ISERROR($F7),0,IF(ISNA(MATCH($F7,TaxCode,0)),0,OFFSET(Setup!$D$15,MATCH($F7,TaxCode,0),0,1,1)))+IF(ISERROR($G7),0,IF(ISNA(MATCH($G7,TaxCode,0)),0,OFFSET(Setup!$D$15,MATCH($G7,TaxCode,0),0,1,1))))*IF(ISERROR($F7),0,IF(ISNA(MATCH($F7,TaxCode,0)),0,OFFSET(Setup!$D$15,MATCH($F7,TaxCode,0),0,1,1))) -> 109.5652174 | N7: =$O7/(1+IF(ISERROR($F7),0,IF(ISNA(MATCH($F7,TaxCode,0)),0,OFFSET(Setup!$D$15,MATCH($F7,TaxCode,0),0,1,1)))+IF(ISERROR($G7),0,IF(ISNA(MATCH($G7,TaxCode,0)),0,OFFSET(Setup!$D$15,MATCH($G7,TaxCode,0),0,1,1))))*IF(ISERROR($G7),0,IF(ISNA(MATCH($G7,TaxCode,0)),0,OFFSET(Setup!$D$15,MATCH($G7,TaxCode,0),0,1,1))) -> 0 | O7: 840 | P7: -
A8: 2020-03-02 | B8: Newscorp | C8: I381119 | D8: Subscriptions | E8: 478 | F8: A | G8: E | H8: B1 | I8: IS-0355 | J8: 2020-04-01 | K8: 0 | L8: =O8-IF(ExpTaxCount=2,SUM($M8:$N8),$M8:$M8) -> 415.6521739 | M8: =$O8/(1+IF(ISERROR($F8),0,IF(ISNA(MATCH($F8,TaxCode,0)),0,OFFSET(Setup!$D$15,MATCH($F8,TaxCode,0),0,1,1)))+IF(ISERROR($G8),0,IF(ISNA(MATCH($G8,TaxCode,0)),0,OFFSET(Setup!$D$15,MATCH($G8,TaxCode,0),0,1,1))))*IF(ISERROR($F8),0,IF(ISNA(MATCH($F8,TaxCode,0)),0,OFFSET(Setup!$D$15,MATCH($F8,TaxCode,0),0,1,1))) -> 62.34782609 | N8: =$O8/(1+IF(ISERROR($F8),0,IF(ISNA(MATCH($F8,TaxCode,0)),0,OFFSET(Setup!$D$15,MATCH($F8,TaxCode,0),0,1,1)))+IF(ISERROR($G8),0,IF(ISNA(MATCH($G8,TaxCode,0)),0,OFFSET(Setup!$D$15,MATCH($G8,TaxCode,0),0,1,1))))*IF(ISERROR($G8),0,IF(ISNA(MATCH($G8,TaxCode,0)),0,OFFSET(Setup!$D$15,MATCH($G8,TaxCode,0),0,1,1))) -> 0 | O8: 478 | P8: -
A9: 2020-03-05 | B9: EAG Brokers | C9: Debit Order | D9: Insurance | E9: 364.8 | F9: A | G9: E | H9: B1 | I9: IS-0340 | J9: 2020-03-05 | K9: 0 | L9: =O9-IF(ExpTaxCount=2,SUM($M9:$N9),$M9:$M9) -> 317.2173913 | M9: =$O9/(1+IF(ISERROR($F9),0,IF(ISNA(MATCH($F9,TaxCode,0)),0,OFFSET(Setup!$D$15,MATCH($F9,TaxCode,0),0,1,1)))+IF(ISERROR($G9),0,IF(ISNA(MATCH($G9,TaxCode,0)),0,OFFSET(Setup!$D$15,MATCH($G9,TaxCode,0),0,1,1))))*IF(ISERROR($F9),0,IF(ISNA(MATCH($F9,TaxCode,0)),0,OFFSET(Setup!$D$15,MATCH($F9,TaxCode,0),0,1,1))) -> 47.5826087 | N9: =$O9/(1+IF(ISERROR($F9),0,IF(ISNA(MATCH($F9,TaxCode,0)),0,OFFSET(Setup!$D$15,MATCH($F9,TaxCode,0),0,1,1)))+IF(ISERROR($G9),0,IF(ISNA(MATCH($G9,TaxCode,0)),0,OFFSET(Setup!$D$15,MATCH($G9,TaxCode,0),0,1,1))))*IF(ISERROR($G9),0,IF(ISNA(MATCH($G9,TaxCode,0)),0,OFFSET(Setup!$D$15,MATCH($G9,TaxCode,0),0,1,1))) -> 0 | O9: 364.8 | P9: -
A10: 2020-03-15 | B10: Capital Bank | C10: Bank Statement | D10: Service Fees | E10: 57 | F10: A | G10: E | H10: B1 | I10: IS-0315 | J10: 2020-03-15 | K10: 0 | L10: =O10-IF(ExpTaxCount=2,SUM($M10:$N10),$M10:$M10) -> 49.56521739 | M10: =$O10/(1+IF(ISERROR($F10),0,IF(ISNA(MATCH($F10,TaxCode,0)),0,OFFSET(Setup!$D$15,MATCH($F10,TaxCode,0),0,1,1)))+IF(ISERROR($G10),0,IF(ISNA(MATCH($G10,TaxCode,0)),0,OFFSET(Setup!$D$15,MATCH($G10,TaxCode,0),0,1,1))))*IF(ISERROR($F10),0,IF(ISNA(MATCH($F10,TaxCode,0)),0,OFFSET(Setup!$D$15,MATCH($F10,TaxCode,0),0,1,1))) -> 7.434782609 | N10: =$O10/(1+IF(ISERROR($F10),0,IF(ISNA(MATCH($F10,TaxCode,0)),0,OFFSET(Setup!$D$15,MATCH($F10,TaxCode,0),0,1,1)))+IF(ISERROR($G10),0,IF(ISNA(MATCH($G10,TaxCode,0)),0,OFFSET(Setup!$D$15,MATCH($G10,TaxCode,0),0,1,1))))*IF(ISERROR($G10),0,IF(ISNA(MATCH($G10,TaxCode,0)),0,OFFSET(Setup!$D$15,MATCH($G10,TaxCode,0),0,1,1))) -> 0 | O10: 57 | P10: -
A11: 2020-03-15 | B11: Capital Bank | C11: Bank Statement | D11: Service Fees | E11: 34.2 | F11: A | G11: E | H11: B2 | I11: IS-0315 | J11: 2020-03-15 | K11: 0 | L11: =O11-IF(ExpTaxCount=2,SUM($M11:$N11),$M11:$M11) -> 29.73913043 | M11: =$O11/(1+IF(ISERROR($F11),0,IF(ISNA(MATCH($F11,TaxCode,0)),0,OFFSET(Setup!$D$15,MATCH($F11,TaxCode,0),0,1,1)))+IF(ISERROR($G11),0,IF(ISNA(MATCH($G11,TaxCode,0)),0,OFFSET(Setup!$D$15,MATCH($G11,TaxCode,0),0,1,1))))*IF(ISERROR($F11),0,IF(ISNA(MATCH($F11,TaxCode,0)),0,OFFSET(Setup!$D$15,MATCH($F11,TaxCode,0),0,1,1))) -> 4.460869565 | N11: =$O11/(1+IF(ISERROR($F11),0,IF(ISNA(MATCH($F11,TaxCode,0)),0,OFFSET(Setup!$D$15,MATCH($F11,TaxCode,0),0,1,1)))+IF(ISERROR($G11),0,IF(ISNA(MATCH($G11,TaxCode,0)),0,OFFSET(Setup!$D$15,MATCH($G11,TaxCode,0),0,1,1))))*IF(ISERROR($G11),0,IF(ISNA(MATCH($G11,TaxCode,0)),0,OFFSET(Setup!$D$15,MATCH($G11,TaxCode,0),0,1,1))) -> 0 | O11: 34.2 | P11: -
A12: 2020-03-15 | B12: IAS Accountants | C12: Invoice | D12: Monthly Accounting | E12: 2280 | F12: A | G12: E | H12: B1 | I12: IS-0305 | J12: 2020-04-02 | K12: 0 | L12: =O12-IF(ExpTaxCount=2,SUM($M12:$N12),$M12:$M12) -> 1982.608696 | M12: =$O12/(1+IF(ISERROR($F12),0,IF(ISNA(MATCH($F12,TaxCode,0)),0,OFFSET(Setup!$D$15,MATCH($F12,TaxCode,0),0,1,1)))+IF(ISERROR($G12),0,IF(ISNA(MATCH($G12,TaxCode,0)),0,OFFSET(Setup!$D$15,MATCH($G12,TaxCode,0),0,1,1))))*IF(ISERROR($F12),0,IF(ISNA(MATCH($F12,TaxCode,0)),0,OFFSET(Setup!$D$15,MATCH($F12,TaxCode,0),0,1,1))) -> 297.3913043 | N12: =$O12/(1+IF(ISERROR($F12),0,IF(ISNA(MATCH($F12,TaxCode,0)),0,OFFSET(Setup!$D$15,MATCH($F12,TaxCode,0),0,1,1)))+IF(ISERROR($G12),0,IF(ISNA(MATCH($G12,TaxCode,0)),0,OFFSET(Setup!$D$15,MATCH($G12,TaxCode,0),0,1,1))))*IF(ISERROR($G12),0,IF(ISNA(MATCH($G12,TaxCode,0)),0,OFFSET(Setup!$D$15,MATCH($G12,TaxCode,0),0,1,1))) -> 0 | O12: 2280 | P12: -
A13: 2020-03-15 | B13: Interflora | C13: Cash | D13: Flowers | E13: 90 | F13: A | G13: E | H13: PC | I13: IS-0345 | J13: 2020-03-15 | K13: 0 | L13: =O13-IF(ExpTaxCount=2,SUM($M13:$N13),$M13:$M13) -> 78.26086957 | M13: =$O13/(1+IF(ISERROR($F13),0,IF(ISNA(MATCH($F13,TaxCode,0)),0,OFFSET(Setup!$D$15,MATCH($F13,TaxCode,0),0,1,1)))+IF(ISERROR($G13),0,IF(ISNA(MATCH($G13,TaxCode,0)),0,OFFSET(Setup!$D$15,MATCH($G13,TaxCode,0),0,1,1))))*IF(ISERROR($F13),0,IF(ISNA(MATCH($F13,TaxCode,0)),0,OFFSET(Setup!$D$15,MATCH($F13,TaxCode,0),0,1,1))) -> 11.73913043 | N13: =$O13/(1+IF(ISERROR($F13),0,IF(ISNA(MATCH($F13,TaxCode,0)),0,OFFSET(Setup!$D$15,MATCH($F13,TaxCode,0),0,1,1)))+IF(ISERROR($G13),0,IF(ISNA(MATCH($G13,TaxCode,0)),0,OFFSET(Setup!$D$15,MATCH($G13,TaxCode,0),0,1,1))))*IF(ISERROR($G13),0,IF(ISNA(MATCH($G13,TaxCode,0)),0,OFFSET(Setup!$D$15,MATCH($G13,TaxCode,0),0,1,1))) -> 0 | O13: 90 | P13: -
A14: 2020-03-18 | B14: QQ International | C14: TR6998 | D14: Parking | E14: 120 | F14: A | G14: E | H14: B1 | I14: IS-0385 | J14: 2020-03-18 | K14: 0 | L14: =O14-IF(ExpTaxCount=2,SUM($M14:$N14),$M14:$M14) -> 104.3478261 | M14: =$O14/(1+IF(ISERROR($F14),0,IF(ISNA(MATCH($F14,TaxCode,0)),0,OFFSET(Setup!$D$15,MATCH($F14,TaxCode,0),0,1,1)))+IF(ISERROR($G14),0,IF(ISNA(MATCH($G14,TaxCode,0)),0,OFFSET(Setup!$D$15,MATCH($G14,TaxCode,0),0,1,1))))*IF(ISERROR($F14),0,IF(ISNA(MATCH($F14,TaxCode,0)),0,OFFSET(Setup!$D$15,MATCH($F14,TaxCode,0),0,1,1))) -> 15.65217391 | N14: =$O14/(1+IF(ISERROR($F14),0,IF(ISNA(MATCH($F14,TaxCode,0)),0,OFFSET(Setup!$D$15,MATCH($F14,TaxCode,0),0,1,1)))+IF(ISERROR($G14),0,IF(ISNA(MATCH($G14,TaxCode,0)),0,OFFSET(Setup!$D$15,MATCH($G14,TaxCode,0),0,1,1))))*IF(ISERROR($G14),0,IF(ISNA(MATCH($G14,TaxCode,0)),0,OFFSET(Setup!$D$15,MATCH($G14,TaxCode,0),0,1,1))) -> 0 | O14: 120 | P14: -
A15: 2020-03-20 | B15: Example (Pty) Ltd | C15: Transfer | D15: Inter Account Transfer | E15: -15000 | F15: E | G15: E | H15: B2 | I15: BS-0799 | J15: 2020-03-20 | K15: 0 | L15: =O15-IF(ExpTaxCount=2,SUM($M15:$N15),$M15:$M15) -> -15000 | M15: =$O15/(1+IF(ISERROR($F15),0,IF(ISNA(MATCH($F15,TaxCode,0)),0,OFFSET(Setup!$D$15,MATCH($F15,TaxCode,0),0,1,1)))+IF(ISERROR($G15),0,IF(ISNA(MATCH($G15,TaxCode,0)),0,OFFSET(Setup!$D$15,MATCH($G15,TaxCode,0),0,1,1))))*IF(ISERROR($F15),0,IF(ISNA(MATCH($F15,TaxCode,0)),0,OFFSET(Setup!$D$15,MATCH($F15,TaxCode,0),0,1,1))) -> 0 | N15: =$O15/(1+IF(ISERROR($F15),0,IF(ISNA(MATCH($F15,TaxCode,0)),0,OFFSET(Setup!$D$15,MATCH($F15,TaxCode,0),0,1,1)))+IF(ISERROR($G15),0,IF(ISNA(MATCH($G15,TaxCode,0)),0,OFFSET(Setup!$D$15,MATCH($G15,TaxCode,0),0,1,1))))*IF(ISERROR($G15),0,IF(ISNA(MATCH($G15,TaxCode,0)),0,OFFSET(Setup!$D$15,MATCH($G15,TaxCode,0),0,1,1))) -> 0 | O15: -15000 | P15: -
A16: 2020-03-20 | B16: Example (Pty) Ltd | C16: Transfer | D16: Inter Account Transfer | E16: 15000 | F16: E | G16: E | H16: B1 | I16: BS-0799 | J16: 2020-03-20 | K16: 0 | L16: =O16-IF(ExpTaxCount=2,SUM($M16:$N16),$M16:$M16) -> 15000 | M16: =$O16/(1+IF(ISERROR($F16),0,IF(ISNA(MATCH($F16,TaxCode,0)),0,OFFSET(Setup!$D$15,MATCH($F16,TaxCode,0),0,1,1)))+IF(ISERROR($G16),0,IF(ISNA(MATCH($G16,TaxCode,0)),0,OFFSET(Setup!$D$15,MATCH($G16,TaxCode,0),0,1,1))))*IF(ISERROR($F16),0,IF(ISNA(MATCH($F16,TaxCode,0)),0,OFFSET(Setup!$D$15,MATCH($F16,TaxCode,0),0,1,1))) -> 0 | N16: =$O16/(1+IF(ISERROR($F16),0,IF(ISNA(MATCH($F16,TaxCode,0)),0,OFFSET(Setup!$D$15,MATCH($F16,TaxCode,0),0,1,1)))+IF(ISERROR($G16),0,IF(ISNA(MATCH($G16,TaxCode,0)),0,OFFSET(Setup!$D$15,MATCH($G16,TaxCode,0),0,1,1))))*IF(ISERROR($G16),0,IF(ISNA(MATCH($G16,TaxCode,0)),0,OFFSET(Setup!$D$15,MATCH($G16,TaxCode,0),0,1,1))) -> 0 | O16: 15000 | P16: -
A17: 2020-03-26 | B17: Example (Pty) Ltd | C17: Payroll | D17: Salaries | E17: 45000 | F17: E | G17: E | H17: B2 | I17: IS-0410 | J17: 2020-03-26 | K17: 0 | L17: =O17-IF(ExpTaxCount=2,SUM($M17:$N17),$M17:$M17) -> 45000 | M17: =$O17/(1+IF(ISERROR($F17),0,IF(ISNA(MATCH($F17,TaxCode,0)),0,OFFSET(Setup!$D$15,MATCH($F17,TaxCode,0),0,1,1)))+IF(ISERROR($G17),0,IF(ISNA(MATCH($G17,TaxCode,0)),0,OFFSET(Setup!$D$15,MATCH($G17,TaxCode,0),0,1,1))))*IF(ISERROR($F17),0,IF(ISNA(MATCH($F17,TaxCode,0)),0,OFFSET(Setup!$D$15,MATCH($F17,TaxCode,0),0,1,1))) -> 0 | N17: =$O17/(1+IF(ISERROR($F17),0,IF(ISNA(MATCH($F17,TaxCode,0)),0,OFFSET(Setup!$D$15,MATCH($F17,TaxCode,0),0,1,1)))+IF(ISERROR($G17),0,IF(ISNA(MATCH($G17,TaxCode,0)),0,OFFSET(Setup!$D$15,MATCH($G17,TaxCode,0),0,1,1))))*IF(ISERROR($G17),0,IF(ISNA(MATCH($G17,TaxCode,0)),0,OFFSET(Setup!$D$15,MATCH($G17,TaxCode,0),0,1,1))) -> 0 | O17: 45000 | P17: -
A18: 2020-03-26 | B18: HP Finance | C18: Debit Order | D18: Capital repayment | E18: 2582.74 | F18: E | G18: E | H18: B1 | I18: BS-1805 | J18: 2020-03-26 | K18: 0 | L18: =O18-IF(ExpTaxCount=2,SUM($M18:$N18),$M18:$M18) -> 2582.74 | M18: =$O18/(1+IF(ISERROR($F18),0,IF(ISNA(MATCH($F18,TaxCode,0)),0,OFFSET(Setup!$D$15,MATCH($F18,TaxCode,0),0,1,1)))+IF(ISERROR($G18),0,IF(ISNA(MATCH($G18,TaxCode,0)),0,OFFSET(Setup!$D$15,MATCH($G18,TaxCode,0),0,1,1))))*IF(ISERROR($F18),0,IF(ISNA(MATCH($F18,TaxCode,0)),0,OFFSET(Setup!$D$15,MATCH($F18,TaxCode,0),0,1,1))) -> 0 | N18: =$O18/(1+IF(ISERROR($F18),0,IF(ISNA(MATCH($F18,TaxCode,0)),0,OFFSET(Setup!$D$15,MATCH($F18,TaxCode,0),0,1,1)))+IF(ISERROR($G18),0,IF(ISNA(MATCH($G18,TaxCode,0)),0,OFFSET(Setup!$D$15,MATCH($G18,TaxCode,0),0,1,1))))*IF(ISERROR($G18),0,IF(ISNA(MATCH($G18,TaxCode,0)),0,OFFSET(Setup!$D$15,MATCH($G18,TaxCode,0),0,1,1))) -> 0 | O18: 2582.74 | P18: -
A19: 2020-03-26 | B19: HP Finance | C19: Debit Order | D19: Interest paid | E19: 1666.67 | F19: E | G19: E | H19: B1 | I19: IS-0600 | J19: 2020-03-26 | K19: 0 | L19: =O19-IF(ExpTaxCount=2,SUM($M19:$N19),$M19:$M19) -> 1666.67 | M19: =$O19/(1+IF(ISERROR($F19),0,IF(ISNA(MATCH($F19,TaxCode,0)),0,OFFSET(Setup!$D$15,MATCH($F19,TaxCode,0),0,1,1)))+IF(ISERROR($G19),0,IF(ISNA(MATCH($G19,TaxCode,0)),0,OFFSET(Setup!$D$15,MATCH($G19,TaxCode,0),0,1,1))))*IF(ISERROR($F19),0,IF(ISNA(MATCH($F19,TaxCode,0)),0,OFFSET(Setup!$D$15,MATCH($F19,TaxCode,0),0,1,1))) -> 0 | N19: =$O19/(1+IF(ISERROR($F19),0,IF(ISNA(MATCH($F19,TaxCode,0)),0,OFFSET(Setup!$D$15,MATCH($F19,TaxCode,0),0,1,1)))+IF(ISERROR($G19),0,IF(ISNA(MATCH($G19,TaxCode,0)),0,OFFSET(Setup!$D$15,MATCH($G19,TaxCode,0),0,1,1))))*IF(ISERROR($G19),0,IF(ISNA(MATCH($G19,TaxCode,0)),0,OFFSET(Setup!$D$15,MATCH($G19,TaxCode,0),0,1,1))) -> 0 | O19: 1666.67 | P19: -
A20: 2020-03-26 | B20: PR Properties | C20: Debit Order | D20: Rent | E20: 13680 | F20: A | G20: E | H20: B1 | I20: IS-0350 | J20: 2020-03-26 | K20: 0 | L20: =O20-IF(ExpTaxCount=2,SUM($M20:$N20),$M20:$M20) -> 11895.65217 | M20: =$O20/(1+IF(ISERROR($F20),0,IF(ISNA(MATCH($F20,TaxCode,0)),0,OFFSET(Setup!$D$15,MATCH($F20,TaxCode,0),0,1,1)))+IF(ISERROR($G20),0,IF(ISNA(MATCH($G20,TaxCode,0)),0,OFFSET(Setup!$D$15,MATCH($G20,TaxCode,0),0,1,1))))*IF(ISERROR($F20),0,IF(ISNA(MATCH($F20,TaxCode,0)),0,OFFSET(Setup!$D$15,MATCH($F20,TaxCode,0),0,1,1))) -> 1784.347826 | N20: =$O20/(1+IF(ISERROR($F20),0,IF(ISNA(MATCH($F20,TaxCode,0)),0,OFFSET(Setup!$D$15,MATCH($F20,TaxCode,0),0,1,1)))+IF(ISERROR($G20),0,IF(ISNA(MATCH($G20,TaxCode,0)),0,OFFSET(Setup!$D$15,MATCH($G20,TaxCode,0),0,1,1))))*IF(ISERROR($G20),0,IF(ISNA(MATCH($G20,TaxCode,0)),0,OFFSET(Setup!$D$15,MATCH($G20,TaxCode,0),0,1,1))) -> 0 | O20: 13680 | P20: -
A21: 2020-03-26 | B21: Example (Pty) Ltd | C21: Payroll | D21: Net Pay - Staff | E21: 35000 | F21: E | G21: E | H21: B2 | I21: IS-0405 | J21: 2020-03-26 | K21: 0 | L21: =O21-IF(ExpTaxCount=2,SUM($M21:$N21),$M21:$M21) -> 35000 | M21: =$O21/(1+IF(ISERROR($F21),0,IF(ISNA(MATCH($F21,TaxCode,0)),0,OFFSET(Setup!$D$15,MATCH($F21,TaxCode,0),0,1,1)))+IF(ISERROR($G21),0,IF(ISNA(MATCH($G21,TaxCode,0)),0,OFFSET(Setup!$D$15,MATCH($G21,TaxCode,0),0,1,1))))*IF(ISERROR($F21),0,IF(ISNA(MATCH($F21,TaxCode,0)),0,OFFSET(Setup!$D$15,MATCH($F21,TaxCode,0),0,1,1))) -> 0 | N21: =$O21/(1+IF(ISERROR($F21),0,IF(ISNA(MATCH($F21,TaxCode,0)),0,OFFSET(Setup!$D$15,MATCH($F21,TaxCode,0),0,1,1)))+IF(ISERROR($G21),0,IF(ISNA(MATCH($G21,TaxCode,0)),0,OFFSET(Setup!$D$15,MATCH($G21,TaxCode,0),0,1,1))))*IF(ISERROR($G21),0,IF(ISNA(MATCH($G21,TaxCode,0)),0,OFFSET(Setup!$D$15,MATCH($G21,TaxCode,0),0,1,1))) -> 0 | O21: 35000 | P21: -
A22: 2020-03-26 | B22: Example (Pty) Ltd | C22: Payroll | D22: Deductions - Staff | E22: 7200 | F22: E | G22: E | H22: B2 | I22: IS-0405 | J22: 2020-04-06 | K22: 0 | L22: =O22-IF(ExpTaxCount=2,SUM($M22:$N22),$M22:$M22) -> 7200 | M22: =$O22/(1+IF(ISERROR($F22),0,IF(ISNA(MATCH($F22,TaxCode,0)),0,OFFSET(Setup!$D$15,MATCH($F22,TaxCode,0),0,1,1)))+IF(ISERROR($G22),0,IF(ISNA(MATCH($G22,TaxCode,0)),0,OFFSET(Setup!$D$15,MATCH($G22,TaxCode,0),0,1,1))))*IF(ISERROR($F22),0,IF(ISNA(MATCH($F22,TaxCode,0)),0,OFFSET(Setup!$D$15,MATCH($F22,TaxCode,0),0,1,1))) -> 0 | N22: =$O22/(1+IF(ISERROR($F22),0,IF(ISNA(MATCH($F22,TaxCode,0)),0,OFFSET(Setup!$D$15,MATCH($F22,TaxCode,0),0,1,1)))+IF(ISERROR($G22),0,IF(ISNA(MATCH($G22,TaxCode,0)),0,OFFSET(Setup!$D$15,MATCH($G22,TaxCode,0),0,1,1))))*IF(ISERROR($G22),0,IF(ISNA(MATCH($G22,TaxCode,0)),0,OFFSET(Setup!$D$15,MATCH($G22,TaxCode,0),0,1,1))) -> 0 | O22: 7200 | P22: -
A23: 2020-03-26 | B23: Example (Pty) Ltd | C23: Payroll | D23: Deductions - Management | E23: 9320 | F23: E | G23: E | H23: B2 | I23: IS-0410 | J23: 2020-04-06 | K23: 0 | L23: =O23-IF(ExpTaxCount=2,SUM($M23:$N23),$M23:$M23) -> 9320 | M23: =$O23/(1+IF(ISERROR($F23),0,IF(ISNA(MATCH($F23,TaxCode,0)),0,OFFSET(Setup!$D$15,MATCH($F23,TaxCode,0),0,1,1)))+IF(ISERROR($G23),0,IF(ISNA(MATCH($G23,TaxCode,0)),0,OFFSET(Setup!$D$15,MATCH($G23,TaxCode,0),0,1,1))))*IF(ISERROR($F23),0,IF(ISNA(MATCH($F23,TaxCode,0)),0,OFFSET(Setup!$D$15,MATCH($F23,TaxCode,0),0,1,1))) -> 0 | N23: =$O23/(1+IF(ISERROR($F23),0,IF(ISNA(MATCH($F23,TaxCode,0)),0,OFFSET(Setup!$D$15,MATCH($F23,TaxCode,0),0,1,1)))+IF(ISERROR($G23),0,IF(ISNA(MATCH($G23,TaxCode,0)),0,OFFSET(Setup!$D$15,MATCH($G23,TaxCode,0),0,1,1))))*IF(ISERROR($G23),0,IF(ISNA(MATCH($G23,TaxCode,0)),0,OFFSET(Setup!$D$15,MATCH($G23,TaxCode,0),0,1,1))) -> 0 | O23: 9320 | P23: -
A24: 2020-03-26 | B24: Example (Pty) Ltd | C24: Payroll | D24: Staff Loan Deduction | E24: -12000 | F24: E | G24: E | H24: B2 | I24: BS-0500 | J24: 2020-03-26 | K24: 0 | L24: =O24-IF(ExpTaxCount=2,SUM($M24:$N24),$M24:$M24) -> -12000 | M24: =$O24/(1+IF(ISERROR($F24),0,IF(ISNA(MATCH($F24,TaxCode,0)),0,OFFSET(Setup!$D$15,MATCH($F24,TaxCode,0),0,1,1)))+IF(ISERROR($G24),0,IF(ISNA(MATCH($G24,TaxCode,0)),0,OFFSET(Setup!$D$15,MATCH($G24,TaxCode,0),0,1,1))))*IF(ISERROR($F24),0,IF(ISNA(MATCH($F24,TaxCode,0)),0,OFFSET(Setup!$D$15,MATCH($F24,TaxCode,0),0,1,1))) -> 0 | N24: =$O24/(1+IF(ISERROR($F24),0,IF(ISNA(MATCH($F24,TaxCode,0)),0,OFFSET(Setup!$D$15,MATCH($F24,TaxCode,0),0,1,1)))+IF(ISERROR($G24),0,IF(ISNA(MATCH($G24,TaxCode,0)),0,OFFSET(Setup!$D$15,MATCH($G24,TaxCode,0),0,1,1))))*IF(ISERROR($G24),0,IF(ISNA(MATCH($G24,TaxCode,0)),0,OFFSET(Setup!$D$15,MATCH($G24,TaxCode,0),0,1,1))) -> 0 | O24: -12000 | P24: -
A25: 2020-03-31 | B25: Example (Pty) Ltd | C25: Bank Statement | D25: Petty Cash Reimbursement | E25: 90 | F25: E | G25: E | H25: B1 | I25: BS-0799 | J25: 2020-03-31 | K25: 0 | L25: =O25-IF(ExpTaxCount=2,SUM($M25:$N25),$M25:$M25) -> 90 | M25: =$O25/(1+IF(ISERROR($F25),0,IF(ISNA(MATCH($F25,TaxCode,0)),0,OFFSET(Setup!$D$15,MATCH($F25,TaxCode,0),0,1,1)))+IF(ISERROR($G25),0,IF(ISNA(MATCH($G25,TaxCode,0)),0,OFFSET(Setup!$D$15,MATCH($G25,TaxCode,0),0,1,1))))*IF(ISERROR($F25),0,IF(ISNA(MATCH($F25,TaxCode,0)),0,OFFSET(Setup!$D$15,MATCH($F25,TaxCode,0),0,1,1))) -> 0 | N25: =$O25/(1+IF(ISERROR($F25),0,IF(ISNA(MATCH($F25,TaxCode,0)),0,OFFSET(Setup!$D$15,MATCH($F25,TaxCode,0),0,1,1)))+IF(ISERROR($G25),0,IF(ISNA(MATCH($G25,TaxCode,0)),0,OFFSET(Setup!$D$15,MATCH($G25,TaxCode,0),0,1,1))))*IF(ISERROR($G25),0,IF(ISNA(MATCH($G25,TaxCode,0)),0,OFFSET(Setup!$D$15,MATCH($G25,TaxCode,0),0,1,1))) -> 0 | O25: 90 | P25: -
A26: 2020-03-31 | B26: Example (Pty) Ltd | C26: Bank Statement | D26: Petty Cash Reimbursement | E26: -90 | F26: E | G26: E | H26: PC | I26: BS-0799 | J26: 2020-03-31 | K26: 0 | L26: =O26-IF(ExpTaxCount=2,SUM($M26:$N26),$M26:$M26) -> -90 | M26: =$O26/(1+IF(ISERROR($F26),0,IF(ISNA(MATCH($F26,TaxCode,0)),0,OFFSET(Setup!$D$15,MATCH($F26,TaxCode,0),0,1,1)))+IF(ISERROR($G26),0,IF(ISNA(MATCH($G26,TaxCode,0)),0,OFFSET(Setup!$D$15,MATCH($G26,TaxCode,0),0,1,1))))*IF(ISERROR($F26),0,IF(ISNA(MATCH($F26,TaxCode,0)),0,OFFSET(Setup!$D$15,MATCH($F26,TaxCode,0),0,1,1))) -> 0 | N26: =$O26/(1+IF(ISERROR($F26),0,IF(ISNA(MATCH($F26,TaxCode,0)),0,OFFSET(Setup!$D$15,MATCH($F26,TaxCode,0),0,1,1)))+IF(ISERROR($G26),0,IF(ISNA(MATCH($G26,TaxCode,0)),0,OFFSET(Setup!$D$15,MATCH($G26,TaxCode,0),0,1,1))))*IF(ISERROR($G26),0,IF(ISNA(MATCH($G26,TaxCode,0)),0,OFFSET(Setup!$D$15,MATCH($G26,TaxCode,0),0,1,1))) -> 0 | O26: -90 | P26: -
A27: 2020-03-31 | B27: Google | C27: Card | D27: Online Marketing | E27: 10000 | F27: E | G27: E | H27: B3 | I27: IS-0310 | J27: 2020-04-07 | K27: 0 | L27: =O27-IF(ExpTaxCount=2,SUM($M27:$N27),$M27:$M27) -> 10000 | M27: =$O27/(1+IF(ISERROR($F27),0,IF(ISNA(MATCH($F27,TaxCode,0)),0,OFFSET(Setup!$D$15,MATCH($F27,TaxCode,0),0,1,1)))+IF(ISERROR($G27),0,IF(ISNA(MATCH($G27,TaxCode,0)),0,OFFSET(Setup!$D$15,MATCH($G27,TaxCode,0),0,1,1))))*IF(ISERROR($F27),0,IF(ISNA(MATCH($F27,TaxCode,0)),0,OFFSET(Setup!$D$15,MATCH($F27,TaxCode,0),0,1,1))) -> 0 | N27: =$O27/(1+IF(ISERROR($F27),0,IF(ISNA(MATCH($F27,TaxCode,0)),0,OFFSET(Setup!$D$15,MATCH($F27,TaxCode,0),0,1,1)))+IF(ISERROR($G27),0,IF(ISNA(MATCH($G27,TaxCode,0)),0,OFFSET(Setup!$D$15,MATCH($G27,TaxCode,0),0,1,1))))*IF(ISERROR($G27),0,IF(ISNA(MATCH($G27,TaxCode,0)),0,OFFSET(Setup!$D$15,MATCH($G27,TaxCode,0),0,1,1))) -> 0 | O27: 10000 | P27: -
A28: 2020-04-01 | B28: IS Communications | C28: Invoice EXP23 | D28: Internet Service Provider | E28: 850 | F28: A | G28: E | H28: B1 | I28: IS-0375 | J28: 2020-05-01 | K28: 0 | L28: =O28-IF(ExpTaxCount=2,SUM($M28:$N28),$M28:$M28) -> 739.1304348 | M28: =$O28/(1+IF(ISERROR($F28),0,IF(ISNA(MATCH($F28,TaxCode,0)),0,OFFSET(Setup!$D$15,MATCH($F28,TaxCode,0),0,1,1)))+IF(ISERROR($G28),0,IF(ISNA(MATCH($G28,TaxCode,0)),0,OFFSET(Setup!$D$15,MATCH($G28,TaxCode,0),0,1,1))))*IF(ISERROR($F28),0,IF(ISNA(MATCH($F28,TaxCode,0)),0,OFFSET(Setup!$D$15,MATCH($F28,TaxCode,0),0,1,1))) -> 110.8695652 | N28: =$O28/(1+IF(ISERROR($F28),0,IF(ISNA(MATCH($F28,TaxCode,0)),0,OFFSET(Setup!$D$15,MATCH($F28,TaxCode,0),0,1,1)))+IF(ISERROR($G28),0,IF(ISNA(MATCH($G28,TaxCode,0)),0,OFFSET(Setup!$D$15,MATCH($G28,TaxCode,0),0,1,1))))*IF(ISERROR($G28),0,IF(ISNA(MATCH($G28,TaxCode,0)),0,OFFSET(Setup!$D$15,MATCH($G28,TaxCode,0),0,1,1))) -> 0 | O28: 850 | P28: -
A29: 2020-04-05 | B29: EAG Brokers | C29: Debit Order | D29: Insurance | E29: 368 | F29: A | G29: E | H29: B1 | I29: IS-0340 | J29: 2020-04-05 | K29: 0 | L29: =O29-IF(ExpTaxCount=2,SUM($M29:$N29),$M29:$M29) -> 320 | M29: =$O29/(1+IF(ISERROR($F29),0,IF(ISNA(MATCH($F29,TaxCode,0)),0,OFFSET(Setup!$D$15,MATCH($F29,TaxCode,0),0,1,1)))+IF(ISERROR($G29),0,IF(ISNA(MATCH($G29,TaxCode,0)),0,OFFSET(Setup!$D$15,MATCH($G29,TaxCode,0),0,1,1))))*IF(ISERROR($F29),0,IF(ISNA(MATCH($F29,TaxCode,0)),0,OFFSET(Setup!$D$15,MATCH($F29,TaxCode,0),0,1,1))) -> 48 | N29: =$O29/(1+IF(ISERROR($F29),0,IF(ISNA(MATCH($F29,TaxCode,0)),0,OFFSET(Setup!$D$15,MATCH($F29,TaxCode,0),0,1,1)))+IF(ISERROR($G29),0,IF(ISNA(MATCH($G29,TaxCode,0)),0,OFFSET(Setup!$D$15,MATCH($G29,TaxCode,0),0,1,1))))*IF(ISERROR($G29),0,IF(ISNA(MATCH($G29,TaxCode,0)),0,OFFSET(Setup!$D$15,MATCH($G29,TaxCode,0),0,1,1))) -> 0 | O29: 368 | P29: -
A30: 2020-04-05 | B30: Example (Pty) Ltd | C30: Transfer | D30: Inter Account Transfer | E30: -10000 | F30: E | G30: E | H30: B3 | I30: BS-0799 | J30: 2020-04-05 | K30: 0 | L30: =O30-IF(ExpTaxCount=2,SUM($M30:$N30),$M30:$M30) -> -10000 | M30: =$O30/(1+IF(ISERROR($F30),0,IF(ISNA(MATCH($F30,TaxCode,0)),0,OFFSET(Setup!$D$15,MATCH($F30,TaxCode,0),0,1,1)))+IF(ISERROR($G30),0,IF(ISNA(MATCH($G30,TaxCode,0)),0,OFFSET(Setup!$D$15,MATCH($G30,TaxCode,0),0,1,1))))*IF(ISERROR($F30),0,IF(ISNA(MATCH($F30,TaxCode,0)),0,OFFSET(Setup!$D$15,MATCH($F30,TaxCode,0),0,1,1))) -> 0 | N30: =$O30/(1+IF(ISERROR($F30),0,IF(ISNA(MATCH($F30,TaxCode,0)),0,OFFSET(Setup!$D$15,MATCH($F30,TaxCode,0),0,1,1)))+IF(ISERROR($G30),0,IF(ISNA(MATCH($G30,TaxCode,0)),0,OFFSET(Setup!$D$15,MATCH($G30,TaxCode,0),0,1,1))))*IF(ISERROR($G30),0,IF(ISNA(MATCH($G30,TaxCode,0)),0,OFFSET(Setup!$D$15,MATCH($G30,TaxCode,0),0,1,1))) -> 0 | O30: -10000 | P30: -
A31: 2020-04-05 | B31: Example (Pty) Ltd | C31: Transfer | D31: Inter Account Transfer | E31: 10000 | F31: E | G31: E | H31: B1 | I31: BS-0799 | J31: 2020-04-05 | K31: 0 | L31: =O31-IF(ExpTaxCount=2,SUM($M31:$N31),$M31:$M31) -> 10000 | M31: =$O31/(1+IF(ISERROR($F31),0,IF(ISNA(MATCH($F31,TaxCode,0)),0,OFFSET(Setup!$D$15,MATCH($F31,TaxCode,0),0,1,1)))+IF(ISERROR($G31),0,IF(ISNA(MATCH($G31,TaxCode,0)),0,OFFSET(Setup!$D$15,MATCH($G31,TaxCode,0),0,1,1))))*IF(ISERROR($F31),0,IF(ISNA(MATCH($F31,TaxCode,0)),0,OFFSET(Setup!$D$15,MATCH($F31,TaxCode,0),0,1,1))) -> 0 | N31: =$O31/(1+IF(ISERROR($F31),0,IF(ISNA(MATCH($F31,TaxCode,0)),0,OFFSET(Setup!$D$15,MATCH($F31,TaxCode,0),0,1,1)))+IF(ISERROR($G31),0,IF(ISNA(MATCH($G31,TaxCode,0)),0,OFFSET(Setup!$D$15,MATCH($G31,TaxCode,0),0,1,1))))*IF(ISERROR($G31),0,IF(ISNA(MATCH($G31,TaxCode,0)),0,OFFSET(Setup!$D$15,MATCH($G31,TaxCode,0),0,1,1))) -> 0 | O31: 10000 | P31: -
A32: 2020-04-12 | B32: Interflora | C32: Cash | D32: Flowers | E32: 87 | F32: A | G32: E | H32: PC | I32: IS-0345 | J32: 2020-04-12 | K32: 0 | L32: =O32-IF(ExpTaxCount=2,SUM($M32:$N32),$M32:$M32) -> 75.65217391 | M32: =$O32/(1+IF(ISERROR($F32),0,IF(ISNA(MATCH($F32,TaxCode,0)),0,OFFSET(Setup!$D$15,MATCH($F32,TaxCode,0),0,1,1)))+IF(ISERROR($G32),0,IF(ISNA(MATCH($G32,TaxCode,0)),0,OFFSET(Setup!$D$15,MATCH($G32,TaxCode,0),0,1,1))))*IF(ISERROR($F32),0,IF(ISNA(MATCH($F32,TaxCode,0)),0,OFFSET(Setup!$D$15,MATCH($F32,TaxCode,0),0,1,1))) -> 11.34782609 | N32: =$O32/(1+IF(ISERROR($F32),0,IF(ISNA(MATCH($F32,TaxCode,0)),0,OFFSET(Setup!$D$15,MATCH($F32,TaxCode,0),0,1,1)))+IF(ISERROR($G32),0,IF(ISNA(MATCH($G32,TaxCode,0)),0,OFFSET(Setup!$D$15,MATCH($G32,TaxCode,0),0,1,1))))*IF(ISERROR($G32),0,IF(ISNA(MATCH($G32,TaxCode,0)),0,OFFSET(Setup!$D$15,MATCH($G32,TaxCode,0),0,1,1))) -> 0 | O32: 87 | P32: -
A33: 2020-04-15 | B33: Capital Bank | C33: Bank Statement | D33: Service Fees | E33: 80 | F33: A | G33: E | H33: B1 | I33: IS-0315 | J33: 2020-04-15 | K33: 0 | L33: =O33-IF(ExpTaxCount=2,SUM($M33:$N33),$M33:$M33) -> 69.56521739 | M33: =$O33/(1+IF(ISERROR($F33),0,IF(ISNA(MATCH($F33,TaxCode,0)),0,OFFSET(Setup!$D$15,MATCH($F33,TaxCode,0),0,1,1)))+IF(ISERROR($G33),0,IF(ISNA(MATCH($G33,TaxCode,0)),0,OFFSET(Setup!$D$15,MATCH($G33,TaxCode,0),0,1,1))))*IF(ISERROR($F33),0,IF(ISNA(MATCH($F33,TaxCode,0)),0,OFFSET(Setup!$D$15,MATCH($F33,TaxCode,0),0,1,1))) -> 10.43478261 | N33: =$O33/(1+IF(ISERROR($F33),0,IF(ISNA(MATCH($F33,TaxCode,0)),0,OFFSET(Setup!$D$15,MATCH($F33,TaxCode,0),0,1,1)))+IF(ISERROR($G33),0,IF(ISNA(MATCH($G33,TaxCode,0)),0,OFFSET(Setup!$D$15,MATCH($G33,TaxCode,0),0,1,1))))*IF(ISERROR($G33),0,IF(ISNA(MATCH($G33,TaxCode,0)),0,OFFSET(Setup!$D$15,MATCH($G33,TaxCode,0),0,1,1))) -> 0 | O33: 80 | P33: -
A34: 2020-04-15 | B34: Capital Bank | C34: Bank Statement | D34: Service Fees | E34: 35 | F34: A | G34: E | H34: B2 | I34: IS-0315 | J34: 2020-04-15 | K34: 0 | L34: =O34-IF(ExpTaxCount=2,SUM($M34:$N34),$M34:$M34) -> 30.43478261 | M34: =$O34/(1+IF(ISERROR($F34),0,IF(ISNA(MATCH($F34,TaxCode,0)),0,OFFSET(Setup!$D$15,MATCH($F34,TaxCode,0),0,1,1)))+IF(ISERROR($G34),0,IF(ISNA(MATCH($G34,TaxCode,0)),0,OFFSET(Setup!$D$15,MATCH($G34,TaxCode,0),0,1,1))))*IF(ISERROR($F34),0,IF(ISNA(MATCH($F34,TaxCode,0)),0,OFFSET(Setup!$D$15,MATCH($F34,TaxCode,0),0,1,1))) -> 4.565217391 | N34: =$O34/(1+IF(ISERROR($F34),0,IF(ISNA(MATCH($F34,TaxCode,0)),0,OFFSET(Setup!$D$15,MATCH($F34,TaxCode,0),0,1,1)))+IF(ISERROR($G34),0,IF(ISNA(MATCH($G34,TaxCode,0)),0,OFFSET(Setup!$D$15,MATCH($G34,TaxCode,0),0,1,1))))*IF(ISERROR($G34),0,IF(ISNA(MATCH($G34,TaxCode,0)),0,OFFSET(Setup!$D$15,MATCH($G34,TaxCode,0),0,1,1))) -> 0 | O34: 35 | P34: -
A35: 2020-04-15 | B35: IAS Accountants | C35: Invoice | D35: Monthly Accounting | E35: 2300 | F35: A | G35: E | H35: B1 | I35: IS-0305 | J35: 2020-05-03 | K35: 0 | L35: =O35-IF(ExpTaxCount=2,SUM($M35:$N35),$M35:$M35) -> 2000 | M35: =$O35/(1+IF(ISERROR($F35),0,IF(ISNA(MATCH($F35,TaxCode,0)),0,OFFSET(Setup!$D$15,MATCH($F35,TaxCode,0),0,1,1)))+IF(ISERROR($G35),0,IF(ISNA(MATCH($G35,TaxCode,0)),0,OFFSET(Setup!$D$15,MATCH($G35,TaxCode,0),0,1,1))))*IF(ISERROR($F35),0,IF(ISNA(MATCH($F35,TaxCode,0)),0,OFFSET(Setup!$D$15,MATCH($F35,TaxCode,0),0,1,1))) -> 300 | N35: =$O35/(1+IF(ISERROR($F35),0,IF(ISNA(MATCH($F35,TaxCode,0)),0,OFFSET(Setup!$D$15,MATCH($F35,TaxCode,0),0,1,1)))+IF(ISERROR($G35),0,IF(ISNA(MATCH($G35,TaxCode,0)),0,OFFSET(Setup!$D$15,MATCH($G35,TaxCode,0),0,1,1))))*IF(ISERROR($G35),0,IF(ISNA(MATCH($G35,TaxCode,0)),0,OFFSET(Setup!$D$15,MATCH($G35,TaxCode,0),0,1,1))) -> 0 | O35: 2300 | P35: -
A36: 2020-04-20 | B36: Example (Pty) Ltd | C36: Transfer | D36: Inter Account Transfer | E36: -80000 | F36: E | G36: E | H36: B2 | I36: BS-0799 | J36: 2020-04-20 | K36: 0 | L36: =O36-IF(ExpTaxCount=2,SUM($M36:$N36),$M36:$M36) -> -80000 | M36: =$O36/(1+IF(ISERROR($F36),0,IF(ISNA(MATCH($F36,TaxCode,0)),0,OFFSET(Setup!$D$15,MATCH($F36,TaxCode,0),0,1,1)))+IF(ISERROR($G36),0,IF(ISNA(MATCH($G36,TaxCode,0)),0,OFFSET(Setup!$D$15,MATCH($G36,TaxCode,0),0,1,1))))*IF(ISERROR($F36),0,IF(ISNA(MATCH($F36,TaxCode,0)),0,OFFSET(Setup!$D$15,MATCH($F36,TaxCode,0),0,1,1))) -> 0 | N36: =$O36/(1+IF(ISERROR($F36),0,IF(ISNA(MATCH($F36,TaxCode,0)),0,OFFSET(Setup!$D$15,MATCH($F36,TaxCode,0),0,1,1)))+IF(ISERROR($G36),0,IF(ISNA(MATCH($G36,TaxCode,0)),0,OFFSET(Setup!$D$15,MATCH($G36,TaxCode,0),0,1,1))))*IF(ISERROR($G36),0,IF(ISNA(MATCH($G36,TaxCode,0)),0,OFFSET(Setup!$D$15,MATCH($G36,TaxCode,0),0,1,1))) -> 0 | O36: -80000 | P36: -
A37: 2020-04-20 | B37: Example (Pty) Ltd | C37: Transfer | D37: Inter Account Transfer | E37: 80000 | F37: E | G37: E | H37: B1 | I37: BS-0799 | J37: 2020-04-20 | K37: 0 | L37: =O37-IF(ExpTaxCount=2,SUM($M37:$N37),$M37:$M37) -> 80000 | M37: =$O37/(1+IF(ISERROR($F37),0,IF(ISNA(MATCH($F37,TaxCode,0)),0,OFFSET(Setup!$D$15,MATCH($F37,TaxCode,0),0,1,1)))+IF(ISERROR($G37),0,IF(ISNA(MATCH($G37,TaxCode,0)),0,OFFSET(Setup!$D$15,MATCH($G37,TaxCode,0),0,1,1))))*IF(ISERROR($F37),0,IF(ISNA(MATCH($F37,TaxCode,0)),0,OFFSET(Setup!$D$15,MATCH($F37,TaxCode,0),0,1,1))) -> 0 | N37: =$O37/(1+IF(ISERROR($F37),0,IF(ISNA(MATCH($F37,TaxCode,0)),0,OFFSET(Setup!$D$15,MATCH($F37,TaxCode,0),0,1,1)))+IF(ISERROR($G37),0,IF(ISNA(MATCH($G37,TaxCode,0)),0,OFFSET(Setup!$D$15,MATCH($G37,TaxCode,0),0,1,1))))*IF(ISERROR($G37),0,IF(ISNA(MATCH($G37,TaxCode,0)),0,OFFSET(Setup!$D$15,MATCH($G37,TaxCode,0),0,1,1))) -> 0 | O37: 80000 | P37: -
A38: 2020-04-25 | B38: Inland Revenue | C38: Return | D38: Sales Tax | E38: 34429.23 | F38: E | G38: E | H38: B1 | I38: BS-1700 | J38: 2020-04-25 | K38: 0 | L38: =O38-IF(ExpTaxCount=2,SUM($M38:$N38),$M38:$M38) -> 34429.23 | M38: =$O38/(1+IF(ISERROR($F38),0,IF(ISNA(MATCH($F38,TaxCode,0)),0,OFFSET(Setup!$D$15,MATCH($F38,TaxCode,0),0,1,1)))+IF(ISERROR($G38),0,IF(ISNA(MATCH($G38,TaxCode,0)),0,OFFSET(Setup!$D$15,MATCH($G38,TaxCode,0),0,1,1))))*IF(ISERROR($F38),0,IF(ISNA(MATCH($F38,TaxCode,0)),0,OFFSET(Setup!$D$15,MATCH($F38,TaxCode,0),0,1,1))) -> 0 | N38: =$O38/(1+IF(ISERROR($F38),0,IF(ISNA(MATCH($F38,TaxCode,0)),0,OFFSET(Setup!$D$15,MATCH($F38,TaxCode,0),0,1,1)))+IF(ISERROR($G38),0,IF(ISNA(MATCH($G38,TaxCode,0)),0,OFFSET(Setup!$D$15,MATCH($G38,TaxCode,0),0,1,1))))*IF(ISERROR($G38),0,IF(ISNA(MATCH($G38,TaxCode,0)),0,OFFSET(Setup!$D$15,MATCH($G38,TaxCode,0),0,1,1))) -> 0 | O38: 34429.23 | P38: -
A39: 2020-04-26 | B39: Example (Pty) Ltd | C39: Payroll | D39: Salaries | E39: 45000 | F39: E | G39: E | H39: B2 | I39: IS-0410 | J39: 2020-04-26 | K39: 0 | L39: =O39-IF(ExpTaxCount=2,SUM($M39:$N39),$M39:$M39) -> 45000 | M39: =$O39/(1+IF(ISERROR($F39),0,IF(ISNA(MATCH($F39,TaxCode,0)),0,OFFSET(Setup!$D$15,MATCH($F39,TaxCode,0),0,1,1)))+IF(ISERROR($G39),0,IF(ISNA(MATCH($G39,TaxCode,0)),0,OFFSET(Setup!$D$15,MATCH($G39,TaxCode,0),0,1,1))))*IF(ISERROR($F39),0,IF(ISNA(MATCH($F39,TaxCode,0)),0,OFFSET(Setup!$D$15,MATCH($F39,TaxCode,0),0,1,1))) -> 0 | N39: =$O39/(1+IF(ISERROR($F39),0,IF(ISNA(MATCH($F39,TaxCode,0)),0,OFFSET(Setup!$D$15,MATCH($F39,TaxCode,0),0,1,1)))+IF(ISERROR($G39),0,IF(ISNA(MATCH($G39,TaxCode,0)),0,OFFSET(Setup!$D$15,MATCH($G39,TaxCode,0),0,1,1))))*IF(ISERROR($G39),0,IF(ISNA(MATCH($G39,TaxCode,0)),0,OFFSET(Setup!$D$15,MATCH($G39,TaxCode,0),0,1,1))) -> 0 | O39: 45000 | P39: -
A40: 2020-04-26 | B40: Furniture City | C40: Invoice | D40: Furniture | E40: 17767.5 | F40: A | G40: E | H40: B1 | I40: BS-0015 | J40: 2020-05-26 | K40: 0 | L40: =O40-IF(ExpTaxCount=2,SUM($M40:$N40),$M40:$M40) -> 15450 | M40: =$O40/(1+IF(ISERROR($F40),0,IF(ISNA(MATCH($F40,TaxCode,0)),0,OFFSET(Setup!$D$15,MATCH($F40,TaxCode,0),0,1,1)))+IF(ISERROR($G40),0,IF(ISNA(MATCH($G40,TaxCode,0)),0,OFFSET(Setup!$D$15,MATCH($G40,TaxCode,0),0,1,1))))*IF(ISERROR($F40),0,IF(ISNA(MATCH($F40,TaxCode,0)),0,OFFSET(Setup!$D$15,MATCH($F40,TaxCode,0),0,1,1))) -> 2317.5 | N40: =$O40/(1+IF(ISERROR($F40),0,IF(ISNA(MATCH($F40,TaxCode,0)),0,OFFSET(Setup!$D$15,MATCH($F40,TaxCode,0),0,1,1)))+IF(ISERROR($G40),0,IF(ISNA(MATCH($G40,TaxCode,0)),0,OFFSET(Setup!$D$15,MATCH($G40,TaxCode,0),0,1,1))))*IF(ISERROR($G40),0,IF(ISNA(MATCH($G40,TaxCode,0)),0,OFFSET(Setup!$D$15,MATCH($G40,TaxCode,0),0,1,1))) -> 0 | O40: 17767.5 | P40: -
A41: 2020-04-26 | B41: HP Finance | C41: Debit Order | D41: Capital repayment | E41: 2604.27 | F41: E | G41: E | H41: B1 | I41: BS-1805 | J41: 2020-04-26 | K41: 0 | L41: =O41-IF(ExpTaxCount=2,SUM($M41:$N41),$M41:$M41) -> 2604.27 | M41: =$O41/(1+IF(ISERROR($F41),0,IF(ISNA(MATCH($F41,TaxCode,0)),0,OFFSET(Setup!$D$15,MATCH($F41,TaxCode,0),0,1,1)))+IF(ISERROR($G41),0,IF(ISNA(MATCH($G41,TaxCode,0)),0,OFFSET(Setup!$D$15,MATCH($G41,TaxCode,0),0,1,1))))*IF(ISERROR($F41),0,IF(ISNA(MATCH($F41,TaxCode,0)),0,OFFSET(Setup!$D$15,MATCH($F41,TaxCode,0),0,1,1))) -> 0 | N41: =$O41/(1+IF(ISERROR($F41),0,IF(ISNA(MATCH($F41,TaxCode,0)),0,OFFSET(Setup!$D$15,MATCH($F41,TaxCode,0),0,1,1)))+IF(ISERROR($G41),0,IF(ISNA(MATCH($G41,TaxCode,0)),0,OFFSET(Setup!$D$15,MATCH($G41,TaxCode,0),0,1,1))))*IF(ISERROR($G41),0,IF(ISNA(MATCH($G41,TaxCode,0)),0,OFFSET(Setup!$D$15,MATCH($G41,TaxCode,0),0,1,1))) -> 0 | O41: 2604.27 | P41: -
A42: 2020-04-26 | B42: HP Finance | C42: Debit Order | D42: Interest paid | E42: 1645.14 | F42: E | G42: E | H42: B1 | I42: IS-0600 | J42: 2020-04-26 | K42: 0 | L42: =O42-IF(ExpTaxCount=2,SUM($M42:$N42),$M42:$M42) -> 1645.14 | M42: =$O42/(1+IF(ISERROR($F42),0,IF(ISNA(MATCH($F42,TaxCode,0)),0,OFFSET(Setup!$D$15,MATCH($F42,TaxCode,0),0,1,1)))+IF(ISERROR($G42),0,IF(ISNA(MATCH($G42,TaxCode,0)),0,OFFSET(Setup!$D$15,MATCH($G42,TaxCode,0),0,1,1))))*IF(ISERROR($F42),0,IF(ISNA(MATCH($F42,TaxCode,0)),0,OFFSET(Setup!$D$15,MATCH($F42,TaxCode,0),0,1,1))) -> 0 | N42: =$O42/(1+IF(ISERROR($F42),0,IF(ISNA(MATCH($F42,TaxCode,0)),0,OFFSET(Setup!$D$15,MATCH($F42,TaxCode,0),0,1,1)))+IF(ISERROR($G42),0,IF(ISNA(MATCH($G42,TaxCode,0)),0,OFFSET(Setup!$D$15,MATCH($G42,TaxCode,0),0,1,1))))*IF(ISERROR($G42),0,IF(ISNA(MATCH($G42,TaxCode,0)),0,OFFSET(Setup!$D$15,MATCH($G42,TaxCode,0),0,1,1))) -> 0 | O42: 1645.14 | P42: -
A43: 2020-04-26 | B43: PR Properties | C43: Debit Order | D43: Rent | E43: 13800 | F43: A | G43: E | H43: B1 | I43: IS-0350 | J43: 2020-04-26 | K43: 0 | L43: =O43-IF(ExpTaxCount=2,SUM($M43:$N43),$M43:$M43) -> 12000 | M43: =$O43/(1+IF(ISERROR($F43),0,IF(ISNA(MATCH($F43,TaxCode,0)),0,OFFSET(Setup!$D$15,MATCH($F43,TaxCode,0),0,1,1)))+IF(ISERROR($G43),0,IF(ISNA(MATCH($G43,TaxCode,0)),0,OFFSET(Setup!$D$15,MATCH($G43,TaxCode,0),0,1,1))))*IF(ISERROR($F43),0,IF(ISNA(MATCH($F43,TaxCode,0)),0,OFFSET(Setup!$D$15,MATCH($F43,TaxCode,0),0,1,1))) -> 1800 | N43: =$O43/(1+IF(ISERROR($F43),0,IF(ISNA(MATCH($F43,TaxCode,0)),0,OFFSET(Setup!$D$15,MATCH($F43,TaxCode,0),0,1,1)))+IF(ISERROR($G43),0,IF(ISNA(MATCH($G43,TaxCode,0)),0,OFFSET(Setup!$D$15,MATCH($G43,TaxCode,0),0,1,1))))*IF(ISERROR($G43),0,IF(ISNA(MATCH($G43,TaxCode,0)),0,OFFSET(Setup!$D$15,MATCH($G43,TaxCode,0),0,1,1))) -> 0 | O43: 13800 | P43: -
A44: 2020-04-26 | B44: Example (Pty) Ltd | C44: Payroll | D44: Net Pay - Staff | E44: 35000 | F44: E | G44: E | H44: B2 | I44: IS-0405 | J44: 2020-04-26 | K44: 0 | L44: =O44-IF(ExpTaxCount=2,SUM($M44:$N44),$M44:$M44) -> 35000 | M44: =$O44/(1+IF(ISERROR($F44),0,IF(ISNA(MATCH($F44,TaxCode,0)),0,OFFSET(Setup!$D$15,MATCH($F44,TaxCode,0),0,1,1)))+IF(ISERROR($G44),0,IF(ISNA(MATCH($G44,TaxCode,0)),0,OFFSET(Setup!$D$15,MATCH($G44,TaxCode,0),0,1,1))))*IF(ISERROR($F44),0,IF(ISNA(MATCH($F44,TaxCode,0)),0,OFFSET(Setup!$D$15,MATCH($F44,TaxCode,0),0,1,1))) -> 0 | N44: =$O44/(1+IF(ISERROR($F44),0,IF(ISNA(MATCH($F44,TaxCode,0)),0,OFFSET(Setup!$D$15,MATCH($F44,TaxCode,0),0,1,1)))+IF(ISERROR($G44),0,IF(ISNA(MATCH($G44,TaxCode,0)),0,OFFSET(Setup!$D$15,MATCH($G44,TaxCode,0),0,1,1))))*IF(ISERROR($G44),0,IF(ISNA(MATCH($G44,TaxCode,0)),0,OFFSET(Setup!$D$15,MATCH($G44,TaxCode,0),0,1,1))) -> 0 | O44: 35000 | P44: -
A45: 2020-04-26 | B45: Example (Pty) Ltd | C45: Payroll | D45: Deductions - Staff | E45: 7200 | F45: E | G45: E | H45: B2 | I45: IS-0405 | J45: 2020-05-06 | K45: 0 | L45: =O45-IF(ExpTaxCount=2,SUM($M45:$N45),$M45:$M45) -> 7200 | M45: =$O45/(1+IF(ISERROR($F45),0,IF(ISNA(MATCH($F45,TaxCode,0)),0,OFFSET(Setup!$D$15,MATCH($F45,TaxCode,0),0,1,1)))+IF(ISERROR($G45),0,IF(ISNA(MATCH($G45,TaxCode,0)),0,OFFSET(Setup!$D$15,MATCH($G45,TaxCode,0),0,1,1))))*IF(ISERROR($F45),0,IF(ISNA(MATCH($F45,TaxCode,0)),0,OFFSET(Setup!$D$15,MATCH($F45,TaxCode,0),0,1,1))) -> 0 | N45: =$O45/(1+IF(ISERROR($F45),0,IF(ISNA(MATCH($F45,TaxCode,0)),0,OFFSET(Setup!$D$15,MATCH($F45,TaxCode,0),0,1,1)))+IF(ISERROR($G45),0,IF(ISNA(MATCH($G45,TaxCode,0)),0,OFFSET(Setup!$D$15,MATCH($G45,TaxCode,0),0,1,1))))*IF(ISERROR($G45),0,IF(ISNA(MATCH($G45,TaxCode,0)),0,OFFSET(Setup!$D$15,MATCH($G45,TaxCode,0),0,1,1))) -> 0 | O45: 7200 | P45: -
A46: 2020-04-26 | B46: Example (Pty) Ltd | C46: Payroll | D46: Deductions - Management | E46: 9320 | F46: E | G46: E | H46: B2 | I46: IS-0410 | J46: 2020-05-06 | K46: 0 | L46: =O46-IF(ExpTaxCount=2,SUM($M46:$N46),$M46:$M46) -> 9320 | M46: =$O46/(1+IF(ISERROR($F46),0,IF(ISNA(MATCH($F46,TaxCode,0)),0,OFFSET(Setup!$D$15,MATCH($F46,TaxCode,0),0,1,1)))+IF(ISERROR($G46),0,IF(ISNA(MATCH($G46,TaxCode,0)),0,OFFSET(Setup!$D$15,MATCH($G46,TaxCode,0),0,1,1))))*IF(ISERROR($F46),0,IF(ISNA(MATCH($F46,TaxCode,0)),0,OFFSET(Setup!$D$15,MATCH($F46,TaxCode,0),0,1,1))) -> 0 | N46: =$O46/(1+IF(ISERROR($F46),0,IF(ISNA(MATCH($F46,TaxCode,0)),0,OFFSET(Setup!$D$15,MATCH($F46,TaxCode,0),0,1,1)))+IF(ISERROR($G46),0,IF(ISNA(MATCH($G46,TaxCode,0)),0,OFFSET(Setup!$D$15,MATCH($G46,TaxCode,0),0,1,1))))*IF(ISERROR($G46),0,IF(ISNA(MATCH($G46,TaxCode,0)),0,OFFSET(Setup!$D$15,MATCH($G46,TaxCode,0),0,1,1))) -> 0 | O46: 9320 | P46: -
A47: 2020-04-29 | B47: GF Supplies | C47: IN1179 | D47: Consumables | E47: 2500 | F47: A | G47: E | H47: PC | I47: IS-0325 | J47: 2020-04-29 | K47: 0 | L47: =O47-IF(ExpTaxCount=2,SUM($M47:$N47),$M47:$M47) -> 2173.913043 | M47: =$O47/(1+IF(ISERROR($F47),0,IF(ISNA(MATCH($F47,TaxCode,0)),0,OFFSET(Setup!$D$15,MATCH($F47,TaxCode,0),0,1,1)))+IF(ISERROR($G47),0,IF(ISNA(MATCH($G47,TaxCode,0)),0,OFFSET(Setup!$D$15,MATCH($G47,TaxCode,0),0,1,1))))*IF(ISERROR($F47),0,IF(ISNA(MATCH($F47,TaxCode,0)),0,OFFSET(Setup!$D$15,MATCH($F47,TaxCode,0),0,1,1))) -> 326.0869565 | N47: =$O47/(1+IF(ISERROR($F47),0,IF(ISNA(MATCH($F47,TaxCode,0)),0,OFFSET(Setup!$D$15,MATCH($F47,TaxCode,0),0,1,1)))+IF(ISERROR($G47),0,IF(ISNA(MATCH($G47,TaxCode,0)),0,OFFSET(Setup!$D$15,MATCH($G47,TaxCode,0),0,1,1))))*IF(ISERROR($G47),0,IF(ISNA(MATCH($G47,TaxCode,0)),0,OFFSET(Setup!$D$15,MATCH($G47,TaxCode,0),0,1,1))) -> 0 | O47: 2500 | P47: -
A48: 2020-04-30 | B48: Example (Pty) Ltd | C48: Bank Statement | D48: Petty Cash Reimbursement | E48: 2587 | F48: E | G48: E | H48: B1 | I48: BS-0799 | J48: 2020-04-30 | K48: 0 | L48: =O48-IF(ExpTaxCount=2,SUM($M48:$N48),$M48:$M48) -> 2587 | M48: =$O48/(1+IF(ISERROR($F48),0,IF(ISNA(MATCH($F48,TaxCode,0)),0,OFFSET(Setup!$D$15,MATCH($F48,TaxCode,0),0,1,1)))+IF(ISERROR($G48),0,IF(ISNA(MATCH($G48,TaxCode,0)),0,OFFSET(Setup!$D$15,MATCH($G48,TaxCode,0),0,1,1))))*IF(ISERROR($F48),0,IF(ISNA(MATCH($F48,TaxCode,0)),0,OFFSET(Setup!$D$15,MATCH($F48,TaxCode,0),0,1,1))) -> 0 | N48: =$O48/(1+IF(ISERROR($F48),0,IF(ISNA(MATCH($F48,TaxCode,0)),0,OFFSET(Setup!$D$15,MATCH($F48,TaxCode,0),0,1,1)))+IF(ISERROR($G48),0,IF(ISNA(MATCH($G48,TaxCode,0)),0,OFFSET(Setup!$D$15,MATCH($G48,TaxCode,0),0,1,1))))*IF(ISERROR($G48),0,IF(ISNA(MATCH($G48,TaxCode,0)),0,OFFSET(Setup!$D$15,MATCH($G48,TaxCode,0),0,1,1))) -> 0 | O48: 2587 | P48: -
A49: 2020-04-30 | B49: Example (Pty) Ltd | C49: Bank Statement | D49: Petty Cash Reimbursement | E49: -2587 | F49: E | G49: E | H49: PC | I49: BS-0799 | J49: 2020-04-30 | K49: 0 | L49: =O49-IF(ExpTaxCount=2,SUM($M49:$N49),$M49:$M49) -> -2587 | M49: =$O49/(1+IF(ISERROR($F49),0,IF(ISNA(MATCH($F49,TaxCode,0)),0,OFFSET(Setup!$D$15,MATCH($F49,TaxCode,0),0,1,1)))+IF(ISERROR($G49),0,IF(ISNA(MATCH($G49,TaxCode,0)),0,OFFSET(Setup!$D$15,MATCH($G49,TaxCode,0),0,1,1))))*IF(ISERROR($F49),0,IF(ISNA(MATCH($F49,TaxCode,0)),0,OFFSET(Setup!$D$15,MATCH($F49,TaxCode,0),0,1,1))) -> 0 | N49: =$O49/(1+IF(ISERROR($F49),0,IF(ISNA(MATCH($F49,TaxCode,0)),0,OFFSET(Setup!$D$15,MATCH($F49,TaxCode,0),0,1,1)))+IF(ISERROR($G49),0,IF(ISNA(MATCH($G49,TaxCode,0)),0,OFFSET(Setup!$D$15,MATCH($G49,TaxCode,0),0,1,1))))*IF(ISERROR($G49),0,IF(ISNA(MATCH($G49,TaxCode,0)),0,OFFSET(Setup!$D$15,MATCH($G49,TaxCode,0),0,1,1))) -> 0 | O49: -2587 | P49: -
A50: 2020-04-30 | B50: Google | C50: Card | D50: Online Marketing | E50: 9800 | F50: E | G50: E | H50: B3 | I50: IS-0310 | J50: 2020-05-07 | K50: 0 | L50: =O50-IF(ExpTaxCount=2,SUM($M50:$N50),$M50:$M50) -> 9800 | M50: =$O50/(1+IF(ISERROR($F50),0,IF(ISNA(MATCH($F50,TaxCode,0)),0,OFFSET(Setup!$D$15,MATCH($F50,TaxCode,0),0,1,1)))+IF(ISERROR($G50),0,IF(ISNA(MATCH($G50,TaxCode,0)),0,OFFSET(Setup!$D$15,MATCH($G50,TaxCode,0),0,1,1))))*IF(ISERROR($F50),0,IF(ISNA(MATCH($F50,TaxCode,0)),0,OFFSET(Setup!$D$15,MATCH($F50,TaxCode,0),0,1,1))) -> 0 | N50: =$O50/(1+IF(ISERROR($F50),0,IF(ISNA(MATCH($F50,TaxCode,0)),0,OFFSET(Setup!$D$15,MATCH($F50,TaxCode,0),0,1,1)))+IF(ISERROR($G50),0,IF(ISNA(MATCH($G50,TaxCode,0)),0,OFFSET(Setup!$D$15,MATCH($G50,TaxCode,0),0,1,1))))*IF(ISERROR($G50),0,IF(ISNA(MATCH($G50,TaxCode,0)),0,OFFSET(Setup!$D$15,MATCH($G50,TaxCode,0),0,1,1))) -> 0 | O50: 9800 | P50: -
A51: 2020-04-30 | B51: None | C51: Journal | D51: Release Prepayment | E51: 15000 | F51: E | G51: E | H51: JC | I51: IS-0310 | J51: 2020-04-30 | K51: 0 | L51: =O51-IF(ExpTaxCount=2,SUM($M51:$N51),$M51:$M51) -> 15000 | M51: =$O51/(1+IF(ISERROR($F51),0,IF(ISNA(MATCH($F51,TaxCode,0)),0,OFFSET(Setup!$D$15,MATCH($F51,TaxCode,0),0,1,1)))+IF(ISERROR($G51),0,IF(ISNA(MATCH($G51,TaxCode,0)),0,OFFSET(Setup!$D$15,MATCH($G51,TaxCode,0),0,1,1))))*IF(ISERROR($F51),0,IF(ISNA(MATCH($F51,TaxCode,0)),0,OFFSET(Setup!$D$15,MATCH($F51,TaxCode,0),0,1,1))) -> 0 | N51: =$O51/(1+IF(ISERROR($F51),0,IF(ISNA(MATCH($F51,TaxCode,0)),0,OFFSET(Setup!$D$15,MATCH($F51,TaxCode,0),0,1,1)))+IF(ISERROR($G51),0,IF(ISNA(MATCH($G51,TaxCode,0)),0,OFFSET(Setup!$D$15,MATCH($G51,TaxCode,0),0,1,1))))*IF(ISERROR($G51),0,IF(ISNA(MATCH($G51,TaxCode,0)),0,OFFSET(Setup!$D$15,MATCH($G51,TaxCode,0),0,1,1))) -> 0 | O51: 15000 | P51: -
A52: 2020-04-30 | B52: None | C52: Journal | D52: Release Prepayment | E52: -15000 | F52: E | G52: E | H52: JC | I52: BS-0905 | J52: 2020-04-30 | K52: 0 | L52: =O52-IF(ExpTaxCount=2,SUM($M52:$N52),$M52:$M52) -> -15000 | M52: =$O52/(1+IF(ISERROR($F52),0,IF(ISNA(MATCH($F52,TaxCode,0)),0,OFFSET(Setup!$D$15,MATCH($F52,TaxCode,0),0,1,1)))+IF(ISERROR($G52),0,IF(ISNA(MATCH($G52,TaxCode,0)),0,OFFSET(Setup!$D$15,MATCH($G52,TaxCode,0),0,1,1))))*IF(ISERROR($F52),0,IF(ISNA(MATCH($F52,TaxCode,0)),0,OFFSET(Setup!$D$15,MATCH($F52,TaxCode,0),0,1,1))) -> 0 | N52: =$O52/(1+IF(ISERROR($F52),0,IF(ISNA(MATCH($F52,TaxCode,0)),0,OFFSET(Setup!$D$15,MATCH($F52,TaxCode,0),0,1,1)))+IF(ISERROR($G52),0,IF(ISNA(MATCH($G52,TaxCode,0)),0,OFFSET(Setup!$D$15,MATCH($G52,TaxCode,0),0,1,1))))*IF(ISERROR($G52),0,IF(ISNA(MATCH($G52,TaxCode,0)),0,OFFSET(Setup!$D$15,MATCH($G52,TaxCode,0),0,1,1))) -> 0 | O52: -15000 | P52: -
A53: 2020-05-01 | B53: IS Communications | C53: Invoice EXP24 | D53: Internet Service Provider | E53: 850 | F53: A | G53: E | H53: B1 | I53: IS-0375 | J53: 2020-05-31 | K53: 0 | L53: =O53-IF(ExpTaxCount=2,SUM($M53:$N53),$M53:$M53) -> 739.1304348 | M53: =$O53/(1+IF(ISERROR($F53),0,IF(ISNA(MATCH($F53,TaxCode,0)),0,OFFSET(Setup!$D$15,MATCH($F53,TaxCode,0),0,1,1)))+IF(ISERROR($G53),0,IF(ISNA(MATCH($G53,TaxCode,0)),0,OFFSET(Setup!$D$15,MATCH($G53,TaxCode,0),0,1,1))))*IF(ISERROR($F53),0,IF(ISNA(MATCH($F53,TaxCode,0)),0,OFFSET(Setup!$D$15,MATCH($F53,TaxCode,0),0,1,1))) -> 110.8695652 | N53: =$O53/(1+IF(ISERROR($F53),0,IF(ISNA(MATCH($F53,TaxCode,0)),0,OFFSET(Setup!$D$15,MATCH($F53,TaxCode,0),0,1,1)))+IF(ISERROR($G53),0,IF(ISNA(MATCH($G53,TaxCode,0)),0,OFFSET(Setup!$D$15,MATCH($G53,TaxCode,0),0,1,1))))*IF(ISERROR($G53),0,IF(ISNA(MATCH($G53,TaxCode,0)),0,OFFSET(Setup!$D$15,MATCH($G53,TaxCode,0),0,1,1))) -> 0 | O53: 850 | P53: -
A54: 2020-05-01 | B54: Training Inc | C54: Invoice | D54: Course | E54: 1250 | F54: A | G54: E | H54: B1 | I54: IS-0380 | J54: 2020-05-31 | K54: 0 | L54: =O54-IF(ExpTaxCount=2,SUM($M54:$N54),$M54:$M54) -> 1086.956522 | M54: =$O54/(1+IF(ISERROR($F54),0,IF(ISNA(MATCH($F54,TaxCode,0)),0,OFFSET(Setup!$D$15,MATCH($F54,TaxCode,0),0,1,1)))+IF(ISERROR($G54),0,IF(ISNA(MATCH($G54,TaxCode,0)),0,OFFSET(Setup!$D$15,MATCH($G54,TaxCode,0),0,1,1))))*IF(ISERROR($F54),0,IF(ISNA(MATCH($F54,TaxCode,0)),0,OFFSET(Setup!$D$15,MATCH($F54,TaxCode,0),0,1,1))) -> 163.0434783 | N54: =$O54/(1+IF(ISERROR($F54),0,IF(ISNA(MATCH($F54,TaxCode,0)),0,OFFSET(Setup!$D$15,MATCH($F54,TaxCode,0),0,1,1)))+IF(ISERROR($G54),0,IF(ISNA(MATCH($G54,TaxCode,0)),0,OFFSET(Setup!$D$15,MATCH($G54,TaxCode,0),0,1,1))))*IF(ISERROR($G54),0,IF(ISNA(MATCH($G54,TaxCode,0)),0,OFFSET(Setup!$D$15,MATCH($G54,TaxCode,0),0,1,1))) -> 0 | O54: 1250 | P54: -
A55: 2020-05-05 | B55: EAG Brokers | C55: Debit Order | D55: Insurance | E55: 368 | F55: A | G55: E | H55: B1 | I55: IS-0340 | J55: 2020-05-05 | K55: 0 | L55: =O55-IF(ExpTaxCount=2,SUM($M55:$N55),$M55:$M55) -> 320 | M55: =$O55/(1+IF(ISERROR($F55),0,IF(ISNA(MATCH($F55,TaxCode,0)),0,OFFSET(Setup!$D$15,MATCH($F55,TaxCode,0),0,1,1)))+IF(ISERROR($G55),0,IF(ISNA(MATCH($G55,TaxCode,0)),0,OFFSET(Setup!$D$15,MATCH($G55,TaxCode,0),0,1,1))))*IF(ISERROR($F55),0,IF(ISNA(MATCH($F55,TaxCode,0)),0,OFFSET(Setup!$D$15,MATCH($F55,TaxCode,0),0,1,1))) -> 48 | N55: =$O55/(1+IF(ISERROR($F55),0,IF(ISNA(MATCH($F55,TaxCode,0)),0,OFFSET(Setup!$D$15,MATCH($F55,TaxCode,0),0,1,1)))+IF(ISERROR($G55),0,IF(ISNA(MATCH($G55,TaxCode,0)),0,OFFSET(Setup!$D$15,MATCH($G55,TaxCode,0),0,1,1))))*IF(ISERROR($G55),0,IF(ISNA(MATCH($G55,TaxCode,0)),0,OFFSET(Setup!$D$15,MATCH($G55,TaxCode,0),0,1,1))) -> 0 | O55: 368 | P55: -
